Workbook

Sheet 1. INFORMACION ACUMULADA
A2: VEEDURIA DISTRITAL - INFORMACIÓN GESTION CONTRACTUAL
A3: DEL 1 DE ENERO AL 31 DE DICIEMBRE DE 2022
A5: 1. Entidad | E5: FONDO DE DESARROLLO LOCAL DE BARRIOS UNIDOS | H5: 2. Sector | I5: Gobierno
A6: 3. Presupuesto Disponible Inversión Directa PREDIS (BOGDATA) | E6: 31998943848 | H6: 5. Presupuesto Disponible Funcionamiento PREDIS (BOGDATA) | I6: 2548913462 | AI6: 7. Nombre de quien diligencia el formato | AK6: XIMENA LOMBANA RIAÑO
A7: 4. Presupuesto Comprometido de Inversión Directa según PREDIS (BOGDATA) | E7: 31231862056 | H7: 6. Presupuesto Comprometido Funcionamiento según PREDIS (BOGDATA) | I7: 2397006820 | AI7: Cargo | AK7: ABOGADA
AI8: Dependencia | AK8: CONTRATACION
AI9: Teléfono | AK9: 3144600818
AI10: Correo Electrónico | AK10: Ximena.Lombana@gobiernobogota.gov.co
A11: 1- INFORMACION GENERAL | V11: 2- INFORMACION FINANCIERA | AC11: 3 - PLAZOS | AI11: 4. CESION | AM11: 5. ESTADO | AN11: 6. % Avance y/o cumplimiento
A12: 1 | B12: 2 | C12: 3 | E12: 4 | F12: 5 | G12: 6 | H12: 7 | I12: 8 | N12: 9 | O12: 10 | P12: 11 | V12: 12 | W12: 13 | X12: 14 | Y12: 15 | Z12: 16 | AA12: 17 | AB12: 18 | AC12: 19 | AD12: 20 | AE12: 21 | AF12: 22 | AG12: 23 | AH12: 24 | AI12: 25 | AJ12: 26 | AK12: 27 | AL12: 28 | AM12: 29 | AN12: 30
A13: Número Contrato | B13: Año | C13: Número de proceso contractual SECOP | D13: Link proceso SECOP | E13: Tipo de contrato | F13: Modalidad de Selección | G13: Procedimiento o causal | H13: Objeto | I13: Afectación | J13: Plan de Desarrollo Distrital | K13: Número Programa | L13: Equivalencia número de programa | M13: Propósito | N13: Número Proyecto | O13: Número de proponentes | P13: Número de Identificación del contratista (Cédula o NIT sin puntos, comas ni caracteres especiales y sin digito de verificación) | Q13: Nombre del contratista (según el caso: nombres y apellidos o Razón social y Tipo societario) | R13: Naturaleza Jurídica | S13: Número de Identificación del integrante del Consorcio o U.T. (Cédula o NIT sin puntos, comas ni caracteres especiales y sin digito de verificación) | T13: Nombre del Integrante del Consorcio o U.T. y Tipo societario (Según el caso: nombres y apellidos o razón social y tipo societario) | U13: % Participación (indicar solo el numero del porcentaje, sin caracteres especiales) | V13: Vigencias futuras | W13: Valor Inicial del contrato | X13: Valor total reducciones (En valor negativo) | Y13: Número de adiciones | Z13: Valor total de adiciones | AA13: Valor Final | AB13: Giros (Valor en pesos) | AC13: Fecha de suscripción (DD/MM/AAAA) | AD13: Fecha de inicio (DD/MM/AAAA) | AE13: Fecha de terminación (DD/MM/AAAA) | AF13: Plazo en días | AG13: Número de prórrogas | AH13: Prorroga en días | AI13: Número de Identificación del cesionario (NIT sin digito de verificación) | AJ13: Nombre cesionario | AK13: Fecha cesión (DD/MM/AAAA) | AL13: Valor cesión | AM13: Estado | AN13: % Avance y/o Cumplimiento
A14: 225-2019 | B14: 2019 | C14: FDLBU-CD-147-2019 | D14: https://www.contratos.gov.co/consultas/detalleProceso.do?numConstancia=19-12-10065412 | E14: Convenios/Contratos interadministrativos | F14: Contratación directa | G14: Contratos interadministrativos | H14: CONTRATAR EL SERVICIO DE MENSAJERIA ESPECIALIZADA Y/O EXPRESA PARA LA ALCALDIA LOCAL DE BARRIOS UNIDOS. SEGUN CONTRATO INTERADMINIST RATIVO N° 225 DE 2019. REEMPLAZA CRP 782 DEL 2019 POR CONSTITUIRSE COMO OBLIGACIONES POR PAGAR. REEMPLAZA EL CRP 34 POR CONSTITUIR O BLIGACIONES POR PAGAR REEMPLAZA CDP 261 Y CRP 256 POR CONSTITUIRSE OBLIGACIONES POR PAGAR. | I14: Funcionamiento | J14: Bogotá mejor para todos | K14: No aplica | L14: =IF(ISERROR(VLOOKUP(K14,[1]Proposito_programa!$C$2:$E$59,2,FALSE))," ",VLOOKUP(K14,[1]Proposito_programa!$C$2:$E$59,2,FALSE)) ->  | M14: =IF(ISERROR(VLOOKUP(K14,[1]Proposito_programa!$C$2:$E$59,3,FALSE))," ",VLOOKUP(K14,[1]Proposito_programa!$C$2:$E$59,3,FALSE)) ->  | N14: 0 | P14: 900062917 | Q14: SERVICIOS POSTALES NACIONALES S.A.S. | R14: Persona Jurídica | V14: 0 | X14: 0 | Z14: 47420350 | AA14: =+W14+X14+Z14 -> 47420350 | AB14: 37966444 | AC14: 2019-12-16 | AD14: 2019-12-16 | AE14: 2022-07-31 | AF14: 360 | AG14: 2 | AH14: 510 | AM14: Terminado | AN14: =IF(ISERROR(AB14/AA14),"-",(AB14/AA14)) -> 0.8006360982
A15: 241-2019 | B15: 2019 | C15: FDLBU-LP-143-2019 | D15: https://community.secop.gov.co/Public/Tendering/ContractNoticePhases/View?PPI=CO1.PPI.4665024&isFromPublicArea=True&isModal=False | E15: Obra pública | F15: Licitación pública | G15: No aplica | H15: EJECUTAR A MONTO AGOTABLE Y A PRECIOS UNITARIOS SIN FORMULA DE AJUSTE, LAS OBRAS Y ACTIVIDADES PARA LA CONSERVACIÓN DE LA MALLA VIAL LOCAL, INTERMEDIA Y ESPACIO PÚBLICO DE LA LOCALIDAD DE BARRIOS UNIDOS EL CUAL INCLUYE APROPIACIÓN DE LOS DISEÑOS EXISTENTES, DIAGNÓSTICO, ESTUDIOS Y DISEÑOS PARA CONSERVACIÓN, MANTENIMIENTOS, REHABILITACIÓN, RECONSTRUCCIÓN, ACCIONES DE MOVILIDAD, ATENCIÓN DE EMERGENCIAS Y LAS DEMÁS ACTIVIDADES QUE SE DETALLAN EN LOS ANEXOS TÉCNICOS. | I15: Inversión | J15: Bogotá mejor para todos | K15: 49 | L15: =IF(ISERROR(VLOOKUP(K15,[1]Proposito_programa!$C$2:$E$59,2,FALSE))," ",VLOOKUP(K15,[1]Proposito_programa!$C$2:$E$59,2,FALSE)) -> Movilidad segura, sostenible y accesible | M15: =IF(ISERROR(VLOOKUP(K15,[1]Proposito_programa!$C$2:$E$59,3,FALSE))," ",VLOOKUP(K15,[1]Proposito_programa!$C$2:$E$59,3,FALSE)) -> Propósito 4: Hacer de Bogotá Región un modelo de movilidad multimodal, incluyente y sostenible | O15: 8 | P15: 901351050 | Q15: CONSORCIO BARRIOS UNIDOS 2020 | R15: Consorcio | S15: 900351236 | T15: ESTUDIOS E INGENIERIA SAS | U15: 0.95 | V15: 0 | X15: 0 | Y15: 1 | Z15: 2663329979 | AA15: =+W15+X15+Z15 -> 2663329979 | AB15: 2663329979 | AC15: 2019-12-27 | AD15: 2020-03-02 | AE15: 2021-09-26 | AF15: 240 | AG15: 2 | AH15: 150 | AM15: Terminado | AN15: 1
A16: 241-2019 | B16: 2019 | C16: FDLBU-LP-143-2019 | D16: https://community.secop.gov.co/Public/Tendering/ContractNoticePhases/View?PPI=CO1.PPI.4665024&isFromPublicArea=True&isModal=False | E16: Obra pública | F16: Licitación pública | G16: No aplica | H16: ADICION Y PRORROGA N°1 DEL CONTRATO DE PRESTACION DE SERVICIOS 241 DE 2019 CUYO OBJETO ES: EJECUTAR A MONTO AGOTABLE Y A PRECIOS UNI TARIOS LAS OBRAS Y ACTIVIDADES PARA LA CONSERVACION DE LA MALLA VIAL LOCAL, INTERMEDIA Y ESPACIO PUBLICO DE LA LOCALIDAD DE BARRIOSU NIDOS, EL CUAL INCLUYE APROPIACION DE LOS DISEÑOS EXISTENTES, DIAGNOSTICOS, ESTUDIOS Y DISEÑOS PARA CONSERVACION , MANTENIMIENTOS,RE HABILITACION, RECONSTRUCCION, ACCIONES DE MOVILIDAD, ATENCION DE EMERGENCIAS Y LAS DEMAS ACTIVIDADES QUE SE DETALLAN EN LOS ANEXOS T ECNICOS.. REEMPLAZA EL CRP 606 POR CONSTITUIR OBLIGACIONES POR PAGAR REEMPLAZA CDP 209 Y CRP 41 POR CONSTITUIRSE OBLIGACIONES POR PA GAR. | I16: Inversión | J16: Bogotá mejor para todos | K16: No aplica | L16: =IF(ISERROR(VLOOKUP(K16,[1]Proposito_programa!$C$2:$E$59,2,FALSE))," ",VLOOKUP(K16,[1]Proposito_programa!$C$2:$E$59,2,FALSE)) ->  | M16: =IF(ISERROR(VLOOKUP(K16,[1]Proposito_programa!$C$2:$E$59,3,FALSE))," ",VLOOKUP(K16,[1]Proposito_programa!$C$2:$E$59,3,FALSE)) ->  | N16: 0 | S16: 7300180 | T16: RAFAEL ANTONIO ROBAYO CASALLAS | U16: 0.05 | V16: 0 | X16: 0 | Z16: 0 | AA16: =+W16+X16+Z16 -> 0 | AB16: 0 | AN16: -
A17: 242-2019 | B17: 2019 | C17: FDLBU-CMA-169-2019 | D17: https://community.secop.gov.co/Public/Tendering/OpportunityDetail/Index?noticeUID=CO1.NTC.999905&isFromPublicArea=True&isModal=False | E17: Interventoría | F17: Concurso de méritos | G17: No aplica | H17: ADICION Y PRORROGA N°1 DEL CONTRATO DE INTERVENTORIA 242 DE 2019 EL CUAL TIENE POR OBJETO: EJECUTAR LA INTERVENTORIA TECNICA, ADMINI STRATIVA, LEGAL. FINANCIERA, CONTABLE, SOCIAL, AMBIENTAL Y DE SEGURIDAD Y SALUD EN EL TRABAJO AL CONTRATO DE OBRA QUE RESULTE DEL PR OCESO FDLBU-LP-143-2019. REEMPLAZA EL CRP 607 POR CONSTITUIR OBLIGACIONES POR PAGAR REEMPLAZA CDP 210 Y CRP 42 POR CONSTITUIRSE OBLI GACIONES POR PAGAR. | I17: Inversión | J17: Bogotá mejor para todos | K17: 49 | L17: =IF(ISERROR(VLOOKUP(K17,[1]Proposito_programa!$C$2:$E$59,2,FALSE))," ",VLOOKUP(K17,[1]Proposito_programa!$C$2:$E$59,2,FALSE)) -> Movilidad segura, sostenible y accesible | M17: =IF(ISERROR(VLOOKUP(K17,[1]Proposito_programa!$C$2:$E$59,3,FALSE))," ",VLOOKUP(K17,[1]Proposito_programa!$C$2:$E$59,3,FALSE)) -> Propósito 4: Hacer de Bogotá Región un modelo de movilidad multimodal, incluyente y sostenible | O17: 4 | P17: 900107376 | Q17: INTERVENTORIA Y CONSTRUCIVILES S.A.S | R17: Persona Jurídica | V17: 0 | X17: 0 | Z17: 235901753 | AA17: 235901753 | AB17: 0 | AC17: 2019-12-26 | AD17: 2020-03-02 | AE17: 2021-09-26 | AF17: 240 | AG17: 2 | AH17: 150 | AM17: Terminado | AN17: 0
A18: 261-2020 | B18: 2020 | C18: FDLBU-LP-262-2020 | D18: https://community.secop.gov.co/Public/Tendering/ContractNoticePhases/View?PPI=CO1.PPI.10737692&isFromPublicArea=True&isModal=False | E18: Contratos de prestación de servicios | F18: Licitación pública | G18: No aplica | H18: Prestar los servicios para adelantar el proceso de selección y seguimiento en la ejecución de las iniciativas deportivas y recreativ as comunitarias de la Localidad de Barrios Unidos, en marco del proyecto0791 ¨Cultura ciudadana, deporte y arte para un mejor futuro ” – Programa ¨Mejores oportunidades para el desarrollo a través de la cultura, la recreación y el deporte”. SEGUN CONTRATO DE PRESTA CION DE SERVICIOS 261DE 2020. REEMPLAZA EL CRP 691 POR CONSTITUIR OBLIGACIONES POR PAGAR REEMPLAZA CDP 205 Y CRP 27 POR CONSTITUIRSE OBLIGACIONES POR PAGAR. | I18: Inversión | J18: Bogotá mejor para todos | K18: 20 | L18: =IF(ISERROR(VLOOKUP(K18,[1]Proposito_programa!$C$2:$E$59,2,FALSE))," ",VLOOKUP(K18,[1]Proposito_programa!$C$2:$E$59,2,FALSE)) -> Bogotá, referente en cultura, deporte, recreación y actividad física, con parques para el desarrollo y la salud | M18: =IF(ISERROR(VLOOKUP(K18,[1]Proposito_programa!$C$2:$E$59,3,FALSE))," ",VLOOKUP(K18,[1]Proposito_programa!$C$2:$E$59,3,FALSE)) -> Propósito 1: Hacer un nuevo contrato social para incrementar la inclusión social, productiva y política | N18: 2044 | O18: 11 | P18: 900216251 | Q18: ASOCIACION PARA EL DESARROLLO INTEGRAL D E LA FAMILIA COLOMBIANA | R18: Persona Jurídica | S18: 900216251 | V18: 0 | X18: 0 | Z18: 50859045 | AA18: 50859045 | AB18: 50859045 | AC18: 2020-12-16 | AD18: 2021-01-19 | AE18: 2021-11-01 | AF18: 210 | AG18: 1 | AH18: 75 | AM18: Terminado | AN18: 1
A19: 264-2020 | B19: 2020 | C19: FDLBU-LP-265-2020 | D19: https://community.secop.gov.co/Public/Tendering/ContractNoticePhases/View?PPI=CO1.PPI.10837352&isFromPublicArea=True&isModal=False | E19: Obra pública | F19: Licitación pública | G19: No aplica | H19: “Contratar mediante el sistema de precios unitarios fijos sin formula deajuste, a monto agotable, el diagnóstico, mantenimiento y/o dotación delmobiliario de los parques vecinales y de bolsillo, de la localidad debarrios unidos en Bogotá D.C” segun contrato de obr a publica 264 de 2020. REEMPLAZA EL CRP 748 POR CONSTITUIR OBLIGACIONES POR PAGAR REEMPLAZA CDP 206 Y CRP 32 POR CONSTITUIRSE OBLIGA CIONES POR PAGAR. | I19: Inversión | J19: Bogotá mejor para todos | K19: 17 | L19: =IF(ISERROR(VLOOKUP(K19,[1]Proposito_programa!$C$2:$E$59,2,FALSE))," ",VLOOKUP(K19,[1]Proposito_programa!$C$2:$E$59,2,FALSE)) -> Jóvenes con capacidades: Proyecto de vida para la ciudadanía, la innovación y el trabajo del siglo XXI | M19: =IF(ISERROR(VLOOKUP(K19,[1]Proposito_programa!$C$2:$E$59,3,FALSE))," ",VLOOKUP(K19,[1]Proposito_programa!$C$2:$E$59,3,FALSE)) -> Propósito 1: Hacer un nuevo contrato social para incrementar la inclusión social, productiva y política | N19: 2027 | O19: 19 | P19: 900351236 | Q19: ESTUDIOS E INGENIERIA SAS | R19: Persona Jurídica | V19: 0 | X19: 0 | Z19: 127800000 | AA19: =+W19+X19+Z19 -> 127800000 | AB19: 127800000 | AC19: 2020-12-24 | AD19: 2021-05-24 | AE19: 2021-10-23 | AF19: 150 | AG19: 3 | AH19: 140 | AM19: Terminado | AN19: =IF(ISERROR(AB19/AA19),"-",(AB19/AA19)) -> 1
A20: 264-2020 | B20: 2022 | C20: FDLBU-LP-265-2020 | D20: https://community.secop.gov.co/Public/Tendering/ContractNoticePhases/View?PPI=CO1.PPI.10837352&isFromPublicArea=True&isModal=False | E20: Obra pública | F20: Licitación pública | G20: No aplica | H20: ADICION 01 Y PRORROGA 02 AL CONTRATO 264 DE 2020: CONTRATAR MEDIANTE EL SISTEMA DE PRECIOS UNITARIOS FIJOS SIN FORMULA DE AJUSTE, A MONTO AGOTABLE, EL DIAGNÓSTICO, MANTENIMIENTO Y/O DOTACIÓN DEL MOBILIARIO DE LOS PARQUES VECINALES Y DE BOLSILLO DE LA LOCALIDAD DE BARRIOS UNIDOS EN BOGOTÁ D.C. | I20: Inversión | J20: Un nuevo contrato social y ambiental para la Bogotá del Siglo XXI | K20: 33 | L20: =IF(ISERROR(VLOOKUP(K20,[1]Proposito_programa!$C$2:$E$59,2,FALSE))," ",VLOOKUP(K20,[1]Proposito_programa!$C$2:$E$59,2,FALSE)) -> Más árboles y más y mejor espacio público | M20: =IF(ISERROR(VLOOKUP(K20,[1]Proposito_programa!$C$2:$E$59,3,FALSE))," ",VLOOKUP(K20,[1]Proposito_programa!$C$2:$E$59,3,FALSE)) -> Propósito 2 : Cambiar Nuestros Hábitos de Vida para Reverdecer a Bogotá y Adaptarnos y Mitigar la Crisis Climática | N20: 2146 | O20: 19 | P20: 900351236 | Q20: ESTUDIOS E INGENIERIA SAS | R20: Persona Jurídica | V20: 0 | X20: 0 | Z20: 603060120 | AA20: =+W20+X20+Z20 -> 603060120 | AB20: 414954105 | AC20: 2020-12-24 | AD20: 2021-05-24 | AE20: 2021-10-23 | AF20: 150 | AG20: 3 | AH20: 140 | AM20: Terminado | AN20: =IF(ISERROR(AB20/AA20),"-",(AB20/AA20)) -> 0.6880808252
A21: OC 46538 | B21: 2020 | C21: OC 46538 | D21: https://www.colombiacompra.gov.co/tienda-virtual-del-estado-colombiano/ordenes-compra/46538 | E21: Otros | F21: Selección abreviada | G21: Acuerdo marco de precios | H21: CONTRATAR EL SUMINISTRO DE COMBUSTIBLE PARA LOS VEHICULOS QUE CONFORMAN EL PARQUE AUTOMOTOR DE PROPIEDAD Y/O AL SERVICIO DEL FONDO D E DESARROLLO LOCAL DE BARRIOS UNIDOS. SEGUN ORDEN DE COMPRA N°46538 DEL 2020. REEMPLAZA EL CRP 427 POR CONSTITUIR OBLIGACIONES POR P AGAR REEMPLAZA CDP 237 Y CRP 232 POR CONSTITUIRSE OBLIGACIONES POR PAGAR. | I21: Funcionamiento | J21: Bogotá mejor para todos | K21: No aplica | L21: =IF(ISERROR(VLOOKUP(K21,[1]Proposito_programa!$C$2:$E$59,2,FALSE))," ",VLOOKUP(K21,[1]Proposito_programa!$C$2:$E$59,2,FALSE)) ->  | M21: =IF(ISERROR(VLOOKUP(K21,[1]Proposito_programa!$C$2:$E$59,3,FALSE))," ",VLOOKUP(K21,[1]Proposito_programa!$C$2:$E$59,3,FALSE)) ->  | N21: 0 | P21: 830095213 | Q21: ORGANIZACION TERPEL S A | R21: Persona Jurídica | V21: 0 | X21: 0 | Z21: 2045056 | AA21: 2045056 | AB21: 1580570 | AC21: 2020-03-25 | AD21: 2021-03-29 | AE21: 2021-12-29 | AF21: 634 | AG21: 1 | AH21: 270 | AM21: Terminado | AN21: 0.7728737013
A22: OC 58931 | B22: 2020 | C22: OC 58931 | D22: https://www.colombiacompra.gov.co/tienda-virtual-del-estado-colombiano/ordenes-compra/58931 | E22: Otros | F22: Selección abreviada | G22: Acuerdo marco de precios | H22: ADICION 01 AL ORDEN DE COMPRA 58931: CONTRATAR EL ARRENDAMIENTO DE IMPRESORAS MULTIFUNCIONALES CON DESTINO ALAS DIFERENTES DEPENDENC IAS DEL FONDO DE DESARROLLO DE BARRIOS UNIDOS. REEMPLAZA CDP 529 Y CRP 643 POR CONSTITUIRSE OBLIGACIONES POR PAGAR. | I22: Funcionamiento | J22: Bogotá mejor para todos | K22: No aplica | L22: =IF(ISERROR(VLOOKUP(K22,[1]Proposito_programa!$C$2:$E$59,2,FALSE))," ",VLOOKUP(K22,[1]Proposito_programa!$C$2:$E$59,2,FALSE)) ->  | M22: =IF(ISERROR(VLOOKUP(K22,[1]Proposito_programa!$C$2:$E$59,3,FALSE))," ",VLOOKUP(K22,[1]Proposito_programa!$C$2:$E$59,3,FALSE)) ->  | N22: 0 | O22: 6 | P22: 830044858 | Q22: PC COM S A | R22: Persona Jurídica | V22: 0 | X22: 0 | Z22: 5001838 | AA22: 5001838 | AB22: 5001838 | AC22: 2020-11-18 | AD22: 2020-11-20 | AE22: 2022-04-30 | AF22: 510 | AG22: 3 | AH22: 300 | AM22: Terminado | AN22: 1
A23: 085-2020 | B23: 2020 | C23: FDLBU-MC-069-2020 | D23: https://community.secop.gov.co/Public/Tendering/ContractNoticePhases/View?PPI=CO1.PPI.6075557&isFromPublicArea=True&isModal=False | E23: Contratos de prestación de servicios | F23: Contratación mínima cuantia | G23: No aplica | H23: CONTRATAR EL SERVICIO DE MANTENIMIENTO PREVENTIVO Y CORRECTIVO DEL EQUIPO DE AIRE ACONDICIONADO DE PROPIEDAD DE LA ALCALDIA LOCAL DE BARRIOS UNIDOS. SEGUN ACEPTACION DE OFERTA CONTRATO DE PRESTACION DE SERVICIOS 085 DE 2020. REEMPLAZA EL CRP 406 POR CONSTITUIR OBL IGACIONES POR PAGAR REEMPLAZA CDP 254 Y CRP 249 POR CONSTITUIRSE OBLIGACIONES POR PAGAR. | I23: Funcionamiento | J23: Bogotá mejor para todos | K23: No aplica | L23: =IF(ISERROR(VLOOKUP(K23,[1]Proposito_programa!$C$2:$E$59,2,FALSE))," ",VLOOKUP(K23,[1]Proposito_programa!$C$2:$E$59,2,FALSE)) ->  | M23: =IF(ISERROR(VLOOKUP(K23,[1]Proposito_programa!$C$2:$E$59,3,FALSE))," ",VLOOKUP(K23,[1]Proposito_programa!$C$2:$E$59,3,FALSE)) ->  | N23: 0 | O23: 16 | P23: 901055814 | Q23: ELECTRIAIRES INTEGRALES SAS | R23: Persona Jurídica | V23: 0 | X23: 0 | Z23: 299880 | AA23: 299880 | AB23: 299880 | AC23: 2020-03-06 | AD23: 2020-03-10 | AE23: 2022-03-09 | AF23: 720 | AG23: 2 | AH23: 360 | AM23: Liquidado | AN23: 1
A24: 104-2020 | B24: 2020 | C24: FDLBU-MC-111-2020 | D24: https://community.secop.gov.co/Public/Tendering/ContractNoticePhases/View?PPI=CO1.PPI.6784390&isFromPublicArea=True&isModal=False | E24: Contratos de prestación de servicios | F24: Contratación mínima cuantia | G24: No aplica | H24: ADICION Y PRORROGA 01 CONTRATO 104 DE 2020: “CONTRATAR EL SERVICIO DE MANTENIMIENTO PREVENTIVO Y CORRECTIVO, SUMINISTRO DE REPUESTOS E INSUMOS, PARA LOS VEHICULOS DE EL FONDO DE DESARROLLO LOCAL DE BARRIOS UNIDOS O A LOS QUE LLEGARE A SER RESPONSABLE DURANTE LA VI GENCIA DEL CONTRATO.” REEMPLAZA CDP 422 Y CRP 488 POR CONSTITUIRSE OBLIGACIONES POR PAGAR. | I24: Funcionamiento | J24: Bogotá mejor para todos | K24: No aplica | L24: =IF(ISERROR(VLOOKUP(K24,[1]Proposito_programa!$C$2:$E$59,2,FALSE))," ",VLOOKUP(K24,[1]Proposito_programa!$C$2:$E$59,2,FALSE)) ->  | M24: =IF(ISERROR(VLOOKUP(K24,[1]Proposito_programa!$C$2:$E$59,3,FALSE))," ",VLOOKUP(K24,[1]Proposito_programa!$C$2:$E$59,3,FALSE)) ->  | N24: 0 | O24: 8 | P24: 800250589 | Q24: CENTRO CAR 19 LIMITADA | R24: Persona Jurídica | V24: 0 | X24: 0 | Y24: 2 | Z24: 394946 | AA24: 394946 | AB24: 394946 | AC24: 2020-04-21 | AD24: 2020-05-05 | AE24: 2021-11-04 | AF24: 540 | AG24: 1 | AH24: 180 | AM24: Liquidado | AN24: 1
A25: 217-2020 | B25: 2020 | C25: FDLBU-CD-232-2020 | D25: https://www.contratos.gov.co/consultas/detalleProceso.do?numConstancia=20-22-18359 | E25: Convenios/Contratos interadministrativos | F25: Contratación directa | G25: Contratos interadministrativos | H25: IMPLEMENTAR Y EJECUTAR EL PROGRAMA CUMPLIMIENTO DE PROTOCOLOS DE BIOSEGURIDAD PARA LA ADAPTACION Y REACTIVACION ECONOMICA EN LAS LOC ALIDADES DE USAQUEN, CHAPINERO, ENGATIVA, SUBA, BARRIOS UNIDOS Y TEUSAQUILLO.. REEMPLAZA EL CRP 597 POR CONSTITUIR OBLIGACIONES POR PAGAR REEMPLAZA CDP 211 Y CRP 54 POR CONSTITUIRSE OBLIGACIONES POR PAGAR. | I25: Inversión | J25: Bogotá mejor para todos | K25: 6 | L25: =IF(ISERROR(VLOOKUP(K25,[1]Proposito_programa!$C$2:$E$59,2,FALSE))," ",VLOOKUP(K25,[1]Proposito_programa!$C$2:$E$59,2,FALSE)) -> Sistema Distrital de Cuidado | M25: =IF(ISERROR(VLOOKUP(K25,[1]Proposito_programa!$C$2:$E$59,3,FALSE))," ",VLOOKUP(K25,[1]Proposito_programa!$C$2:$E$59,3,FALSE)) -> Propósito 1: Hacer un nuevo contrato social para incrementar la inclusión social, productiva y política | N25: 2135 | P25: 900971006 | Q25: SUBRED INTEGRADA DE SERVICIOS DE SALUD N ORTE ESE | R25: Persona Jurídica | V25: 0 | X25: 0 | Z25: 219651149 | AA25: 219651149 | AB25: 219651149 | AC25: 2020-08-27 | AD25: 2020-10-14 | AE25: 2021-06-30 | AF25: 144 | AG25: 1 | AH25: 30 | AM25: Liquidado | AN25: 1
A26: 218-2020 | B26: 2020 | C26: FDLBU-CD-233-2020 | D26: https://www.contratos.gov.co/consultas/detalleProceso.do?numConstancia=20-22-18360 | E26: Contratos de prestación de servicios | F26: Contratación directa | G26: Cuando no exista pluralidad de oferentes en el mercado | H26: COMPENSAR SE OBLIGA A PRESTAR LOS SERVICIOS RE-QUERIDOS PARA OPERAR EL PROGRAMA DE INCENTI-VOS PARA EL EMPLEO CON EL CUAL SE BUSCA A POYAR AL TEJIDO PRODUCTIVO DE LAS LOCALIDADES DE BOGOTÁ D.C., CON ESPECIAL ÉNFASIS EN LOS EMPRE-SARIOS, E INCLUIR Y/O MANTENER LABOR ALMENTE A TRABAJADORES MAYORES DE 50 AÑOS, MUJERES Y JÓ-VENES (18-28 AÑOS) PRINCIPALMENTE, A TRAVÉS DE LA TRANSFERENCIA DE INCENTIVO S A LA NÓMINA, EN EL MARCO DE LA CONTENCIÓN Y MITIGACIÓN DE LOS EFECTOS DEL COVID-19, LA DECLARATORIA DE EMERGENCIA SANITARIA EN TOD O EL TERRITORIO NACIONAL Y LA CALAMIDAD PÚBLICA DECLARADA EN LA CIUDAD DE BOGOTÁ D.C. SEGUN CONTRATO DE PRESTACION DE SERVICIOS 218D E 2020. REEMPLAZA EL CRP 601 POR CONSTITUIR OBLIGACIONES POR PAGAR REEMPLAZA CDP 223 Y CRP 226 POR CONSTITUIRSE OBLIGACIONES POR PAG AR. | I26: Inversión | J26: Bogotá mejor para todos | K26: 45 | L26: =IF(ISERROR(VLOOKUP(K26,[1]Proposito_programa!$C$2:$E$59,2,FALSE))," ",VLOOKUP(K26,[1]Proposito_programa!$C$2:$E$59,2,FALSE)) -> Espacio público más seguro y construido colectivamente | M26: =IF(ISERROR(VLOOKUP(K26,[1]Proposito_programa!$C$2:$E$59,3,FALSE))," ",VLOOKUP(K26,[1]Proposito_programa!$C$2:$E$59,3,FALSE)) -> Propósito 3: Inspirar confianza y legitimidad para vivir sin miedo y ser epicentro de cultura ciudadana, paz y reconciliación | N26: 2038 | P26: 860066942 | Q26: CAJA DE COMPENSACION FAMILIAR COMPENSAR | R26: Persona Jurídica | V26: 0 | X26: 0 | Z26: 109660319 | AA26: 109660319 | AB26: 0 | AC26: 2020-08-26 | AD26: 2020-09-14 | AE26: 2021-10-31 | AF26: 300 | AG26: 1 | AH26: 108 | AM26: Terminado | AN26: 0
A27: 265-2020 | B27: 2020 | C27: FDLBU-CMA-274-2020 | D27: https://community.secop.gov.co/Public/Tendering/ContractNoticePhases/View?PPI=CO1.PPI.11134267&isFromPublicArea=True&isModal=False | E27: Interventoría | F27: Concurso de méritos | G27: No aplica | H27: “EJECUTAR LA INTERVENTORÍA TÉCNICA, FINANCIERA, ADMINISTRATIVA, DECALIDAD, LEGAL SOCIAL, AMBIENTAL Y DE SEGURIDAD Y SALUD EN EL TRAB AJO ALCONTRATO DE OBRA CUYO OBJETO ES: “contratar mediante el sistema deprecios unitarios fijos sin formula de ajuste, a monto agota ble, el diagnóstico, mantenimiento y/o dotación del mobiliario de los parques vecinales y de bolsillo, de la Localidad De Barrios Un idos En BogotáD.C.” SEGUN CONTRATO DE INTERVENTORIA 265 DE 2020. REEMPLAZA EL CRP 749 POR CONSTITUIR OBLIGACIONES POR PAGAR REEMPLAZ A CDP 207 Y CRP 274 POR CONSTITUIRSE OBLIGACIONES POR PAGAR. | I27: Inversión | J27: Bogotá mejor para todos | K27: 17 | L27: =IF(ISERROR(VLOOKUP(K27,[1]Proposito_programa!$C$2:$E$59,2,FALSE))," ",VLOOKUP(K27,[1]Proposito_programa!$C$2:$E$59,2,FALSE)) -> Jóvenes con capacidades: Proyecto de vida para la ciudadanía, la innovación y el trabajo del siglo XXI | M27: =IF(ISERROR(VLOOKUP(K27,[1]Proposito_programa!$C$2:$E$59,3,FALSE))," ",VLOOKUP(K27,[1]Proposito_programa!$C$2:$E$59,3,FALSE)) -> Propósito 1: Hacer un nuevo contrato social para incrementar la inclusión social, productiva y política | N27: 2027 | O27: 4 | P27: 901443086 | Q27: CONSORCIO SANTA ALICIA 274 | R27: Consorcio | S27: 901114547 | T27: SOLIUM INGENIERIA | U27: 0.7 | V27: 0 | X27: 0 | Y27: 1 | Z27: 14192300 | AA27: 14192300 | AB27: 14192300 | AC27: 2020-12-24 | AD27: 2021-05-24 | AE27: 2021-10-23 | AF27: 150 | AG27: 3 | AH27: 140 | AM27: Terminado | AN27: 1
A28: 265-2020 | B28: 2022 | C28: FDLBU-CMA-274-2020 | D28: https://community.secop.gov.co/Public/Tendering/ContractNoticePhases/View?PPI=CO1.PPI.11134267&isFromPublicArea=True&isModal=False | E28: Interventoría | F28: Concurso de méritos | G28: No aplica | H28: “EJECUTAR LA INTERVENTORÍA TÉCNICA, FINANCIERA, ADMINISTRATIVA, DECALIDAD, LEGAL SOCIAL, AMBIENTAL Y DE SEGURIDAD Y SALUD EN EL TRAB AJO ALCONTRATO DE OBRA CUYO OBJETO ES: “contratar mediante el sistema deprecios unitarios fijos sin formula de ajuste, a monto agota ble, el diagnóstico, mantenimiento y/o dotación del mobiliario de los parques vecinales y de bolsillo, de la Localidad De Barrios Un idos En BogotáD.C.” SEGUN CONTRATO DE INTERVENTORIA 265 DE 2020. REEMPLAZA EL CRP 749 POR CONSTITUIR OBLIGACIONES POR PAGAR REEMPLAZ A CDP 207 Y CRP 274 POR CONSTITUIRSE OBLIGACIONES POR PAGAR. | I28: Inversión | J28: Un nuevo contrato social y ambiental para la Bogotá del Siglo XXI | K28: 33 | L28: =IF(ISERROR(VLOOKUP(K28,[1]Proposito_programa!$C$2:$E$59,2,FALSE))," ",VLOOKUP(K28,[1]Proposito_programa!$C$2:$E$59,2,FALSE)) -> Más árboles y más y mejor espacio público | M28: =IF(ISERROR(VLOOKUP(K28,[1]Proposito_programa!$C$2:$E$59,3,FALSE))," ",VLOOKUP(K28,[1]Proposito_programa!$C$2:$E$59,3,FALSE)) -> Propósito 2 : Cambiar Nuestros Hábitos de Vida para Reverdecer a Bogotá y Adaptarnos y Mitigar la Crisis Climática | N28: 2146 | S28: 901331295 | T28: SUEM S.A.S. | U28: 0.3 | V28: 0 | X28: 0 | Z28: 66939880 | AA28: 66939880 | AB28: 46053591
A29: 001-2021 | B29: 2021 | C29: FDLBU-CD-001-2021 | D29: https://community.secop.gov.co/Public/Tendering/ContractNoticePhases/View?PPI=CO1.PPI.11953361&isFromPublicArea=True&isModal=False | E29: Contratos de prestación de servicios profesionales y de apoyo a la gestión | F29: Contratación directa | G29: Prestación de servicios profesionales y de apoyo a la gestión, o para la ejecución de trabajos artísticos que sólo puedan encomendarse a determinadas personas naturales | H29: PRESTAR LOS SERVICIOS PROFESIONALES AL ÁREA DE GESTIÓN PARA EL DESARROLLO LOCAL PARA EL APOYO A LA CONTRATACIÓN EN LAS DIFERENTES PL ATAFORMAS Y REPORTES A DIFERENTES ORGANISMOS, SEGUIMIENTO A PROCESOS ADELANTADOS POR EL ÁREA. SEGUN CONTRATO DE PRESTACION DE SERVIC IOS PROFESIONALES 001 DE 2021. REEMPLAZA CDP 286 Y CRP 302 POR CONSTITUIRSE OBLIGACIONES POR PAGAR. | I29: Inversión | J29: Un nuevo contrato social y ambiental para la Bogotá del Siglo XXI | K29: 57 | L29: =IF(ISERROR(VLOOKUP(K29,[1]Proposito_programa!$C$2:$E$59,2,FALSE))," ",VLOOKUP(K29,[1]Proposito_programa!$C$2:$E$59,2,FALSE)) -> Gestión pública local | M29: =IF(ISERROR(VLOOKUP(K29,[1]Proposito_programa!$C$2:$E$59,3,FALSE))," ",VLOOKUP(K29,[1]Proposito_programa!$C$2:$E$59,3,FALSE)) -> Propósito 5: Construir Bogotá - Región con gobierno abierto, transparente y ciudadanía consciente | N29: 2143 | P29: 52705855 | Q29: XIMENA LOMBANA RIAÑO | R29: Persona Natural | V29: 0 | X29: 0 | Z29: 7916666 | AA29: 7916666 | AB29: 7916666 | AC29: 2021-02-10 | AD29: 2021-02-11 | AE29: 2022-01-20 | AF29: 340 | AG29: 1 | AH29: 40 | AM29: Terminado | AN29: 1
A30: 002-2021 | B30: 2021 | C30: FDLBU-CD-003-2021 | D30: https://community.secop.gov.co/Public/Tendering/ContractNoticePhases/View?PPI=CO1.PPI.11967321&isFromPublicArea=True&isModal=False | E30: Contratos de prestación de servicios profesionales y de apoyo a la gestión | F30: Contratación directa | G30: Prestación de servicios profesionales y de apoyo a la gestión, o para la ejecución de trabajos artísticos que sólo puedan encomendarse a determinadas personas naturales | H30: PRESTAR LOS SERVICIOS PROFESIONALES PARA APOYAR AL AREA GESTION DEL DESARROLLO ADMINISTRATIVO Y FINANCIERO EN LOS ASUNTOS RELACIONAD OS CON EL DESARROLLO DE LA GESTIÓN CONTRACTUAL PARA LA ADQUISICIÓN DE RECURSOS Y SERVICIOS. SEGUN CONTRATO DE PRESTACION DE SERVICIO S PROFESIONALES 002 DE 2021. REEMPLAZA CDP 287 Y CRP 303 POR CONSTITUIRSE OBLIGACIONES POR PAGAR. | I30: Inversión | J30: Un nuevo contrato social y ambiental para la Bogotá del Siglo XXI | K30: 57 | L30: =IF(ISERROR(VLOOKUP(K30,[1]Proposito_programa!$C$2:$E$59,2,FALSE))," ",VLOOKUP(K30,[1]Proposito_programa!$C$2:$E$59,2,FALSE)) -> Gestión pública local | M30: =IF(ISERROR(VLOOKUP(K30,[1]Proposito_programa!$C$2:$E$59,3,FALSE))," ",VLOOKUP(K30,[1]Proposito_programa!$C$2:$E$59,3,FALSE)) -> Propósito 5: Construir Bogotá - Región con gobierno abierto, transparente y ciudadanía consciente | N30: 2143 | P30: 46381344 | Q30: DIANA CAROLINA LIZARAZO MACIAS | R30: Persona Natural | V30: 0 | X30: 0 | Z30: 6558800 | AA30: 6558800 | AB30: 6558800 | AC30: 2021-02-12 | AD30: 2021-02-16 | AE30: 2022-01-20 | AF30: 335 | AG30: 1 | AH30: 35 | AI30: 43259788 | AJ30: MARIA MAGDALENA POLANCO | AK30: 2021-11-02 | AM30: Terminado | AN30: 1
A31: 003-2021 | B31: 2021 | C31: FDLBU-CD-019-2021 | D31: https://community.secop.gov.co/Public/Tendering/ContractNoticePhases/View?PPI=CO1.PPI.12065350&isFromPublicArea=True&isModal=False | E31: Contratos de prestación de servicios profesionales y de apoyo a la gestión | F31: Contratación directa | G31: Prestación de servicios profesionales y de apoyo a la gestión, o para la ejecución de trabajos artísticos que sólo puedan encomendarse a determinadas personas naturales | H31: PRESTAR SERVICIOS PROFESIONALES ESPECIALIZADOS DE ASESORÍA EN PLANEACIÓN EN EL ÁREA DE GESTIÓN DEL DESARROLLO PARA LIDERAR LA FORMUL ACIÓN, SEGUIMIENTO Y EVALUACIÓN DE POLÍTICAS, PLANES, PROGRAMAS Y PROYECTOS DE DESARROLLO LOCAL, PARA EL CUMPLIMIENTO DE LAS METAS D EL PLAN DE DESARROLLO LOCAL DE BARRIOS UNIDOS. SEGUN CONTRATO DE PRESTACION DE SERVICIOS PROFESIONALES 003 DE 2021 REEMPLAZA CDP 321 Y CRP 308 POR CONSTITUIRSE OBLIGACIONES POR PAGAR. | I31: Inversión | J31: Un nuevo contrato social y ambiental para la Bogotá del Siglo XXI | K31: 57 | L31: =IF(ISERROR(VLOOKUP(K31,[1]Proposito_programa!$C$2:$E$59,2,FALSE))," ",VLOOKUP(K31,[1]Proposito_programa!$C$2:$E$59,2,FALSE)) -> Gestión pública local | M31: =IF(ISERROR(VLOOKUP(K31,[1]Proposito_programa!$C$2:$E$59,3,FALSE))," ",VLOOKUP(K31,[1]Proposito_programa!$C$2:$E$59,3,FALSE)) -> Propósito 5: Construir Bogotá - Región con gobierno abierto, transparente y ciudadanía consciente | N31: 2143 | P31: 1130611078 | Q31: PABLO ERNESTO ROMERO VEGA | R31: Persona Natural | V31: 0 | X31: 0 | Z31: 10406666 | AA31: 10406666 | AB31: 10406666 | AC31: 2021-02-18 | AD31: 2021-02-18 | AE31: 2022-01-10 | AF31: 323 | AG31: 1 | AH31: 23 | AM31: Terminado | AN31: 1
A32: 004-2021 | B32: 2021 | C32: FDLBU-CD-026-2021 | D32: https://community.secop.gov.co/Public/Tendering/ContractNoticePhases/View?PPI=CO1.PPI.12075161&isFromPublicArea=True&isModal=False | E32: Contratos de prestación de servicios profesionales y de apoyo a la gestión | F32: Contratación directa | G32: Prestación de servicios profesionales y de apoyo a la gestión, o para la ejecución de trabajos artísticos que sólo puedan encomendarse a determinadas personas naturales | H32: PRESTAR SUS SERVICIOS DE APOYO PARA APOYAR LA GESTIÓN DOCUMENTAL DE LA ALCALDÍA LOCAL EN LA IMPLEMENTACIÓN DE LOS PROCESOS DE CLASIF ICACIÓN, ORDENACIÓN, SELECCIÓN NATURAL, FOLIACIÓN, IDENTIFICACIÓN, LEVANTAMIENTO DE INVENTARIOS, ALMACENAMIENTO Y APLICACIÓN DE PROT OCOLOS DE ELIMINACIÓN Y TRANSFERENCIAS. SEGUN CONTRATO DE PRESTACION DE SERVICIOS DE APOYO A LA GESTION 004 DE 2021. REEMPLAZA CDP 3 00 Y CRP 307 POR CONSTITUIRSE OBLIGACIONES POR PAGAR. | I32: Inversión | J32: Un nuevo contrato social y ambiental para la Bogotá del Siglo XXI | K32: 57 | L32: =IF(ISERROR(VLOOKUP(K32,[1]Proposito_programa!$C$2:$E$59,2,FALSE))," ",VLOOKUP(K32,[1]Proposito_programa!$C$2:$E$59,2,FALSE)) -> Gestión pública local | M32: =IF(ISERROR(VLOOKUP(K32,[1]Proposito_programa!$C$2:$E$59,3,FALSE))," ",VLOOKUP(K32,[1]Proposito_programa!$C$2:$E$59,3,FALSE)) -> Propósito 5: Construir Bogotá - Región con gobierno abierto, transparente y ciudadanía consciente | N32: 2143 | P32: 80041124 | Q32: JOHN ALEJANDRO HERMOSO FORERO | R32: Persona Natural | V32: 0 | X32: 0 | Z32: 1362600 | AA32: 1362600 | AB32: 1362600 | AC32: 2021-02-18 | AD32: 2021-02-19 | AE32: 2021-12-18 | AF32: 300 | AM32: Terminado | AN32: 1
A33: 005-2021 | B33: 2021 | C33: FDLBU-CD-033-2021 | D33: https://community.secop.gov.co/Public/Tendering/ContractNoticePhases/View?PPI=CO1.PPI.12092557&isFromPublicArea=True&isModal=False | E33: Contratos de prestación de servicios profesionales y de apoyo a la gestión | F33: Contratación directa | G33: Prestación de servicios profesionales y de apoyo a la gestión, o para la ejecución de trabajos artísticos que sólo puedan encomendarse a determinadas personas naturales | H33: ADICION Y PRORROGA 01 EL CONTRATO 005 DE 2021 CON OBJETO PRESTAR SUS SERVICIOS PROFESIONALES PARA APOYAR JURÍDICAMENTE LA EJECUCIÓN DE LAS ACCIONES REQUERIDAS PARA EL TRÁMITE E IMPULSO PROCESAL DE LAS ACTUACIONES CONTRAVENCIONALES Y/O QUERELLAS QUE CURSEN EN LAS I NSPECCIONES DE LA POLICÍA DE LA LOCALIDAD. REEMPLAZA CDP 462 Y CRP 563 POR CONSTITUIRSE OBLIGACIONES POR PAGAR. | I33: Inversión | J33: Un nuevo contrato social y ambiental para la Bogotá del Siglo XXI | K33: 57 | L33: =IF(ISERROR(VLOOKUP(K33,[1]Proposito_programa!$C$2:$E$59,2,FALSE))," ",VLOOKUP(K33,[1]Proposito_programa!$C$2:$E$59,2,FALSE)) -> Gestión pública local | M33: =IF(ISERROR(VLOOKUP(K33,[1]Proposito_programa!$C$2:$E$59,3,FALSE))," ",VLOOKUP(K33,[1]Proposito_programa!$C$2:$E$59,3,FALSE)) -> Propósito 5: Construir Bogotá - Región con gobierno abierto, transparente y ciudadanía consciente | N33: 2143 | P33: 1019034361 | Q33: INGRI JOHANA GALINDO CASTILLO | R33: Persona Natural | V33: 0 | X33: 0 | Z33: 2850600 | AA33: 2850600 | AB33: 2850600 | AC33: 2021-02-19 | AD33: 2021-02-19 | AE33: 2021-12-18 | AF33: 300 | AG33: 1 | AH33: 90 | AM33: Terminado | AN33: 1
A34: 006-2021 | B34: 2021 | C34: FDLBU-CD-055-2021 | D34: https://community.secop.gov.co/Public/Tendering/ContractNoticePhases/View?PPI=CO1.PPI.12123685&isFromPublicArea=True&isModal=False | E34: Contratos de prestación de servicios profesionales y de apoyo a la gestión | F34: Contratación directa | G34: Prestación de servicios profesionales y de apoyo a la gestión, o para la ejecución de trabajos artísticos que sólo puedan encomendarse a determinadas personas naturales | H34: PRESTAR SUS SERVICIOS DE APOYO PARA APOYAR LA GESTIÓN DOCUMENTAL DE LA ALCALDÍA LOCAL EN LA IMPLEMENTACIÓN DE LOS PROCESOS DE CLASIF ICACIÓN, ORDENACIÓN, SELECCIÓN NATURAL, FOLIACIÓN, IDENTIFICACIÓN, LEVANTAMIENTO DE INVENTARIOS, ALMACENAMIENTO Y APLICACIÓN DE PROT OCOLOS DE ELIMINACIÓN Y TRANSFERENCIAS. SEGUN CONTRATO DE PRESTACION DE SERVICIOS DE APOYO A LA GESTION 006 DE 2021. REEMPLAZA CDP 3 00 Y CRP 312 POR CONSTITUIRSE OBLIGACIONES POR PAGAR. | I34: Inversión | J34: Un nuevo contrato social y ambiental para la Bogotá del Siglo XXI | K34: 57 | L34: =IF(ISERROR(VLOOKUP(K34,[1]Proposito_programa!$C$2:$E$59,2,FALSE))," ",VLOOKUP(K34,[1]Proposito_programa!$C$2:$E$59,2,FALSE)) -> Gestión pública local | M34: =IF(ISERROR(VLOOKUP(K34,[1]Proposito_programa!$C$2:$E$59,3,FALSE))," ",VLOOKUP(K34,[1]Proposito_programa!$C$2:$E$59,3,FALSE)) -> Propósito 5: Construir Bogotá - Región con gobierno abierto, transparente y ciudadanía consciente | N34: 2143 | P34: 41778154 | Q34: LUZ MYRIAM PEÑA SANCHEZ | R34: Persona Natural | V34: 0 | X34: 0 | Z34: 3785000 | AA34: 3785000 | AB34: 3785000 | AC34: 2021-02-22 | AD34: 2021-02-22 | AE34: 2022-01-20 | AF34: 329 | AG34: 1 | AH34: 29 | AM34: Terminado | AN34: 1
A35: 007-2021 | B35: 2021 | C35: FDLBU-CD-002-2021 | D35: https://community.secop.gov.co/Public/Tendering/ContractNoticePhases/View?PPI=CO1.PPI.12107287&isFromPublicArea=True&isModal=False | E35: Contratos de prestación de servicios profesionales y de apoyo a la gestión | F35: Contratación directa | G35: Prestación de servicios profesionales y de apoyo a la gestión, o para la ejecución de trabajos artísticos que sólo puedan encomendarse a determinadas personas naturales | H35: PRESTAR LOS SERVICIOS PROFESIONALES PARA APOYAR AL AREA GESTION DEL DESARROLLO ADMINISTRATIVO Y FINANCIERO EN LOS ASUNTOS RELACIONAD OS CON EL DESARROLLO DE LA GESTIÓN CONTRACTUAL PARA LA ADQUISICIÓN DE RECURSOS Y SERVICIOS. SEGUN CONTRATO DE PRESTACION DE SERVICIO S PROFESIONALES 007 DE 2021. REEMPLAZA CDP 288 Y CRP 313 POR CONSTITUIRSE OBLIGACIONES POR PAGAR. | I35: Inversión | J35: Un nuevo contrato social y ambiental para la Bogotá del Siglo XXI | K35: 57 | L35: =IF(ISERROR(VLOOKUP(K35,[1]Proposito_programa!$C$2:$E$59,2,FALSE))," ",VLOOKUP(K35,[1]Proposito_programa!$C$2:$E$59,2,FALSE)) -> Gestión pública local | M35: =IF(ISERROR(VLOOKUP(K35,[1]Proposito_programa!$C$2:$E$59,3,FALSE))," ",VLOOKUP(K35,[1]Proposito_programa!$C$2:$E$59,3,FALSE)) -> Propósito 5: Construir Bogotá - Región con gobierno abierto, transparente y ciudadanía consciente | N35: 2143 | P35: 1140849472 | Q35: BEATRIZ ALICIA CASTRILLON SUMOZA | R35: Persona Natural | V35: 0 | X35: 0 | Z35: 8630000 | AA35: 8630000 | AB35: 8630000 | AC35: 2021-02-22 | AD35: 2021-02-23 | AE35: 2022-01-20 | AF35: 328 | AG35: 1 | AH35: 28 | AM35: Terminado | AN35: 1
A36: 008-2021 | B36: 2021 | C36: FDLBU-CD-032-2021 | D36: https://community.secop.gov.co/Public/Tendering/ContractNoticePhases/View?PPI=CO1.PPI.12088032&isFromPublicArea=True&isModal=False | E36: Contratos de prestación de servicios profesionales y de apoyo a la gestión | F36: Contratación directa | G36: Prestación de servicios profesionales y de apoyo a la gestión, o para la ejecución de trabajos artísticos que sólo puedan encomendarse a determinadas personas naturales | H36: PRORROGAR EL CONTRATO CON OBJETO PRESTAR SUS SERVICIOS PROFESIONALES PARA APOYAR JURÍDICAMENTE LA EJECUCIÓN DE LAS ACCIONES REQUERID AS PARA EL TRÁMITE E IMPULSO PROCESAL DE LAS ACTUACIONES CONTRAVENCIONALES Y/O QUERELLAS QUE CURSEN EN LAS INSPECCIONES DE LA POLICÍ A DE LA LOCALIDAD. REEMPLAZA CDP 463 Y CRP 562 POR CONSTITUIRSE OBLIGACIONES POR PAGAR. | I36: Inversión | J36: Un nuevo contrato social y ambiental para la Bogotá del Siglo XXI | K36: 57 | L36: =IF(ISERROR(VLOOKUP(K36,[1]Proposito_programa!$C$2:$E$59,2,FALSE))," ",VLOOKUP(K36,[1]Proposito_programa!$C$2:$E$59,2,FALSE)) -> Gestión pública local | M36: =IF(ISERROR(VLOOKUP(K36,[1]Proposito_programa!$C$2:$E$59,3,FALSE))," ",VLOOKUP(K36,[1]Proposito_programa!$C$2:$E$59,3,FALSE)) -> Propósito 5: Construir Bogotá - Región con gobierno abierto, transparente y ciudadanía consciente | N36: 2143 | P36: 37747954 | Q36: ENERIET DAZA ARIZA | R36: Persona Natural | V36: 0 | X36: 0 | Z36: 3642433 | AA36: 3642433 | AB36: 3642433 | AC36: 2021-02-23 | AD36: 2021-02-24 | AE36: 2021-12-23 | AF36: 300 | AG36: 1 | AH36: 90 | AM36: Terminado | AN36: 1
A37: 009-2021 | B37: 2021 | C37: FDLBU-CD-035-2021 | D37: https://community.secop.gov.co/Public/Tendering/ContractNoticePhases/View?PPI=CO1.PPI.12098712&isFromPublicArea=True&isModal=False | E37: Contratos de prestación de servicios profesionales y de apoyo a la gestión | F37: Contratación directa | G37: Prestación de servicios profesionales y de apoyo a la gestión, o para la ejecución de trabajos artísticos que sólo puedan encomendarse a determinadas personas naturales | H37: PRORROGAR EL CONTRATO No. FDLBU-CPS-009-2021 CON OBJETO PRESTAR SUS SERVICIOS PROFESIONALES PARA APOYAR JURÍDICAMENTE LA EJECUCIÓN D E LAS ACCIONES REQUERIDAS PARA EL TRÁMITE E IMPULSO PROCESAL DE LAS ACTUACIONES CONTRAVENCIONALES Y/O QUERELLAS QUE CURSEN EN LAS IN SPECCIONES DE LA POLICÍA DE LA LOCALIDAD. REEMPLAZA CDP 468 Y CRP 574 POR CONSTITUIRSE OBLIGACIONES POR PAGAR. | I37: Inversión | J37: Un nuevo contrato social y ambiental para la Bogotá del Siglo XXI | K37: 57 | L37: =IF(ISERROR(VLOOKUP(K37,[1]Proposito_programa!$C$2:$E$59,2,FALSE))," ",VLOOKUP(K37,[1]Proposito_programa!$C$2:$E$59,2,FALSE)) -> Gestión pública local | M37: =IF(ISERROR(VLOOKUP(K37,[1]Proposito_programa!$C$2:$E$59,3,FALSE))," ",VLOOKUP(K37,[1]Proposito_programa!$C$2:$E$59,3,FALSE)) -> Propósito 5: Construir Bogotá - Región con gobierno abierto, transparente y ciudadanía consciente | N37: 2143 | P37: 79276485 | Q37: ALEJANDRO CARRILLO RINCON | R37: Persona Natural | V37: 0 | X37: 0 | Z37: 2850600 | AA37: 2850600 | AB37: 2850600 | AC37: 2021-02-23 | AD37: 2021-02-24 | AE37: 2021-12-18 | AF37: 295 | AG37: 1 | AH37: 85 | AM37: Terminado | AN37: 1
A38: 011-2021 | B38: 2021 | C38: FDLBU-CD-050-2021 | D38: https://community.secop.gov.co/Public/Tendering/ContractNoticePhases/View?PPI=CO1.PPI.12107103&isFromPublicArea=True&isModal=False | E38: Contratos de prestación de servicios profesionales y de apoyo a la gestión | F38: Contratación directa | G38: Prestación de servicios profesionales y de apoyo a la gestión, o para la ejecución de trabajos artísticos que sólo puedan encomendarse a determinadas personas naturales | H38: PRESTAR LOS SERVICIOS PROFESIONALES ESPECIALIZADOS PARA APOYAR EL ÁREA DE GESTIÓN DEL DESARROLLO ADMINISTRATIVO Y FINANCIERO, EN LOS ASUNTOS RELACIONADOS CON EL DESARROLLO DE LA GESTIÓN CONTRACTUAL PARA LA ADQUISICIÓN DE RECURSOS Y SERVICIOS, ASÍ COMO DE LOS OTROS ASUNTOS JURÍDICOS REQUERIDOS EN EL DESARROLLO DE LA GESTIÓN DEL FONDO DE DESARROLLO LOCAL, DESCRITOS POR LA SECRETARÍA DISTRITAL Y DE GOBIERNO Y LAS NORMAS APLICABLES SOBRE LA MATERIA. SEGUN CONTRATO DE PRESTACION DE SERVICIOS PROFESIONALES 011 DE 2021. REEMPLAZA CDP 293 Y CRP 322 POR CONSTITUIRSE OBLIGACIONES POR PAGAR. | I38: Inversión | J38: Un nuevo contrato social y ambiental para la Bogotá del Siglo XXI | K38: 57 | L38: =IF(ISERROR(VLOOKUP(K38,[1]Proposito_programa!$C$2:$E$59,2,FALSE))," ",VLOOKUP(K38,[1]Proposito_programa!$C$2:$E$59,2,FALSE)) -> Gestión pública local | M38: =IF(ISERROR(VLOOKUP(K38,[1]Proposito_programa!$C$2:$E$59,3,FALSE))," ",VLOOKUP(K38,[1]Proposito_programa!$C$2:$E$59,3,FALSE)) -> Propósito 5: Construir Bogotá - Región con gobierno abierto, transparente y ciudadanía consciente | N38: 2143 | P38: 1030582824 | Q38: JUAN FELIPE GALINDO NIÑO | R38: Persona Natural | V38: 0 | X38: 0 | Z38: 8880000 | AA38: 8880000 | AB38: 8880000 | AC38: 2021-03-01 | AD38: 2021-03-01 | AE38: 2022-01-04 | AF38: 320 | AG38: 1 | AH38: 20 | AI38: 35529108 | AJ38: ADRIANA LUCIA ROA VANEGAS | AK38: 2021-12-14 | AM38: Liquidado | AN38: 1
A39: 015-2021 | B39: 2021 | C39: FDLBU-CD-004-2021 | D39: https://community.secop.gov.co/Public/Tendering/ContractNoticePhases/View?PPI=CO1.PPI.12220908&isFromPublicArea=True&isModal=False | E39: Contratos de prestación de servicios profesionales y de apoyo a la gestión | F39: Contratación directa | G39: Prestación de servicios profesionales y de apoyo a la gestión, o para la ejecución de trabajos artísticos que sólo puedan encomendarse a determinadas personas naturales | H39: PRESTAR LOS SERVICIOS PROFESIONALES PARA APOYAR AL AREA GESTION DEL DESARROLLO ADMINISTRATIVO Y FINANCIERO EN LOS ASUNTOS RELACIONAD OS CON EL DESARROLLO DE LA GESTIÓN CONTRACTUAL PARA LA ADQUISICIÓN DE RECURSOS Y SERVICIOS. SEGUN CONTRATO DE PRESTACION DE SERVICIO S PROFESIONALES 015 DE 2021. REEMPLAZA CDP 289 Y CRP 321 POR CONSTITUIRSE OBLIGACIONES POR PAGAR. | I39: Inversión | J39: Un nuevo contrato social y ambiental para la Bogotá del Siglo XXI | K39: 57 | L39: =IF(ISERROR(VLOOKUP(K39,[1]Proposito_programa!$C$2:$E$59,2,FALSE))," ",VLOOKUP(K39,[1]Proposito_programa!$C$2:$E$59,2,FALSE)) -> Gestión pública local | M39: =IF(ISERROR(VLOOKUP(K39,[1]Proposito_programa!$C$2:$E$59,3,FALSE))," ",VLOOKUP(K39,[1]Proposito_programa!$C$2:$E$59,3,FALSE)) -> Propósito 5: Construir Bogotá - Región con gobierno abierto, transparente y ciudadanía consciente | N39: 2143 | P39: 48600807 | Q39: JANETTE ALEXANDRA LUNA VELA | R39: Persona Natural | V39: 0 | X39: 0 | Z39: 8630000 | AA39: 8630000 | AB39: 8630000 | AC39: 2021-03-01 | AD39: 2021-03-01 | AE39: 2022-01-20 | AF39: 320 | AG39: 1 | AH39: 20 | AM39: Terminado | AN39: 1
A40: 017-2021 | B40: 2021 | C40: FDLBU-CD-012-2021 | D40: https://community.secop.gov.co/Public/Tendering/ContractNoticePhases/View?PPI=CO1.PPI.12091808&isFromPublicArea=True&isModal=False | E40: Contratos de prestación de servicios profesionales y de apoyo a la gestión | F40: Contratación directa | G40: Prestación de servicios profesionales y de apoyo a la gestión, o para la ejecución de trabajos artísticos que sólo puedan encomendarse a determinadas personas naturales | H40: PRESTAR SUS SERVICIOS PROFESIONALES PARA LA IMPLENTACIÓN DE LAS ACCIONES Y LINEAMIENTOS TÉCNICOS SURTIDOS DEL PROGRAMA DE GESTIÓN DO CUEMNTAL Y DEMÁS INSTRUMENTOS TÉCNICOS ARCHIVÍSTICOS. SEGUN CONTRATO DE PRESTACION DE SERVICIOS PROFESIONALES 017 DE 2021 REEMPLAZA CDP 311 Y CRP 332 POR CONSTITUIRSE OBLIGACIONES POR PAGAR. | I40: Inversión | J40: Un nuevo contrato social y ambiental para la Bogotá del Siglo XXI | K40: 57 | L40: =IF(ISERROR(VLOOKUP(K40,[1]Proposito_programa!$C$2:$E$59,2,FALSE))," ",VLOOKUP(K40,[1]Proposito_programa!$C$2:$E$59,2,FALSE)) -> Gestión pública local | M40: =IF(ISERROR(VLOOKUP(K40,[1]Proposito_programa!$C$2:$E$59,3,FALSE))," ",VLOOKUP(K40,[1]Proposito_programa!$C$2:$E$59,3,FALSE)) -> Propósito 5: Construir Bogotá - Región con gobierno abierto, transparente y ciudadanía consciente | N40: 2143 | P40: 52897368 | Q40: MONICA MARIA NAVARRETE CRUZ | R40: Persona Natural | V40: 0 | X40: 0 | Z40: 5765333 | AA40: 5765333 | AB40: 5765333 | AC40: 2021-03-02 | AD40: 2021-03-03 | AE40: 2022-01-02 | AF40: 302 | AG40: 1 | AH40: 2 | AM40: Terminado | AN40: 1
A41: 018-2021 | B41: 2021 | C41: FDLBU-CD-038-2021 | D41: https://community.secop.gov.co/Public/Tendering/ContractNoticePhases/View?PPI=CO1.PPI.12092946&isFromPublicArea=True&isModal=False | E41: Contratos de prestación de servicios profesionales y de apoyo a la gestión | F41: Contratación directa | G41: Prestación de servicios profesionales y de apoyo a la gestión, o para la ejecución de trabajos artísticos que sólo puedan encomendarse a determinadas personas naturales | H41: PRESTAR SERVICIOS PROFESIONALES ESPECIALIZADOS DE ASESORÍA EN PLANEACIÓN EN EL ÁREA DE GESTIÓN DEL DESARROLLO PARA LIDERAR LA FORMUL ACIÓN, SEGUIMIENTO Y EVALUACIÓN DE POLÍTICAS, PLANES, PROGRAMAS Y PROYECTOS DE DESARROLLO LOCAL, PARA EL CUMPLIMIENTO DE LAS METAS D EL PLAN DE DESARROLLO LOCAL DE BARRIOS UNIDOS. SEGUN CONTRATO DE PRESTACION DE SERVICIOS PROFESIONALES 018 DE 2021. REEMPLAZA CDP 32 1 Y CRP 334 POR CONSTITUIRSE OBLIGACIONES POR PAGAR. | I41: Inversión | J41: Un nuevo contrato social y ambiental para la Bogotá del Siglo XXI | K41: 57 | L41: =IF(ISERROR(VLOOKUP(K41,[1]Proposito_programa!$C$2:$E$59,2,FALSE))," ",VLOOKUP(K41,[1]Proposito_programa!$C$2:$E$59,2,FALSE)) -> Gestión pública local | M41: =IF(ISERROR(VLOOKUP(K41,[1]Proposito_programa!$C$2:$E$59,3,FALSE))," ",VLOOKUP(K41,[1]Proposito_programa!$C$2:$E$59,3,FALSE)) -> Propósito 5: Construir Bogotá - Región con gobierno abierto, transparente y ciudadanía consciente | N41: 2143 | P41: 1032474926 | Q41: MATEO ANDRES SANCHEZ ORTEGA | R41: Persona Natural | V41: 0 | X41: 0 | Z41: 10406667 | AA41: 10406667 | AB41: 10406667 | AC41: 2021-03-02 | AD41: 2021-03-04 | AE41: 2022-01-10 | AF41: 310 | AG41: 1 | AH41: 10 | AM41: Terminado | AN41: 1
A42: 019-2021 | B42: 2021 | C42: FDLBU-CD-053-2021 | D42: https://community.secop.gov.co/Public/Tendering/ContractNoticePhases/View?PPI=CO1.PPI.12187083&isFromPublicArea=True&isModal=False | E42: Contratos de prestación de servicios profesionales y de apoyo a la gestión | F42: Contratación directa | G42: Prestación de servicios profesionales y de apoyo a la gestión, o para la ejecución de trabajos artísticos que sólo puedan encomendarse a determinadas personas naturales | H42: PRESTAR LOS SERVICIOS PROFESIONALES MEDIANTE LOS CUALES SE CONSTRIBUYA A LA REVISIÓN, SEGUIMIENTO Y PROYECCIÓN DE RESPUESTA DE LOS I NFORMES SOLICITADOS POR LOS ENTES DE CONTROL, ENTIDADES Y CIUDADANÍA EN GENERAL RELATIVOS A LA GESTIÓN DE LA ALCALDIA LOCAL DE BARRI OS UNIDOS DE ACUERDO CON SUS COMPETENCIAS MISIONALES. SEGUN CONTRATO DE PRESTACION DE SERVICIOS PROFESIONALES 019 DE 2021. REEMPLAZA CDP 327 Y CRP 333 POR CONSTITUIRSE OBLIGACIONES POR PAGAR. | I42: Inversión | J42: Un nuevo contrato social y ambiental para la Bogotá del Siglo XXI | K42: 57 | L42: =IF(ISERROR(VLOOKUP(K42,[1]Proposito_programa!$C$2:$E$59,2,FALSE))," ",VLOOKUP(K42,[1]Proposito_programa!$C$2:$E$59,2,FALSE)) -> Gestión pública local | M42: =IF(ISERROR(VLOOKUP(K42,[1]Proposito_programa!$C$2:$E$59,3,FALSE))," ",VLOOKUP(K42,[1]Proposito_programa!$C$2:$E$59,3,FALSE)) -> Propósito 5: Construir Bogotá - Región con gobierno abierto, transparente y ciudadanía consciente | N42: 2143 | P42: 1022379389 | Q42: LINA MARIA ROJAS GOMEZ | R42: Persona Natural | V42: 0 | X42: 0 | Z42: 4996200 | AA42: 4996200 | AB42: 4996200 | AC42: 2021-03-02 | AD42: 2021-03-04 | AE42: 2022-01-03 | AF42: 303 | AG42: 1 | AH42: 3 | AM42: Terminado | AN42: 1
A43: 020-2021 | B43: 2021 | C43: FDLBU-CD-057-2021 | D43: https://community.secop.gov.co/Public/Tendering/ContractNoticePhases/View?PPI=CO1.PPI.12204795&isFromPublicArea=True&isModal=False | E43: Contratos de prestación de servicios profesionales y de apoyo a la gestión | F43: Contratación directa | G43: Prestación de servicios profesionales y de apoyo a la gestión, o para la ejecución de trabajos artísticos que sólo puedan encomendarse a determinadas personas naturales | H43: PRESTAR SERVICIOS PROFESIONALES EN EL APOYO TÉCNICO A LOS RESPONSABLES E INTEGRANTES DE LOS PROCESOS EN LA IMPLEMENTACIÓN DE HERRAMI ENTAS DE GESTIÓN, SIGUIENDO LOS LINEAMIENTOS METODOLÓGICOS ESTABLEDICOS POR LA OFICINA ASESORA DE PLANEACIÓN DE LA SECRETARIA DISTRI TAL DE GOBIRENO. SEGUN CONTRATO DE PRESTACION DE SERVICIOS PROFESIONALES 020 DE 2021. REEMPLAZA CDP 341 Y CRP 324 POR CONSTITUIRSE O BLIGACIONES POR PAGAR. | I43: Inversión | J43: Un nuevo contrato social y ambiental para la Bogotá del Siglo XXI | K43: 57 | L43: =IF(ISERROR(VLOOKUP(K43,[1]Proposito_programa!$C$2:$E$59,2,FALSE))," ",VLOOKUP(K43,[1]Proposito_programa!$C$2:$E$59,2,FALSE)) -> Gestión pública local | M43: =IF(ISERROR(VLOOKUP(K43,[1]Proposito_programa!$C$2:$E$59,3,FALSE))," ",VLOOKUP(K43,[1]Proposito_programa!$C$2:$E$59,3,FALSE)) -> Propósito 5: Construir Bogotá - Región con gobierno abierto, transparente y ciudadanía consciente | N43: 2143 | P43: 52422505 | Q43: NAYIBE RODRIGUEZ MARTINEZ | R43: Persona Natural | V43: 0 | X43: 0 | Z43: 6588800 | AA43: 6588800 | AB43: 6588800 | AC43: 2021-03-01 | AD43: 2021-03-03 | AE43: 2022-01-02 | AF43: 302 | AG43: 1 | AH43: 2 | AM43: Terminado | AN43: 1
A44: 021-2021 | B44: 2021 | C44: FDLBU-CD-072-2021 | D44: https://community.secop.gov.co/Public/Tendering/ContractNoticePhases/View?PPI=CO1.PPI.12206224&isFromPublicArea=True&isModal=False | E44: Contratos de prestación de servicios profesionales y de apoyo a la gestión | F44: Contratación directa | G44: Prestación de servicios profesionales y de apoyo a la gestión, o para la ejecución de trabajos artísticos que sólo puedan encomendarse a determinadas personas naturales | H44: PRESTAR SERVICIOS DE APOYO PROFESIONAL, CON CONOCIMIENTO EN NORMAS INTERNACIONALES DE INFORMACIÓN FINANCIERA, PARA ADELANTAR LAS ACT IVIDADES QUE DEN CUMPLIMIENTO A PROCEDIMIENTOS, ADMINISTRATIVOS Y CONTABLES APLICABLES EN EL MARCO NORMATIVO CONTABLE. SEGUN CONTRAT O DE PRESTACION DE SERVICIOS PROFESIONALES 021 DE 2021. REEMPLAZA CDP 328 Y CRP 328 POR CONSTITUIRSE OBLIGACIONES POR PAGAR. | I44: Inversión | J44: Un nuevo contrato social y ambiental para la Bogotá del Siglo XXI | K44: 57 | L44: =IF(ISERROR(VLOOKUP(K44,[1]Proposito_programa!$C$2:$E$59,2,FALSE))," ",VLOOKUP(K44,[1]Proposito_programa!$C$2:$E$59,2,FALSE)) -> Gestión pública local | M44: =IF(ISERROR(VLOOKUP(K44,[1]Proposito_programa!$C$2:$E$59,3,FALSE))," ",VLOOKUP(K44,[1]Proposito_programa!$C$2:$E$59,3,FALSE)) -> Propósito 5: Construir Bogotá - Región con gobierno abierto, transparente y ciudadanía consciente | N44: 2143 | P44: 1010190370 | Q44: MAROLYM YISELH BERNAL TORO | R44: Persona Natural | V44: 0 | X44: 0 | Z44: 5225000 | AA44: 5225000 | AB44: 5225000 | AC44: 2021-03-01 | AD44: 2021-03-04 | AE44: 2022-01-03 | AF44: 303 | AG44: 1 | AH44: 2 | AM44: Terminado | AN44: 1
A45: 022-2021 | B45: 2021 | C45: FDLBU-CD-016-2021 | D45: https://community.secop.gov.co/Public/Tendering/ContractNoticePhases/View?PPI=CO1.PPI.12097715&isFromPublicArea=True&isModal=False | E45: Contratos de prestación de servicios profesionales y de apoyo a la gestión | F45: Contratación directa | G45: Prestación de servicios profesionales y de apoyo a la gestión, o para la ejecución de trabajos artísticos que sólo puedan encomendarse a determinadas personas naturales | H45: PRESTAR LOS SERVICIOS PROFESIONALES PARA APOYAR AL ÁREA DE GESTIÓN DEL DESARROLLO ADMINISTRATIVO Y FINANCIERO, EN LOS ASUNTOS RELACI ONADOS CON EL DESARROLLO DE LA GESTIÓN CONTRACTUAL PARA LA ADQUISICIÓN DE RECURSOS Y SERVICIOS. SEGUN CONTRATO DE PRETACION DE SERVI CIOS PROFESIONALES 022 DE 2021. REEMPLAZA CDP 294 Y CRP 326 POR CONSTITUIRSE OBLIGACIONES POR PAGAR. | I45: Inversión | J45: Un nuevo contrato social y ambiental para la Bogotá del Siglo XXI | K45: 57 | L45: =IF(ISERROR(VLOOKUP(K45,[1]Proposito_programa!$C$2:$E$59,2,FALSE))," ",VLOOKUP(K45,[1]Proposito_programa!$C$2:$E$59,2,FALSE)) -> Gestión pública local | M45: =IF(ISERROR(VLOOKUP(K45,[1]Proposito_programa!$C$2:$E$59,3,FALSE))," ",VLOOKUP(K45,[1]Proposito_programa!$C$2:$E$59,3,FALSE)) -> Propósito 5: Construir Bogotá - Región con gobierno abierto, transparente y ciudadanía consciente | N45: 2143 | P45: 49729512 | Q45: MERY MARIA ROMERO MESTRE | R45: Persona Natural | V45: 0 | X45: 0 | Z45: 10617100 | AA45: 10617100 | AB45: 10617100 | AC45: 2021-03-01 | AD45: 2021-03-03 | AE45: 2022-01-09 | AF45: 309 | AG45: 1 | AH45: 9 | AM45: Terminado | AN45: 1
A46: 023-2021 | B46: 2021 | C46: FDLBU-CD-044-2021 | D46: https://community.secop.gov.co/Public/Tendering/ContractNoticePhases/View?PPI=CO1.PPI.12255216&isFromPublicArea=True&isModal=False | E46: Contratos de prestación de servicios profesionales y de apoyo a la gestión | F46: Contratación directa | G46: Prestación de servicios profesionales y de apoyo a la gestión, o para la ejecución de trabajos artísticos que sólo puedan encomendarse a determinadas personas naturales | H46: PRESTAR SUS SERVICIOS PROFESIONALES PARA APOYAR JURÍDICAMENTE LA EJECUCIÓN DE LAS ACCIONES REQUERIDAS PARA LA DEPURACIÓN DE LAS ACTU ACIONES ADMINISTRATIVAS QUE CURSAN EN LA ALCALDÍA LOCAL. SEGUN CONTRATO DE PRESTACION DE SERVICIOS PROFESIONALES 023 DE 2021. REEMPL AZA CDP 320 Y CRP 327 POR CONSTITUIRSE OBLIGACIONES POR PAGAR. | I46: Inversión | J46: Un nuevo contrato social y ambiental para la Bogotá del Siglo XXI | K46: 57 | L46: =IF(ISERROR(VLOOKUP(K46,[1]Proposito_programa!$C$2:$E$59,2,FALSE))," ",VLOOKUP(K46,[1]Proposito_programa!$C$2:$E$59,2,FALSE)) -> Gestión pública local | M46: =IF(ISERROR(VLOOKUP(K46,[1]Proposito_programa!$C$2:$E$59,3,FALSE))," ",VLOOKUP(K46,[1]Proposito_programa!$C$2:$E$59,3,FALSE)) -> Propósito 5: Construir Bogotá - Región con gobierno abierto, transparente y ciudadanía consciente | N46: 2143 | P46: 53159645 | Q46: DIANA PAOLA GONZALEZ MURILLO | R46: Persona Natural | V46: 0 | X46: 0 | Z46: 316733 | AA46: 316733 | AB46: 316733 | AC46: 2021-03-01 | AD46: 2021-03-03 | AE46: 2021-11-02 | AF46: 240 | AM46: Terminado | AN46: 1
A47: 024-2021 | B47: 2021 | C47: FDLBU-CD-100-2021 | D47: https://community.secop.gov.co/Public/Tendering/ContractNoticePhases/View?PPI=CO1.PPI.12251510&isFromPublicArea=True&isModal=False | E47: Contratos de prestación de servicios profesionales y de apoyo a la gestión | F47: Contratación directa | G47: Prestación de servicios profesionales y de apoyo a la gestión, o para la ejecución de trabajos artísticos que sólo puedan encomendarse a determinadas personas naturales | H47: RESTAR SERVICIOS DE APOYO AL ÁREA DE GESTIÓN DEL DESARROLLO ADMINISTRATIVA Y FINANCIERA EN LAS LABORES QUE REQUIERA LA JUNTA ADMINIS TRADORA LOCAL DE BARRIOS UNIDOS COMO GRABACIONES DE SESIONES, TRANSCRIPCIÓN DE ACTAS Y ATENCIÓN A LA CIUDADANÍA. REEMPLAZA CDP 301 Y CRP 325 POR CONSTITUIRSE OBLIGACIONES POR PAGAR. | I47: Inversión | J47: Un nuevo contrato social y ambiental para la Bogotá del Siglo XXI | K47: 57 | L47: =IF(ISERROR(VLOOKUP(K47,[1]Proposito_programa!$C$2:$E$59,2,FALSE))," ",VLOOKUP(K47,[1]Proposito_programa!$C$2:$E$59,2,FALSE)) -> Gestión pública local | M47: =IF(ISERROR(VLOOKUP(K47,[1]Proposito_programa!$C$2:$E$59,3,FALSE))," ",VLOOKUP(K47,[1]Proposito_programa!$C$2:$E$59,3,FALSE)) -> Propósito 5: Construir Bogotá - Región con gobierno abierto, transparente y ciudadanía consciente | N47: 2143 | P47: 1026250874 | Q47: LINA MARIA PAEZ BOGOYA | R47: Persona Natural | V47: 0 | X47: 0 | Z47: 3406500 | AA47: 3406500 | AB47: 3406500 | AC47: 2021-03-01 | AD47: 2021-03-01 | AE47: 2022-01-15 | AF47: 315 | AG47: 1 | AH47: 15 | AM47: Terminado | AN47: 1
A48: 025-2021 | B48: 2021 | C48: FDLBU-CD-049-2021 | D48: https://community.secop.gov.co/Public/Tendering/ContractNoticePhases/View?PPI=CO1.PPI.12187041&isFromPublicArea=True&isModal=False | E48: Contratos de prestación de servicios profesionales y de apoyo a la gestión | F48: Contratación directa | G48: Prestación de servicios profesionales y de apoyo a la gestión, o para la ejecución de trabajos artísticos que sólo puedan encomendarse a determinadas personas naturales | H48: PRESTAR LOS SERVICIOS PROFESIONALES PARA APOYAR AL ÁREA GESTIÓN DEL DESARROLLO ADMINISTRATIVO Y FINANCIERO EN LOS ASUNTOS RELATIVOS A LA PLANEACIÓN LOCAL, ASÍ COMO EL APOYO A LA SUPERVISIÓN DE CONTRATOS SUSCRITOS POR LA ALCALDÍA LOCAL DE BARRIOS UNIDOS. SEGUN CONT RATO DE PRESTACION DE SERVICIOS PROFESIONALES 025 DE 2021. REEMPLAZA CDP 315 Y CRP 331 POR CONSTITUIRSE OBLIGACIONES POR PAGAR. | I48: Inversión | J48: Un nuevo contrato social y ambiental para la Bogotá del Siglo XXI | K48: 57 | L48: =IF(ISERROR(VLOOKUP(K48,[1]Proposito_programa!$C$2:$E$59,2,FALSE))," ",VLOOKUP(K48,[1]Proposito_programa!$C$2:$E$59,2,FALSE)) -> Gestión pública local | M48: =IF(ISERROR(VLOOKUP(K48,[1]Proposito_programa!$C$2:$E$59,3,FALSE))," ",VLOOKUP(K48,[1]Proposito_programa!$C$2:$E$59,3,FALSE)) -> Propósito 5: Construir Bogotá - Región con gobierno abierto, transparente y ciudadanía consciente | N48: 2143 | P48: 1030548937 | Q48: SINDY YINETH ZAPATA MURILLO | R48: Persona Natural | V48: 0 | X48: 0 | Z48: 7752000 | AA48: 7752000 | AB48: 7752000 | AC48: 2021-03-02 | AD48: 2021-03-04 | AE48: 2022-01-10 | AF48: 310 | AG48: 1 | AH48: 10 | AM48: Terminado | AN48: 1
A49: 026-2021 | B49: 2021 | C49: FDLBU-CD-056-2021 | D49: https://community.secop.gov.co/Public/Tendering/ContractNoticePhases/View?PPI=CO1.PPI.12262941&isFromPublicArea=True&isModal=False | E49: Contratos de prestación de servicios profesionales y de apoyo a la gestión | F49: Contratación directa | G49: Prestación de servicios profesionales y de apoyo a la gestión, o para la ejecución de trabajos artísticos que sólo puedan encomendarse a determinadas personas naturales | H49: PRESTAR LOS SERVICIOS PROFESIONALES A LA ALCALDÍA LOCAL DE BARRIOS UNIDOS EN LA ADMINISTRACIÓN DE LA RED DE VOZ Y DATOS, EN LA ACTUA LIZACIÓN Y SOPORTE CON LAS TECNOLOGÍAS Y SISTEMAS DE INFORMACIÓN, ASÍ COMO EL APOYO A LA SUPERVISIÓN DE LOS CONTRATOS QUE TIENEN REL ACIÓN CON SOPORTES TECNOLÓGICOS Y TEMAS RELACIONADOS. SEGUN CONTRATO DE PRESTACION DE SERVICIOS PROFESIONALES 026 DE 2021. REEMPLAZA CDP 317 Y CRP 330 POR CONSTITUIRSE OBLIGACIONES POR PAGAR. | I49: Inversión | J49: Un nuevo contrato social y ambiental para la Bogotá del Siglo XXI | K49: 57 | L49: =IF(ISERROR(VLOOKUP(K49,[1]Proposito_programa!$C$2:$E$59,2,FALSE))," ",VLOOKUP(K49,[1]Proposito_programa!$C$2:$E$59,2,FALSE)) -> Gestión pública local | M49: =IF(ISERROR(VLOOKUP(K49,[1]Proposito_programa!$C$2:$E$59,3,FALSE))," ",VLOOKUP(K49,[1]Proposito_programa!$C$2:$E$59,3,FALSE)) -> Propósito 5: Construir Bogotá - Región con gobierno abierto, transparente y ciudadanía consciente | N49: 2143 | P49: 79953222 | Q49: ANDRES ORLANDO BRICEÑO DIAZ | R49: Persona Natural | V49: 0 | X49: 0 | Z49: 8236000 | AA49: 8236000 | AB49: 8236000 | AC49: 2021-03-02 | AD49: 2021-03-02 | AE49: 2022-01-10 | AF49: 310 | AG49: 1 | AH49: 10 | AM49: Terminado | AN49: 1
A50: 027-2021 | B50: 2021 | C50: FDLBU-CD-008-2021 | D50: https://community.secop.gov.co/Public/Tendering/ContractNoticePhases/View?PPI=CO1.PPI.12096669&isFromPublicArea=True&isModal=False | E50: Contratos de prestación de servicios profesionales y de apoyo a la gestión | F50: Contratación directa | G50: Prestación de servicios profesionales y de apoyo a la gestión, o para la ejecución de trabajos artísticos que sólo puedan encomendarse a determinadas personas naturales | H50: PRESTAR LOS SERVICIOS DE APOYO A LA GESTIÓN EN LA CONDUCCIÓN DE LOS VEHÍCULOS A CARGO DE EL FONDO DE DESARROLLO LOCAL DE BARRIOS UNI DOS, ASÍ COMO APOYAR LA GESTIÓN ADMINISTRATIVA QUE DESIGNE EL SUPERVISOR. SEGUN CONTRATO DE PRESTACION DE SERVICIOS DE APOYO A LA GE STION 027 DE 2021. REEMPLAZA CDP 299 Y CRP 341 POR CONSTITUIRSE OBLIGACIONES POR PAGAR. | I50: Inversión | J50: Un nuevo contrato social y ambiental para la Bogotá del Siglo XXI | K50: 57 | L50: =IF(ISERROR(VLOOKUP(K50,[1]Proposito_programa!$C$2:$E$59,2,FALSE))," ",VLOOKUP(K50,[1]Proposito_programa!$C$2:$E$59,2,FALSE)) -> Gestión pública local | M50: =IF(ISERROR(VLOOKUP(K50,[1]Proposito_programa!$C$2:$E$59,3,FALSE))," ",VLOOKUP(K50,[1]Proposito_programa!$C$2:$E$59,3,FALSE)) -> Propósito 5: Construir Bogotá - Región con gobierno abierto, transparente y ciudadanía consciente | N50: 2143 | P50: 79879901 | Q50: JONATHAN ANDRES RUEDA TORRES | R50: Persona Natural | V50: 0 | X50: 0 | Z50: 2647700 | AA50: 2647700 | AB50: 2647700 | AC50: 2021-03-02 | AD50: 2021-03-04 | AE50: 2022-01-03 | AF50: 303 | AG50: 1 | AH50: 3 | AM50: Terminado | AN50: 1
A51: 028-2021 | B51: 2021 | C51: FDLBU-CD-005-2021 | D51: https://community.secop.gov.co/Public/Tendering/ContractNoticePhases/View?PPI=CO1.PPI.12268215&isFromPublicArea=True&isModal=False | E51: Contratos de prestación de servicios profesionales y de apoyo a la gestión | F51: Contratación directa | G51: Prestación de servicios profesionales y de apoyo a la gestión, o para la ejecución de trabajos artísticos que sólo puedan encomendarse a determinadas personas naturales | H51: PRESTAR LOS SERVICIOS PROFESIONALES PARA APOYAR AL ÁREA GESTIÓN DEL DESARROLLO ADMINISTRATIVO Y FINANCIERO EN LOS ASUNTOS RELACIONAD OS CON EL DESARROLLO DE LA GESTIÓN CONTRACTUAL PARA LA ADQUISICIÓN DE RECURSOS Y SERVICIOS.SEGUN CONTRATO DE PRESTACION DE SERVICIOS PROFESIONALES 028 DE 2021. REEMPLAZA CDP 290 Y CRP 329 POR CONSTITUIRSE OBLIGACIONES POR PAGAR. | I51: Inversión | J51: Un nuevo contrato social y ambiental para la Bogotá del Siglo XXI | K51: 57 | L51: =IF(ISERROR(VLOOKUP(K51,[1]Proposito_programa!$C$2:$E$59,2,FALSE))," ",VLOOKUP(K51,[1]Proposito_programa!$C$2:$E$59,2,FALSE)) -> Gestión pública local | M51: =IF(ISERROR(VLOOKUP(K51,[1]Proposito_programa!$C$2:$E$59,3,FALSE))," ",VLOOKUP(K51,[1]Proposito_programa!$C$2:$E$59,3,FALSE)) -> Propósito 5: Construir Bogotá - Región con gobierno abierto, transparente y ciudadanía consciente | N51: 2143 | P51: 1026270891 | Q51: CHRISTIAN CAMILO SUAREZ RAMIREZ | R51: Persona Natural | V51: 0 | X51: 0 | Z51: 172600 | AA51: 172600 | AB51: 172600 | AC51: 2021-03-02 | AD51: 2021-03-02 | AE51: 2021-06-01 | AF51: 90 | AM51: Terminado | AN51: 1
A52: 029-2021 | B52: 2021 | C52: FDLBU-CD-083-2021 | D52: https://community.secop.gov.co/Public/Tendering/ContractNoticePhases/View?PPI=CO1.PPI.12250822&isFromPublicArea=True&isModal=False | E52: Contratos de prestación de servicios profesionales y de apoyo a la gestión | F52: Contratación directa | G52: Prestación de servicios profesionales y de apoyo a la gestión, o para la ejecución de trabajos artísticos que sólo puedan encomendarse a determinadas personas naturales | H52: RESTAR SERVICIOS DE APOYO AL ÁREA DE GESTIÓN DEL DESARROLLO ADMINISTRATIVA Y FINANCIERA EN LAS LABORES QUE REQUIERA LA JUNTA ADMINIS TRADORA LOCAL DE BARRIOS UNIDOS COMO GRABACIONES DE SESIONES, TRANSCRIPCIÓN DE ACTAS Y ATENCIÓN A LA CIUDADANÍA. SEGUN CONTRATO DE P RESTACION DE SERVICIOS DE APOYO A LA GESTION 029 DE 2021 REEMPLAZA CDP 301 Y CRP 339 POR CONSTITUIRSE OBLIGACIONES POR PAGAR. | I52: Inversión | J52: Un nuevo contrato social y ambiental para la Bogotá del Siglo XXI | K52: 57 | L52: =IF(ISERROR(VLOOKUP(K52,[1]Proposito_programa!$C$2:$E$59,2,FALSE))," ",VLOOKUP(K52,[1]Proposito_programa!$C$2:$E$59,2,FALSE)) -> Gestión pública local | M52: =IF(ISERROR(VLOOKUP(K52,[1]Proposito_programa!$C$2:$E$59,3,FALSE))," ",VLOOKUP(K52,[1]Proposito_programa!$C$2:$E$59,3,FALSE)) -> Propósito 5: Construir Bogotá - Región con gobierno abierto, transparente y ciudadanía consciente | N52: 2143 | P52: 1235538229 | Q52: SAHY MAYGLETH TORRES CORAL | R52: Persona Natural | V52: 0 | X52: 0 | Z52: 3255100 | AA52: 3255100 | AB52: 3255100 | AC52: 2021-03-04 | AD52: 2021-03-04 | AE52: 2022-01-13 | AF52: 313 | AG52: 1 | AH52: 13 | AM52: Terminado | AN52: 1
A53: 030-2021 | B53: 2021 | C53: FDLBU-CD-063-2021 | D53: https://community.secop.gov.co/Public/Tendering/ContractNoticePhases/View?PPI=CO1.PPI.12194865&isFromPublicArea=True&isModal=False | E53: Contratos de prestación de servicios profesionales y de apoyo a la gestión | F53: Contratación directa | G53: Prestación de servicios profesionales y de apoyo a la gestión, o para la ejecución de trabajos artísticos que sólo puedan encomendarse a determinadas personas naturales | H53: PRESTAR SERVICIOS PROFESIONALES PARA APOYAR LA GESTIÓN DEL RIESGO QUE PROMUEVA LAS ACCIONES REQUERIDAS PARA LA PREVENCIÓN Y ATENCIÓN DE EMERGENCIAS O EVENTOS GENERADOS POR LA MATERIALIZACIÓN DE LOS RIESGOS Y RESPONDA DE MANERA OPERATIVA E INMEDIATA ANTE LA OCURREN CIA DE SITUACIONES ADVERSAS EN TEMAS DE EMERGENCIAS EN LA LOCALIDAD PARA EL LOGRO DE LAS METAS DE PLAN DE DESARROLLO LOCAL VIGENTE. SEGUN CONTRATO DE PRESTACION DE SERVICIOS PROFESIONALES 030 DE 2021. REEMPLAZA CDP 340 Y CRP 335 POR CONSTITUIRSE OBLIGACIONES POR P AGAR. | I53: Inversión | J53: Un nuevo contrato social y ambiental para la Bogotá del Siglo XXI | K53: 30 | L53: =IF(ISERROR(VLOOKUP(K53,[1]Proposito_programa!$C$2:$E$59,2,FALSE))," ",VLOOKUP(K53,[1]Proposito_programa!$C$2:$E$59,2,FALSE)) -> Eficiencia en la atención de emergencias | M53: =IF(ISERROR(VLOOKUP(K53,[1]Proposito_programa!$C$2:$E$59,3,FALSE))," ",VLOOKUP(K53,[1]Proposito_programa!$C$2:$E$59,3,FALSE)) -> Propósito 2 : Cambiar Nuestros Hábitos de Vida para Reverdecer a Bogotá y Adaptarnos y Mitigar la Crisis Climática | N53: 2103 | P53: 79881960 | Q53: FROILAN OSWALDO MARTINEZ CORREA | R53: Persona Natural | V53: 0 | X53: 0 | Z53: 5369733 | AA53: 5369733 | AB53: 5369733 | AC53: 2021-03-04 | AD53: 2021-03-05 | AE53: 2022-01-04 | AF53: 304 | AG53: 1 | AH53: 4 | AM53: Terminado | AN53: 1
A54: 031-2021 | B54: 2021 | C54: FDLBU-CD-018-2021 | D54: https://community.secop.gov.co/Public/Tendering/ContractNoticePhases/View?PPI=CO1.PPI.12091842&isFromPublicArea=True&isModal=False | E54: Contratos de prestación de servicios profesionales y de apoyo a la gestión | F54: Contratación directa | G54: Prestación de servicios profesionales y de apoyo a la gestión, o para la ejecución de trabajos artísticos que sólo puedan encomendarse a determinadas personas naturales | H54: PRESTAR SERVICIOS PROFESIONALES PARA APOYAR AL EQUIPO DE PRENSA Y COMUNICACIONES DE LA ALCALDÍA LOCAL MEDIANTE EL REGISTRO, LA EDICI ÓN Y LA PRESENTACIÓN DE FOTOGRAFÍAS DE LOS ACONTECIMIENTOS, HECHOS Y EVENTOS DE LA ALCALDÍA LOCAL EN LOS MEDIOS DE COMUNICACIÓN, ESC RITOS, DIGITALES Y AUDIOVISUALES. SEGUN CONTRATO DE PRESTACION DE SERVICIOS PROFESIONALES 031 DE 2021. REEMPLAZA CDP 324 Y CRP 338 P OR CONSTITUIRSE OBLIGACIONES POR PAGAR. | I54: Inversión | J54: Un nuevo contrato social y ambiental para la Bogotá del Siglo XXI | K54: 57 | L54: =IF(ISERROR(VLOOKUP(K54,[1]Proposito_programa!$C$2:$E$59,2,FALSE))," ",VLOOKUP(K54,[1]Proposito_programa!$C$2:$E$59,2,FALSE)) -> Gestión pública local | M54: =IF(ISERROR(VLOOKUP(K54,[1]Proposito_programa!$C$2:$E$59,3,FALSE))," ",VLOOKUP(K54,[1]Proposito_programa!$C$2:$E$59,3,FALSE)) -> Propósito 5: Construir Bogotá - Región con gobierno abierto, transparente y ciudadanía consciente | N54: 2143 | P54: 80063016 | Q54: NELSON EMIR CICUAMIA SUAREZ | R54: Persona Natural | V54: 0 | X54: 0 | Z54: 7939600 | AA54: 7939600 | AB54: 7939600 | AC54: 2021-03-03 | AD54: 2021-03-17 | AE54: 2022-01-16 | AF54: 316 | AG54: 1 | AH54: 16 | AM54: Terminado | AN54: 1
A55: 032-2021 | B55: 2021 | C55: FDLBU-CD-092-2021 | D55: https://community.secop.gov.co/Public/Tendering/ContractNoticePhases/View?PPI=CO1.PPI.12255298&isFromPublicArea=True&isModal=False | E55: Contratos de prestación de servicios profesionales y de apoyo a la gestión | F55: Contratación directa | G55: Prestación de servicios profesionales y de apoyo a la gestión, o para la ejecución de trabajos artísticos que sólo puedan encomendarse a determinadas personas naturales | H55: ADICIÓN Y PRÓRROGA 01 AL CTO 032-2021 CON OBJETO PRESTAR SUS SERVICIOS PROFESIONALES PARA APOYAR JURÍDICAMENTE LA EJECUCIÓN DE LAS A CCIONES REQUERIDAS PARA LA DEPURACIÓN DE LAS ACTUACIONES ADMINISTRATIVAS QUE CURSAN EN LA ALCALDÍA LOCAL. REEMPLAZA CDP 515 Y CRP 62 2 POR CONSTITUIRSE OBLIGACIONES POR PAGAR. | I55: Inversión | J55: Un nuevo contrato social y ambiental para la Bogotá del Siglo XXI | K55: 57 | L55: =IF(ISERROR(VLOOKUP(K55,[1]Proposito_programa!$C$2:$E$59,2,FALSE))," ",VLOOKUP(K55,[1]Proposito_programa!$C$2:$E$59,2,FALSE)) -> Gestión pública local | M55: =IF(ISERROR(VLOOKUP(K55,[1]Proposito_programa!$C$2:$E$59,3,FALSE))," ",VLOOKUP(K55,[1]Proposito_programa!$C$2:$E$59,3,FALSE)) -> Propósito 5: Construir Bogotá - Región con gobierno abierto, transparente y ciudadanía consciente | N55: 2143 | P55: 80740127 | Q55: EDWIN JAVIER CIFUENTES VILLAMIZAR | R55: Persona Natural | V55: 0 | X55: 0 | Z55: 4751000 | AA55: 4751000 | AB55: 4751000 | AC55: 2021-03-04 | AD55: 2021-03-08 | AE55: 2021-12-30 | AF55: 293 | AG55: 1 | AH55: 53 | AM55: Liquidado | AN55: 1
A56: 033-2021 | B56: 2021 | C56: FDLBU-CD-037-2021 | D56: https://community.secop.gov.co/Public/Tendering/ContractNoticePhases/View?PPI=CO1.PPI.12159478&isFromPublicArea=True&isModal=False | E56: Contratos de prestación de servicios profesionales y de apoyo a la gestión | F56: Contratación directa | G56: Prestación de servicios profesionales y de apoyo a la gestión, o para la ejecución de trabajos artísticos que sólo puedan encomendarse a determinadas personas naturales | H56: PRESTAR LOS SERVICIOS ESPECIALIZADOS PARA APOYAR AL ALCALDE LOCAL EN LA FORMULACIÓN, SEGUIMIENTO E IMPLEMENTACIÓN DE LA ESTRATEGIA L OCAL PARA LA TERMINACIÓN JURÍDICA DE LAS ACTUACIONES ADMINISTRATIVAS QUE CURSAN EN LA ALCALDÍA LOCAL DE BARRIOS UNIDOS.SEGUN CONTRAT O DE PRESTACION DE SERVICIOS PROFESIONALES 033 DE 2021. REEMPLAZA CDP 318 Y CRP 336 POR CONSTITUIRSE OBLIGACIONES POR PAGAR. | I56: Inversión | J56: Un nuevo contrato social y ambiental para la Bogotá del Siglo XXI | K56: 57 | L56: =IF(ISERROR(VLOOKUP(K56,[1]Proposito_programa!$C$2:$E$59,2,FALSE))," ",VLOOKUP(K56,[1]Proposito_programa!$C$2:$E$59,2,FALSE)) -> Gestión pública local | M56: =IF(ISERROR(VLOOKUP(K56,[1]Proposito_programa!$C$2:$E$59,3,FALSE))," ",VLOOKUP(K56,[1]Proposito_programa!$C$2:$E$59,3,FALSE)) -> Propósito 5: Construir Bogotá - Región con gobierno abierto, transparente y ciudadanía consciente | N56: 2143 | P56: 1032379593 | Q56: LEONARDO ALFONSO MOYA GUAJE | R56: Persona Natural | V56: 0 | X56: 0 | Z56: 8580000 | AA56: 8580000 | AB56: 8580000 | AC56: 2021-03-04 | AD56: 2021-03-04 | AE56: 2022-01-03 | AF56: 303 | AG56: 1 | AH56: 3 | AM56: Terminado | AN56: =IF(ISERROR(AB56/AA56),"-",(AB56/AA56)) -> 1
A57: 034-2021 | B57: 2021 | C57: FDLBU-CD-046-2021 | D57: https://community.secop.gov.co/Public/Tendering/ContractNoticePhases/View?PPI=CO1.PPI.12230662&isFromPublicArea=True&isModal=False | E57: Contratos de prestación de servicios profesionales y de apoyo a la gestión | F57: Contratación directa | G57: Prestación de servicios profesionales y de apoyo a la gestión, o para la ejecución de trabajos artísticos que sólo puedan encomendarse a determinadas personas naturales | H57: ADICIÓN Y PRÓRROGA 01 AL CONTRATO 034-2021 CON OBJETO PRESTAR SUS SERVICIOS PROFESIONALES PARA APOYAR TECNICAMENTE LAS DISTINTAS ETA PAS DE LOS PROCESOS DE COMPETENCIA DE LA ALCALDIA LOCAL PARA LA DEPURACIÓN DE ACTUACIONES ADMINISTRATIVAS. REEMPLAZA CDP 518 Y CRP 6 40 POR CONSTITUIRSE OBLIGACIONES POR PAGAR. | I57: Inversión | J57: Un nuevo contrato social y ambiental para la Bogotá del Siglo XXI | K57: 57 | L57: =IF(ISERROR(VLOOKUP(K57,[1]Proposito_programa!$C$2:$E$59,2,FALSE))," ",VLOOKUP(K57,[1]Proposito_programa!$C$2:$E$59,2,FALSE)) -> Gestión pública local | M57: =IF(ISERROR(VLOOKUP(K57,[1]Proposito_programa!$C$2:$E$59,3,FALSE))," ",VLOOKUP(K57,[1]Proposito_programa!$C$2:$E$59,3,FALSE)) -> Propósito 5: Construir Bogotá - Región con gobierno abierto, transparente y ciudadanía consciente | N57: 2143 | P57: 52421810 | Q57: YHAMILA SALINAS RUANO | R57: Persona Natural | V57: 0 | X57: 0 | Z57: 4997000 | AA57: =+W57+X57+Z57 -> 4997000 | AB57: 4997000 | AC57: 2021-03-12 | AD57: 2021-03-12 | AE57: 2021-12-30 | AF57: 289 | AG57: 1 | AH57: 49 | AM57: Terminado | AN57: 1
A58: 035-2021 | B58: 2021 | C58: FDLBU-CD-007-2021 | D58: https://community.secop.gov.co/Public/Tendering/ContractNoticePhases/View?PPI=CO1.PPI.12097054&isFromPublicArea=True&isModal=False | E58: Contratos de prestación de servicios profesionales y de apoyo a la gestión | F58: Contratación directa | G58: Prestación de servicios profesionales y de apoyo a la gestión, o para la ejecución de trabajos artísticos que sólo puedan encomendarse a determinadas personas naturales | H58: PRESTAR LOS SERVICIOS DE APOYO A LA GESTIÓN EN LA CONDUCCIÓN DE LOS VEHÍCULOS A CARGO DE EL FONDO DE DESARROLLO LOCAL DE BARRIOS UNI DOS, ASÍ COMO APOYAR LA GESTIÓN ADMINISTRATIVA QUE DESIGNE EL SUPERVISOR. SEGUN CONTRATO DE PRESTACION DE SERVICIOS DE APOYO A LA GE STION 035 DE 2021. REEMPLAZA CDP 299 Y CRP 340 POR CONSTITUIRSE OBLIGACIONES POR PAGAR. | I58: Inversión | J58: Un nuevo contrato social y ambiental para la Bogotá del Siglo XXI | K58: 57 | L58: =IF(ISERROR(VLOOKUP(K58,[1]Proposito_programa!$C$2:$E$59,2,FALSE))," ",VLOOKUP(K58,[1]Proposito_programa!$C$2:$E$59,2,FALSE)) -> Gestión pública local | M58: =IF(ISERROR(VLOOKUP(K58,[1]Proposito_programa!$C$2:$E$59,3,FALSE))," ",VLOOKUP(K58,[1]Proposito_programa!$C$2:$E$59,3,FALSE)) -> Propósito 5: Construir Bogotá - Región con gobierno abierto, transparente y ciudadanía consciente | N58: 2143 | P58: 1015432913 | Q58: WILMER ORLANDO VIRVIESCAS ALARCON | R58: Persona Natural | V58: 0 | X58: 0 | Z58: 2647700 | AA58: 2647700 | AB58: 2647700 | AC58: 2021-03-04 | AD58: 2021-03-04 | AE58: 2022-01-03 | AF58: 303 | AG58: 1 | AH58: 3 | AM58: Terminado | AN58: 1
A59: 036-2021 | B59: 2021 | C59: FDLBU-CD-009-2021 | D59: https://community.secop.gov.co/Public/Tendering/ContractNoticePhases/View?PPI=CO1.PPI.12078189&isFromPublicArea=True&isModal=False | E59: Contratos de prestación de servicios profesionales y de apoyo a la gestión | F59: Contratación directa | G59: Prestación de servicios profesionales y de apoyo a la gestión, o para la ejecución de trabajos artísticos que sólo puedan encomendarse a determinadas personas naturales | H59: APOYAR LA GESTIÓN DOCUMENTAL DE LA ALCADÍA LOCAL PARA LA IMPLEMENTACIÓN DEL PROCESO DE VERIFICACIÓN, SOPORTE Y ACOMPAÑAMIENTO, EN EL DESARROLLO DE LAS ACTIVIDADES PROPIAS DE LOS PROCESOS Y ACTUACIONES ADMINISTRATIVAS EXISTENTES. SEGUN CONTRATO DE PRESTACION DE SER VICIOS DE APOYO A LA GESTION 036 DE 2021. REEMPLAZA CDP 305 Y CRP 337 POR CONSTITUIRSE OBLIGACIONES POR PAGAR. | I59: Inversión | J59: Un nuevo contrato social y ambiental para la Bogotá del Siglo XXI | K59: 57 | L59: =IF(ISERROR(VLOOKUP(K59,[1]Proposito_programa!$C$2:$E$59,2,FALSE))," ",VLOOKUP(K59,[1]Proposito_programa!$C$2:$E$59,2,FALSE)) -> Gestión pública local | M59: =IF(ISERROR(VLOOKUP(K59,[1]Proposito_programa!$C$2:$E$59,3,FALSE))," ",VLOOKUP(K59,[1]Proposito_programa!$C$2:$E$59,3,FALSE)) -> Propósito 5: Construir Bogotá - Región con gobierno abierto, transparente y ciudadanía consciente | N59: 2143 | P59: 80872094 | Q59: DIEGO ARMANDO CORONEL AVENDAÑO | R59: Persona Natural | V59: 0 | X59: 0 | Z59: 4145233 | AA59: 4145233 | AB59: 4145233 | AC59: 2021-03-04 | AD59: 2021-03-08 | AE59: 2022-01-07 | AF59: 307 | AG59: 1 | AH59: 7 | AM59: Terminado | AN59: 1
A60: 037-2021 | B60: 2021 | C60: FDLBU-CD-052-2021 | D60: https://community.secop.gov.co/Public/Tendering/ContractNoticePhases/View?PPI=CO1.PPI.12212618&isFromPublicArea=True&isModal=False | E60: Contratos de prestación de servicios profesionales y de apoyo a la gestión | F60: Contratación directa | G60: Prestación de servicios profesionales y de apoyo a la gestión, o para la ejecución de trabajos artísticos que sólo puedan encomendarse a determinadas personas naturales | H60: PRESTAR SERVICIOS PROFESIONALES PARA APOYAR AL EQUIPO DE PRENSA Y COMUNICACIONES DE LA ALCALDÍA LOCAL MEDIANTE EL REGISTRO, LA EDICI ÓN Y LA PRESENTACIÓN DE VIDEOS DE LOS ACONTECIMIENTOS, HECHOS Y EVENTOS DE LA ALCALDÍA LOCAL EN LOS MEDIOS DE COMUNICACIÓN, ESCRITOS , DIGITALES Y AUDIOVISUALES. SEGUN CONTRATO DE PRESTACION DE SERVICIOS PROFESIONALES 037 DE 2021. REEMPLAZA CDP 326 Y CRP 363 POR CO NSTITUIRSE OBLIGACIONES POR PAGAR. | I60: Inversión | J60: Un nuevo contrato social y ambiental para la Bogotá del Siglo XXI | K60: 57 | L60: =IF(ISERROR(VLOOKUP(K60,[1]Proposito_programa!$C$2:$E$59,2,FALSE))," ",VLOOKUP(K60,[1]Proposito_programa!$C$2:$E$59,2,FALSE)) -> Gestión pública local | M60: =IF(ISERROR(VLOOKUP(K60,[1]Proposito_programa!$C$2:$E$59,3,FALSE))," ",VLOOKUP(K60,[1]Proposito_programa!$C$2:$E$59,3,FALSE)) -> Propósito 5: Construir Bogotá - Región con gobierno abierto, transparente y ciudadanía consciente | N60: 2143 | P60: 1018489170 | Q60: LAURA ALEJANDRA MORENO ALVAREZ | R60: Persona Natural | V60: 0 | X60: 0 | Z60: 5972333 | AA60: 5972333 | AB60: 5972333 | AC60: 2021-03-11 | AD60: 2021-03-12 | AE60: 2022-01-11 | AF60: 311 | AG60: 1 | AH60: 11 | AM60: Terminado | AN60: 1
A61: 038-2021 | B61: 2021 | C61: FDLBU-CD-020-2021 | D61: https://community.secop.gov.co/Public/Tendering/ContractNoticePhases/View?PPI=CO1.PPI.12096803&isFromPublicArea=True&isModal=False | E61: Contratos de prestación de servicios profesionales y de apoyo a la gestión | F61: Contratación directa | G61: Prestación de servicios profesionales y de apoyo a la gestión, o para la ejecución de trabajos artísticos que sólo puedan encomendarse a determinadas personas naturales | H61: PRESTAR SUS SERVICIOS DE APOYO PARA APOYAR LA GESTIÓN DOCUMENTAL DE LA ALCALDÍA LOCAL EN LA IMPLEMENTACIÓN DE LOS PROCESOS DE CLASIF ICACIÓN, ORDENACIÓN, SELECCIÓN NATURAL, FOLIACIÓN, IDENTIFICACIÓN, LEVANTAMIENTO DE INVENTARIOS, ALMACENAMIENTO Y APLICACIÓN DE PROT OCOLOS DE ELIMINACIÓN Y TRANSFERENCIAS. SEGUN CONTRATO DE PRESTACION DE SERVICIOS DE APOYO A LA GESTION 038 DE 2021. REEMPLAZA CDP 3 00 Y CRP 344 POR CONSTITUIRSE OBLIGACIONES POR PAGAR. | I61: Inversión | J61: Un nuevo contrato social y ambiental para la Bogotá del Siglo XXI | K61: 57 | L61: =IF(ISERROR(VLOOKUP(K61,[1]Proposito_programa!$C$2:$E$59,2,FALSE))," ",VLOOKUP(K61,[1]Proposito_programa!$C$2:$E$59,2,FALSE)) -> Gestión pública local | M61: =IF(ISERROR(VLOOKUP(K61,[1]Proposito_programa!$C$2:$E$59,3,FALSE))," ",VLOOKUP(K61,[1]Proposito_programa!$C$2:$E$59,3,FALSE)) -> Propósito 5: Construir Bogotá - Región con gobierno abierto, transparente y ciudadanía consciente | N61: 2143 | P61: 19346335 | Q61: PEDRO JESUS SANCHEZ MOLINA | R61: Persona Natural | V61: 0 | X61: 0 | Z61: 2498100 | AA61: 2498100 | AB61: 2498100 | AC61: 2021-03-04 | AD61: 2021-03-04 | AE61: 2022-01-03 | AF61: 303 | AG61: 1 | AH61: 3 | AM61: Terminado | AN61: 1
A62: 039-2021 | B62: 2021 | C62: FDLBU-CD-017-2021 | D62: https://community.secop.gov.co/Public/Tendering/ContractNoticePhases/View?PPI=CO1.PPI.12097729&isFromPublicArea=True&isModal=False | E62: Contratos de prestación de servicios profesionales y de apoyo a la gestión | F62: Contratación directa | G62: Prestación de servicios profesionales y de apoyo a la gestión, o para la ejecución de trabajos artísticos que sólo puedan encomendarse a determinadas personas naturales | H62: PRESTAR APOYO ADMINISTRATIVO Y OPERATIVO AL ÁREA DEL ALMACÉN DE LA ALCALDÍA LOCAL DE BARRIOS UNIDOS, EN LOS PROCESOS DE CUIDADO, PRO TECCIÓN, ALMACENAMIENTO, TRASLADO Y ENTREGA DE BIENES DEL FONDO DE DESARROLLO LOCAL DE ACUERDO CON LOS PROCESOS Y PROCEDIMIENTOS EST ABLECIDOS. SEGUN CONTRATO DE PRESTACION DE SERVICIOS DE APOYO A LA GESTION 039 2021. REEMPLAZA CDP 298 Y CRP 349 POR CONSTITUIRSE O BLIGACIONES POR PAGAR. | I62: Inversión | J62: Un nuevo contrato social y ambiental para la Bogotá del Siglo XXI | K62: 57 | L62: =IF(ISERROR(VLOOKUP(K62,[1]Proposito_programa!$C$2:$E$59,2,FALSE))," ",VLOOKUP(K62,[1]Proposito_programa!$C$2:$E$59,2,FALSE)) -> Gestión pública local | M62: =IF(ISERROR(VLOOKUP(K62,[1]Proposito_programa!$C$2:$E$59,3,FALSE))," ",VLOOKUP(K62,[1]Proposito_programa!$C$2:$E$59,3,FALSE)) -> Propósito 5: Construir Bogotá - Región con gobierno abierto, transparente y ciudadanía consciente | N62: 2143 | P62: 1024549811 | Q62: RUBEN ALBEIRO PALENCIA RIVEROS | R62: Persona Natural | V62: 0 | X62: 0 | Z62: 2646067 | AA62: 2646067 | AB62: 2646067 | AC62: 2021-03-05 | AD62: 2021-03-09 | AE62: 2022-01-08 | AF62: 308 | AG62: 1 | AH62: 8 | AM62: Terminado | AN62: 1
A63: 040-2021 | B63: 2021 | C63: FDLBU-CD-098-2021 | D63: https://community.secop.gov.co/Public/Tendering/ContractNoticePhases/View?PPI=CO1.PPI.12294624&isFromPublicArea=True&isModal=False | E63: Contratos de prestación de servicios profesionales y de apoyo a la gestión | F63: Contratación directa | G63: Prestación de servicios profesionales y de apoyo a la gestión, o para la ejecución de trabajos artísticos que sólo puedan encomendarse a determinadas personas naturales | H63: PRESTAR SERVICIOS DE APOYO EN LAS LABORES CONTABLES DEL FONDO DE DESARROLLO LOCAL DE BARRIOS UNIDOS, EN LOS TRAMITES, MANEJO CONTABL E Y DE ARCHIVO EN FORMA PERMANENTE EN EL DESARROLLO DEL PROCESO DE CONSOLIDACIÓN DE INFORMACIÓN DEL SISTEMA CONTABLE Y FINANCIERO. S EGUN CONTRATO DE PRESTACION DE SERVICIOS DE APOYO A LA GESTION 040 DE 2021. REEMPLAZA CDP 307 Y CRP 345 POR CONSTITUIRSE OBLIGACIONE S POR PAGAR. | I63: Inversión | J63: Un nuevo contrato social y ambiental para la Bogotá del Siglo XXI | K63: 57 | L63: =IF(ISERROR(VLOOKUP(K63,[1]Proposito_programa!$C$2:$E$59,2,FALSE))," ",VLOOKUP(K63,[1]Proposito_programa!$C$2:$E$59,2,FALSE)) -> Gestión pública local | M63: =IF(ISERROR(VLOOKUP(K63,[1]Proposito_programa!$C$2:$E$59,3,FALSE))," ",VLOOKUP(K63,[1]Proposito_programa!$C$2:$E$59,3,FALSE)) -> Propósito 5: Construir Bogotá - Región con gobierno abierto, transparente y ciudadanía consciente | N63: 2143 | P63: 1100959714 | Q63: CINTYA ALEXANDRA GAMEZ PARRA | R63: Persona Natural | V63: 0 | X63: 0 | Z63: 4481333 | AA63: 4481333 | AB63: 4481333 | AC63: 2021-03-04 | AD63: 2021-03-04 | AE63: 2022-01-10 | AF63: 310 | AG63: 1 | AH63: 10 | AM63: Terminado | AN63: 1
A64: 041-2021 | B64: 2021 | C64: FDLBU-CD-048-2021 | D64: https://community.secop.gov.co/Public/Tendering/ContractNoticePhases/View?PPI=CO1.PPI.12165310&isFromPublicArea=True&isModal=False | E64: Contratos de prestación de servicios profesionales y de apoyo a la gestión | F64: Contratación directa | G64: Prestación de servicios profesionales y de apoyo a la gestión, o para la ejecución de trabajos artísticos que sólo puedan encomendarse a determinadas personas naturales | H64: PRESTAR SERVICIOS PROFESIONALES PARA APOYAR AL EQUIPO DE PRENSA Y COMUNICACIONES DE LA ALCALDÍA LOCAL EN LA REALIZACIÓN DE PRODUCTOS Y PIEZAS DIGITALES, IMPRESAS Y PUBLICITARIAS DE GRAN FORMATO Y DE ANIMACIÓN GRÁFICA.SEGUN CESION 2 AL CONTRATO 041 DE 2021. REEMPLA ZA CDP 314 Y CRP 525 POR CONSTITUIRSE OBLIGACIONES POR PAGAR. | I64: Inversión | J64: Un nuevo contrato social y ambiental para la Bogotá del Siglo XXI | K64: 57 | L64: =IF(ISERROR(VLOOKUP(K64,[1]Proposito_programa!$C$2:$E$59,2,FALSE))," ",VLOOKUP(K64,[1]Proposito_programa!$C$2:$E$59,2,FALSE)) -> Gestión pública local | M64: =IF(ISERROR(VLOOKUP(K64,[1]Proposito_programa!$C$2:$E$59,3,FALSE))," ",VLOOKUP(K64,[1]Proposito_programa!$C$2:$E$59,3,FALSE)) -> Propósito 5: Construir Bogotá - Región con gobierno abierto, transparente y ciudadanía consciente | N64: 2143 | P64: 80040627 | Q64: ALEX DIDIER CARMAGO | R64: Persona Natural | V64: 0 | X64: 0 | Z64: 5383333 | AA64: 5383333 | AB64: 5383333 | AC64: 2021-03-04 | AD64: 2021-03-05 | AE64: 2022-01-04 | AF64: 304 | AG64: 1 | AH64: 4 | AI64: 1085271945 | AJ64: MAGDA SOFIA HERNANDEZ | AK64: 2021-06-08 | AM64: Terminado | AN64: 1
A65: 043-2021 | B65: 2021 | C65: FDLBU-CD-010-2021 | D65: https://community.secop.gov.co/Public/Tendering/ContractNoticePhases/View?PPI=CO1.PPI.12299045&isFromPublicArea=True&isModal=False | E65: Contratos de prestación de servicios profesionales y de apoyo a la gestión | F65: Contratación directa | G65: Prestación de servicios profesionales y de apoyo a la gestión, o para la ejecución de trabajos artísticos que sólo puedan encomendarse a determinadas personas naturales | H65: PRESTAR SERVICIOS DE APOYO EN EL ÁREA DE GESTIÓN DEL DESARROLLO EN LA FORMULACIÓN, SEGUIMIENTO Y EVALUACIÓN DE POLÍTICAS, PLANES, PR OGRAMAS Y PROYECTOS DE DESARROLLO LOCAL, PARA EL CUMPLIMIENTO DE LAS METAS DEL PLAN DE DESARROLLO LOCAL DE BARRIOS UNIDOS. SEGUN CON TRATO DE PRESTACION DE SERVICIOS DE APOYO A LA GESTION 043 DE 2021. REEMPLAZA CDP 306 Y CRP 351 POR CONSTITUIRSE OBLIGACIONES POR PA GAR. | I65: Inversión | J65: Un nuevo contrato social y ambiental para la Bogotá del Siglo XXI | K65: 57 | L65: =IF(ISERROR(VLOOKUP(K65,[1]Proposito_programa!$C$2:$E$59,2,FALSE))," ",VLOOKUP(K65,[1]Proposito_programa!$C$2:$E$59,2,FALSE)) -> Gestión pública local | M65: =IF(ISERROR(VLOOKUP(K65,[1]Proposito_programa!$C$2:$E$59,3,FALSE))," ",VLOOKUP(K65,[1]Proposito_programa!$C$2:$E$59,3,FALSE)) -> Propósito 5: Construir Bogotá - Región con gobierno abierto, transparente y ciudadanía consciente | N65: 2143 | P65: 1088007967 | Q65: LAURA VANESSA REINA BEDOYA | R65: Persona Natural | V65: 0 | X65: 0 | Z65: 5317333 | AA65: 5317333 | AB65: 5317333 | AC65: 2021-03-04 | AD65: 2021-03-05 | AE65: 2022-01-10 | AF65: 310 | AG65: 1 | AH65: 10 | AM65: Terminado | AN65: 1
A66: 044-2021 | B66: 2021 | C66: FDLBU-CD-054-2021 | D66: https://community.secop.gov.co/Public/Tendering/ContractNoticePhases/View?PPI=CO1.PPI.12280673&isFromPublicArea=True&isModal=False | E66: Contratos de prestación de servicios profesionales y de apoyo a la gestión | F66: Contratación directa | G66: Prestación de servicios profesionales y de apoyo a la gestión, o para la ejecución de trabajos artísticos que sólo puedan encomendarse a determinadas personas naturales | H66: PRESTAR LOS SERVICIOS PROFESIONALES PARA APOYAR AL ÁREA DE GESTIÓN DEL DESARROLLO ADMINISTRATIVO Y FINANCIERO, EN LOS ASUNTOS RELACI ONADOS CON EL DESARROLLO DE LA GESTIÓN CONTRACTUAL PARA LA ADQUISICIÓN DE RECURSOS Y SERVICIOS. SEGUN CESION DEL CONTRATO 044 DE 202 1 REEMPLAZA CDP 296 Y CRP 709 POR CONSTITUIRSE OBLIGACIONES POR PAGAR. | I66: Inversión | J66: Un nuevo contrato social y ambiental para la Bogotá del Siglo XXI | K66: 57 | L66: =IF(ISERROR(VLOOKUP(K66,[1]Proposito_programa!$C$2:$E$59,2,FALSE))," ",VLOOKUP(K66,[1]Proposito_programa!$C$2:$E$59,2,FALSE)) -> Gestión pública local | M66: =IF(ISERROR(VLOOKUP(K66,[1]Proposito_programa!$C$2:$E$59,3,FALSE))," ",VLOOKUP(K66,[1]Proposito_programa!$C$2:$E$59,3,FALSE)) -> Propósito 5: Construir Bogotá - Región con gobierno abierto, transparente y ciudadanía consciente | N66: 2143 | P66: 79235519 | Q66: GUSTAVO HERNAN JIMENEZ SANDOVAL | R66: Persona Natural | V66: 0 | X66: 0 | Z66: 7283333 | AA66: 7283333 | AB66: 7283333 | AC66: 2021-03-04 | AD66: 2021-03-05 | AE66: 2022-01-20 | AF66: 320 | AG66: 1 | AH66: 20 | AI66: 1030552280 | AJ66: LUISA FERNANDA VELASCO LIZARAZO | AK66: 2021-12-01 | AM66: Terminado | AN66: 1
A67: 045-2021 | B67: 2021 | C67: FDLBU-CD-078-2021 | D67: https://community.secop.gov.co/Public/Tendering/ContractNoticePhases/View?PPI=CO1.PPI.12312251&isFromPublicArea=True&isModal=False | E67: Contratos de prestación de servicios profesionales y de apoyo a la gestión | F67: Contratación directa | G67: Prestación de servicios profesionales y de apoyo a la gestión, o para la ejecución de trabajos artísticos que sólo puedan encomendarse a determinadas personas naturales | H67: PRESTAR SERVICIOS PROFESIONALES PARA COORDINAR, LIDERAR Y ASESORAR LOS PLANES Y ESTRATEGIAS DE COMUNICACIÓN INTERNA Y EXTERNA PARA L A DIVULGACIÓN DE LOS PROGRAMAS, PROYECTOS Y ACTIVIDADES DE LA ALCALDÍA LOCAL. SEGUN CONTRATO DE PRESTACION DE SERVICIOS PROFESIONALE S 045 DE 2021. REEMPLAZA CDP 313 Y CRP 347 POR CONSTITUIRSE OBLIGACIONES POR PAGAR. | I67: Inversión | J67: Un nuevo contrato social y ambiental para la Bogotá del Siglo XXI | K67: 57 | L67: =IF(ISERROR(VLOOKUP(K67,[1]Proposito_programa!$C$2:$E$59,2,FALSE))," ",VLOOKUP(K67,[1]Proposito_programa!$C$2:$E$59,2,FALSE)) -> Gestión pública local | M67: =IF(ISERROR(VLOOKUP(K67,[1]Proposito_programa!$C$2:$E$59,3,FALSE))," ",VLOOKUP(K67,[1]Proposito_programa!$C$2:$E$59,3,FALSE)) -> Propósito 5: Construir Bogotá - Región con gobierno abierto, transparente y ciudadanía consciente | N67: 2143 | P67: 52860493 | Q67: YULIETH PAOLA GOMEZ LEMA | R67: Persona Natural | V67: 0 | X67: 0 | Z67: 7206500 | AA67: 7206500 | AB67: 7206500 | AC67: 2021-03-04 | AD67: 2021-03-06 | AE67: 2022-01-05 | AF67: 305 | AG67: 1 | AH67: 5 | AM67: Terminado | AN67: 1
A68: 046-2021 | B68: 2021 | C68: FDLBU-CD-099-2021 | D68: https://community.secop.gov.co/Public/Tendering/ContractNoticePhases/View?PPI=CO1.PPI.12224833&isFromPublicArea=True&isModal=False | E68: Contratos de prestación de servicios profesionales y de apoyo a la gestión | F68: Contratación directa | G68: Prestación de servicios profesionales y de apoyo a la gestión, o para la ejecución de trabajos artísticos que sólo puedan encomendarse a determinadas personas naturales | H68: PRESTAR LOS SERVICIOS DE APOYO A LA GESTIÓN EN LA CONDUCCIÓN DE LOS VEHÍCULOS A CARGO DE EL FONDO DE DESARROLLO LOCAL DE BARRIOS UNI DOS, ASÍ COMO APOYAR LA GESTIÓN ADMINISTRATIVA QUE DESIGNE EL SUPERVISOR. SEGUN CONTRATO DE PRESTACION DE SERVICIOS DE APOYO A LA GE STION 046 DE 2021 REEMPLAZA CDP 304 Y CRP 348 POR CONSTITUIRSE OBLIGACIONES POR PAGAR. | I68: Inversión | J68: Un nuevo contrato social y ambiental para la Bogotá del Siglo XXI | K68: 57 | L68: =IF(ISERROR(VLOOKUP(K68,[1]Proposito_programa!$C$2:$E$59,2,FALSE))," ",VLOOKUP(K68,[1]Proposito_programa!$C$2:$E$59,2,FALSE)) -> Gestión pública local | M68: =IF(ISERROR(VLOOKUP(K68,[1]Proposito_programa!$C$2:$E$59,3,FALSE))," ",VLOOKUP(K68,[1]Proposito_programa!$C$2:$E$59,3,FALSE)) -> Propósito 5: Construir Bogotá - Región con gobierno abierto, transparente y ciudadanía consciente | N68: 2143 | P68: 7321025 | Q68: WILLINGTON ORTIZ ALARCON | R68: Persona Natural | V68: 0 | X68: 0 | Z68: 5317333 | AA68: 5317333 | AB68: 5317333 | AC68: 2021-03-04 | AD68: 2021-03-05 | AE68: 2022-01-10 | AF68: 310 | AG68: 1 | AH68: 10 | AM68: Terminado | AN68: 1
A69: 047-2021 | B69: 2021 | C69: FDLBU-CD-070-2021 | D69: https://community.secop.gov.co/Public/Tendering/ContractNoticePhases/View?PPI=CO1.PPI.12205571&isFromPublicArea=True&isModal=False | E69: Contratos de prestación de servicios profesionales y de apoyo a la gestión | F69: Contratación directa | G69: Prestación de servicios profesionales y de apoyo a la gestión, o para la ejecución de trabajos artísticos que sólo puedan encomendarse a determinadas personas naturales | H69: PRESTAR SERVICIOS PROFESIONALES PARA APOYAR AL EQUIPO DE PRENSA Y COMUNICACIONES DE LA ALCALDÍA LOCAL EN LA REALIZACIÓN Y PUBLICACIÓ N DE CONTENIDOS DE REDES SOCIALES Y CANALES DE DIVULGACIÓN DIGITAL (SITIO WEB) DE LA ALCALDÍA LOCAL. SEGUN CONTRATO DE PRESTACION DE SERVICIOS PROFESIONALES 047 DE 2021. REEMPLAZA CDP 312 Y CRP 355 POR CONSTITUIRSE OBLIGACIONES POR PAGAR. | I69: Inversión | J69: Un nuevo contrato social y ambiental para la Bogotá del Siglo XXI | K69: 57 | L69: =IF(ISERROR(VLOOKUP(K69,[1]Proposito_programa!$C$2:$E$59,2,FALSE))," ",VLOOKUP(K69,[1]Proposito_programa!$C$2:$E$59,2,FALSE)) -> Gestión pública local | M69: =IF(ISERROR(VLOOKUP(K69,[1]Proposito_programa!$C$2:$E$59,3,FALSE))," ",VLOOKUP(K69,[1]Proposito_programa!$C$2:$E$59,3,FALSE)) -> Propósito 5: Construir Bogotá - Región con gobierno abierto, transparente y ciudadanía consciente | N69: 2143 | P69: 1015423465 | Q69: DIANA CAROLINA DIAZ MUNEVAR | R69: Persona Natural | V69: 0 | X69: 0 | Z69: 6558800 | AA69: 6558800 | AB69: 6558800 | AC69: 2021-03-08 | AD69: 2021-03-09 | AE69: 2022-01-08 | AF69: 308 | AG69: 1 | AH69: 8 | AM69: Terminado | AN69: 1
A70: 048-2021 | B70: 2021 | C70: FDLBU-CD-085-2021 | D70: https://community.secop.gov.co/Public/Tendering/ContractNoticePhases/View?PPI=CO1.PPI.12206271&isFromPublicArea=True&isModal=False | E70: Contratos de prestación de servicios profesionales y de apoyo a la gestión | F70: Contratación directa | G70: Prestación de servicios profesionales y de apoyo a la gestión, o para la ejecución de trabajos artísticos que sólo puedan encomendarse a determinadas personas naturales | H70: PRESTAR SERVICIOS PROFESIONALES PARA APOYAR AL ÁREA GESTIÓN DEL DESARROLLO ADMINISTRATIVO Y FINANCIERO EN LOS ASUNTOS RELATIVOS A LA PLANEACIÓN LOCAL: LIDERAR Y GARANTIZAR LA IMPLEMENTACIÓN Y SEGUIMIENTO DE LOS PROCESOS, PROYECTOS Y PROCEDIMIENTOS DE CONTRATOS SUS CRITOS POR LA ALCALDÍA LOCAL DE BARRIOS UNIDOS DIRIGIDOS AL CUMPLIMIENTO DE LAS META DE ACUERDOS EN COMUNIDAD PARA LA VIGENCIA 2021. SEGUN CONTRATO DE PRESTACION DE SERVICIOS PROFESIONALES 048 DE 2021. REEMPLAZA CDP 345 Y CRP 364 POR CONSTITUIRSE OBLIGACIONES POR PAGAR. | I70: Inversión | J70: Un nuevo contrato social y ambiental para la Bogotá del Siglo XXI | K70: 45 | L70: =IF(ISERROR(VLOOKUP(K70,[1]Proposito_programa!$C$2:$E$59,2,FALSE))," ",VLOOKUP(K70,[1]Proposito_programa!$C$2:$E$59,2,FALSE)) -> Espacio público más seguro y construido colectivamente | M70: =IF(ISERROR(VLOOKUP(K70,[1]Proposito_programa!$C$2:$E$59,3,FALSE))," ",VLOOKUP(K70,[1]Proposito_programa!$C$2:$E$59,3,FALSE)) -> Propósito 3: Inspirar confianza y legitimidad para vivir sin miedo y ser epicentro de cultura ciudadana, paz y reconciliación | N70: 2038 | P70: 1018454325 | Q70: LILIANA MARITZA ROA BAQUERO | R70: Persona Natural | V70: 0 | X70: 0 | Z70: 6829233 | AA70: 6829233 | AB70: 6829233 | AC70: 2021-03-11 | AD70: 2021-03-12 | AE70: 2022-01-11 | AF70: 311 | AG70: 1 | AH70: 11 | AM70: Terminado | AN70: 1
A71: 049-2021 | B71: 2021 | C71: FDLBU-CD-073-2021 | D71: https://community.secop.gov.co/Public/Tendering/ContractNoticePhases/View?PPI=CO1.PPI.12285330&isFromPublicArea=True&isModal=False | E71: Contratos de prestación de servicios profesionales y de apoyo a la gestión | F71: Contratación directa | G71: Prestación de servicios profesionales y de apoyo a la gestión, o para la ejecución de trabajos artísticos que sólo puedan encomendarse a determinadas personas naturales | H71: PRESTAR SERVICIOS PROFESIONALES DE APOYO A LA OFICINA DE PRESUPUESTO DEL FONDO DE DESARROLLO LOCAL EN EL REGISTRO, ANALISIS Y GESTIÓ N DE OBLIGACIONES POR PAGAR Y OTROS ASUNTOS QUE EN MATERIA DE PRESUPUESTO LOCAL LE SEAN DESIGNADOS. SEGUN CONTRATO DE PRESTACION DE SERVICIOS DE PROFESIONALES 049 DE 2021. REEMPLAZA CDP 329 Y CRP 353 POR CONSTITUIRSE OBLIGACIONES POR PAGAR. | I71: Inversión | J71: Un nuevo contrato social y ambiental para la Bogotá del Siglo XXI | K71: 57 | L71: =IF(ISERROR(VLOOKUP(K71,[1]Proposito_programa!$C$2:$E$59,2,FALSE))," ",VLOOKUP(K71,[1]Proposito_programa!$C$2:$E$59,2,FALSE)) -> Gestión pública local | M71: =IF(ISERROR(VLOOKUP(K71,[1]Proposito_programa!$C$2:$E$59,3,FALSE))," ",VLOOKUP(K71,[1]Proposito_programa!$C$2:$E$59,3,FALSE)) -> Propósito 5: Construir Bogotá - Región con gobierno abierto, transparente y ciudadanía consciente | N71: 2143 | P71: 7320162 | Q71: JOSE RAUL PINILLA CHILLON | R71: Persona Natural | V71: 0 | X71: 0 | Z71: 5858333 | AA71: 5858333 | AB71: 5858333 | AC71: 2021-03-05 | AD71: 2021-03-08 | AE71: 2022-01-07 | AF71: 307 | AG71: 1 | AH71: 7 | AM71: Terminado | AN71: 1
A72: 050-2021 | B72: 2021 | C72: FDLBU-CD-067-2021 | D72: https://community.secop.gov.co/Public/Tendering/ContractNoticePhases/View?PPI=CO1.PPI.12285424&isFromPublicArea=True&isModal=False | E72: Contratos de prestación de servicios profesionales y de apoyo a la gestión | F72: Contratación directa | G72: Prestación de servicios profesionales y de apoyo a la gestión, o para la ejecución de trabajos artísticos que sólo puedan encomendarse a determinadas personas naturales | H72: PRESTAR LOS SERVICIOS PROFESIONALES PARA EL APOYO A LA GESTION DE LOS SISTEMAS EN EL SEGUIMIENTO Y SOPORTE A LA INFRAESTRUCTURA TECN OLOGICA DE LA ALCALDIA LOCAL DE BARRIOS UNIDOS. SEGUN CONTRATO DE PRESTACION DE SERVICIOS PROFESIONALES 050 DE 2021. REEMPLAZA CDP 322 Y CRP 352 POR CONSTITUIRSE OBLIGACIONES POR PAGAR. | I72: Inversión | J72: Un nuevo contrato social y ambiental para la Bogotá del Siglo XXI | K72: 57 | L72: =IF(ISERROR(VLOOKUP(K72,[1]Proposito_programa!$C$2:$E$59,2,FALSE))," ",VLOOKUP(K72,[1]Proposito_programa!$C$2:$E$59,2,FALSE)) -> Gestión pública local | M72: =IF(ISERROR(VLOOKUP(K72,[1]Proposito_programa!$C$2:$E$59,3,FALSE))," ",VLOOKUP(K72,[1]Proposito_programa!$C$2:$E$59,3,FALSE)) -> Propósito 5: Construir Bogotá - Región con gobierno abierto, transparente y ciudadanía consciente | N72: 2143 | P72: 1030557277 | Q72: DANNY JOEL CUBILLOS VELASQUEZ | R72: Persona Natural | V72: 0 | X72: 0 | Z72: 5389667 | AA72: 5389667 | AB72: 5389667 | AC72: 2021-03-05 | AD72: 2021-03-08 | AE72: 2022-01-07 | AF72: 307 | AG72: 1 | AH72: 7 | AM72: Terminado | AN72: 1
A73: 053-2021 | B73: 2021 | C73: FDLBU-CD-093-2021 | D73: https://community.secop.gov.co/Public/Tendering/ContractNoticePhases/View?PPI=CO1.PPI.12351435&isFromPublicArea=True&isModal=False | E73: Contratos de prestación de servicios profesionales y de apoyo a la gestión | F73: Contratación directa | G73: Prestación de servicios profesionales y de apoyo a la gestión, o para la ejecución de trabajos artísticos que sólo puedan encomendarse a determinadas personas naturales | H73: PRESTAR SUS SERVICIOS PROFESIONALES PARA APOYAR JURÍDICAMENTE LA EJECUCIÓN DE LAS ACCIONES REQUERIDAS PARA LA DEPURACIÓN DE LAS ACTU ACIONES ADMINISTRATIVAS QUE CURSAN EN LA ALCALDÍA LOCAL. SEGUN CONTRATO DE PRESTACION DE SERVICIOS PROFESIONALES 053 DE 2021. REEMPL AZA CDP 320 Y CRP 357 POR CONSTITUIRSE OBLIGACIONES POR PAGAR. | I73: Inversión | J73: Un nuevo contrato social y ambiental para la Bogotá del Siglo XXI | K73: 57 | L73: =IF(ISERROR(VLOOKUP(K73,[1]Proposito_programa!$C$2:$E$59,2,FALSE))," ",VLOOKUP(K73,[1]Proposito_programa!$C$2:$E$59,2,FALSE)) -> Gestión pública local | M73: =IF(ISERROR(VLOOKUP(K73,[1]Proposito_programa!$C$2:$E$59,3,FALSE))," ",VLOOKUP(K73,[1]Proposito_programa!$C$2:$E$59,3,FALSE)) -> Propósito 5: Construir Bogotá - Región con gobierno abierto, transparente y ciudadanía consciente | N73: 2143 | P73: 1094247295 | Q73: JOHN EMMANUEL GOMEZ PORTILLA | R73: Persona Natural | V73: 0 | X73: 0 | Z73: 1583667 | AA73: 1583667 | AB73: 1583667 | AC73: 2021-03-09 | AD73: 2021-03-11 | AE73: 2021-10-10 | AF73: 210 | AM73: Terminado | AN73: 1
A74: 055-2021 | B74: 2021 | C74: FDLBU-CD-102-2021 | D74: https://community.secop.gov.co/Public/Tendering/ContractNoticePhases/View?PPI=CO1.PPI.12353710&isFromPublicArea=True&isModal=False | E74: Contratos de prestación de servicios profesionales y de apoyo a la gestión | F74: Contratación directa | G74: Prestación de servicios profesionales y de apoyo a la gestión, o para la ejecución de trabajos artísticos que sólo puedan encomendarse a determinadas personas naturales | H74: PRESTAR SERVICIOS PROFESIONALES PARA APOYAR AL ÁREA GESTIÓN DEL DESARROLLO ADMINISTRATIVO Y FINANCIERO EN LOS ASUNTOS RELATIVOS A LA PLANEACIÓN LOCAL: GARANTIZAR LA IMPLEMENTACIÓN Y SEGUIMIENTO DE LOS PROCESOS, PROYECTOS Y PROCEDIMIENTOS DE CONTRATOS SUSCRITOS POR LA ALCALDÍA LOCAL DE BARRIOS UNIDOS DIRIGIDOS AL CUMPLIMIENTO DE LAS METAS DE LA LÍNEA DE INVERSIONES AMBIENTALES SOSTENIBLES. SEGU N CONTRATO DE PRESTACION DE SERVICIOS PROFESIONALES 055 DE 2021. REEMPLAZA CDP 347 Y CRP 362 POR CONSTITUIRSE OBLIGACIONES POR PAGAR . | I74: Inversión | J74: Un nuevo contrato social y ambiental para la Bogotá del Siglo XXI | K74: 34 | L74: =IF(ISERROR(VLOOKUP(K74,[1]Proposito_programa!$C$2:$E$59,2,FALSE))," ",VLOOKUP(K74,[1]Proposito_programa!$C$2:$E$59,2,FALSE)) -> Bogotá protectora de los animales | M74: =IF(ISERROR(VLOOKUP(K74,[1]Proposito_programa!$C$2:$E$59,3,FALSE))," ",VLOOKUP(K74,[1]Proposito_programa!$C$2:$E$59,3,FALSE)) -> Propósito 2 : Cambiar Nuestros Hábitos de Vida para Reverdecer a Bogotá y Adaptarnos y Mitigar la Crisis Climática | N74: 2008 | P74: 23495250 | Q74: MYRIAM OBANDO MARIN | R74: Persona Natural | V74: 0 | X74: 0 | Z74: 7283333 | AA74: 7283333 | AB74: 7283333 | AC74: 2021-03-10 | AD74: 2021-03-12 | AE74: 2022-01-20 | AF74: 320 | AG74: 1 | AH74: 20 | AM74: Terminado | AN74: 1
A75: 057-2021 | B75: 2021 | C75: FDLBU-CD-090-2021 | D75: https://community.secop.gov.co/Public/Tendering/ContractNoticePhases/View?PPI=CO1.PPI.12269784&isFromPublicArea=True&isModal=False | E75: Contratos de prestación de servicios profesionales y de apoyo a la gestión | F75: Contratación directa | G75: Prestación de servicios profesionales y de apoyo a la gestión, o para la ejecución de trabajos artísticos que sólo puedan encomendarse a determinadas personas naturales | H75: ADICIÓN Y PRÓRROGA 01 AL CTO 057-2021 CON OBJETO PRESTAR SUS SERVICIOS PROFESIONALES PARA APOYAR JURÍDICAMENTE LA EJECUCIÓN DE LAS A CCIONES REQUERIDAS PARA LA DEPURACIÓN DE LAS ACTUACIONES ADMINISTRATIVAS. REEMPLAZA CDP 519 Y CRP 649 POR CONSTITUIRSE OBLIGACIONES POR PAGAR. | I75: Inversión | J75: Un nuevo contrato social y ambiental para la Bogotá del Siglo XXI | K75: 57 | L75: =IF(ISERROR(VLOOKUP(K75,[1]Proposito_programa!$C$2:$E$59,2,FALSE))," ",VLOOKUP(K75,[1]Proposito_programa!$C$2:$E$59,2,FALSE)) -> Gestión pública local | M75: =IF(ISERROR(VLOOKUP(K75,[1]Proposito_programa!$C$2:$E$59,3,FALSE))," ",VLOOKUP(K75,[1]Proposito_programa!$C$2:$E$59,3,FALSE)) -> Propósito 5: Construir Bogotá - Región con gobierno abierto, transparente y ciudadanía consciente | N75: 2143 | P75: 1015447044 | Q75: PAULA CAMILA GUTIERREZ BEJARANO | R75: Persona Natural | V75: 0 | X75: 0 | Z75: 4997000 | AA75: 4997000 | AB75: 4997000 | AC75: 2021-03-16 | AD75: 2021-03-17 | AE75: 2021-12-30 | AF75: 284 | AG75: 1 | AH75: 44 | AM75: Terminado | AN75: 1
A76: 058-2021 | B76: 2021 | C76: FDLBU-CD-117-2021 | D76: https://community.secop.gov.co/Public/Tendering/ContractNoticePhases/View?PPI=CO1.PPI.12385892&isFromPublicArea=True&isModal=False | E76: Contratos de prestación de servicios profesionales y de apoyo a la gestión | F76: Contratación directa | G76: Prestación de servicios profesionales y de apoyo a la gestión, o para la ejecución de trabajos artísticos que sólo puedan encomendarse a determinadas personas naturales | H76: PRESTAR SERVICIOS PROFESIONALES EN EL ÁREA DE GESTIÓN DEL DESARROLLO, PARA LA EJECUCIÓN Y SEGUIMIENTO DE LOS DIFERENTES PROYECTOS DE INVERSIÓN Y CONTRATOS DE INFRAESTRUCTURA, DE LA LOCALIDAD DE BARRIOS UNIDOS. SEGUN CONTRATO DE PRESTACION DE SERVICIOS PROFESIONALE S 058 DE 2021. REEMPLAZA CDP 348 Y CRP 360 POR CONSTITUIRSE OBLIGACIONES POR PAGAR. | I76: Inversión | J76: Un nuevo contrato social y ambiental para la Bogotá del Siglo XXI | K76: 49 | L76: =IF(ISERROR(VLOOKUP(K76,[1]Proposito_programa!$C$2:$E$59,2,FALSE))," ",VLOOKUP(K76,[1]Proposito_programa!$C$2:$E$59,2,FALSE)) -> Movilidad segura, sostenible y accesible | M76: =IF(ISERROR(VLOOKUP(K76,[1]Proposito_programa!$C$2:$E$59,3,FALSE))," ",VLOOKUP(K76,[1]Proposito_programa!$C$2:$E$59,3,FALSE)) -> Propósito 4: Hacer de Bogotá Región un modelo de movilidad multimodal, incluyente y sostenible | N76: 2022 | P76: 1015424383 | Q76: NATHALIA DEL PILAR CAMARGO CASALLAS | R76: Persona Natural | V76: 0 | X76: 0 | Z76: 5826667 | AA76: 5826667 | AB76: 5826667 | AC76: 2021-03-11 | AD76: 2021-03-11 | AE76: 2022-01-10 | AF76: 310 | AG76: 1 | AH76: 10 | AM76: Terminado | AN76: 1
A77: 063-2021 | B77: 2021 | C77: FDLBU-CD-105-2021 | D77: https://community.secop.gov.co/Public/Tendering/ContractNoticePhases/View?PPI=CO1.PPI.12408901&isFromPublicArea=True&isModal=False | E77: Contratos de prestación de servicios profesionales y de apoyo a la gestión | F77: Contratación directa | G77: Prestación de servicios profesionales y de apoyo a la gestión, o para la ejecución de trabajos artísticos que sólo puedan encomendarse a determinadas personas naturales | H77: PRESTAR SERVICIOS PROFESIONALES EN EL ÁREA DE GESTIÓN DEL DESARROLLO, PARA LA EJECUCIÓN Y SEGUIMIENTO DE LOS DIFERENTES PROYECTOS DE INVERSIÓN Y CONTRATOS DE INFRAESTRUCTURA, DE LA LOCALIDAD DE BARRIOS UNIDOS. SEGUN CONTRATO DE PRESTACION DE SERVICIOS PROFESIONALE S 063 DE 2021. REEMPLAZA CDP 349 Y CRP 367 POR CONSTITUIRSE OBLIGACIONES POR PAGAR. | I77: Inversión | J77: Un nuevo contrato social y ambiental para la Bogotá del Siglo XXI | K77: 49 | L77: =IF(ISERROR(VLOOKUP(K77,[1]Proposito_programa!$C$2:$E$59,2,FALSE))," ",VLOOKUP(K77,[1]Proposito_programa!$C$2:$E$59,2,FALSE)) -> Movilidad segura, sostenible y accesible | M77: =IF(ISERROR(VLOOKUP(K77,[1]Proposito_programa!$C$2:$E$59,3,FALSE))," ",VLOOKUP(K77,[1]Proposito_programa!$C$2:$E$59,3,FALSE)) -> Propósito 4: Hacer de Bogotá Región un modelo de movilidad multimodal, incluyente y sostenible | N77: 2022 | P77: 1018472177 | Q77: PAOLA ANDREA LEON TORRES | R77: Persona Natural | V77: 0 | X77: 0 | Z77: 6966667 | AA77: 6966667 | AB77: 6966667 | AC77: 2021-03-12 | AD77: 2021-03-15 | AE77: 2022-01-14 | AF77: 314 | AG77: 1 | AH77: 14 | AM77: Terminado | AN77: 1
A78: 065-2021 | B78: 2021 | C78: FDLBU-CD-058-2021 | D78: https://community.secop.gov.co/Public/Tendering/ContractNoticePhases/View?PPI=CO1.PPI.12369357&isFromPublicArea=True&isModal=False | E78: Contratos de prestación de servicios profesionales y de apoyo a la gestión | F78: Contratación directa | G78: Prestación de servicios profesionales y de apoyo a la gestión, o para la ejecución de trabajos artísticos que sólo puedan encomendarse a determinadas personas naturales | H78: ADICIÓN Y PRÓRROGA 01 AL CONTRATO 065-2021 CON OBJETO PRESTAR SUS SERVICIOS DE APOYO EN LAS ACTIVIDADES DEL PROYECTO DE INVERSIÓN YU LIANA SAMBONI Y EN LAS ACTIVIDADES DE ARTICULACIÓN, ASISTENCIA Y ACOMPAÑAMIENTO DE LOS DEMÁS PROCESOS DE PLANEACIÓN LOCAL EN LA PROM OCIÓN DE LA PARTICIPACIÓN DE MUJERES Y DE LA EQUIDAD DE GÉNERO PARA MATERIALIZAR EN LA LOCALIDAD LAS ESTRATEGIAS DE TERRITORIALIZACI ÓN Y TRANSVERSALIZACIÓN DE LA POLÍTICA PÚBLICA DE MUJERES Y EQUIDAD DE GÉNERO PPMYEG. REEMPLAZA CDP 493 Y CRP 631 POR CONSTITUIRSE O BLIGACIONES POR PAGAR. | I78: Inversión | J78: Un nuevo contrato social y ambiental para la Bogotá del Siglo XXI | K78: 40 | L78: =IF(ISERROR(VLOOKUP(K78,[1]Proposito_programa!$C$2:$E$59,2,FALSE))," ",VLOOKUP(K78,[1]Proposito_programa!$C$2:$E$59,2,FALSE)) -> Más mujeres viven una vida libre de violencias, se sienten seguras y acceden con confianza al sistema de justicia | M78: =IF(ISERROR(VLOOKUP(K78,[1]Proposito_programa!$C$2:$E$59,3,FALSE))," ",VLOOKUP(K78,[1]Proposito_programa!$C$2:$E$59,3,FALSE)) -> Propósito 3: Inspirar confianza y legitimidad para vivir sin miedo y ser epicentro de cultura ciudadana, paz y reconciliación | N78: 2057 | P78: 1018445475 | Q78: KAREN STPHANIE RODRIGUEZ SOSA | R78: Persona Natural | V78: 0 | X78: 0 | Z78: 1514000 | AA78: 1514000 | AB78: 1514000 | AC78: 2021-03-15 | AD78: 2021-03-16 | AE78: 2021-12-20 | AF78: 275 | AG78: 1 | AH78: 35 | AM78: Terminado | AN78: 1
A79: 066-2021 | B79: 2021 | C79: FDLBU-CD-060-2021 | D79: https://community.secop.gov.co/Public/Tendering/ContractNoticePhases/View?PPI=CO1.PPI.12389588&isFromPublicArea=True&isModal=False | E79: Contratos de prestación de servicios profesionales y de apoyo a la gestión | F79: Contratación directa | G79: Prestación de servicios profesionales y de apoyo a la gestión, o para la ejecución de trabajos artísticos que sólo puedan encomendarse a determinadas personas naturales | H79: ADICIÓN Y PRÓRROGA 01 AL CONTRATO 066-2021 CON OBJETO PRESTAR SUS SERVICIOS DE APOYO EN LAS ACTIVIDADES DEL PROYECTO DE INVERSIÓN YU LIANA SAMBONI Y EN LAS ACTIVIDADES DE ARTICULACIÓN, ASISTENCIA Y ACOMPAÑAMIENTO DE LOS DEMÁS PROCESOS DE PLANEACIÓN LOCAL EN LA PROM OCIÓN DE LA PARTICIPACIÓN DE MUJERES Y DE LA EQUIDAD DE GÉNERO PARA MATERIALIZAR EN LA LOCALIDAD LAS ESTRATEGIAS DE TERRITORIALIZACI ÓN Y TRANSVERSALIZACIÓN DE LA POLÍTICA PÚBLICA DE MUJERES Y EQUIDAD DE GÉNERO PPMYEG. REEMPLAZA CDP 492 Y CRP 632 POR CONSTITUIRSE O BLIGACIONES POR PAGAR. | I79: Inversión | J79: Un nuevo contrato social y ambiental para la Bogotá del Siglo XXI | K79: 40 | L79: =IF(ISERROR(VLOOKUP(K79,[1]Proposito_programa!$C$2:$E$59,2,FALSE))," ",VLOOKUP(K79,[1]Proposito_programa!$C$2:$E$59,2,FALSE)) -> Más mujeres viven una vida libre de violencias, se sienten seguras y acceden con confianza al sistema de justicia | M79: =IF(ISERROR(VLOOKUP(K79,[1]Proposito_programa!$C$2:$E$59,3,FALSE))," ",VLOOKUP(K79,[1]Proposito_programa!$C$2:$E$59,3,FALSE)) -> Propósito 3: Inspirar confianza y legitimidad para vivir sin miedo y ser epicentro de cultura ciudadana, paz y reconciliación | N79: 2057 | P79: 1094910132 | Q79: LUZ ADRIANA HERNANDEZ MARIN | R79: Persona Natural | V79: 0 | X79: 0 | Z79: 1514000 | AA79: 1514000 | AB79: 1514000 | AC79: 2021-03-15 | AD79: 2021-03-15 | AE79: 2021-12-20 | AF79: 276 | AG79: 1 | AH79: 36 | AM79: Terminado | AN79: 1
A80: 068-2021 | B80: 2021 | C80: FDLBUCD-113-2021 | D80: https://community.secop.gov.co/Public/Tendering/ContractNoticePhases/View?PPI=CO1.PPI.12448272&isFromPublicArea=True&isModal=False | E80: Contratos de prestación de servicios profesionales y de apoyo a la gestión | F80: Contratación directa | G80: Prestación de servicios profesionales y de apoyo a la gestión, o para la ejecución de trabajos artísticos que sólo puedan encomendarse a determinadas personas naturales | H80: ADICIÓN Y PRÓRROGA 01 AL CONTRATO 068-2021 CON OBJETO PRESTAR SERVICIOS DE APOYO A LA GESTIÓN DEL DESARROLLO EN LAS LABORES DE PLANE ACIÓN EN LAS ACTIVIDADES CONCERNIENTES AL PROYECTO IMPULSEMOS ECONOMÍA LOCAL. REEMPLAZA CDP 486 Y CRP 619 POR CONSTITUIRSE OBLIGACIO NES POR PAGAR. | I80: Inversión | J80: Un nuevo contrato social y ambiental para la Bogotá del Siglo XXI | K80: 6 | L80: =IF(ISERROR(VLOOKUP(K80,[1]Proposito_programa!$C$2:$E$59,2,FALSE))," ",VLOOKUP(K80,[1]Proposito_programa!$C$2:$E$59,2,FALSE)) -> Sistema Distrital de Cuidado | M80: =IF(ISERROR(VLOOKUP(K80,[1]Proposito_programa!$C$2:$E$59,3,FALSE))," ",VLOOKUP(K80,[1]Proposito_programa!$C$2:$E$59,3,FALSE)) -> Propósito 1: Hacer un nuevo contrato social para incrementar la inclusión social, productiva y política | N80: 2135 | P80: 1020737893 | Q80: JENNY ANDREA HERNANDEZ MURCIA | R80: Persona Natural | V80: 0 | X80: 0 | Z80: 1665400 | AA80: 1665400 | AB80: 1665400 | AC80: 2021-03-18 | AD80: 2021-03-18 | AE80: 2021-12-22 | AF80: 275 | AG80: 1 | AH80: 35 | AM80: Terminado | AN80: 1
A81: 069-2021 | B81: 2021 | C81: FDLBU-CD-059-2021 | D81: https://community.secop.gov.co/Public/Tendering/ContractNoticePhases/View?PPI=CO1.PPI.12390157&isFromPublicArea=True&isModal=False | E81: Contratos de prestación de servicios profesionales y de apoyo a la gestión | F81: Contratación directa | G81: Prestación de servicios profesionales y de apoyo a la gestión, o para la ejecución de trabajos artísticos que sólo puedan encomendarse a determinadas personas naturales | H81: ADICIÓN Y PRÓRROGA 01 AL CONTRATO 069-2021 CON OBJETO PRESTAR SUS SERVICIOS DE APOYO EN LAS ACTIVIDADES DEL PROYECTO DE INVERSIÓN YU LIANA SAMBONI Y EN LAS ACTIVIDADES DE ARTICULACIÓN, ASISTENCIA Y ACOMPAÑAMIENTO DE LOS DEMÁS PROCESOS DE PLANEACIÓN LOCAL EN LA PROM OCIÓN DE LA PARTICIPACIÓN DE MUJERES Y DE LA EQUIDAD DE GÉNERO PARA MATERIALIZAR EN LA LOCALIDAD LAS ESTRATEGIAS DE TERRITORIALIZACI ÓN Y TRANSVERSALIZACIÓN DE LA POLÍTICA PÚBLICA DE MUJERES Y EQUIDAD DE GÉNERO PPMYEG. REEMPLAZA CDP 494 Y CRP 637 POR CONSTITUIRSE O BLIGACIONES POR PAGAR. | I81: Inversión | J81: Un nuevo contrato social y ambiental para la Bogotá del Siglo XXI | K81: 40 | L81: =IF(ISERROR(VLOOKUP(K81,[1]Proposito_programa!$C$2:$E$59,2,FALSE))," ",VLOOKUP(K81,[1]Proposito_programa!$C$2:$E$59,2,FALSE)) -> Más mujeres viven una vida libre de violencias, se sienten seguras y acceden con confianza al sistema de justicia | M81: =IF(ISERROR(VLOOKUP(K81,[1]Proposito_programa!$C$2:$E$59,3,FALSE))," ",VLOOKUP(K81,[1]Proposito_programa!$C$2:$E$59,3,FALSE)) -> Propósito 3: Inspirar confianza y legitimidad para vivir sin miedo y ser epicentro de cultura ciudadana, paz y reconciliación | N81: 2057 | P81: 1032459423 | Q81: MARIA PAULA PARDO VARGAS | R81: Persona Natural | V81: 0 | X81: 0 | Z81: 1438300 | AA81: 1438300 | AB81: 1438300 | AC81: 2021-03-15 | AD81: 2021-03-16 | AE81: 2021-12-19 | AF81: 274 | AG81: 1 | AH81: 34 | AM81: Terminado | AN81: 1
A82: 071-2021 | B82: 2021 | C82: FDLBU-CD-069-2021 | D82: https://community.secop.gov.co/Public/Tendering/ContractNoticePhases/View?PPI=CO1.PPI.12357864&isFromPublicArea=True&isModal=False | E82: Contratos de prestación de servicios profesionales y de apoyo a la gestión | F82: Contratación directa | G82: Prestación de servicios profesionales y de apoyo a la gestión, o para la ejecución de trabajos artísticos que sólo puedan encomendarse a determinadas personas naturales | H82: PRESTAR LOS SERVICIOS PROFESIONALES PARA APOYAR AL ÁREA GESTIÓN DEL DESARROLLO ADMINISTRATIVO Y FINANCIERO EN LOS ASUNTOS RELATIVOS A LA PLANEACIÓN LOCAL, ASÍ COMO EL APOYO A LA SUPERVISIÓN DE CONTRATOS SUSCRITOS POR LA ALCALDÍA LOCAL DE BARRIOS UNIDOS. SEGUN CONT RATO DE PRESTACION DE SERVICIOS PROFESIONALES 071 DE 2021. REEMPLAZA CDP 316 Y CRP 417 POR CONSTITUIRSE OBLIGACIONES POR PAGAR. | I82: Inversión | J82: Un nuevo contrato social y ambiental para la Bogotá del Siglo XXI | K82: 57 | L82: =IF(ISERROR(VLOOKUP(K82,[1]Proposito_programa!$C$2:$E$59,2,FALSE))," ",VLOOKUP(K82,[1]Proposito_programa!$C$2:$E$59,2,FALSE)) -> Gestión pública local | M82: =IF(ISERROR(VLOOKUP(K82,[1]Proposito_programa!$C$2:$E$59,3,FALSE))," ",VLOOKUP(K82,[1]Proposito_programa!$C$2:$E$59,3,FALSE)) -> Propósito 5: Construir Bogotá - Región con gobierno abierto, transparente y ciudadanía consciente | N82: 2143 | P82: 74380410 | Q82: OSMAR FABIAN MORALES NOVOA | R82: Persona Natural | V82: 0 | X82: 0 | Z82: 8630000 | AA82: 8630000 | AB82: 8630000 | AC82: 2021-03-24 | AD82: 2021-03-29 | AE82: 2022-01-20 | AF82: 320 | AG82: 1 | AH82: 20 | AM82: Liquidado | AN82: 1
A83: 072-2021 | B83: 2021 | C83: FDLBU-CD-006-2021 | D83: https://community.secop.gov.co/Public/Tendering/ContractNoticePhases/View?PPI=CO1.PPI.11990700&isFromPublicArea=True&isModal=False | E83: Contratos de prestación de servicios profesionales y de apoyo a la gestión | F83: Contratación directa | G83: Prestación de servicios profesionales y de apoyo a la gestión, o para la ejecución de trabajos artísticos que sólo puedan encomendarse a determinadas personas naturales | H83: PRESTAR LOS SERVICIOS DE APOYO A LA GESTIÓN EN LA CONDUCCIÓN DE LOS VEHÍCULOS A CARGO DE EL FONDO DE DESARROLLO LOCAL DE BARRIOS UNI DOS, ASÍ COMO APOYAR LA GESTIÓN ADMINISTRATIVA QUE DESIGNE EL SUPERVISOR. SEGUN CONTRATO DE PRESTACION DE SERVICIOS DE APOYO A LA GE STION 072 DE 2021. REEMPLAZA CDP 299 Y CRP 414 POR CONSTITUIRSE OBLIGACIONES POR PAGAR. | I83: Inversión | J83: Un nuevo contrato social y ambiental para la Bogotá del Siglo XXI | K83: 57 | L83: =IF(ISERROR(VLOOKUP(K83,[1]Proposito_programa!$C$2:$E$59,2,FALSE))," ",VLOOKUP(K83,[1]Proposito_programa!$C$2:$E$59,2,FALSE)) -> Gestión pública local | M83: =IF(ISERROR(VLOOKUP(K83,[1]Proposito_programa!$C$2:$E$59,3,FALSE))," ",VLOOKUP(K83,[1]Proposito_programa!$C$2:$E$59,3,FALSE)) -> Propósito 5: Construir Bogotá - Región con gobierno abierto, transparente y ciudadanía consciente | N83: 2143 | P83: 19484273 | Q83: HUMBERTO VILLAMIL ACEVEDO | R83: Persona Natural | V83: 0 | X83: 0 | Z83: 2407000 | AA83: 2407000 | AB83: 2407000 | AC83: 2021-03-25 | AD83: 2021-04-05 | AE83: 2021-12-31 | AF83: 300 | AM83: Terminado | AN83: 1
A84: 077-2021 | B84: 2021 | C84: FDLBU-CD-071-2021 | D84: https://community.secop.gov.co/Public/Tendering/ContractNoticePhases/View?PPI=CO1.PPI.12402422&isFromPublicArea=True&isModal=False | E84: Contratos de prestación de servicios profesionales y de apoyo a la gestión | F84: Contratación directa | G84: Prestación de servicios profesionales y de apoyo a la gestión, o para la ejecución de trabajos artísticos que sólo puedan encomendarse a determinadas personas naturales | H84: PRESTAR LOS SERVICIOS PROFESIONALES PARA LIDERAR LA FORMULACIÓN, GESTIÓN, SEGUIMIENTO Y SUPERVISIÓN DEL PROYECTO DE INVERSIÓN YULIAN A SAMBONI Y COORDINAR LA ARTICULACIÓN, ASISTENCIA Y ACOMPAÑAMIENTO DE LOS PROCESOS DE PLANEACIÓN LOCAL EN LA PROMOCIÓN DE LA PARTICI PACIÓN DE LAS MUJERES Y DE LA EQUIDAD DE GÉNERO PARA MATERIALIZAR EN LA LOCALIDAD LAS ESTRATEGIAS DE TERRITORIALIZACIÓN Y TRANSVERSA LIZACIÓN DE LA POLÍTICA PUBLICA DE MUJERES Y EQUIDAD DE GÉNERO,PPMYEG. SEGUN CONTRATO DE PRESTACION DE SERVICIOS PROFESIONALES 077 D E 2021. REEMPLAZA CDP 336 Y CRP 391 POR CONSTITUIRSE OBLIGACIONES POR PAGAR. | I84: Inversión | J84: Un nuevo contrato social y ambiental para la Bogotá del Siglo XXI | K84: 40 | L84: =IF(ISERROR(VLOOKUP(K84,[1]Proposito_programa!$C$2:$E$59,2,FALSE))," ",VLOOKUP(K84,[1]Proposito_programa!$C$2:$E$59,2,FALSE)) -> Más mujeres viven una vida libre de violencias, se sienten seguras y acceden con confianza al sistema de justicia | M84: =IF(ISERROR(VLOOKUP(K84,[1]Proposito_programa!$C$2:$E$59,3,FALSE))," ",VLOOKUP(K84,[1]Proposito_programa!$C$2:$E$59,3,FALSE)) -> Propósito 3: Inspirar confianza y legitimidad para vivir sin miedo y ser epicentro de cultura ciudadana, paz y reconciliación | N84: 2057 | P84: 1085336829 | Q84: MARIA PAULA VALLEJO ARTEAGA | R84: Persona Natural | V84: 0 | X84: 0 | Z84: 7574667 | AA84: 7574667 | AB84: 7574667 | AC84: 2021-03-19 | AD84: 2021-03-23 | AE84: 2022-01-22 | AF84: 322 | AG84: 1 | AH84: 22 | AM84: Terminado | AN84: 1
A85: 079-2021 | B85: 2021 | C85: FDLBU-CD-106-2021 | D85: https://community.secop.gov.co/Public/Tendering/ContractNoticePhases/View?PPI=CO1.PPI.12377765&isFromPublicArea=True&isModal=False | E85: Contratos de prestación de servicios profesionales y de apoyo a la gestión | F85: Contratación directa | G85: Prestación de servicios profesionales y de apoyo a la gestión, o para la ejecución de trabajos artísticos que sólo puedan encomendarse a determinadas personas naturales | H85: PRESTAR SUS SERVICIOS DE APOYO PARA APOYAR LA GESTIÓN DOCUMENTAL DE LA ALCALDÍA LOCAL EN LA IMPLEMENTACIÓN DE LOS PROCESOS DE CLASIF ICACIÓN, ORDENACIÓN, SELECCIÓN NATURAL, FOLIACIÓN, IDENTIFICACIÓN, LEVANTAMIENTO DE INVENTARIOS, ALMACENAMIENTO Y APLICACIÓN DE PROT OCOLOS DE ELIMINACIÓN Y TRANSFERENCIAS. SEGUN CONTRATO DE PRESTACION DE SERVICIOS DE APOYO A LA GESTION 079 DE 2021. REEMPLAZA CDP 3 00 Y CRP 377 POR CONSTITUIRSE OBLIGACIONES POR PAGAR. | I85: Inversión | J85: Un nuevo contrato social y ambiental para la Bogotá del Siglo XXI | K85: 57 | L85: =IF(ISERROR(VLOOKUP(K85,[1]Proposito_programa!$C$2:$E$59,2,FALSE))," ",VLOOKUP(K85,[1]Proposito_programa!$C$2:$E$59,2,FALSE)) -> Gestión pública local | M85: =IF(ISERROR(VLOOKUP(K85,[1]Proposito_programa!$C$2:$E$59,3,FALSE))," ",VLOOKUP(K85,[1]Proposito_programa!$C$2:$E$59,3,FALSE)) -> Propósito 5: Construir Bogotá - Región con gobierno abierto, transparente y ciudadanía consciente | N85: 2143 | P85: 80246449 | Q85: DIEGO ANDRES SORA CORTES | R85: Persona Natural | V85: 0 | X85: 0 | Z85: 3633600 | AA85: 3633600 | AB85: 3633600 | AC85: 2021-03-17 | AD85: 2021-03-19 | AE85: 2022-01-18 | AF85: 318 | AG85: 1 | AH85: 18 | AM85: Terminado | AN85: 1
A86: 081-2021 | B86: 2021 | C86: FDLBUCD-151-2021 | D86: https://community.secop.gov.co/Public/Tendering/ContractNoticePhases/View?PPI=CO1.PPI.12494874&isFromPublicArea=True&isModal=False | E86: Contratos de prestación de servicios profesionales y de apoyo a la gestión | F86: Contratación directa | G86: Prestación de servicios profesionales y de apoyo a la gestión, o para la ejecución de trabajos artísticos que sólo puedan encomendarse a determinadas personas naturales | H86: APOYAR AL ALCALDE LOCAL EN LA GESTIÓN DE LOS ASUNTOS RELACIONADOS CON SEGURIDAD CIUDADANA, CONVIVENCIA Y PREVENCIÓN DE CONFLICTIVID ADES, VIOLENCIAS Y DELITOS EN LA LOCALIDAD, DE CONFORMIDAD CON EL MARCO NORMATIVO APLICABLE EN LA MATERIA. SEGUN CONTRATO DE PRESTAC ION DE SERVICIOS PROFESIONALES 081 DE 2021. REEMPLAZA CDP 365 Y CRP 383 POR CONSTITUIRSE OBLIGACIONES POR PAGAR. | I86: Inversión | J86: Un nuevo contrato social y ambiental para la Bogotá del Siglo XXI | K86: 43 | L86: =IF(ISERROR(VLOOKUP(K86,[1]Proposito_programa!$C$2:$E$59,2,FALSE))," ",VLOOKUP(K86,[1]Proposito_programa!$C$2:$E$59,2,FALSE)) -> Cultura ciudadana para la confianza, la convivencia y la participación desde la vida cotidiana | M86: =IF(ISERROR(VLOOKUP(K86,[1]Proposito_programa!$C$2:$E$59,3,FALSE))," ",VLOOKUP(K86,[1]Proposito_programa!$C$2:$E$59,3,FALSE)) -> Propósito 3: Inspirar confianza y legitimidad para vivir sin miedo y ser epicentro de cultura ciudadana, paz y reconciliación | N86: 2149 | P86: 79556340 | Q86: LUIS BASILIO GUTIERREZ SAENZ | R86: Persona Natural | V86: 0 | X86: 0 | Z86: 7484400 | AA86: 7484400 | AB86: 7484400 | AC86: 2021-03-18 | AD86: 2021-03-19 | AE86: 2022-01-03 | AF86: 375 | AG86: 1 | AH86: 3 | AM86: Terminado | AN86: 1
A87: 083-2021 | B87: 2021 | C87: FDLBUCD-149-2021 | D87: https://community.secop.gov.co/Public/Tendering/ContractNoticePhases/View?PPI=CO1.PPI.12464985&isFromPublicArea=True&isModal=False | E87: Contratos de prestación de servicios profesionales y de apoyo a la gestión | F87: Contratación directa | G87: Prestación de servicios profesionales y de apoyo a la gestión, o para la ejecución de trabajos artísticos que sólo puedan encomendarse a determinadas personas naturales | H87: PRESTAR SERVICIOS PROFESIONALES ESPECIALIZADOS DE ASESORÍA JURÍDICA Y ADMINISTRATIVA A LA ALCALDÍA LOCAL DE BARRIOS UNIDOS, EN LA RE VISIÓN Y SEGUIMIENTO DE LOS DOCUMENTOS EMITIDOS POR LAS ÁREAS DE GESTIÓN DEL DESARROLLO LOCAL Y POLICIVO, BRINDANDO ADICIONALMENTE L OS ANÁLISIS Y RECOMENDACIONES A QUE HAYA LUGAR. SEGUN CONTRATO DE PRESTACION DE SERVICIOS PROFESIONALES 083 DE 2021. REEMPLAZA CDP 3 62 Y CRP 382 POR CONSTITUIRSE OBLIGACIONES POR PAGAR. | I87: Inversión | J87: Un nuevo contrato social y ambiental para la Bogotá del Siglo XXI | K87: 57 | L87: =IF(ISERROR(VLOOKUP(K87,[1]Proposito_programa!$C$2:$E$59,2,FALSE))," ",VLOOKUP(K87,[1]Proposito_programa!$C$2:$E$59,2,FALSE)) -> Gestión pública local | M87: =IF(ISERROR(VLOOKUP(K87,[1]Proposito_programa!$C$2:$E$59,3,FALSE))," ",VLOOKUP(K87,[1]Proposito_programa!$C$2:$E$59,3,FALSE)) -> Propósito 5: Construir Bogotá - Región con gobierno abierto, transparente y ciudadanía consciente | N87: 2143 | P87: 52429376 | Q87: ANGELICA MARIA RICO SANCHEZ | R87: Persona Natural | V87: 0 | X87: 0 | Z87: 8580000 | AA87: 8580000 | AB87: 8580000 | AC87: 2021-03-18 | AD87: 2021-03-19 | AE87: 2022-01-03 | AF87: 375 | AG87: 1 | AH87: 3 | AM87: Terminado | AN87: 1
A88: 084-2021 | B88: 2021 | C88: FDLBUCD-111-2021 | D88: https://community.secop.gov.co/Public/Tendering/ContractNoticePhases/View?PPI=CO1.PPI.12396834&isFromPublicArea=True&isModal=False | E88: Contratos de prestación de servicios profesionales y de apoyo a la gestión | F88: Contratación directa | G88: Prestación de servicios profesionales y de apoyo a la gestión, o para la ejecución de trabajos artísticos que sólo puedan encomendarse a determinadas personas naturales | H88: PRESTAR SERVICIOS PROFESIONALES PARA APOYAR AL ÁREA GESTIÓN DEL DESARROLLO ADMINISTRATIVO Y FINANCIERO EN LOS ASUNTOS RELATIVOS A LA PLANEACIÓN LOCAL: COORDINAR Y GARANTIZAR LA IMPLEMENTACIÓN Y SEGUIMIENTO DE LOS PROCESOS, PROYECTOS Y PROCEDIMIENTOS DE CONTRATOS S USCRITOS POR LA ALCALDÍA LOCAL DE BARRIOS UNIDOS DIRIGIDOS AL CUMPLIMIENTO DE LAS META DE PREVENCIÓN DEL EMBARAZO ADOLESCENTE NO DES EADO. SEGUN CONTRATO DE PRESTACION DE SERVICIOS PROFESIONALES 084 DE 2021. REEMPLAZA CDP 367 Y CRP 386 POR CONSTITUIRSE OBLIGACIONES POR PAGAR. | I88: Inversión | J88: Un nuevo contrato social y ambiental para la Bogotá del Siglo XXI | K88: 8 | L88: =IF(ISERROR(VLOOKUP(K88,[1]Proposito_programa!$C$2:$E$59,2,FALSE))," ",VLOOKUP(K88,[1]Proposito_programa!$C$2:$E$59,2,FALSE)) -> Prevención y atención de maternidad temprana | M88: =IF(ISERROR(VLOOKUP(K88,[1]Proposito_programa!$C$2:$E$59,3,FALSE))," ",VLOOKUP(K88,[1]Proposito_programa!$C$2:$E$59,3,FALSE)) -> Propósito 1: Hacer un nuevo contrato social para incrementar la inclusión social, productiva y política | N88: 2151 | P88: 52271959 | Q88: PAOLA DEL ROSARIO COLINA DIAZ | R88: Persona Natural | V88: 0 | X88: 0 | Z88: 6555000 | AA88: 6555000 | AB88: 6555000 | AC88: 2021-03-18 | AD88: 2021-03-23 | AE88: 2022-01-15 | AF88: 293 | AG88: 1 | AH88: 23 | AM88: Terminado | AN88: 1
A89: 086-2021 | B89: 2021 | C89: FDLBU-CD-029-2021 | D89: https://community.secop.gov.co/Public/Tendering/ContractNoticePhases/View?PPI=CO1.PPI.12378330&isFromPublicArea=True&isModal=False | E89: Contratos de prestación de servicios profesionales y de apoyo a la gestión | F89: Contratación directa | G89: Prestación de servicios profesionales y de apoyo a la gestión, o para la ejecución de trabajos artísticos que sólo puedan encomendarse a determinadas personas naturales | H89: ADICIÓN Y PRÓRROGA 01 AL CONTRATO 086-2021 CPS-P (56769) CON OBJETO PRESTAR SUS SERVICIOS PROFESIONALES PARA APOYAR TÉCNICAMENTE LAS DISTINTAS ETAPAS DE LOS PROCESOS DE COMPETENCIA DE LAS INSPECCIONES DE POLICÍA DE LA LOCALIDAD, SEGÚN REPARTO. REEMPLAZA CDP 467 Y CRP 573 POR CONSTITUIRSE OBLIGACIONES POR PAGAR. | I89: Inversión | J89: Un nuevo contrato social y ambiental para la Bogotá del Siglo XXI | K89: 57 | L89: =IF(ISERROR(VLOOKUP(K89,[1]Proposito_programa!$C$2:$E$59,2,FALSE))," ",VLOOKUP(K89,[1]Proposito_programa!$C$2:$E$59,2,FALSE)) -> Gestión pública local | M89: =IF(ISERROR(VLOOKUP(K89,[1]Proposito_programa!$C$2:$E$59,3,FALSE))," ",VLOOKUP(K89,[1]Proposito_programa!$C$2:$E$59,3,FALSE)) -> Propósito 5: Construir Bogotá - Región con gobierno abierto, transparente y ciudadanía consciente | N89: 2143 | P89: 8694817 | Q89: JAIRO ENRIQUE GOMEZ BALLESTAS | R89: Persona Natural | V89: 0 | X89: 0 | Z89: 3831033 | AA89: 3831033 | AB89: 3831033 | AC89: 2021-03-23 | AD89: 2021-03-24 | AE89: 2021-12-23 | AF89: 270 | AG89: 1 | AH89: 90 | AM89: Terminado | AN89: 1
A90: 089-2021 | B90: 2021 | C90: FDLBUCD-124-2021 | D90: https://community.secop.gov.co/Public/Tendering/ContractNoticePhases/View?PPI=CO1.PPI.12463356&isFromPublicArea=True&isModal=False | E90: Contratos de prestación de servicios profesionales y de apoyo a la gestión | F90: Contratación directa | G90: Prestación de servicios profesionales y de apoyo a la gestión, o para la ejecución de trabajos artísticos que sólo puedan encomendarse a determinadas personas naturales | H90: ADICIÓN Y PRÓRROGA 01 AL CONTRATO 089 DE 2021 CON OBJETO PRESTAR SERVICIOS DE APOYO A LA GESTIÓN DEL DESARROLLO EN LA LABOR DE PLANE ACIÓN, EN LAS ACTIVIDADES ENMARCADAS EN EL CUMPLIMIENTO DE LA META DE ACUERDOS EN COMUNIDAD PARA LA VIGENCIA 2021. REEMPLAZA CDP 469 Y CRP 598 POR CONSTITUIRSE OBLIGACIONES POR PAGAR. | I90: Inversión | J90: Un nuevo contrato social y ambiental para la Bogotá del Siglo XXI | K90: 45 | L90: =IF(ISERROR(VLOOKUP(K90,[1]Proposito_programa!$C$2:$E$59,2,FALSE))," ",VLOOKUP(K90,[1]Proposito_programa!$C$2:$E$59,2,FALSE)) -> Espacio público más seguro y construido colectivamente | M90: =IF(ISERROR(VLOOKUP(K90,[1]Proposito_programa!$C$2:$E$59,3,FALSE))," ",VLOOKUP(K90,[1]Proposito_programa!$C$2:$E$59,3,FALSE)) -> Propósito 3: Inspirar confianza y legitimidad para vivir sin miedo y ser epicentro de cultura ciudadana, paz y reconciliación | N90: 2038 | P90: 1000455167 | Q90: LAURA DANIELA BARRETO MOLINA | R90: Persona Natural | V90: 0 | X90: 0 | Z90: 1393033 | AA90: 1393033 | AB90: 1393033 | AC90: 2021-03-18 | AD90: 2021-03-19 | AE90: 2021-12-23 | AF90: 275 | AG90: 1 | AH90: 65 | AM90: Terminado | AN90: 1
A91: 090-2021 | B91: 2021 | C91: FDLBUCD-125-2021 | D91: https://community.secop.gov.co/Public/Tendering/ContractNoticePhases/View?PPI=CO1.PPI.12463394&isFromPublicArea=True&isModal=False | E91: Contratos de prestación de servicios profesionales y de apoyo a la gestión | F91: Contratación directa | G91: Prestación de servicios profesionales y de apoyo a la gestión, o para la ejecución de trabajos artísticos que sólo puedan encomendarse a determinadas personas naturales | H91: ADICIÓN Y PRÓRROGA 01 AL CONTRATO 090-2021 CON OBJETO PRESTAR SERVICIOS DE APOYO A LA GESTIÓN DEL DESARROLLO EN EL ÁREA DE PLANEACIÓ N EN LAS ACTIVIDADES ENMARCADAS EN EL CUMPLIMIENTO DE LA META DE ACUERDOS EN COMUNIDAD PARA LA VIGENCIA 2021. REEMPLAZA CDP 470 Y CR P 596 POR CONSTITUIRSE OBLIGACIONES POR PAGAR. | I91: Inversión | J91: Un nuevo contrato social y ambiental para la Bogotá del Siglo XXI | K91: 45 | L91: =IF(ISERROR(VLOOKUP(K91,[1]Proposito_programa!$C$2:$E$59,2,FALSE))," ",VLOOKUP(K91,[1]Proposito_programa!$C$2:$E$59,2,FALSE)) -> Espacio público más seguro y construido colectivamente | M91: =IF(ISERROR(VLOOKUP(K91,[1]Proposito_programa!$C$2:$E$59,3,FALSE))," ",VLOOKUP(K91,[1]Proposito_programa!$C$2:$E$59,3,FALSE)) -> Propósito 3: Inspirar confianza y legitimidad para vivir sin miedo y ser epicentro de cultura ciudadana, paz y reconciliación | N91: 2038 | P91: 1030595694 | Q91: FABIAN AUGUSTO LEIVA CHAPARRO | R91: Persona Natural | V91: 0 | X91: 0 | Z91: 1817000 | AA91: 1817000 | AB91: 1817000 | AC91: 2021-03-19 | AD91: 2021-03-19 | AE91: 2021-12-30 | AF91: 282 | AG91: 1 | AH91: 72 | AM91: Terminado | AN91: 1
A92: 093-2021 | B92: 2021 | C92: FDLBUCD-084-2021 | D92: https://community.secop.gov.co/Public/Tendering/ContractNoticePhases/View?PPI=CO1.PPI.12312562&isFromPublicArea=True&isModal=False | E92: Contratos de prestación de servicios profesionales y de apoyo a la gestión | F92: Contratación directa | G92: Prestación de servicios profesionales y de apoyo a la gestión, o para la ejecución de trabajos artísticos que sólo puedan encomendarse a determinadas personas naturales | H92: PRESTAR SERVICIOS DE APOYO A LA DE GESTIÓN DEL DESARROLLO EN LAS LABORES DE PLANEACIÓN, CON EL FIN DE LOGRAR EL CUMPLIMIENTO DE LA M ETA DE ACUERDOS EN COMUNIDAD PARA LA VIGENCIA 2021. SEGUN CONTRATO DE PRESTACION DE SERVICIOS DE APOYO A LA GESTION 093 DE 2021. REE MPLAZA CDP 344 Y CRP 410 POR CONSTITUIRSE OBLIGACIONES POR PAGAR. | I92: Inversión | J92: Un nuevo contrato social y ambiental para la Bogotá del Siglo XXI | K92: 45 | L92: =IF(ISERROR(VLOOKUP(K92,[1]Proposito_programa!$C$2:$E$59,2,FALSE))," ",VLOOKUP(K92,[1]Proposito_programa!$C$2:$E$59,2,FALSE)) -> Espacio público más seguro y construido colectivamente | M92: =IF(ISERROR(VLOOKUP(K92,[1]Proposito_programa!$C$2:$E$59,3,FALSE))," ",VLOOKUP(K92,[1]Proposito_programa!$C$2:$E$59,3,FALSE)) -> Propósito 3: Inspirar confianza y legitimidad para vivir sin miedo y ser epicentro de cultura ciudadana, paz y reconciliación | N92: 2038 | P92: 1014213720 | Q92: CAROLINA REALPE MARTINEZ | R92: Persona Natural | V92: 0 | X92: 0 | Z92: 4426133 | AA92: 4426133 | AB92: 4426133 | AC92: 2021-03-26 | AD92: 2021-03-29 | AE92: 2022-01-13 | AF92: 313 | AG92: 1 | AH92: 13 | AM92: Liquidado | AN92: 1
A93: 094-2021 | B93: 2021 | C93: FDLBU-CD-082-2021 | D93: https://community.secop.gov.co/Public/Tendering/ContractNoticePhases/View?PPI=CO1.PPI.12462673&isFromPublicArea=True&isModal=False | E93: Contratos de prestación de servicios profesionales y de apoyo a la gestión | F93: Contratación directa | G93: Prestación de servicios profesionales y de apoyo a la gestión, o para la ejecución de trabajos artísticos que sólo puedan encomendarse a determinadas personas naturales | H93: PRESTAR SERVICIOS PROFESIONALES PARA APOYAR AL ÁREA GESTIÓN DEL DESARROLLO ADMINISTRATIVO Y FINANCIERO EN LOS ASUNTOS RELATIVOS A LA PLANEACIÓN LOCAL: LIDERAR Y GARANTIZAR LA IMPLEMENTACIÓN Y SEGUIMIENTO DE LOS PROCESOS, PROYECTOS Y PROCEDIMIENTOS DE CONTRATOS SUS CRITOS POR LA ALCALDÍA LOCAL DE BARRIOS UNIDOS DIRIGIDOS AL CUMPLIMIENTO DE LAS METAS DE IMPULSEMOS ECONOMÍA LOCAL. SEGUN CONTRATO D E PRESTACION DE SERVICIOS PROFESIONALES 094 DE 2021. REEMPLAZA CDP 357 Y CRP 404 POR CONSTITUIRSE OBLIGACIONES POR PAGAR. | I93: Inversión | J93: Un nuevo contrato social y ambiental para la Bogotá del Siglo XXI | K93: 6 | L93: =IF(ISERROR(VLOOKUP(K93,[1]Proposito_programa!$C$2:$E$59,2,FALSE))," ",VLOOKUP(K93,[1]Proposito_programa!$C$2:$E$59,2,FALSE)) -> Sistema Distrital de Cuidado | M93: =IF(ISERROR(VLOOKUP(K93,[1]Proposito_programa!$C$2:$E$59,3,FALSE))," ",VLOOKUP(K93,[1]Proposito_programa!$C$2:$E$59,3,FALSE)) -> Propósito 1: Hacer un nuevo contrato social para incrementar la inclusión social, productiva y política | N93: 2135 | P93: 7183376 | Q93: DIEGO ANDRES REYES RAMIREZ | R93: Persona Natural | V93: 0 | X93: 0 | Z93: 7495500 | AA93: 7495500 | AB93: 7495500 | AC93: 2021-03-24 | AD93: 2021-03-25 | AE93: 2022-01-15 | AF93: 315 | AG93: 1 | AH93: 15 | AM93: Liquidado | AN93: 1
A94: 095-2021 | B94: 2021 | C94: FDLBUCD-130-2021 | D94: https://community.secop.gov.co/Public/Tendering/ContractNoticePhases/View?PPI=CO1.PPI.12531960&isFromPublicArea=True&isModal=False | E94: Contratos de prestación de servicios profesionales y de apoyo a la gestión | F94: Contratación directa | G94: Prestación de servicios profesionales y de apoyo a la gestión, o para la ejecución de trabajos artísticos que sólo puedan encomendarse a determinadas personas naturales | H94: ADICIÓN Y PRÓRROGA 01 AL CONTRATO 095-2021 “PRESTAR SERVICIOS DE APOYO A LA GESTIÓN DEL DESARROLLO EN LABORES DE PLANEACIÓN EN LAS A CTIVIDADES RELATIVAS A LOS PROYECTOS AMBIENTALES DE LA VIGENCIA 2021 DE LA LÍNEA DE INVERSIONES AMBIENTALES. REEMPLAZA CDP 549 Y CRP 660 POR CONSTITUIRSE OBLIGACIONES POR PAGAR. | I94: Inversión | J94: Un nuevo contrato social y ambiental para la Bogotá del Siglo XXI | K94: 38 | L94: =IF(ISERROR(VLOOKUP(K94,[1]Proposito_programa!$C$2:$E$59,2,FALSE))," ",VLOOKUP(K94,[1]Proposito_programa!$C$2:$E$59,2,FALSE)) -> Ecoeficiencia, reciclaje, manejo de residuos e inclusión de la población recicladora | M94: =IF(ISERROR(VLOOKUP(K94,[1]Proposito_programa!$C$2:$E$59,3,FALSE))," ",VLOOKUP(K94,[1]Proposito_programa!$C$2:$E$59,3,FALSE)) -> Propósito 2 : Cambiar Nuestros Hábitos de Vida para Reverdecer a Bogotá y Adaptarnos y Mitigar la Crisis Climática | N94: 2082 | P94: 1014270393 | Q94: KAREN LIZETH TORRES ECHEVERRI | R94: Persona Natural | V94: 0 | X94: 0 | Z94: 1817000 | AA94: 1817000 | AB94: 1817000 | AC94: 2021-03-23 | AD94: 2021-03-26 | AE94: 2021-12-30 | AF94: 275 | AG94: 1 | AH94: 35 | AM94: Terminado | AN94: 1
A95: 096-2021 | B95: 2021 | C95: FDLBUCD-159-2021 | D95: https://community.secop.gov.co/Public/Tendering/ContractNoticePhases/View?PPI=CO1.PPI.12562934&isFromPublicArea=True&isModal=False | E95: Contratos de prestación de servicios profesionales y de apoyo a la gestión | F95: Contratación directa | G95: Prestación de servicios profesionales y de apoyo a la gestión, o para la ejecución de trabajos artísticos que sólo puedan encomendarse a determinadas personas naturales | H95: ADICIÓN Y PRÓRROGA 01 AL CONTRATO No. 096-2021 CON OBJETO PRESTAR SERVICIOS DE APOYO A LA GESTIÓN DEL DESARROLLO EN LAS LABORES DE P LANEACIÓN REFERENTES A LA REACTIVACIÓN DE LA ECONOMÍA LOCAL. REEMPLAZA CDP 485 Y CRP 603 POR CONSTITUIRSE OBLIGACIONES POR PAGAR. | I95: Inversión | J95: Un nuevo contrato social y ambiental para la Bogotá del Siglo XXI | K95: 6 | L95: =IF(ISERROR(VLOOKUP(K95,[1]Proposito_programa!$C$2:$E$59,2,FALSE))," ",VLOOKUP(K95,[1]Proposito_programa!$C$2:$E$59,2,FALSE)) -> Sistema Distrital de Cuidado | M95: =IF(ISERROR(VLOOKUP(K95,[1]Proposito_programa!$C$2:$E$59,3,FALSE))," ",VLOOKUP(K95,[1]Proposito_programa!$C$2:$E$59,3,FALSE)) -> Propósito 1: Hacer un nuevo contrato social para incrementar la inclusión social, productiva y política | N95: 2135 | P95: 1049624831 | Q95: JULIAN HERNANDO CAMACHO LOPEZ | R95: Persona Natural | V95: 0 | X95: 0 | Z95: 1090200 | AA95: 1090200 | AB95: 1090200 | AC95: 2021-03-24 | AD95: 2021-03-24 | AE95: 2021-12-18 | AF95: 265 | AG95: 1 | AH95: 55 | AM95: Terminado | AN95: 1
A96: 097-2021 | B96: 2021 | C96: FDLBUCD-120-2021 | D96: https://community.secop.gov.co/Public/Tendering/ContractNoticePhases/View?PPI=CO1.PPI.12496876&isFromPublicArea=True&isModal=False | E96: Contratos de prestación de servicios profesionales y de apoyo a la gestión | F96: Contratación directa | G96: Prestación de servicios profesionales y de apoyo a la gestión, o para la ejecución de trabajos artísticos que sólo puedan encomendarse a determinadas personas naturales | H96: PRESTAR SERVICIOS PROFESIONALES PARA APOYAR AL ÁREA GESTIÓN DEL DESARROLLO ADMINISTRATIVO Y FINANCIERO EN LOS ASUNTOS RELATIVOS A LA PLANEACIÓN LOCAL: COORDINAR Y GARANTIZAR LA IMPLEMENTACIÓN Y SEGUIMIENTO DE LOS PROCESOS, PROYECTOS Y PROCEDIMIENTOS DE CONTRATOS S USCRITOS POR LA ALCALDÍA LOCAL DE BARRIOS UNIDOS DIRIGIDOS AL CUMPLIMIENTO DE LAS META DE ACUERDOS EN COMUNIDAD PARA LA VIGENCIA 202 1. SEGUN CONTRATO DE PRESTACION DE SERVICIOS PROFESIONALES 097 DE 2021. REEMPLAZA CDP 368 Y CRP 399 POR CONSTITUIRSE OBLIGACIONES PO R PAGAR. | I96: Inversión | J96: Un nuevo contrato social y ambiental para la Bogotá del Siglo XXI | K96: 45 | L96: =IF(ISERROR(VLOOKUP(K96,[1]Proposito_programa!$C$2:$E$59,2,FALSE))," ",VLOOKUP(K96,[1]Proposito_programa!$C$2:$E$59,2,FALSE)) -> Espacio público más seguro y construido colectivamente | M96: =IF(ISERROR(VLOOKUP(K96,[1]Proposito_programa!$C$2:$E$59,3,FALSE))," ",VLOOKUP(K96,[1]Proposito_programa!$C$2:$E$59,3,FALSE)) -> Propósito 3: Inspirar confianza y legitimidad para vivir sin miedo y ser epicentro de cultura ciudadana, paz y reconciliación | N96: 2038 | P96: 53081665 | Q96: LUZ ADRIANA MUÑOZ MUÑOZ | R96: Persona Natural | V96: 0 | X96: 0 | Z96: 9265500 | AA96: 9265500 | AB96: 9265500 | AC96: 2021-03-23 | AD96: 2021-03-24 | AE96: 2022-01-15 | AF96: 292 | AG96: 1 | AH96: 22 | AM96: Terminado | AN96: 1
A97: 098-2021 | B97: 2021 | C97: FDLBUCD-115-2021 | D97: https://community.secop.gov.co/Public/Tendering/ContractNoticePhases/View?PPI=CO1.PPI.12519096&isFromPublicArea=True&isModal=False | E97: Contratos de prestación de servicios profesionales y de apoyo a la gestión | F97: Contratación directa | G97: Prestación de servicios profesionales y de apoyo a la gestión, o para la ejecución de trabajos artísticos que sólo puedan encomendarse a determinadas personas naturales | H97: ADICIÓN Y PRÓRROGA 01 AL CONTRATO 098-2021 CON OBJETO PRESTAR SERVICIOS DE APOYO A LA GESTIÓN DEL DESARROLLO EN LAS LABORES DE PLANE ACIÓN EN LAS ACTIVIDADES CONCERNIENTES AL PROYECTO IMPULSEMOS ECONOMÍA LOCAL. REEMPLAZA CDP 487 Y CRP 629 POR CONSTITUIRSE OBLIGACIO NES POR PAGAR. | I97: Inversión | J97: Un nuevo contrato social y ambiental para la Bogotá del Siglo XXI | K97: 6 | L97: =IF(ISERROR(VLOOKUP(K97,[1]Proposito_programa!$C$2:$E$59,2,FALSE))," ",VLOOKUP(K97,[1]Proposito_programa!$C$2:$E$59,2,FALSE)) -> Sistema Distrital de Cuidado | M97: =IF(ISERROR(VLOOKUP(K97,[1]Proposito_programa!$C$2:$E$59,3,FALSE))," ",VLOOKUP(K97,[1]Proposito_programa!$C$2:$E$59,3,FALSE)) -> Propósito 1: Hacer un nuevo contrato social para incrementar la inclusión social, productiva y política | N97: 2135 | P97: 79884107 | Q97: ANDRES CAMILO CARDENAS BRAVO | R97: Persona Natural | V97: 0 | X97: 0 | Z97: 2195300 | AA97: 2195300 | AB97: 2195300 | AC97: 2021-03-23 | AD97: 2021-03-25 | AE97: 2021-12-29 | AF97: 275 | AG97: 1 | AH97: 35 | AM97: Terminado | AN97: 1
A98: 099-2021 | B98: 2021 | C98: FDLBUCD-132-2021 | D98: https://community.secop.gov.co/Public/Tendering/ContractNoticePhases/View?PPI=CO1.PPI.12549740&isFromPublicArea=True&isModal=False | E98: Contratos de prestación de servicios profesionales y de apoyo a la gestión | F98: Contratación directa | G98: Prestación de servicios profesionales y de apoyo a la gestión, o para la ejecución de trabajos artísticos que sólo puedan encomendarse a determinadas personas naturales | H98: PRESTAR SERVICIOS DE APOYO A LA GESTIÓN DEL DESARROLLO EN LAS LABORES DE PLANEACIÓN REFERENTES A LA REACTIVACIÓN DE LA ECONOMÍA LOCA L. SEGUN CONTRATO DE PRESTACION DE SERVICIOS DE APOYO A LA GESTION 099 DE 2021. REEMPLAZA CDP 354 Y CRP 467 POR CONSTITUIRSE OBLIGAC IONES POR PAGAR. | I98: Inversión | J98: Un nuevo contrato social y ambiental para la Bogotá del Siglo XXI | K98: 6 | L98: =IF(ISERROR(VLOOKUP(K98,[1]Proposito_programa!$C$2:$E$59,2,FALSE))," ",VLOOKUP(K98,[1]Proposito_programa!$C$2:$E$59,2,FALSE)) -> Sistema Distrital de Cuidado | M98: =IF(ISERROR(VLOOKUP(K98,[1]Proposito_programa!$C$2:$E$59,3,FALSE))," ",VLOOKUP(K98,[1]Proposito_programa!$C$2:$E$59,3,FALSE)) -> Propósito 1: Hacer un nuevo contrato social para incrementar la inclusión social, productiva y política | N98: 2135 | P98: 1030613887 | Q98: JOHN EDISON QUINTANA CASTRO | R98: Persona Natural | V98: 0 | X98: 0 | Z98: 10356900 | AA98: 10356900 | AB98: 10356900 | AC98: 2021-04-17 | AD98: 2021-04-22 | AE98: 2021-11-21 | AF98: 210 | AI98: 1030580941 | AJ98: HARRY ANTONIO LIZARAZO | AK98: 2021-10-08 | AM98: Terminado | AN98: 1
A99: 101-2021 | B99: 2021 | C99: FDLBUCD-123-2021 | D99: https://community.secop.gov.co/Public/Tendering/ContractNoticePhases/View?PPI=CO1.PPI.12570418&isFromPublicArea=True&isModal=False | E99: Contratos de prestación de servicios profesionales y de apoyo a la gestión | F99: Contratación directa | G99: Prestación de servicios profesionales y de apoyo a la gestión, o para la ejecución de trabajos artísticos que sólo puedan encomendarse a determinadas personas naturales | H99: ADICIÓN Y PRÓRROGA 01 AL CONTRATO 101 DE 2021 CON OBJETO PRESTAR SERVICIOS DE APOYO A LA GESTIÓN DEL DESARROLLO EN EL ÁREA DE PLANEA CIÓN EN LAS ACTIVIDADES ENMARCADAS EN EL CUMPLIMIENTO DE LA META DE ACUERDOS EN COMUNIDAD PARA LA VIGENCIA 2021. REEMPLAZA CDP 471 Y CRP 597 POR CONSTITUIRSE OBLIGACIONES POR PAGAR. | I99: Inversión | J99: Un nuevo contrato social y ambiental para la Bogotá del Siglo XXI | K99: 45 | L99: =IF(ISERROR(VLOOKUP(K99,[1]Proposito_programa!$C$2:$E$59,2,FALSE))," ",VLOOKUP(K99,[1]Proposito_programa!$C$2:$E$59,2,FALSE)) -> Espacio público más seguro y construido colectivamente | M99: =IF(ISERROR(VLOOKUP(K99,[1]Proposito_programa!$C$2:$E$59,3,FALSE))," ",VLOOKUP(K99,[1]Proposito_programa!$C$2:$E$59,3,FALSE)) -> Propósito 3: Inspirar confianza y legitimidad para vivir sin miedo y ser epicentro de cultura ciudadana, paz y reconciliación | N99: 2038 | P99: 79750452 | Q99: JORGE SAMUEL RAMOS RAMIREZ | R99: Persona Natural | V99: 0 | X99: 0 | Z99: 1635300 | AA99: 1635300 | AB99: 1635300 | AC99: 2021-03-26 | AD99: 2021-03-30 | AE99: 2021-12-26 | AF99: 268 | AG99: 1 | AH99: 58 | AM99: Terminado | AN99: 1
A100: 102-2021 | B100: 2021 | C100: FDLBUCD-140-2021 | D100: https://community.secop.gov.co/Public/Tendering/ContractNoticePhases/View?PPI=CO1.PPI.12518489&isFromPublicArea=True&isModal=False | E100: Contratos de prestación de servicios profesionales y de apoyo a la gestión | F100: Contratación directa | G100: Prestación de servicios profesionales y de apoyo a la gestión, o para la ejecución de trabajos artísticos que sólo puedan encomendarse a determinadas personas naturales | H100: ADICIÓN Y PRÓRROGA 01 AL CTO 102-2021 CON OBJETO PRESTAR SERVICIOS DE APOYO A LA GESTIO¿N DEL DESARROLLO EN LAS LABORES DE PLANEACIO ¿N RELATIVAS A LOS PROYECTOS AMBIENTALES DE LA VIGENCIA 2021 DE LA LI¿NEA DE INVERSIONES AMBIENTALES SOSTENIBLES. REEMPLAZA CDP 552 Y CRP 668 POR CONSTITUIRSE OBLIGACIONES POR PAGAR. | I100: Inversión | J100: Un nuevo contrato social y ambiental para la Bogotá del Siglo XXI | K100: 38 | L100: =IF(ISERROR(VLOOKUP(K100,[1]Proposito_programa!$C$2:$E$59,2,FALSE))," ",VLOOKUP(K100,[1]Proposito_programa!$C$2:$E$59,2,FALSE)) -> Ecoeficiencia, reciclaje, manejo de residuos e inclusión de la población recicladora | M100: =IF(ISERROR(VLOOKUP(K100,[1]Proposito_programa!$C$2:$E$59,3,FALSE))," ",VLOOKUP(K100,[1]Proposito_programa!$C$2:$E$59,3,FALSE)) -> Propósito 2 : Cambiar Nuestros Hábitos de Vida para Reverdecer a Bogotá y Adaptarnos y Mitigar la Crisis Climática | N100: 2082 | P100: 1012406051 | Q100: ANGIE MILENA FLOREZ MARTINEZ | R100: Persona Natural | V100: 0 | X100: 0 | Z100: 2271000 | AA100: 2271000 | AB100: 2271000 | AC100: 2021-03-26 | AD100: 2021-03-29 | AE100: 2021-12-30 | AF100: 212 | AG100: 1 | AH100: 32 | AM100: Terminado | AN100: 1
A101: 103-2021 | B101: 2021 | C101: FDLBUCD-141-2021 | D101: https://community.secop.gov.co/Public/Tendering/ContractNoticePhases/View?PPI=CO1.PPI.12569343&isFromPublicArea=True&isModal=False | E101: Contratos de prestación de servicios profesionales y de apoyo a la gestión | F101: Contratación directa | G101: Prestación de servicios profesionales y de apoyo a la gestión, o para la ejecución de trabajos artísticos que sólo puedan encomendarse a determinadas personas naturales | H101: ADICIÓN Y PRÓRROGA 01 AL CONTRATO 103-2021 CON OBJETO PRESTAR SERVICIOS DE APOYO A LA GESTIÓN DEL DESARROLLO EN EL ÁREA DE PLANEACIÓ N EN LAS ACTIVIDADES ENMARCADAS EN EL CUMPLIMIENTO DE LA META DE ACUERDOS EN COMUNIDAD PARA LA VIGENCIA 2021. REEMPLAZA CDP 503 Y CR P 688 POR CONSTITUIRSE OBLIGACIONES POR PAGAR. | I101: Inversión | J101: Un nuevo contrato social y ambiental para la Bogotá del Siglo XXI | K101: 45 | L101: =IF(ISERROR(VLOOKUP(K101,[1]Proposito_programa!$C$2:$E$59,2,FALSE))," ",VLOOKUP(K101,[1]Proposito_programa!$C$2:$E$59,2,FALSE)) -> Espacio público más seguro y construido colectivamente | M101: =IF(ISERROR(VLOOKUP(K101,[1]Proposito_programa!$C$2:$E$59,3,FALSE))," ",VLOOKUP(K101,[1]Proposito_programa!$C$2:$E$59,3,FALSE)) -> Propósito 3: Inspirar confianza y legitimidad para vivir sin miedo y ser epicentro de cultura ciudadana, paz y reconciliación | N101: 2038 | P101: 53099827 | Q101: DIANA MARCELA LEMOS NAVARRO | R101: Persona Natural | V101: 0 | X101: 0 | Z101: 1816800 | AA101: 1816800 | AB101: 1816800 | AC101: 2021-03-26 | AD101: 2021-03-29 | AE101: 2021-12-24 | AF101: 266 | AG101: 1 | AH101: 26 | AM101: Terminado | AN101: 1
A102: 105-2021 | B102: 2021 | C102: FDLBUCD-081-2021 | D102: https://community.secop.gov.co/Public/Tendering/ContractNoticePhases/View?PPI=CO1.PPI.12600397&isFromPublicArea=True&isModal=False | E102: Contratos de prestación de servicios profesionales y de apoyo a la gestión | F102: Contratación directa | G102: Prestación de servicios profesionales y de apoyo a la gestión, o para la ejecución de trabajos artísticos que sólo puedan encomendarse a determinadas personas naturales | H102: PRESTAR SERVICIOS DE APOYO A LA DE GESTIÓN DEL DESARROLLO EN LAS LABORES DE PLANEACIÓN, CON EL FIN DE LOGRAR EL CUMPLIMIENTO DE LA M ETA DE IMPULSEMOS ECONOMÍA LOCAL PARA LA VIGENCIA 2021. SEGUN CONTRATO DE PRESTACION DE SERVICIOS DE APOYO A LA GESTION 105 DE 2021. REEMPLAZA CDP 377 Y CRP 413 POR CONSTITUIRSE OBLIGACIONES POR PAGAR. | I102: Inversión | J102: Un nuevo contrato social y ambiental para la Bogotá del Siglo XXI | K102: 6 | L102: =IF(ISERROR(VLOOKUP(K102,[1]Proposito_programa!$C$2:$E$59,2,FALSE))," ",VLOOKUP(K102,[1]Proposito_programa!$C$2:$E$59,2,FALSE)) -> Sistema Distrital de Cuidado | M102: =IF(ISERROR(VLOOKUP(K102,[1]Proposito_programa!$C$2:$E$59,3,FALSE))," ",VLOOKUP(K102,[1]Proposito_programa!$C$2:$E$59,3,FALSE)) -> Propósito 1: Hacer un nuevo contrato social para incrementar la inclusión social, productiva y política | N102: 2135 | P102: 1015416631 | Q102: MONICA LORENA FIERRO NAVARRETE | R102: Persona Natural | V102: 0 | X102: 0 | Z102: 2882133 | AA102: 2882133 | AB102: 2882133 | AC102: 2021-03-26 | AD102: 2021-03-29 | AE102: 2021-12-28 | AF102: 270 | AM102: Terminado | AN102: 1
A103: 107-2021 | B103: 2021 | C103: FDLBUCD-119-2021 | D103: https://community.secop.gov.co/Public/Tendering/ContractNoticePhases/View?PPI=CO1.PPI.12518400&isFromPublicArea=True&isModal=False | E103: Contratos de prestación de servicios profesionales y de apoyo a la gestión | F103: Contratación directa | G103: Prestación de servicios profesionales y de apoyo a la gestión, o para la ejecución de trabajos artísticos que sólo puedan encomendarse a determinadas personas naturales | H103: PRESTAR SERVICIOS PROFESIONALES PARA APOYAR AL ÁREA GESTIÓN DEL DESARROLLO ADMINISTRATIVO Y FINANCIERO EN LOS ASUNTOS RELATIVOS A LA PLANEACIÓN LOCAL: COORDINAR Y GARANTIZAR LA IMPLEMENTACIÓN Y SEGUIMIENTO DE LOS PROCESOS, PROYECTOS Y PROCEDIMIENTOS DE CONTRATOS S USCRITOS POR LA ALCALDÍA LOCAL DE BARRIOS UNIDOS DIRIGIDOS AL CUMPLIMIENTO DE LAS METAS DE PROYECTOS INTEGRALES DE EDUCACIÓN Y DOTAC IÓN DE CASA DE LA JUVENTUD. SEGUN CONTRATO DE PRESTACION DE SERVICIOS PROFESIONALES 107 DE 2021. REEMPLAZA CDP 375 Y CRP 427 POR CON STITUIRSE OBLIGACIONES POR PAGAR. | I103: Inversión | J103: Un nuevo contrato social y ambiental para la Bogotá del Siglo XXI | K103: 12 | L103: =IF(ISERROR(VLOOKUP(K103,[1]Proposito_programa!$C$2:$E$59,2,FALSE))," ",VLOOKUP(K103,[1]Proposito_programa!$C$2:$E$59,2,FALSE)) -> Educación inicial: Bases sólidas para la vida. | M103: =IF(ISERROR(VLOOKUP(K103,[1]Proposito_programa!$C$2:$E$59,3,FALSE))," ",VLOOKUP(K103,[1]Proposito_programa!$C$2:$E$59,3,FALSE)) -> Propósito 1: Hacer un nuevo contrato social para incrementar la inclusión social, productiva y política | N103: 2026 | P103: 1030633303 | Q103: LAURA ALEJANDRA NARANJO MORENO | R103: Persona Natural | V103: 0 | X103: 0 | Z103: 6555000 | AA103: 6555000 | AB103: 6555000 | AC103: 2021-03-30 | AD103: 2021-03-31 | AE103: 2022-01-15 | AF103: 300 | AG103: 1 | AH103: 15 | AM103: Terminado | AN103: 1
A104: 108-2021 | B104: 2021 | C104: FDLBUCD-142-2021 | D104: https://community.secop.gov.co/Public/Tendering/ContractNoticePhases/View?PPI=CO1.PPI.12644600&isFromPublicArea=True&isModal=False | E104: Contratos de prestación de servicios profesionales y de apoyo a la gestión | F104: Contratación directa | G104: Prestación de servicios profesionales y de apoyo a la gestión, o para la ejecución de trabajos artísticos que sólo puedan encomendarse a determinadas personas naturales | H104: PRESTAR SERVICIOS DE APOYO A LA GESTIÓN DEL DESARROLLO EN EL ÁREA DE PLANEACIÓN EN LAS ACTIVIDADES ENMARCADAS EN EL CUMPLIMIENTO DE LA META DE ACUERDOS EN COMUNIDAD PARA LA VIGENCIA 2021. SEGUN CESION DEL CONTRATO DE PRESTACION DE SERVICIOS DE APOYO A LA GESTION 1 08 DE 2021. REEMPLAZA CDP 343 Y CRP 552 POR CONSTITUIRSE OBLIGACIONES POR PAGAR. | I104: Inversión | J104: Un nuevo contrato social y ambiental para la Bogotá del Siglo XXI | K104: 45 | L104: =IF(ISERROR(VLOOKUP(K104,[1]Proposito_programa!$C$2:$E$59,2,FALSE))," ",VLOOKUP(K104,[1]Proposito_programa!$C$2:$E$59,2,FALSE)) -> Espacio público más seguro y construido colectivamente | M104: =IF(ISERROR(VLOOKUP(K104,[1]Proposito_programa!$C$2:$E$59,3,FALSE))," ",VLOOKUP(K104,[1]Proposito_programa!$C$2:$E$59,3,FALSE)) -> Propósito 3: Inspirar confianza y legitimidad para vivir sin miedo y ser epicentro de cultura ciudadana, paz y reconciliación | N104: 2038 | P104: 1016070013 | Q104: INGRID MARITZA MORENO AGREDO | R104: Persona Natural | V104: 0 | X104: 0 | Z104: 3255100 | AA104: 3255100 | AB104: 3255100 | AC104: 2021-03-30 | AD104: 2021-04-09 | AE104: 2022-01-13 | AF104: 275 | AG104: 1 | AH104: 35 | AI104: 1032360774 | AJ104: ANDRES SANTAMARIA MERCADO | AK104: 2021-01-28 | AM104: Liquidado | AN104: 1
A105: 109-2021 | B105: 2021 | C105: FDLBUCD-160-2021 | D105: https://community.secop.gov.co/Public/Tendering/ContractNoticePhases/View?PPI=CO1.PPI.12646986&isFromPublicArea=True&isModal=False | E105: Contratos de prestación de servicios profesionales y de apoyo a la gestión | F105: Contratación directa | G105: Prestación de servicios profesionales y de apoyo a la gestión, o para la ejecución de trabajos artísticos que sólo puedan encomendarse a determinadas personas naturales | H105: PRESTAR SERVICIOS DE APOYO A LA GESTIÓN DEL DESARROLLO EN EL ÁREA DE PLANEACIÓN EN LAS ACTIVIDADES ENMARCADAS EN EL CUMPLIMIENTO DE LA META DE ACUERDOS EN COMUNIDAD PARA LA VIGENCIA 2021. SEGUN CONTRATO DE PRESTACION DE SERVICIOS DE APOYO A LA GESTION 109 DE 2021. REEMPLAZA CDP 343 Y CRP 426 POR CONSTITUIRSE OBLIGACIONES POR PAGAR. | I105: Inversión | J105: Un nuevo contrato social y ambiental para la Bogotá del Siglo XXI | K105: 45 | L105: =IF(ISERROR(VLOOKUP(K105,[1]Proposito_programa!$C$2:$E$59,2,FALSE))," ",VLOOKUP(K105,[1]Proposito_programa!$C$2:$E$59,2,FALSE)) -> Espacio público más seguro y construido colectivamente | M105: =IF(ISERROR(VLOOKUP(K105,[1]Proposito_programa!$C$2:$E$59,3,FALSE))," ",VLOOKUP(K105,[1]Proposito_programa!$C$2:$E$59,3,FALSE)) -> Propósito 3: Inspirar confianza y legitimidad para vivir sin miedo y ser epicentro de cultura ciudadana, paz y reconciliación | N105: 2038 | P105: 79983036 | Q105: JOHN ALEXANDER SUAREZ SALGUERO | R105: Persona Natural | V105: 0 | X105: 0 | Z105: 2271000 | AA105: 2271000 | AB105: 2271000 | AC105: 2021-03-31 | AD105: 2021-04-05 | AE105: 2021-12-30 | AF105: 266 | AG105: 1 | AH105: 26 | AM105: Terminado | AN105: 1
A106: 110-2021 | B106: 2021 | C106: FDLBUCD-165-2021 | D106: https://community.secop.gov.co/Public/Tendering/ContractNoticePhases/View?PPI=CO1.PPI.12652874&isFromPublicArea=True&isModal=False | E106: Contratos de prestación de servicios profesionales y de apoyo a la gestión | F106: Contratación directa | G106: Prestación de servicios profesionales y de apoyo a la gestión, o para la ejecución de trabajos artísticos que sólo puedan encomendarse a determinadas personas naturales | H106: PRESTAR SERVICIOS PROFESIONALES PARA APOYAR AL ÁREA GESTIÓN DEL DESARROLLO ADMINISTRATIVO Y FINANCIERO EN LOS ASUNTOS RELATIVOS A LA PLANEACIÓN LOCAL: COORDINAR Y GARANTIZAR LA IMPLEMENTACIÓN Y SEGUIMIENTO DE LOS PROCESOS, PROYECTOS Y PROCEDIMIENTOS DE CONTRATOS S USCRITOS POR LA ALCALDÍA LOCAL DE BARRIOS UNIDOS DIRIGIDOS AL CUMPLIMIENTO DE LAS METAS DE DEPORTE, RECREACIÓN Y CULTURA PARA EL DES ARROLLO SOCIAL. SEGUN CONTRATO DE PRESTACION DE SERVICIOS PROFESIONALES 110 DE 2021. REEMPLAZA CDP 397 Y CRP 424 POR CONSTITUIRSE OB LIGACIONES POR PAGAR. | I106: Inversión | J106: Un nuevo contrato social y ambiental para la Bogotá del Siglo XXI | K106: 21 | L106: =IF(ISERROR(VLOOKUP(K106,[1]Proposito_programa!$C$2:$E$59,2,FALSE))," ",VLOOKUP(K106,[1]Proposito_programa!$C$2:$E$59,2,FALSE)) -> Creación y vida cotidiana: Apropiación ciudadana del arte, la cultura y el patrimonio, para la democracia cultural | M106: =IF(ISERROR(VLOOKUP(K106,[1]Proposito_programa!$C$2:$E$59,3,FALSE))," ",VLOOKUP(K106,[1]Proposito_programa!$C$2:$E$59,3,FALSE)) -> Propósito 1: Hacer un nuevo contrato social para incrementar la inclusión social, productiva y política | N106: 2012 | P106: 79881374 | Q106: ELKIN ANDRES MARTINEZ SALGADO | R106: Persona Natural | V106: 0 | X106: 0 | Z106: 7650000 | AA106: 7650000 | AB106: 7650000 | AC106: 2021-03-30 | AD106: 2021-03-31 | AE106: 2021-12-30 | AF106: 285 | AG106: 1 | AH106: 15 | AM106: Terminado | AN106: 1
A107: 111-2021 | B107: 2021 | C107: FDLBUCD-080-2021 | D107: https://community.secop.gov.co/Public/Tendering/ContractNoticePhases/View?PPI=CO1.PPI.12580950&isFromPublicArea=True&isModal=False | E107: Contratos de prestación de servicios profesionales y de apoyo a la gestión | F107: Contratación directa | G107: Prestación de servicios profesionales y de apoyo a la gestión, o para la ejecución de trabajos artísticos que sólo puedan encomendarse a determinadas personas naturales | H107: ADICIÓN Y PRÓRROGA 01 AL CONTRATO 111 DE 2021 CON OBJETO PRESTAR SERVICIOS DE APOYO A LA GESTIÓN DEL DESARROLLO EN LAS LABORES DE PL ANEACIÓN REFERENTES A LA REACTIVACIÓN DE LA ECONOMÍA LOCAL. REEMPLAZA CDP 489 Y CRP 601 POR CONSTITUIRSE OBLIGACIONES POR PAGAR. | I107: Inversión | J107: Un nuevo contrato social y ambiental para la Bogotá del Siglo XXI | K107: 6 | L107: =IF(ISERROR(VLOOKUP(K107,[1]Proposito_programa!$C$2:$E$59,2,FALSE))," ",VLOOKUP(K107,[1]Proposito_programa!$C$2:$E$59,2,FALSE)) -> Sistema Distrital de Cuidado | M107: =IF(ISERROR(VLOOKUP(K107,[1]Proposito_programa!$C$2:$E$59,3,FALSE))," ",VLOOKUP(K107,[1]Proposito_programa!$C$2:$E$59,3,FALSE)) -> Propósito 1: Hacer un nuevo contrato social para incrementar la inclusión social, productiva y política | N107: 2135 | P107: 1030648943 | Q107: KARLA ANDREA TARAZONA RAMIREZ | R107: Persona Natural | V107: 0 | X107: 0 | Z107: 1817000 | AA107: 1817000 | AB107: 1817000 | AC107: 2021-03-31 | AD107: 2021-04-16 | AE107: 2021-12-30 | AF107: 255 | AG107: 1 | AH107: 45 | AI107: 1015422650 | AJ107: CARLOS ANDRES VALLEJO BARRETO | AK107: 2021-04-16 | AM107: Terminado | AN107: 1
A108: 112-2021 | B108: 2021 | C108: FDLBUCD-104-2021 | D108: https://community.secop.gov.co/Public/Tendering/ContractNoticePhases/View?PPI=CO1.PPI.12658736&isFromPublicArea=True&isModal=False | E108: Contratos de prestación de servicios profesionales y de apoyo a la gestión | F108: Contratación directa | G108: Prestación de servicios profesionales y de apoyo a la gestión, o para la ejecución de trabajos artísticos que sólo puedan encomendarse a determinadas personas naturales | H108: PRESTAR SERVICIOS PROFESIONALES EN EL ÁREA DE GESTIÓN DEL.DESARROLLO EN LA TERRITORIALIZACIÓN DE LA INVERSIÓN Y EL MANEJO DE LOS SIS TEMAS DE INFORMACIÓN GEORREFERENCIALES. SEGUN CONTRATO DE PRESTACION DE SERVICIOS PROFESIONALES 112 DE 2021. REEMPLAZA CDP 350 Y CRP 455 POR CONSTITUIRSE OBLIGACIONES POR PAGAR. | I108: Inversión | J108: Un nuevo contrato social y ambiental para la Bogotá del Siglo XXI | K108: 49 | L108: =IF(ISERROR(VLOOKUP(K108,[1]Proposito_programa!$C$2:$E$59,2,FALSE))," ",VLOOKUP(K108,[1]Proposito_programa!$C$2:$E$59,2,FALSE)) -> Movilidad segura, sostenible y accesible | M108: =IF(ISERROR(VLOOKUP(K108,[1]Proposito_programa!$C$2:$E$59,3,FALSE))," ",VLOOKUP(K108,[1]Proposito_programa!$C$2:$E$59,3,FALSE)) -> Propósito 4: Hacer de Bogotá Región un modelo de movilidad multimodal, incluyente y sostenible | N108: 2022 | P108: 79535548 | Q108: PABLO GIOVANNY PARRA PINEDA | R108: Persona Natural | V108: 0 | X108: 0 | Z108: 8527200 | AA108: 8527200 | AB108: 8527200 | AC108: 2021-04-14 | AD108: 2021-04-15 | AE108: 2022-01-14 | AF108: 314 | AG108: 1 | AH108: 14 | AM108: Liquidado | AN108: =IF(ISERROR(AB108/AA108),"-",(AB108/AA108)) -> 1
A109: 113-2021 | B109: 2021 | C109: FDLBUCD-133-2021 | D109: https://community.secop.gov.co/Public/Tendering/ContractNoticePhases/View?PPI=CO1.PPI.12549848&isFromPublicArea=True&isModal=False | E109: Contratos de prestación de servicios profesionales y de apoyo a la gestión | F109: Contratación directa | G109: Prestación de servicios profesionales y de apoyo a la gestión, o para la ejecución de trabajos artísticos que sólo puedan encomendarse a determinadas personas naturales | H109: PRESTAR SERVICIOS DE APOYO A LA GESTIÓN DEL DESARROLLO EN LAS LABORES DE PLANEACIÓN REFERENTES A LA REACTIVACIÓN DE LA ECONOMÍA LOCA L. SEGUN CONTRATO DE PRESTACION DE SERVICIOS DE APOYO A LA GESTION 113 DE 2021. REEMPLAZA CDP 354 Y CRP 428 POR CONSTITUIRSE OBLIGAC IONES POR PAGAR. | I109: Inversión | J109: Un nuevo contrato social y ambiental para la Bogotá del Siglo XXI | K109: 6 | L109: =IF(ISERROR(VLOOKUP(K109,[1]Proposito_programa!$C$2:$E$59,2,FALSE))," ",VLOOKUP(K109,[1]Proposito_programa!$C$2:$E$59,2,FALSE)) -> Sistema Distrital de Cuidado | M109: =IF(ISERROR(VLOOKUP(K109,[1]Proposito_programa!$C$2:$E$59,3,FALSE))," ",VLOOKUP(K109,[1]Proposito_programa!$C$2:$E$59,3,FALSE)) -> Propósito 1: Hacer un nuevo contrato social para incrementar la inclusión social, productiva y política | N109: 2135 | P109: 1101687331 | Q109: PABLO LEONARDO TORRES SARMIENTO | R109: Persona Natural | V109: 0 | X109: 0 | Z109: 363400 | AA109: =+W109+X109+Z109 -> 363400 | AB109: 363400 | AC109: 2021-03-31 | AD109: 2021-05-07 | AE109: 2021-12-06 | AF109: 210 | AM109: Terminado | AN109: 1
A110: 114-2021 | B110: 2021 | C110: FDLBUCD-146-2021 | D110: https://community.secop.gov.co/Public/Tendering/ContractNoticePhases/View?PPI=CO1.PPI.12838922&isFromPublicArea=True&isModal=False | E110: Contratos de prestación de servicios profesionales y de apoyo a la gestión | F110: Contratación directa | G110: Prestación de servicios profesionales y de apoyo a la gestión, o para la ejecución de trabajos artísticos que sólo puedan encomendarse a determinadas personas naturales | H110: PRESTAR SERVICIOS DE APOYO A LA GESTIÓN DEL DESARROLLO EN EL ÁREA DE PLANEACIÓN EN LAS ACTIVIDADES ENMARCADAS EN EL CUMPLIMIENTO DE LA META DE ACUERDOS EN COMUNIDAD PARA LA VIGENCIA 2021. SEGUN CONTRATO DE PRESTACION DE SERVICIOS DE APOYO A LA GESTION 114 DE 2021. REEMPLAZA CDP 343 Y CRP 458 POR CONSTITUIRSE OBLIGACIONES POR PAGAR. | I110: Inversión | J110: Un nuevo contrato social y ambiental para la Bogotá del Siglo XXI | K110: 45 | L110: =IF(ISERROR(VLOOKUP(K110,[1]Proposito_programa!$C$2:$E$59,2,FALSE))," ",VLOOKUP(K110,[1]Proposito_programa!$C$2:$E$59,2,FALSE)) -> Espacio público más seguro y construido colectivamente | M110: =IF(ISERROR(VLOOKUP(K110,[1]Proposito_programa!$C$2:$E$59,3,FALSE))," ",VLOOKUP(K110,[1]Proposito_programa!$C$2:$E$59,3,FALSE)) -> Propósito 3: Inspirar confianza y legitimidad para vivir sin miedo y ser epicentro de cultura ciudadana, paz y reconciliación | N110: 2038 | P110: 1015439630 | Q110: OSCAR EDUARDO NIVIA SEGURA | R110: Persona Natural | V110: 0 | X110: 0 | Z110: 1968200 | AA110: 1968200 | AB110: 1968200 | AC110: 2021-04-15 | AD110: 2021-04-20 | AE110: 2021-12-26 | AF110: 247 | AG110: 1 | AH110: 7 | AM110: Terminado | AN110: 1
A111: 115-2021 | B111: 2021 | C111: FDLBUCD-138-2021 | D111: https://community.secop.gov.co/Public/Tendering/ContractNoticePhases/View?PPI=CO1.PPI.12562831&isFromPublicArea=True&isModal=False | E111: Contratos de prestación de servicios profesionales y de apoyo a la gestión | F111: Contratación directa | G111: Prestación de servicios profesionales y de apoyo a la gestión, o para la ejecución de trabajos artísticos que sólo puedan encomendarse a determinadas personas naturales | H111: PRESTAR SERVICIOS PROFESIONALES PARA APOYAR AL ÁREA GESTIÓN DEL DESARROLLO ADMINISTRATIVO Y FINANCIERO EN LOS ASUNTOS RELATIVOS A LA PLANEACIÓN LOCAL: COORDINAR Y GARANTIZAR LA IMPLEMENTACIÓN Y SEGUIMIENTO DE LOS PROCESOS, PROYECTOS Y PROCEDIMIENTOS DE CONTRATOS S USCRITOS POR LA ALCALDÍA LOCAL DE BARRIOS UNIDOS DIRIGIDOS AL CUMPLIMIENTO DE LAS META DE PARTICIPACIÓN DÍALOGOS PARA CRECER Y PARTI CIPAR. SEGUN CONTRATO DE PRESTACION DE SERVICIOS PROFESIONALES 115 DE 2021 REEMPLAZA CDP 373 Y CRP 432 POR CONSTITUIRSE OBLIGACIONES POR PAGAR. | I111: Inversión | J111: Un nuevo contrato social y ambiental para la Bogotá del Siglo XXI | K111: 55 | L111: =IF(ISERROR(VLOOKUP(K111,[1]Proposito_programa!$C$2:$E$59,2,FALSE))," ",VLOOKUP(K111,[1]Proposito_programa!$C$2:$E$59,2,FALSE)) -> Fortalecimiento de cultura ciudadana y su institucionalidad | M111: =IF(ISERROR(VLOOKUP(K111,[1]Proposito_programa!$C$2:$E$59,3,FALSE))," ",VLOOKUP(K111,[1]Proposito_programa!$C$2:$E$59,3,FALSE)) -> Propósito 5: Construir Bogotá - Región con gobierno abierto, transparente y ciudadanía consciente | N111: 2141 | P111: 1030602538 | Q111: ANGIE PAOLA TORRES SERRATO | R111: Persona Natural | V111: 0 | X111: 0 | Z111: 9008333 | AA111: 9008333 | AB111: 9008333 | AC111: 2021-04-08 | AD111: 2021-04-08 | AE111: 2022-01-20 | AF111: 305 | AG111: 1 | AH111: 20 | AM111: Liquidado | AN111: 1
A112: 116-2021 | B112: 2021 | C112: FDLBUCD-110-2021 | D112: https://community.secop.gov.co/Public/Tendering/ContractNoticePhases/View?PPI=CO1.PPI.12653922&isFromPublicArea=True&isModal=False | E112: Contratos de prestación de servicios profesionales y de apoyo a la gestión | F112: Contratación directa | G112: Prestación de servicios profesionales y de apoyo a la gestión, o para la ejecución de trabajos artísticos que sólo puedan encomendarse a determinadas personas naturales | H112: PRESTAR SERVICIOS DE APOYO A LA DE GESTIÓN DEL DESARROLLO EN LAS LABORES DE PLANEACIÓN, CON EL FIN DE LOGRAR EL CUMPLIMIENTO DE LA M ETA DE ACUERDOS EN COMUNIDAD PARA LA VIGENCIA 2021. SEGUN CONTRATO DE PRESTACION DE SERVICIOS DE APOYO A LA GESTION 116 DE 2021 REEM PLAZA CDP 380 Y CRP 429 POR CONSTITUIRSE OBLIGACIONES POR PAGAR. | I112: Inversión | J112: Un nuevo contrato social y ambiental para la Bogotá del Siglo XXI | K112: 45 | L112: =IF(ISERROR(VLOOKUP(K112,[1]Proposito_programa!$C$2:$E$59,2,FALSE))," ",VLOOKUP(K112,[1]Proposito_programa!$C$2:$E$59,2,FALSE)) -> Espacio público más seguro y construido colectivamente | M112: =IF(ISERROR(VLOOKUP(K112,[1]Proposito_programa!$C$2:$E$59,3,FALSE))," ",VLOOKUP(K112,[1]Proposito_programa!$C$2:$E$59,3,FALSE)) -> Propósito 3: Inspirar confianza y legitimidad para vivir sin miedo y ser epicentro de cultura ciudadana, paz y reconciliación | N112: 2038 | P112: 1214719426 | Q112: LUISA FERNANDA ARBOLEDA GOMEZ | R112: Persona Natural | V112: 0 | X112: 0 | Z112: 3911467 | AA112: 3911467 | AB112: 3911467 | AC112: 2021-04-08 | AD112: 2021-04-09 | AE112: 2022-01-08 | AF112: 278 | AG112: 1 | AH112: 8 | AM112: Terminado | AN112: 1
A113: 117-2021 | B113: 2021 | C113: FDLBUCD-158-2021 | D113: https://community.secop.gov.co/Public/Tendering/ContractNoticePhases/View?PPI=CO1.PPI.12663931&isFromPublicArea=True&isModal=False | E113: Contratos de prestación de servicios profesionales y de apoyo a la gestión | F113: Contratación directa | G113: Prestación de servicios profesionales y de apoyo a la gestión, o para la ejecución de trabajos artísticos que sólo puedan encomendarse a determinadas personas naturales | H113: ADICIÓN Y PRÓRROGA 01 AL CONTRATO 117-2021 CON OBJETO PRESTAR SERVICIOS DE APOYO A LA GESTIÓN DEL DESARROLLO EN LA LABOR DE PLANEACI ÓN, EN LAS ACTIVIDADES RELATIVAS A LA PREVENCIÓN DEL EMBARAZO ADOLESCENTE NO DESEADO. REEMPLAZA CDP 496 Y CRP 630 POR CONSTITUIRSE O BLIGACIONES POR PAGAR. | I113: Inversión | J113: Un nuevo contrato social y ambiental para la Bogotá del Siglo XXI | K113: 8 | L113: =IF(ISERROR(VLOOKUP(K113,[1]Proposito_programa!$C$2:$E$59,2,FALSE))," ",VLOOKUP(K113,[1]Proposito_programa!$C$2:$E$59,2,FALSE)) -> Prevención y atención de maternidad temprana | M113: =IF(ISERROR(VLOOKUP(K113,[1]Proposito_programa!$C$2:$E$59,3,FALSE))," ",VLOOKUP(K113,[1]Proposito_programa!$C$2:$E$59,3,FALSE)) -> Propósito 1: Hacer un nuevo contrato social para incrementar la inclusión social, productiva y política | N113: 2151 | P113: 79872459 | Q113: LEONARDO GARCIA VENEGAS | R113: Persona Natural | V113: 0 | X113: 0 | Z113: 1817000 | AA113: 1817000 | AB113: 1817000 | AC113: 2021-04-08 | AD113: 2021-04-12 | AE113: 2021-12-30 | AF113: 259 | AG113: 1 | AH113: 49 | AM113: Terminado | AN113: 1
A114: 118-2021 | B114: 2021 | C114: FDLBUCD-145-2021 | D114: https://community.secop.gov.co/Public/Tendering/ContractNoticePhases/View?PPI=CO1.PPI.12645945&isFromPublicArea=True&isModal=False | E114: Contratos de prestación de servicios profesionales y de apoyo a la gestión | F114: Contratación directa | G114: Prestación de servicios profesionales y de apoyo a la gestión, o para la ejecución de trabajos artísticos que sólo puedan encomendarse a determinadas personas naturales | H114: PRESTAR SERVICIOS DE APOYO A LA GESTIÓN DEL DESARROLLO EN EL ÁREA DE PLANEACIÓN EN LAS ACTIVIDADES ENMARCADAS EN EL CUMPLIMIENTO DE LA META DE ACUERDOS EN COMUNIDAD PARA LA VIGENCIA 2021. SEGUN CONTRATO DE PRESTACION DE SERVICIOS DE APOYO A LA GESTION 118 DE 2021. REEMPLAZA CDP 343 Y CRP 447 POR CONSTITUIRSE OBLIGACIONES POR PAGAR. | I114: Inversión | J114: Un nuevo contrato social y ambiental para la Bogotá del Siglo XXI | K114: 45 | L114: =IF(ISERROR(VLOOKUP(K114,[1]Proposito_programa!$C$2:$E$59,2,FALSE))," ",VLOOKUP(K114,[1]Proposito_programa!$C$2:$E$59,2,FALSE)) -> Espacio público más seguro y construido colectivamente | M114: =IF(ISERROR(VLOOKUP(K114,[1]Proposito_programa!$C$2:$E$59,3,FALSE))," ",VLOOKUP(K114,[1]Proposito_programa!$C$2:$E$59,3,FALSE)) -> Propósito 3: Inspirar confianza y legitimidad para vivir sin miedo y ser epicentro de cultura ciudadana, paz y reconciliación | N114: 2038 | P114: 1114089564 | Q114: ALEXANDER ANGEL BOCANEGRA | R114: Persona Natural | V114: 0 | X114: 0 | Z114: 2271000 | AA114: 2271000 | AB114: 2271000 | AC114: 2021-04-13 | AD114: 2021-04-15 | AE114: 2021-12-30 | AF114: 256 | AG114: 1 | AH114: 16 | AM114: Terminado | AN114: 1
A115: 119-2021 | B115: 2021 | C115: FDLBUCD-150-2021 | D115: https://community.secop.gov.co/Public/Tendering/ContractNoticePhases/View?PPI=CO1.PPI.12604922&isFromPublicArea=True&isModal=False | E115: Contratos de prestación de servicios profesionales y de apoyo a la gestión | F115: Contratación directa | G115: Prestación de servicios profesionales y de apoyo a la gestión, o para la ejecución de trabajos artísticos que sólo puedan encomendarse a determinadas personas naturales | H115: PRESTAR SERVICIOS PROFESIONALES PARA APOYAR AL ÁREA GESTIÓN DEL DESARROLLO ADMINISTRATIVO Y FINANCIERO EN LOS ASUNTOS RELATIVOS A LA PLANEACIÓN LOCAL: COORDINAR Y GARANTIZAR LA IMPLEMENTACIÓN Y SEGUIMIENTO DE LOS PROCESOS, PROYECTOS Y PROCEDIMIENTOS DE CONTRATOS S USCRITOS POR LA ALCALDÍA LOCAL DE BARRIOS UNIDOS DIRIGIDOS AL CUMPLIMIENTO DE LAS METAS DEL SISTEMA LOCAL DE CUIDADO. SEGUN CONTRATO DE PRESTACION DE SERVICIOS PROFESIONALES 119 DE 2021. REEMPLAZA CDP 372 Y CRP 435 POR CONSTITUIRSE OBLIGACIONES POR PAGAR. | I115: Inversión | J115: Un nuevo contrato social y ambiental para la Bogotá del Siglo XXI | K115: 6 | L115: =IF(ISERROR(VLOOKUP(K115,[1]Proposito_programa!$C$2:$E$59,2,FALSE))," ",VLOOKUP(K115,[1]Proposito_programa!$C$2:$E$59,2,FALSE)) -> Sistema Distrital de Cuidado | M115: =IF(ISERROR(VLOOKUP(K115,[1]Proposito_programa!$C$2:$E$59,3,FALSE))," ",VLOOKUP(K115,[1]Proposito_programa!$C$2:$E$59,3,FALSE)) -> Propósito 1: Hacer un nuevo contrato social para incrementar la inclusión social, productiva y política | N115: 2062 | P115: 1030537421 | Q115: MARITZA MILENA PEREZ CESPEDES | R115: Persona Natural | V115: 0 | X115: 0 | Z115: 8500000 | AA115: 8500000 | AB115: 8500000 | AC115: 2021-04-08 | AD115: 2021-04-09 | AE115: 2022-01-20 | AF115: 305 | AG115: 1 | AH115: 20 | AM115: Liquidado | AN115: 1
A116: 120-2021 | B116: 2021 | C116: FDLBU-CD-091-2021 | D116: https://community.secop.gov.co/Public/Tendering/ContractNoticePhases/View?PPI=CO1.PPI.12306352&isFromPublicArea=True&isModal=False | E116: Contratos de prestación de servicios profesionales y de apoyo a la gestión | F116: Contratación directa | G116: Prestación de servicios profesionales y de apoyo a la gestión, o para la ejecución de trabajos artísticos que sólo puedan encomendarse a determinadas personas naturales | H116: ADICIÓN Y PRÓRROGA 01 AL CTO 120-2021 CON OBJETO PRESTAR SUS SERVICIOS PROFESIONALES PARA APOYAR JURÍDICAMENTE LA EJECUCIÓN DE LAS A CCIONES REQUERIDAS PARA LA DEPURACIÓN DE LAS ACTUACIONES ADMINISTRATIVAS QUE CURSAN EN LA ALCALDÍA LOCAL. REEMPLAZA CDP 516 Y CRP 63 6 POR CONSTITUIRSE OBLIGACIONES POR PAGAR. | I116: Inversión | J116: Un nuevo contrato social y ambiental para la Bogotá del Siglo XXI | K116: 57 | L116: =IF(ISERROR(VLOOKUP(K116,[1]Proposito_programa!$C$2:$E$59,2,FALSE))," ",VLOOKUP(K116,[1]Proposito_programa!$C$2:$E$59,2,FALSE)) -> Gestión pública local | M116: =IF(ISERROR(VLOOKUP(K116,[1]Proposito_programa!$C$2:$E$59,3,FALSE))," ",VLOOKUP(K116,[1]Proposito_programa!$C$2:$E$59,3,FALSE)) -> Propósito 5: Construir Bogotá - Región con gobierno abierto, transparente y ciudadanía consciente | N116: 2143 | P116: 1073515262 | Q116: DANIEL FERNANDO ESLAVA RIOS | R116: Persona Natural | V116: 0 | X116: 0 | Z116: 4751000 | AA116: 4751000 | AB116: 4751000 | AC116: 2021-04-12 | AD116: 2021-04-12 | AE116: 2021-12-31 | AF116: 260 | AG116: 1 | AH116: 50 | AM116: Liquidado | AN116: 1
A117: 121-2021 | B117: 2021 | C117: FDLBUCD-161-2021 | D117: https://community.secop.gov.co/Public/Tendering/ContractNoticePhases/View?PPI=CO1.PPI.12726082&isFromPublicArea=True&isModal=False | E117: Contratos de prestación de servicios profesionales y de apoyo a la gestión | F117: Contratación directa | G117: Prestación de servicios profesionales y de apoyo a la gestión, o para la ejecución de trabajos artísticos que sólo puedan encomendarse a determinadas personas naturales | H117: PRESTAR SERVICIOS PROFESIONALES PARA APOYAR AL ÁREA GESTIÓN DEL DESARROLLO ADMINISTRATIVO Y FINANCIERO EN LOS ASUNTOS RELATIVOS A LA PLANEACIÓN LOCAL: COORDINAR Y GARANTIZAR LA IMPLEMENTACIÓN Y SEGUIMIENTO DE LOS PROCESOS<(>,<)> PROYECTOS Y PROCEDIMIENTOS DE CONTR ATOS SUSCRITOS POR LA ALCALDÍA LOCAL DE BARRIOS UNIDOS DIRIGIDOS AL CUMPLIMIENTO DE LAS META DE BARRIOS UNIDOS TERRITORIO DE PAZ. RE EMPLAZA CDP 385 Y CRP 434 POR CONSTITUIRSE OBLIGACIONES POR PAGAR. | I117: Inversión | J117: Un nuevo contrato social y ambiental para la Bogotá del Siglo XXI | K117: 39 | L117: =IF(ISERROR(VLOOKUP(K117,[1]Proposito_programa!$C$2:$E$59,2,FALSE))," ",VLOOKUP(K117,[1]Proposito_programa!$C$2:$E$59,2,FALSE)) -> Bogotá territorio de paz y atención integral a las víctimas del conflicto armado | M117: =IF(ISERROR(VLOOKUP(K117,[1]Proposito_programa!$C$2:$E$59,3,FALSE))," ",VLOOKUP(K117,[1]Proposito_programa!$C$2:$E$59,3,FALSE)) -> Propósito 3: Inspirar confianza y legitimidad para vivir sin miedo y ser epicentro de cultura ciudadana, paz y reconciliación | N117: 2030 | P117: 19297125 | Q117: JULIO CESAR GALAN GONZALEZ | R117: Persona Natural | V117: 0 | X117: 0 | Z117: 6829233 | AA117: 6829233 | AB117: 6829233 | AC117: 2021-04-08 | AD117: 2021-04-12 | AE117: 2022-01-11 | AF117: 281 | AG117: 1 | AH117: 11 | AM117: Terminado | AN117: 1
A118: 122-2021 | B118: 2021 | C118: FDLBUCD-184-2021 | D118: https://community.secop.gov.co/Public/Tendering/ContractNoticePhases/View?PPI=CO1.PPI.12848010&isFromPublicArea=True&isModal=False | E118: Contratos de prestación de servicios profesionales y de apoyo a la gestión | F118: Contratación directa | G118: Prestación de servicios profesionales y de apoyo a la gestión, o para la ejecución de trabajos artísticos que sólo puedan encomendarse a determinadas personas naturales | H118: PRESTAR LOS SERVICIOS DE APOYO AL AREA GESTION DEL DESARROLLO ADMINISTRATIVO Y FINANCIERO EN LOS ASUNTOS RELACIONADOS CON EL DESARRO LLO DE LA GESTION CONTRACTUAL PARA LA ADQUISICION DE RECURSOS Y SERVICIOS. SEGUN CONTRATO DE PRESTACION DE SERVICIOS DE APOYO A LA G ESTION No. 122 DE 2021. REEMPLAZA CDP 414 Y CRP 460 POR CONSTITUIRSE OBLIGACIONES POR PAGAR. | I118: Inversión | J118: Un nuevo contrato social y ambiental para la Bogotá del Siglo XXI | K118: 57 | L118: =IF(ISERROR(VLOOKUP(K118,[1]Proposito_programa!$C$2:$E$59,2,FALSE))," ",VLOOKUP(K118,[1]Proposito_programa!$C$2:$E$59,2,FALSE)) -> Gestión pública local | M118: =IF(ISERROR(VLOOKUP(K118,[1]Proposito_programa!$C$2:$E$59,3,FALSE))," ",VLOOKUP(K118,[1]Proposito_programa!$C$2:$E$59,3,FALSE)) -> Propósito 5: Construir Bogotá - Región con gobierno abierto, transparente y ciudadanía consciente | N118: 2143 | P118: 1030653986 | Q118: LUIS MIGUEL GALINDO NIÑO | R118: Persona Natural | V118: 0 | X118: 0 | Z118: 5601666 | AA118: 5601666 | AB118: 5601666 | AC118: 2021-04-16 | AD118: 2021-04-17 | AE118: 2022-01-20 | AF118: 274 | AG118: 1 | AH118: 34 | AM118: Terminado | AN118: 1
A119: 123-2021 | B119: 2021 | C119: FDLBUCD-126-2021 | D119: https://community.secop.gov.co/Public/Tendering/ContractNoticePhases/View?PPI=CO1.PPI.12601429&isFromPublicArea=True&isModal=False | E119: Contratos de prestación de servicios profesionales y de apoyo a la gestión | F119: Contratación directa | G119: Prestación de servicios profesionales y de apoyo a la gestión, o para la ejecución de trabajos artísticos que sólo puedan encomendarse a determinadas personas naturales | H119: ADICIÓN Y PRÓRROGA 01 AL CONTRATO 123-2021 CON OBJETO PRESTAR SERVICIOS DE APOYO A LA GESTIÓN DEL DESARROLLO EN LA LABOR DE PLANEACI ÓN, EN LAS ACTIVIDADES RELATIVAS A LA PREVENCIÓN DEL EMBARAZO ADOLESCENTE NO DESEADO. REEMPLAZA CDP 497 Y CRP 624 POR CONSTITUIRSE O BLIGACIONES POR PAGAR. | I119: Inversión | J119: Un nuevo contrato social y ambiental para la Bogotá del Siglo XXI | K119: 8 | L119: =IF(ISERROR(VLOOKUP(K119,[1]Proposito_programa!$C$2:$E$59,2,FALSE))," ",VLOOKUP(K119,[1]Proposito_programa!$C$2:$E$59,2,FALSE)) -> Prevención y atención de maternidad temprana | M119: =IF(ISERROR(VLOOKUP(K119,[1]Proposito_programa!$C$2:$E$59,3,FALSE))," ",VLOOKUP(K119,[1]Proposito_programa!$C$2:$E$59,3,FALSE)) -> Propósito 1: Hacer un nuevo contrato social para incrementar la inclusión social, productiva y política | N119: 2151 | P119: 80763598 | Q119: JOSE LUIS BLANCO AVENDAÑO | R119: Persona Natural | V119: 0 | X119: 0 | Z119: 1817000 | AA119: 1817000 | AB119: 1817000 | AC119: 2021-04-14 | AD119: 2021-04-23 | AE119: 2021-12-30 | AF119: 248 | AG119: 1 | AH119: 38 | AI119: 1078826087 | AJ119: TATIANA NIYIRIT MORENO QUINTERO | AK119: 2021-07-16 | AM119: Terminado | AN119: 1
A120: 124-2021 | B120: 2021 | C120: FDLBUCD-127-2021 | D120: https://community.secop.gov.co/Public/Tendering/ContractNoticePhases/View?PPI=CO1.PPI.12606666&isFromPublicArea=True&isModal=False | E120: Contratos de prestación de servicios profesionales y de apoyo a la gestión | F120: Contratación directa | G120: Prestación de servicios profesionales y de apoyo a la gestión, o para la ejecución de trabajos artísticos que sólo puedan encomendarse a determinadas personas naturales | H120: ADICIÓN Y PRÓRROGA 01 AL CONTRATO 124-2021 CON OBJETO PRESTAR SERVICIOS DE APOYO A LA GESTIÓN DEL DESARROLLO EN LA LABOR DE PLANEACI ÓN, EN LAS ACTIVIDADES RELATIVAS A LA PREVENCIÓN DEL EMBARAZO ADOLESCENTE NO DESEADO. REEMPLAZA CDP 498 Y CRP 625 POR CONSTITUIRSE O BLIGACIONES POR PAGAR. | I120: Inversión | J120: Un nuevo contrato social y ambiental para la Bogotá del Siglo XXI | K120: 8 | L120: =IF(ISERROR(VLOOKUP(K120,[1]Proposito_programa!$C$2:$E$59,2,FALSE))," ",VLOOKUP(K120,[1]Proposito_programa!$C$2:$E$59,2,FALSE)) -> Prevención y atención de maternidad temprana | M120: =IF(ISERROR(VLOOKUP(K120,[1]Proposito_programa!$C$2:$E$59,3,FALSE))," ",VLOOKUP(K120,[1]Proposito_programa!$C$2:$E$59,3,FALSE)) -> Propósito 1: Hacer un nuevo contrato social para incrementar la inclusión social, productiva y política | N120: 2151 | P120: 1010026196 | Q120: BRUCHELL BRILLAOC CARRILLO REMON | R120: Persona Natural | V120: 0 | X120: 0 | Z120: 1817000 | AA120: 1817000 | AB120: 1817000 | AC120: 2021-04-12 | AD120: 2021-04-23 | AE120: 2021-12-30 | AF120: 248 | AG120: 1 | AH120: 38 | AM120: Terminado | AN120: 1
A121: 125-2021 | B121: 2021 | C121: FDLBUCD-129-2021 | D121: https://community.secop.gov.co/Public/Tendering/ContractNoticePhases/View?PPI=CO1.PPI.12615610&isFromPublicArea=True&isModal=False | E121: Contratos de prestación de servicios profesionales y de apoyo a la gestión | F121: Contratación directa | G121: Prestación de servicios profesionales y de apoyo a la gestión, o para la ejecución de trabajos artísticos que sólo puedan encomendarse a determinadas personas naturales | H121: ADICIÓN Y PRÓRROGA 01 AL CONTRATO 125-2021 CON OBJETO PRESTAR SERVICIOS DE APOYO A LA GESTIÓN DEL DESARROLLO EN LA LABOR DE PLANEACI ÓN, EN LAS ACTIVIDADES RELATIVAS A LA PREVENCIÓN DEL EMBARAZO ADOLESCENTE NO DESEADO. REEMPLAZA CDP 499 Y CRP 653 POR CONSTITUIRSE O BLIGACIONES POR PAGAR. | I121: Inversión | J121: Un nuevo contrato social y ambiental para la Bogotá del Siglo XXI | K121: 8 | L121: =IF(ISERROR(VLOOKUP(K121,[1]Proposito_programa!$C$2:$E$59,2,FALSE))," ",VLOOKUP(K121,[1]Proposito_programa!$C$2:$E$59,2,FALSE)) -> Prevención y atención de maternidad temprana | M121: =IF(ISERROR(VLOOKUP(K121,[1]Proposito_programa!$C$2:$E$59,3,FALSE))," ",VLOOKUP(K121,[1]Proposito_programa!$C$2:$E$59,3,FALSE)) -> Propósito 1: Hacer un nuevo contrato social para incrementar la inclusión social, productiva y política | N121: 2151 | P121: 1007699107 | Q121: ANDRES EDUARDO CRUZ GONZALEZ | R121: Persona Natural | V121: 0 | X121: 0 | Z121: 1756433 | AA121: 1756433 | AB121: 1756433 | AC121: 2021-04-13 | AD121: 2021-04-19 | AE121: 2021-12-29 | AF121: 251 | AG121: 1 | AH121: 41 | AM121: Terminado | AN121: 1
A122: 127-2021 | B122: 2021 | C122: FDLBUCD-144-2021 | D122: ttps://community.secop.gov.co/Public/Tendering/ContractNoticePhases/View?PPI=CO1.PPI.12720518&isFromPublicArea=True&isModal=False | E122: Contratos de prestación de servicios profesionales y de apoyo a la gestión | F122: Contratación directa | G122: Prestación de servicios profesionales y de apoyo a la gestión, o para la ejecución de trabajos artísticos que sólo puedan encomendarse a determinadas personas naturales | H122: PRESTAR SERVICIOS DE APOYO A LA GESTIÓN DEL DESARROLLO EN EL ÁREA DE PLANEACIÓN EN LAS ACTIVIDADES ENMARCADAS EN EL CUMPLIMIENTO DE LA META DE ACUERDOS EN COMUNIDAD PARA LA VIGENCIA 2021. SEGUN CONTRATO DE PRESTACION DE SERVICIOS DE APOYO A LA GESTION 127 DE 2021. REEMPLAZA CDP 343 Y CRP 448 POR CONSTITUIRSE OBLIGACIONES POR PAGAR. | I122: Inversión | J122: Un nuevo contrato social y ambiental para la Bogotá del Siglo XXI | K122: 45 | L122: =IF(ISERROR(VLOOKUP(K122,[1]Proposito_programa!$C$2:$E$59,2,FALSE))," ",VLOOKUP(K122,[1]Proposito_programa!$C$2:$E$59,2,FALSE)) -> Espacio público más seguro y construido colectivamente | M122: =IF(ISERROR(VLOOKUP(K122,[1]Proposito_programa!$C$2:$E$59,3,FALSE))," ",VLOOKUP(K122,[1]Proposito_programa!$C$2:$E$59,3,FALSE)) -> Propósito 3: Inspirar confianza y legitimidad para vivir sin miedo y ser epicentro de cultura ciudadana, paz y reconciliación | N122: 2038 | P122: 52813945 | Q122: DIANA MARIA GARZON GALINDO | R122: Persona Natural | V122: 0 | X122: 0 | Z122: 1438300 | AA122: 1438300 | AB122: 1438300 | AC122: 2021-04-13 | AD122: 2021-04-20 | AE122: 2021-12-19 | AF122: 240 | AM122: Terminado | AN122: 1
A123: 128-2021 | B123: 2021 | C123: FDLBUCD-147-2021 | D123: https://community.secop.gov.co/Public/Tendering/ContractNoticePhases/View?PPI=CO1.PPI.12720519&isFromPublicArea=True&isModal=False | E123: Contratos de prestación de servicios profesionales y de apoyo a la gestión | F123: Contratación directa | G123: Prestación de servicios profesionales y de apoyo a la gestión, o para la ejecución de trabajos artísticos que sólo puedan encomendarse a determinadas personas naturales | H123: PRESTAR SERVICIOS DE APOYO A LA GESTIÓN DEL DESARROLLO EN EL ÁREA DE PLANEACIÓN EN LAS ACTIVIDADES ENMARCADAS EN EL CUMPLIMIENTO DE LA META DE ACUERDOS EN COMUNIDAD PARA LA VIGENCIA 2021. SEGUN CONTRATO DE PRESTACION DE SERVICIOS DE APOYO A LA GESTION 128 DE 2021. REEMPLAZA CDP 343 Y CRP 449 POR CONSTITUIRSE OBLIGACIONES POR PAGAR. | I123: Inversión | J123: Un nuevo contrato social y ambiental para la Bogotá del Siglo XXI | K123: 45 | L123: =IF(ISERROR(VLOOKUP(K123,[1]Proposito_programa!$C$2:$E$59,2,FALSE))," ",VLOOKUP(K123,[1]Proposito_programa!$C$2:$E$59,2,FALSE)) -> Espacio público más seguro y construido colectivamente | M123: =IF(ISERROR(VLOOKUP(K123,[1]Proposito_programa!$C$2:$E$59,3,FALSE))," ",VLOOKUP(K123,[1]Proposito_programa!$C$2:$E$59,3,FALSE)) -> Propósito 3: Inspirar confianza y legitimidad para vivir sin miedo y ser epicentro de cultura ciudadana, paz y reconciliación | N123: 2038 | P123: 1024581788 | Q123: YULITZA KATHERINE VELASQUEZ JARAMILLO | R123: Persona Natural | V123: 0 | X123: 0 | Z123: 1968200 | AA123: 1968200 | AB123: 1968200 | AC123: 2021-04-13 | AD123: 2021-04-19 | AE123: 2021-12-26 | AF123: 248 | AG123: 1 | AH123: 8 | AM123: Terminado | AN123: 1
A124: 129-2021 | B124: 2021 | C124: FDLBUCD-153-2021 | D124: https://community.secop.gov.co/Public/Tendering/ContractNoticePhases/View?PPI=CO1.PPI.12679005&isFromPublicArea=True&isModal=False | E124: Contratos de prestación de servicios profesionales y de apoyo a la gestión | F124: Contratación directa | G124: Prestación de servicios profesionales y de apoyo a la gestión, o para la ejecución de trabajos artísticos que sólo puedan encomendarse a determinadas personas naturales | H124: PRESTAR SERVICIOS PROFESIONALES PARA APOYAR AL ÁREA GESTIÓN DEL DESARROLLO ADMINISTRATIVO Y FINANCIERO EN LOS ASUNTOS RELATIVOS A LA PLANEACIÓN LOCAL: GARANTIZAR LA IMPLEMENTACIÓN OPERATIVA DE LAS METAS DEL PLAN DE DESARROLLO LOCAL VIGENTE EN LO RELATIVO A DEPORTE , RECREACIÓN Y CULTURA. SEGUN CONTRATO DE PRESTACION DE SERVICIOS PROFESIONALES 129 DE 2021. REEMPLAZA CDP 395 Y CRP 442 POR CONSTIT UIRSE OBLIGACIONES POR PAGAR. | I124: Inversión | J124: Un nuevo contrato social y ambiental para la Bogotá del Siglo XXI | K124: 21 | L124: =IF(ISERROR(VLOOKUP(K124,[1]Proposito_programa!$C$2:$E$59,2,FALSE))," ",VLOOKUP(K124,[1]Proposito_programa!$C$2:$E$59,2,FALSE)) -> Creación y vida cotidiana: Apropiación ciudadana del arte, la cultura y el patrimonio, para la democracia cultural | M124: =IF(ISERROR(VLOOKUP(K124,[1]Proposito_programa!$C$2:$E$59,3,FALSE))," ",VLOOKUP(K124,[1]Proposito_programa!$C$2:$E$59,3,FALSE)) -> Propósito 1: Hacer un nuevo contrato social para incrementar la inclusión social, productiva y política | N124: 2012 | P124: 79659577 | Q124: RICHARD PEREZ MORENO | R124: Persona Natural | V124: 0 | X124: 0 | Z124: 6263667 | AA124: 6263667 | AB124: 6263667 | AC124: 2021-04-12 | AD124: 2021-04-14 | AE124: 2022-01-13 | AF124: 283 | AG124: 1 | AH124: 13 | AM124: Terminado | AN124: 1
A125: 130-2021 | B125: 2021 | C125: FDLBUCD-162-2021 | D125: https://community.secop.gov.co/Public/Tendering/ContractNoticePhases/View?PPI=CO1.PPI.12756109&isFromPublicArea=True&isModal=False | E125: Contratos de prestación de servicios profesionales y de apoyo a la gestión | F125: Contratación directa | G125: Prestación de servicios profesionales y de apoyo a la gestión, o para la ejecución de trabajos artísticos que sólo puedan encomendarse a determinadas personas naturales | H125: PRESTAR SERVICIOS PROFESIONALES PARA APOYAR AL ÁREA GESTIÓN DEL DESARROLLO ADMINISTRATIVO Y FINANCIERO EN LOS ASUNTOS RELATIVOS A LA PLANEACIÓN LOCAL: COORDINAR Y GARANTIZAR LA IMPLEMENTACIÓN Y SEGUIMIENTO DE LOS PROCESOS, PROYECTOS Y PROCEDIMIENTOS DE CONTRATOS S USCRITOS POR LA ALCALDÍA LOCAL DE BARRIOS UNIDOS DIRIGIDOS AL CUMPLIMIENTO DE LA META DE EMPRENDIMIENTO CULTURAL. SEGUN CONTRATO DE PRESTACION DE SERVICIOS PROFESIONALES 130 DE 2021. REEMPLAZA CDP 394 Y CRP 436 POR CONSTITUIRSE OBLIGACIONES POR PAGAR. | I125: Inversión | J125: Un nuevo contrato social y ambiental para la Bogotá del Siglo XXI | K125: 24 | L125: =IF(ISERROR(VLOOKUP(K125,[1]Proposito_programa!$C$2:$E$59,2,FALSE))," ",VLOOKUP(K125,[1]Proposito_programa!$C$2:$E$59,2,FALSE)) -> Bogotá región emprendedora e innovadora | M125: =IF(ISERROR(VLOOKUP(K125,[1]Proposito_programa!$C$2:$E$59,3,FALSE))," ",VLOOKUP(K125,[1]Proposito_programa!$C$2:$E$59,3,FALSE)) -> Propósito 1: Hacer un nuevo contrato social para incrementar la inclusión social, productiva y política | N125: 2017 | P125: 45444369 | Q125: ROSMERY TORRES SAENZ | R125: Persona Natural | V125: 0 | X125: 0 | Z125: 4370000 | AA125: 4370000 | AB125: 4370000 | AC125: 2021-04-08 | AD125: 2021-04-12 | AE125: 2021-12-31 | AF125: 270 | AM125: Liquidado | AN125: 1
A126: 131-2021 | B126: 2021 | C126: FDLBUCD-163-2021 | D126: https://community.secop.gov.co/Public/Tendering/ContractNoticePhases/View?PPI=CO1.PPI.12756003&isFromPublicArea=True&isModal=False | E126: Contratos de prestación de servicios profesionales y de apoyo a la gestión | F126: Contratación directa | G126: Prestación de servicios profesionales y de apoyo a la gestión, o para la ejecución de trabajos artísticos que sólo puedan encomendarse a determinadas personas naturales | H126: PRESTAR SERVICIOS PROFESIONALES PARA APOYAR AL ÁREA GESTIÓN DEL DESARROLLO ADMINISTRATIVO Y FINANCIERO EN LOS ASUNTOS RELATIVOS A LA PLANEACIÓN LOCAL: GARANTIZAR LA IMPLEMENTACIÓN Y SEGUIMIENTO DE LOS PROCESOS, PROYECTOS Y PROCEDIMIENTOS DE CONTRATOS SUSCRITOS POR LA ALCALDÍA LOCAL DE BARRIOS UNIDOS DIRIGIDOS AL CUMPLIMIENTO DE LA META DE CICLOINFRAESTRUCTURA Y LOS PROCESOS EN CURSO RELATIVOS A OBRAS PÚBLICAS DE MALLA VIAL Y ESPACIO PÚBLICO. SEGUN CONTRATO DE PRESTACION DE SERVICIOS PROFESIONALES 131 DE 2021. REEMPLAZA CDP 403 Y CRP 445 POR CONSTITUIRSE OBLIGACIONES POR PAGAR. | I126: Inversión | J126: Un nuevo contrato social y ambiental para la Bogotá del Siglo XXI | K126: 49 | L126: =IF(ISERROR(VLOOKUP(K126,[1]Proposito_programa!$C$2:$E$59,2,FALSE))," ",VLOOKUP(K126,[1]Proposito_programa!$C$2:$E$59,2,FALSE)) -> Movilidad segura, sostenible y accesible | M126: =IF(ISERROR(VLOOKUP(K126,[1]Proposito_programa!$C$2:$E$59,3,FALSE))," ",VLOOKUP(K126,[1]Proposito_programa!$C$2:$E$59,3,FALSE)) -> Propósito 4: Hacer de Bogotá Región un modelo de movilidad multimodal, incluyente y sostenible | N126: 2022 | P126: 19438435 | Q126: JOSELIN AGUILERA ARDILA | R126: Persona Natural | V126: 0 | X126: 0 | Z126: 2236666 | AA126: 2236666 | AB126: 2236666 | AC126: 2021-04-13 | AD126: 2021-04-15 | AE126: 2021-10-11 | AF126: 270 | AM126: Liquidado | AN126: 1
A127: 132-2021 | B127: 2021 | C127: FDLBU-CD-036-2021 | D127: https://community.secop.gov.co/Public/Tendering/ContractNoticePhases/View?PPI=CO1.PPI.12088823&isFromPublicArea=True&isModal=False | E127: Contratos de prestación de servicios profesionales y de apoyo a la gestión | F127: Contratación directa | G127: Prestación de servicios profesionales y de apoyo a la gestión, o para la ejecución de trabajos artísticos que sólo puedan encomendarse a determinadas personas naturales | H127: ADICIÓN Y PRÓRROGA 01 AL CONTRATO 132-2021 CON OBJETO PRESTAR SERVICIOS DE APOYO ADMINISTRATIVA Y ASISTENCIALMENTE A LAS INSPECCIONE S DE POLICÍA DE LA LOCALIDAD. REEMPLAZA CDP 523 Y CRP 638 POR CONSTITUIRSE OBLIGACIONES POR PAGAR. | I127: Inversión | J127: Un nuevo contrato social y ambiental para la Bogotá del Siglo XXI | K127: 57 | L127: =IF(ISERROR(VLOOKUP(K127,[1]Proposito_programa!$C$2:$E$59,2,FALSE))," ",VLOOKUP(K127,[1]Proposito_programa!$C$2:$E$59,2,FALSE)) -> Gestión pública local | M127: =IF(ISERROR(VLOOKUP(K127,[1]Proposito_programa!$C$2:$E$59,3,FALSE))," ",VLOOKUP(K127,[1]Proposito_programa!$C$2:$E$59,3,FALSE)) -> Propósito 5: Construir Bogotá - Región con gobierno abierto, transparente y ciudadanía consciente | N127: 2143 | P127: 52347772 | Q127: JOHANNA PATRICIA GUEVARA MACIAS | R127: Persona Natural | V127: 0 | X127: 0 | Z127: 2271000 | AA127: 2271000 | AB127: 2271000 | AC127: 2021-04-12 | AD127: 2021-04-12 | AE127: 2021-12-30 | AF127: 259 | AG127: 1 | AH127: 49 | AM127: Terminado | AN127: 1
A128: 134-2021 | B128: 2021 | C128: FDLBUCD-139-2021 | D128: https://community.secop.gov.co/Public/Tendering/ContractNoticePhases/View?PPI=CO1.PPI.12757239&isFromPublicArea=True&isModal=False | E128: Contratos de prestación de servicios profesionales y de apoyo a la gestión | F128: Contratación directa | G128: Prestación de servicios profesionales y de apoyo a la gestión, o para la ejecución de trabajos artísticos que sólo puedan encomendarse a determinadas personas naturales | H128: PRESTAR SERVICIOS DE APOYO A LA GESTIÓN DEL DESARROLLO EN LAS LABORES DE PLANEACIÓN PARA LAS ACTIVIDADES DEL PROCESO DE PARTICIPACIÓ N. SEGUN CONTRATO DE PRESTACION DE SERVICIOS DE APOYO A LA GESTION 134 DE 2021. REEMPLAZA CDP 376 Y CRP 440 POR CONSTITUIRSE OBLIGAC IONES POR PAGAR. | I128: Inversión | J128: Un nuevo contrato social y ambiental para la Bogotá del Siglo XXI | K128: 55 | L128: =IF(ISERROR(VLOOKUP(K128,[1]Proposito_programa!$C$2:$E$59,2,FALSE))," ",VLOOKUP(K128,[1]Proposito_programa!$C$2:$E$59,2,FALSE)) -> Fortalecimiento de cultura ciudadana y su institucionalidad | M128: =IF(ISERROR(VLOOKUP(K128,[1]Proposito_programa!$C$2:$E$59,3,FALSE))," ",VLOOKUP(K128,[1]Proposito_programa!$C$2:$E$59,3,FALSE)) -> Propósito 5: Construir Bogotá - Región con gobierno abierto, transparente y ciudadanía consciente | N128: 2141 | P128: 1015456276 | Q128: TATIANA BRIÑEZ TORO | R128: Persona Natural | V128: 0 | X128: 0 | Z128: 2604367 | AA128: 2604367 | AB128: 2604367 | AC128: 2021-04-12 | AD128: 2021-04-14 | AE128: 2022-01-13 | AF128: 270 | AG128: 1 | AH128: 30 | AM128: Terminado | AN128: 1
A129: 135-2021 | B129: 2021 | C129: FDLBUCD-148-2021 | D129: https://community.secop.gov.co/Public/Tendering/ContractNoticePhases/View?PPI=CO1.PPI.12756062&isFromPublicArea=True&isModal=False | E129: Contratos de prestación de servicios profesionales y de apoyo a la gestión | F129: Contratación directa | G129: Prestación de servicios profesionales y de apoyo a la gestión, o para la ejecución de trabajos artísticos que sólo puedan encomendarse a determinadas personas naturales | H129: ADICIÓN Y PRÓRROGA 01 AL CONTRATO 135-2021 CON OBJETO PRESTAR SERVICIOS DE APOYO A LA GESTIÓN DEL DESARROLLO EN LAS LABORES DE PLANE ACIÓN RELATIVAS A LOS PROYECTOS AMBIENTALES DE LA VIGENCIA 2021 DE LA LÍNEA DE INVERSIONES AMBIENTALES SOSTENIBLES. REEMPLAZA CDP 51 0 Y CRP 639 POR CONSTITUIRSE OBLIGACIONES POR PAGAR. | I129: Inversión | J129: Un nuevo contrato social y ambiental para la Bogotá del Siglo XXI | K129: 24 | L129: =IF(ISERROR(VLOOKUP(K129,[1]Proposito_programa!$C$2:$E$59,2,FALSE))," ",VLOOKUP(K129,[1]Proposito_programa!$C$2:$E$59,2,FALSE)) -> Bogotá región emprendedora e innovadora | M129: =IF(ISERROR(VLOOKUP(K129,[1]Proposito_programa!$C$2:$E$59,3,FALSE))," ",VLOOKUP(K129,[1]Proposito_programa!$C$2:$E$59,3,FALSE)) -> Propósito 1: Hacer un nuevo contrato social para incrementar la inclusión social, productiva y política | N129: 2073 | P129: 80811218 | Q129: FABIAN ARTURO ORTIZ WILCHES | R129: Persona Natural | V129: 0 | X129: 0 | Z129: 2271000 | AA129: 2271000 | AB129: 2271000 | AC129: 2021-04-09 | AD129: 2021-04-13 | AE129: 2021-12-30 | AF129: 258 | AG129: 1 | AH129: 48 | AM129: Terminado | AN129: 1
A130: 136-2021 | B130: 2021 | C130: FDLBUCD-151-2021 | D130: https://community.secop.gov.co/Public/Tendering/ContractNoticePhases/View?PPI=CO1.PPI.12776736&isFromPublicArea=True&isModal=False | E130: Contratos de prestación de servicios profesionales y de apoyo a la gestión | F130: Contratación directa | G130: Prestación de servicios profesionales y de apoyo a la gestión, o para la ejecución de trabajos artísticos que sólo puedan encomendarse a determinadas personas naturales | H130: PRESTAR SERVICIOS DE APOYO A LA GESTIÓN DEL DESARROLLO EN LABORES DE PLANEACIÓN EN LAS ACTIVIDADES RELATIVAS AL SISTEMA LOCAL DE CUI DADO. SEGUN CONTRATO DE PRESTACION DE SERVICIOS DE APOYO A LA GESTIO 136 DE 2021. REEMPLAZA CDP 404 Y CRP 451 POR CONSTITUIRSE OBLIG ACIONES POR PAGAR. | I130: Inversión | J130: Un nuevo contrato social y ambiental para la Bogotá del Siglo XXI | K130: 6 | L130: =IF(ISERROR(VLOOKUP(K130,[1]Proposito_programa!$C$2:$E$59,2,FALSE))," ",VLOOKUP(K130,[1]Proposito_programa!$C$2:$E$59,2,FALSE)) -> Sistema Distrital de Cuidado | M130: =IF(ISERROR(VLOOKUP(K130,[1]Proposito_programa!$C$2:$E$59,3,FALSE))," ",VLOOKUP(K130,[1]Proposito_programa!$C$2:$E$59,3,FALSE)) -> Propósito 1: Hacer un nuevo contrato social para incrementar la inclusión social, productiva y política | N130: 2062 | P130: 1012327165 | Q130: CRISTIAN EDUARDO CHAVEZ SUAREZ | R130: Persona Natural | V130: 0 | X130: 0 | Z130: 4426133 | AA130: 4426133 | AB130: 4426133 | AC130: 2021-04-12 | AD130: 2021-04-14 | AE130: 2022-01-13 | AF130: 283 | AG130: 1 | AH130: 13 | AM130: Terminado | AN130: 1
A131: 137-2021 | B131: 2021 | C131: FDLBUCD-152-2021 | D131: https://community.secop.gov.co/Public/Tendering/ContractNoticePhases/View?PPI=CO1.PPI.12747194&isFromPublicArea=True&isModal=False | E131: Contratos de prestación de servicios profesionales y de apoyo a la gestión | F131: Contratación directa | G131: Prestación de servicios profesionales y de apoyo a la gestión, o para la ejecución de trabajos artísticos que sólo puedan encomendarse a determinadas personas naturales | H131: PRESTAR SERVICIOS DE APOYO A LA GESTIÓN DEL DESARROLLO EN LABORES DE PLANEACIÓN EN LAS ACTIVIDADES RELATIVAS AL SISTEMA LOCAL DE CUI DADO. SEGUN CONTRATO DE PRESTACION DE SERVICIOS DE APOYO A LA GESTION 137 DE 2021. REEMPLAZA CDP 378 Y CRP 443 POR CONSTITUIRSE OBLI GACIONES POR PAGAR. | I131: Inversión | J131: Un nuevo contrato social y ambiental para la Bogotá del Siglo XXI | K131: 6 | L131: =IF(ISERROR(VLOOKUP(K131,[1]Proposito_programa!$C$2:$E$59,2,FALSE))," ",VLOOKUP(K131,[1]Proposito_programa!$C$2:$E$59,2,FALSE)) -> Sistema Distrital de Cuidado | M131: =IF(ISERROR(VLOOKUP(K131,[1]Proposito_programa!$C$2:$E$59,3,FALSE))," ",VLOOKUP(K131,[1]Proposito_programa!$C$2:$E$59,3,FALSE)) -> Propósito 1: Hacer un nuevo contrato social para incrementar la inclusión social, productiva y política | N131: 2062 | P131: 1015446736 | Q131: SANDY JINETH ROJAS HUERTAS | R131: Persona Natural | V131: 0 | X131: 0 | Z131: 2271000 | AA131: 2271000 | AB131: 2271000 | AC131: 2021-04-12 | AD131: 2021-04-16 | AE131: 2021-12-30 | AF131: 255 | AG131: 1 | AH131: 15 | AM131: Terminado | AN131: 1
A132: 138-2021 | B132: 2021 | C132: FDLBUCD-181-2021 | D132: https://community.secop.gov.co/Public/Tendering/ContractNoticePhases/View?PPI=CO1.PPI.12819665&isFromPublicArea=True&isModal=False | E132: Contratos de prestación de servicios profesionales y de apoyo a la gestión | F132: Contratación directa | G132: Prestación de servicios profesionales y de apoyo a la gestión, o para la ejecución de trabajos artísticos que sólo puedan encomendarse a determinadas personas naturales | H132: PRESTAR SERVICIOS DE APOYO A LA DE GESTIÓN DEL DESARROLLO EN LAS LABORES DE PLANEACIÓN, CON EL FIN DE LOGRAR EL CUMPLIMIENTO DE LA M ETA DE ACUERDOS EN COMUNIDAD PARA LA VIGENCIA 2021. REEMPLAZA CDP 380 Y CRP 452 POR CONSTITUIRSE OBLIGACIONES POR PAGAR. | I132: Inversión | J132: Un nuevo contrato social y ambiental para la Bogotá del Siglo XXI | K132: 45 | L132: =IF(ISERROR(VLOOKUP(K132,[1]Proposito_programa!$C$2:$E$59,2,FALSE))," ",VLOOKUP(K132,[1]Proposito_programa!$C$2:$E$59,2,FALSE)) -> Espacio público más seguro y construido colectivamente | M132: =IF(ISERROR(VLOOKUP(K132,[1]Proposito_programa!$C$2:$E$59,3,FALSE))," ",VLOOKUP(K132,[1]Proposito_programa!$C$2:$E$59,3,FALSE)) -> Propósito 3: Inspirar confianza y legitimidad para vivir sin miedo y ser epicentro de cultura ciudadana, paz y reconciliación | N132: 2038 | P132: 1016070013 | Q132: INGRID MARITZA MORENO AGREDO | R132: Persona Natural | V132: 0 | X132: 0 | Z132: 4426133 | AA132: 4426133 | AB132: 4426133 | AC132: 2021-04-14 | AD132: 2021-04-14 | AE132: 2022-01-13 | AF132: 283 | AG132: 1 | AH132: 13 | AM132: Terminado | AN132: 1
A133: 139-2021 | B133: 2021 | C133: FDLBUCD-173-2021 | D133: https://community.secop.gov.co/Public/Tendering/ContractNoticePhases/View?PPI=CO1.PPI.12753677&isFromPublicArea=True&isModal=False | E133: Contratos de prestación de servicios profesionales y de apoyo a la gestión | F133: Contratación directa | G133: Prestación de servicios profesionales y de apoyo a la gestión, o para la ejecución de trabajos artísticos que sólo puedan encomendarse a determinadas personas naturales | H133: PRESTAR SERVICIOS DE APOYO A LA GESTIÓN DEL DESARROLLO EN LABORES DE PLANEACIÓN EN LAS ACTIVIDADES RELATIVAS A LOS PROYECTOS AMBIENT ALES DE LA VIGENCIA 2021 DE LA LÍNEA DE INVERSIONES AMBIENTALES SOSTENIBLES. SEGUN CONTRATO DE PRESTACION DE SERVICIOS DE APOYO A LA GESTION 139 DE 2021 REEMPLAZA CDP 370 Y CRP 450 POR CONSTITUIRSE OBLIGACIONES POR PAGAR. | I133: Inversión | J133: Un nuevo contrato social y ambiental para la Bogotá del Siglo XXI | K133: 38 | L133: =IF(ISERROR(VLOOKUP(K133,[1]Proposito_programa!$C$2:$E$59,2,FALSE))," ",VLOOKUP(K133,[1]Proposito_programa!$C$2:$E$59,2,FALSE)) -> Ecoeficiencia, reciclaje, manejo de residuos e inclusión de la población recicladora | M133: =IF(ISERROR(VLOOKUP(K133,[1]Proposito_programa!$C$2:$E$59,3,FALSE))," ",VLOOKUP(K133,[1]Proposito_programa!$C$2:$E$59,3,FALSE)) -> Propósito 2 : Cambiar Nuestros Hábitos de Vida para Reverdecer a Bogotá y Adaptarnos y Mitigar la Crisis Climática | N133: 2082 | P133: 1007351369 | Q133: SEBASTIAN FELIPE ALVARADO ESPAÑOL | R133: Persona Natural | V133: 0 | X133: 0 | Z133: 908500 | AA133: 908500 | AB133: 908500 | AC133: 2021-04-14 | AD133: 2021-04-16 | AE133: 2021-12-15 | AF133: 240 | AM133: Terminado | AN133: 1
A134: 140-2021 | B134: 2021 | C134: FDLBUCD-176-2021 | D134: https://community.secop.gov.co/Public/Tendering/ContractNoticePhases/View?PPI=CO1.PPI.12776780&isFromPublicArea=True&isModal=False | E134: Contratos de prestación de servicios profesionales y de apoyo a la gestión | F134: Contratación directa | G134: Prestación de servicios profesionales y de apoyo a la gestión, o para la ejecución de trabajos artísticos que sólo puedan encomendarse a determinadas personas naturales | H134: PRESTAR SERVICIOS PROFESIONALES PARA APOYAR EL CUBRIMIENTO DE LAS ACTIVIDADES, CRONOGRAMAS Y AGENDA DE LA ALCALDÍA LOCAL A NIVEL INT ERNO Y EXTERNO, ASÍ COMO LA GENERACIÓN DE CONTENIDOS PERIODÍSTICOS. SEGUN CONTRATO DE PRESTACION DE SERVICIOS PROFESIONALES 140 DE 2 021. REEMPLAZA CDP 407 Y CRP 453 POR CONSTITUIRSE OBLIGACIONES POR PAGAR. | I134: Inversión | J134: Un nuevo contrato social y ambiental para la Bogotá del Siglo XXI | K134: 57 | L134: =IF(ISERROR(VLOOKUP(K134,[1]Proposito_programa!$C$2:$E$59,2,FALSE))," ",VLOOKUP(K134,[1]Proposito_programa!$C$2:$E$59,2,FALSE)) -> Gestión pública local | M134: =IF(ISERROR(VLOOKUP(K134,[1]Proposito_programa!$C$2:$E$59,3,FALSE))," ",VLOOKUP(K134,[1]Proposito_programa!$C$2:$E$59,3,FALSE)) -> Propósito 5: Construir Bogotá - Región con gobierno abierto, transparente y ciudadanía consciente | N134: 2143 | P134: 1014206538 | Q134: ASTRID LORENA VERA VALERO | R134: Persona Natural | V134: 0 | X134: 0 | Z134: 4830433 | AA134: 4830433 | AB134: 4830433 | AC134: 2021-04-14 | AD134: 2021-04-15 | AE134: 2021-12-31 | AF134: 255 | AM134: Terminado | AN134: 1
A135: 141-2021 | B135: 2021 | C135: FDLBU-CD-075-2021 | D135: https://community.secop.gov.co/Public/Tendering/ContractNoticePhases/View?PPI=CO1.PPI.12358694&isFromPublicArea=True&isModal=False | E135: Contratos de prestación de servicios profesionales y de apoyo a la gestión | F135: Contratación directa | G135: Prestación de servicios profesionales y de apoyo a la gestión, o para la ejecución de trabajos artísticos que sólo puedan encomendarse a determinadas personas naturales | H135: PRESTAR LOS SERVICIOS PROFESIONALES PARA APOYAR AL ÁREA DE GESTIÓN DEL DESARROLLO ADMINISTRATIVO Y FINANCIERO, EN LOS ASUNTOS RELACI ONADOS CON EL DESARROLLO DE LA GESTIÓN CONTRACTUAL PARA LA ADQUISICIÓN DE RECURSOS Y SERVICIOS. REEMPLAZA CDP 296 Y CRP 457 POR CONS TITUIRSE OBLIGACIONES POR PAGAR. | I135: Inversión | J135: Un nuevo contrato social y ambiental para la Bogotá del Siglo XXI | K135: 57 | L135: =IF(ISERROR(VLOOKUP(K135,[1]Proposito_programa!$C$2:$E$59,2,FALSE))," ",VLOOKUP(K135,[1]Proposito_programa!$C$2:$E$59,2,FALSE)) -> Gestión pública local | M135: =IF(ISERROR(VLOOKUP(K135,[1]Proposito_programa!$C$2:$E$59,3,FALSE))," ",VLOOKUP(K135,[1]Proposito_programa!$C$2:$E$59,3,FALSE)) -> Propósito 5: Construir Bogotá - Región con gobierno abierto, transparente y ciudadanía consciente | N135: 2143 | P135: 1020793103 | Q135: LAURA MAYERLY GOMEZ PARRA | R135: Persona Natural | V135: 0 | X135: 0 | Z135: 7283333 | AA135: 7283333 | AB135: 7283333 | AC135: 2021-04-15 | AD135: 2021-04-19 | AE135: 2022-01-20 | AF135: 290 | AG135: 1 | AH135: 20 | AM135: Terminado | AN135: 1
A136: 142-2021 | B136: 2021 | C136: FDLBUCD-179-2021 | D136: https://community.secop.gov.co/Public/Tendering/ContractNoticePhases/View?PPI=CO1.PPI.12840418&isFromPublicArea=True&isModal=False | E136: Contratos de prestación de servicios profesionales y de apoyo a la gestión | F136: Contratación directa | G136: Prestación de servicios profesionales y de apoyo a la gestión, o para la ejecución de trabajos artísticos que sólo puedan encomendarse a determinadas personas naturales | H136: PRESTAR SERVICIOS DE APOYO A LA GESTIÓN DEL DESARROLLO EN LABORES DE PLANEACIÓN, EN LAS ACTIVIDADES DE PEDAGOGÍA DEL CÓDIGO NACIONAL DE SEGURIDAD Y CONVIVENCIA, PROMOCIÓN DE LA CONVIVENCIA Y DE ATENCIÓN DE MOVILIZACIONES Y AGLOMERACIONES EN EL TERRITORIO. SEGUN CO NTRATO DE PRESTACION DE SERVICIOS DE APOYO A LA GESTION 142 DE 2021. REEMPLAZA CDP 413 Y CRP 456 POR CONSTITUIRSE OBLIGACIONES POR P AGAR. | I136: Inversión | J136: Un nuevo contrato social y ambiental para la Bogotá del Siglo XXI | K136: 48 | L136: =IF(ISERROR(VLOOKUP(K136,[1]Proposito_programa!$C$2:$E$59,2,FALSE))," ",VLOOKUP(K136,[1]Proposito_programa!$C$2:$E$59,2,FALSE)) -> Plataforma institucional para la seguridad y justicia | M136: =IF(ISERROR(VLOOKUP(K136,[1]Proposito_programa!$C$2:$E$59,3,FALSE))," ",VLOOKUP(K136,[1]Proposito_programa!$C$2:$E$59,3,FALSE)) -> Propósito 3: Inspirar confianza y legitimidad para vivir sin miedo y ser epicentro de cultura ciudadana, paz y reconciliación | N136: 2153 | P136: 79843350 | Q136: OCTAVIO TARAZONA HERNANDEZ | R136: Persona Natural | V136: 0 | X136: 0 | Z136: 3270000 | AA136: 3270000 | AB136: 3270000 | AC136: 2021-04-14 | AD136: 2021-04-16 | AE136: 2021-12-31 | AF136: 255 | AM136: Terminado | AN136: 1
A137: 143-2021 | B137: 2021 | C137: FDLBUCD-136-2021 | D137: https://community.secop.gov.co/Public/Tendering/ContractNoticePhases/View?PPI=CO1.PPI.12802738&isFromPublicArea=True&isModal=False | E137: Contratos de prestación de servicios profesionales y de apoyo a la gestión | F137: Contratación directa | G137: Prestación de servicios profesionales y de apoyo a la gestión, o para la ejecución de trabajos artísticos que sólo puedan encomendarse a determinadas personas naturales | H137: PRESTAR SERVICIOS DE APOYO A LA GESTIÓN DEL DESARROLLO EN LAS LABORES DE PLANEACIÓN RELATIVAS A LOS PROYECTOS AMBIENTALES DE LA VIGE NCIA 2021 DE LA LÍNEA DE INVERSIONES AMBIENTALES SOSTENIBLES. SEGUN CONTRATO DE PRESTACION DE SERVICIOS DE APOYO A LA GESTION 143 DE 2021. REEMPLAZA CDP 369 Y CRP 461 POR CONSTITUIRSE OBLIGACIONES POR PAGAR. | I137: Inversión | J137: Un nuevo contrato social y ambiental para la Bogotá del Siglo XXI | K137: 38 | L137: =IF(ISERROR(VLOOKUP(K137,[1]Proposito_programa!$C$2:$E$59,2,FALSE))," ",VLOOKUP(K137,[1]Proposito_programa!$C$2:$E$59,2,FALSE)) -> Ecoeficiencia, reciclaje, manejo de residuos e inclusión de la población recicladora | M137: =IF(ISERROR(VLOOKUP(K137,[1]Proposito_programa!$C$2:$E$59,3,FALSE))," ",VLOOKUP(K137,[1]Proposito_programa!$C$2:$E$59,3,FALSE)) -> Propósito 2 : Cambiar Nuestros Hábitos de Vida para Reverdecer a Bogotá y Adaptarnos y Mitigar la Crisis Climática | N137: 2082 | P137: 80035265 | Q137: BERNARDO HERNANDEZ BELTRAN | R137: Persona Natural | V137: 0 | X137: 0 | Z137: 1589700 | AA137: 1589700 | AB137: 1589700 | AC137: 2021-04-15 | AD137: 2021-04-22 | AE137: 2021-12-21 | AF137: 240 | AM137: Terminado | AN137: 1
A138: 144-2021 | B138: 2021 | C138: FDLBUCD-137-2021 | D138: https://community.secop.gov.co/Public/Tendering/ContractNoticePhases/View?PPI=CO1.PPI.12581748&isFromPublicArea=True&isModal=False | E138: Contratos de prestación de servicios profesionales y de apoyo a la gestión | F138: Contratación directa | G138: Prestación de servicios profesionales y de apoyo a la gestión, o para la ejecución de trabajos artísticos que sólo puedan encomendarse a determinadas personas naturales | H138: PRESTAR SERVICIOS DE APOYO A LA GESTIÓN DEL DESARROLLO EN LAS LABORES DE PLANEACIÓN, CON EL FIN DE LOGRAR EL CUMPLIMIENTO DE LAS MET AS DEL PROYECTO DIÁLOGOS PARA CRECER Y PARTICIPAR. SEGUN CONTRATO DE PRESTACION DE SERVICIOS DE APOYO A LA GESTION 144 DE 2021. REEM PLAZA CDP 415 Y CRP 474 POR CONSTITUIRSE OBLIGACIONES POR PAGAR. | I138: Inversión | J138: Un nuevo contrato social y ambiental para la Bogotá del Siglo XXI | K138: 57 | L138: =IF(ISERROR(VLOOKUP(K138,[1]Proposito_programa!$C$2:$E$59,2,FALSE))," ",VLOOKUP(K138,[1]Proposito_programa!$C$2:$E$59,2,FALSE)) -> Gestión pública local | M138: =IF(ISERROR(VLOOKUP(K138,[1]Proposito_programa!$C$2:$E$59,3,FALSE))," ",VLOOKUP(K138,[1]Proposito_programa!$C$2:$E$59,3,FALSE)) -> Propósito 5: Construir Bogotá - Región con gobierno abierto, transparente y ciudadanía consciente | N138: 2143 | P138: 79374388 | Q138: MANUEL RICARDO MORENO PEÑUELA | R138: Persona Natural | V138: 0 | X138: 0 | Z138: 4652667 | AA138: 4652667 | AB138: 4652667 | AC138: 2021-04-15 | AD138: 2021-04-21 | AE138: 2022-01-05 | AF138: 260 | AG138: 1 | AH138: 5 | AM138: Terminado | AN138: 1
A139: 145-2021 | B139: 2021 | C139: FDLBUCD-064-2021 | D139: https://community.secop.gov.co/Public/Tendering/ContractNoticePhases/View?PPI=CO1.PPI.12669365&isFromPublicArea=True&isModal=False | E139: Contratos de prestación de servicios profesionales y de apoyo a la gestión | F139: Contratación directa | G139: Prestación de servicios profesionales y de apoyo a la gestión, o para la ejecución de trabajos artísticos que sólo puedan encomendarse a determinadas personas naturales | H139: Prestar los servicios profesionales para la operación, prestación, seguimiento y cumplimiento de los procedimientos administrativos, operativos y programáticos del Servicio Apoyo Económico Tipo C, que contribuyan a la garantía de los derechos de la población mayor en el marco de la Política Pública Social para el Envejecimiento y la Vejez en el Distrito Capital a cargo de la Alcaldía Local. SE GUN CONTRATO DE PRESTACION DE SERVICIOS PROFESIONALES 145 DE 2021 REEMPLAZA CDP 390 Y CRP 459 POR CONSTITUIRSE OBLIGACIONES POR PAGA R. | I139: Inversión | J139: Un nuevo contrato social y ambiental para la Bogotá del Siglo XXI | K139: 1 | L139: =IF(ISERROR(VLOOKUP(K139,[1]Proposito_programa!$C$2:$E$59,2,FALSE))," ",VLOOKUP(K139,[1]Proposito_programa!$C$2:$E$59,2,FALSE)) -> Subsidios y transferencias para la equidad | M139: =IF(ISERROR(VLOOKUP(K139,[1]Proposito_programa!$C$2:$E$59,3,FALSE))," ",VLOOKUP(K139,[1]Proposito_programa!$C$2:$E$59,3,FALSE)) -> Propósito 1: Hacer un nuevo contrato social para incrementar la inclusión social, productiva y política | N139: 2144 | P139: 1015457130 | Q139: DANIELA PEÑA GOMEZ | R139: Persona Natural | V139: 0 | X139: 0 | Z139: 7283333 | AA139: 7283333 | AB139: 7283333 | AC139: 2021-04-15 | AD139: 2021-04-28 | AE139: 2022-01-20 | AF139: 320 | AG139: 1 | AH139: 20 | AM139: Liquidado | AN139: 1
A140: 146-2021 | B140: 2021 | C140: FDLBUCD-168-2021 | D140: https://community.secop.gov.co/Public/Tendering/ContractNoticePhases/View?PPI=CO1.PPI.12747339&isFromPublicArea=True&isModal=False | E140: Contratos de prestación de servicios profesionales y de apoyo a la gestión | F140: Contratación directa | G140: Prestación de servicios profesionales y de apoyo a la gestión, o para la ejecución de trabajos artísticos que sólo puedan encomendarse a determinadas personas naturales | H140: PRESTAR SERVICIOS PROFESIONALES PARA APOYAR AL ÁREA GESTIÓN DEL DESARROLLO ADMINISTRATIVO Y FINANCIERO EN LOS ASUNTOS RELATIVOS A LA PLANEACIÓN LOCAL:GARANTIZAR LA IMPLEMENTACIÓN Y SEGUIMIENTO DE LOS PROCESOS, PROYECTOS Y PROCEDIMIENTOS DE CONTRATOS SUSCRITOS POR LA ALCALDÍA LOCAL DE BARRIOS UNIDOS DIRIGIDOS AL CUMPLIMIENTO DE LA META DE BUEN TRATO. SEGUN CONTRATO DE PRESTACION DE SERVICIOS PR OFESIONALES 146 DE 2021. REEMPLAZA CDP 387 Y CRP 468 POR CONSTITUIRSE OBLIGACIONES POR PAGAR. | I140: Inversión | J140: Un nuevo contrato social y ambiental para la Bogotá del Siglo XXI | K140: 6 | L140: =IF(ISERROR(VLOOKUP(K140,[1]Proposito_programa!$C$2:$E$59,2,FALSE))," ",VLOOKUP(K140,[1]Proposito_programa!$C$2:$E$59,2,FALSE)) -> Sistema Distrital de Cuidado | M140: =IF(ISERROR(VLOOKUP(K140,[1]Proposito_programa!$C$2:$E$59,3,FALSE))," ",VLOOKUP(K140,[1]Proposito_programa!$C$2:$E$59,3,FALSE)) -> Propósito 1: Hacer un nuevo contrato social para incrementar la inclusión social, productiva y política | N140: 2053 | P140: 30507754 | Q140: CAROLINA CALDERON HENAO | R140: Persona Natural | V140: 0 | X140: 0 | Z140: 6992000 | AA140: 6992000 | AB140: 6992000 | AC140: 2021-04-19 | AD140: 2021-04-19 | AE140: 2022-01-18 | AF140: 288 | AG140: 1 | AH140: 18 | AM140: Terminado | AN140: 1
A141: 147-2021 | B141: 2021 | C141: FDLBUCD-164-2021 | D141: https://community.secop.gov.co/Public/Tendering/ContractNoticePhases/View?PPI=CO1.PPI.12747143&isFromPublicArea=True&isModal=False | E141: Contratos de prestación de servicios profesionales y de apoyo a la gestión | F141: Contratación directa | G141: Prestación de servicios profesionales y de apoyo a la gestión, o para la ejecución de trabajos artísticos que sólo puedan encomendarse a determinadas personas naturales | H141: PRESTAR SERVICIOS PROFESIONALES PARA APOYAR AL ÁREA GESTIÓN DEL DESARROLLO ADMINISTRATIVO Y FINANCIERO EN LOS ASUNTOS RELATIVOS A LA PLANEACIÓN LOCAL: GARANTIZAR EL CUMPLIMIENTO DE LA META INTERVENIR UNA SEDE CULTURAL CON DOTACIÓN Y/O ADECUACIÓN DEL PROYECTO CULTU RA PARA EL DESARROLLO SOCIAL EN EL MARCO DE LA INICIATIVA PRIORIZADA DE PRESUPUESTOS PARTICIPATIVOS. SEGUN CONTRATO DE PRESTACION DE SERVICIOS PROFESIONALES 147 DE 2021. REEMPLAZA CDP 396 Y CRP 462 POR CONSTITUIRSE OBLIGACIONES POR PAGAR. | I141: Inversión | J141: Un nuevo contrato social y ambiental para la Bogotá del Siglo XXI | K141: 21 | L141: =IF(ISERROR(VLOOKUP(K141,[1]Proposito_programa!$C$2:$E$59,2,FALSE))," ",VLOOKUP(K141,[1]Proposito_programa!$C$2:$E$59,2,FALSE)) -> Creación y vida cotidiana: Apropiación ciudadana del arte, la cultura y el patrimonio, para la democracia cultural | M141: =IF(ISERROR(VLOOKUP(K141,[1]Proposito_programa!$C$2:$E$59,3,FALSE))," ",VLOOKUP(K141,[1]Proposito_programa!$C$2:$E$59,3,FALSE)) -> Propósito 1: Hacer un nuevo contrato social para incrementar la inclusión social, productiva y política | N141: 2012 | P141: 1018457722 | Q141: JHOJAN GONZALO PAREDES LOZADA | R141: Persona Natural | V141: 0 | X141: 0 | Z141: 6992000 | AA141: 6992000 | AB141: 6992000 | AC141: 2021-04-16 | AD141: 2021-04-19 | AE141: 2022-01-18 | AF141: 288 | AG141: 1 | AH141: 18 | AM141: Terminado | AN141: 1
A142: 148-2021 | B142: 2021 | C142: FDLBUCD-155-2021 | D142: https://community.secop.gov.co/Public/Tendering/ContractNoticePhases/View?PPI=CO1.PPI.12756091&isFromPublicArea=True&isModal=False | E142: Contratos de prestación de servicios profesionales y de apoyo a la gestión | F142: Contratación directa | G142: Prestación de servicios profesionales y de apoyo a la gestión, o para la ejecución de trabajos artísticos que sólo puedan encomendarse a determinadas personas naturales | H142: PRESTAR SERVICIOS PROFESIONALES PARA APOYAR AL ÁREA GESTIÓN DEL DESARROLLO ADMINISTRATIVO Y FINANCIERO EN LOS ASUNTOS RELATIVOS A LA PLANEACIÓN LOCAL: GARANTIZAR LA IMPLEMENTACIÓN Y SEGUIMIENTO DE LOS PROCESOS, PROYECTOS Y PROCEDIMIENTOS DE CONTRATOS SUSCRITOS POR LA ALCALDÍA LOCAL DE BARRIOS UNIDOS DIRIGIDOS AL CUMPLIMIENTO DE LAS METAS DE BARRIOS UNIDOS TERRITORIO DE PAZ. SEGUN CONTRATO DE P RESTACION DE SERVICIOS PROFESIONALES 148 DE 2021. REEMPLAZA CDP 384 Y CRP 464 POR CONSTITUIRSE OBLIGACIONES POR PAGAR. | I142: Inversión | J142: Un nuevo contrato social y ambiental para la Bogotá del Siglo XXI | K142: 39 | L142: =IF(ISERROR(VLOOKUP(K142,[1]Proposito_programa!$C$2:$E$59,2,FALSE))," ",VLOOKUP(K142,[1]Proposito_programa!$C$2:$E$59,2,FALSE)) -> Bogotá territorio de paz y atención integral a las víctimas del conflicto armado | M142: =IF(ISERROR(VLOOKUP(K142,[1]Proposito_programa!$C$2:$E$59,3,FALSE))," ",VLOOKUP(K142,[1]Proposito_programa!$C$2:$E$59,3,FALSE)) -> Propósito 3: Inspirar confianza y legitimidad para vivir sin miedo y ser epicentro de cultura ciudadana, paz y reconciliación | N142: 2030 | P142: 79955443 | Q142: ALEXANDER AGUSTIN MOJICA CANCELADO | R142: Persona Natural | V142: 0 | X142: 0 | Z142: 7137667 | AA142: 7137667 | AB142: 7137667 | AC142: 2021-04-16 | AD142: 2021-04-20 | AE142: 2022-01-19 | AF142: 289 | AG142: 1 | AH142: 19 | AM142: Terminado | AN142: 1
A143: 149-2021 | B143: 2021 | C143: FDLBUCD-134-2021 | D143: https://community.secop.gov.co/Public/Tendering/ContractNoticePhases/View?PPI=CO1.PPI.12877489&isFromPublicArea=True&isModal=False | E143: Contratos de prestación de servicios profesionales y de apoyo a la gestión | F143: Contratación directa | G143: Prestación de servicios profesionales y de apoyo a la gestión, o para la ejecución de trabajos artísticos que sólo puedan encomendarse a determinadas personas naturales | H143: PRESTAR SERVICIOS DE APOYO A LA GESTIÓN DEL DESARROLLO EN LAS LABORES DE PLANEACIÓN REFERENTES A LA REACTIVACIÓN DE LA ECONOMÍA LOCA L. SEGUN CONTRATO DE PRESTACION DE SERVICIOS DE APOYO A LA GESTION 149 DE 2021. REEMPLAZA CDP 354 Y CRP 463 POR CONSTITUIRSE OBLIGAC IONES POR PAGAR. | I143: Inversión | J143: Un nuevo contrato social y ambiental para la Bogotá del Siglo XXI | K143: 6 | L143: =IF(ISERROR(VLOOKUP(K143,[1]Proposito_programa!$C$2:$E$59,2,FALSE))," ",VLOOKUP(K143,[1]Proposito_programa!$C$2:$E$59,2,FALSE)) -> Sistema Distrital de Cuidado | M143: =IF(ISERROR(VLOOKUP(K143,[1]Proposito_programa!$C$2:$E$59,3,FALSE))," ",VLOOKUP(K143,[1]Proposito_programa!$C$2:$E$59,3,FALSE)) -> Propósito 1: Hacer un nuevo contrato social para incrementar la inclusión social, productiva y política | N143: 2135 | P143: 64574720 | Q143: MARTA BEATRIZ BUELVAS PADILLA | R143: Persona Natural | V143: 0 | X143: 0 | Z143: 1756433 | AA143: 1756433 | AB143: 1756433 | AC143: 2021-04-16 | AD143: 2021-05-06 | AE143: 2021-12-29 | AF143: 234 | AG143: 1 | AH143: 24 | AM143: Terminado | AN143: 1
A144: 150-2021 | B144: 2021 | C144: FDLBUCD-171-2021 | D144: https://community.secop.gov.co/Public/Tendering/ContractNoticePhases/View?PPI=CO1.PPI.12797261&isFromPublicArea=True&isModal=False | E144: Contratos de prestación de servicios profesionales y de apoyo a la gestión | F144: Contratación directa | G144: Prestación de servicios profesionales y de apoyo a la gestión, o para la ejecución de trabajos artísticos que sólo puedan encomendarse a determinadas personas naturales | H144: PRESTAR SERVICIOS DE APOYO A LA GESTIÓN DEL DESARROLLO EN LABORES DE PLANEACIÓN EN LAS ACTIVIDADES RELATIVAS A LA MEMORIA, LA PAZ Y LA RECONCILIACIÓN EN EL MARCO DEL PROYECTO DE INVERSIÓN BARRIOS UNIDOS TERRITORIO DE PAZ. SEGUN CONTRATO DE PRESTACION DE SERVICIOS DE APOYO A LA GESTION 150 DE 2021. REEMPLAZA CDP 382 Y CRP 473 POR CONSTITUIRSE OBLIGACIONES POR PAGAR. | I144: Inversión | J144: Un nuevo contrato social y ambiental para la Bogotá del Siglo XXI | K144: 39 | L144: =IF(ISERROR(VLOOKUP(K144,[1]Proposito_programa!$C$2:$E$59,2,FALSE))," ",VLOOKUP(K144,[1]Proposito_programa!$C$2:$E$59,2,FALSE)) -> Bogotá territorio de paz y atención integral a las víctimas del conflicto armado | M144: =IF(ISERROR(VLOOKUP(K144,[1]Proposito_programa!$C$2:$E$59,3,FALSE))," ",VLOOKUP(K144,[1]Proposito_programa!$C$2:$E$59,3,FALSE)) -> Propósito 3: Inspirar confianza y legitimidad para vivir sin miedo y ser epicentro de cultura ciudadana, paz y reconciliación | N144: 2030 | P144: 1033744923 | Q144: LEIDY LORENA CUERVO GONZALEZ | R144: Persona Natural | V144: 0 | X144: 0 | Z144: 2725500 | AA144: 2725500 | AB144: 2725500 | AC144: 2021-04-20 | AD144: 2021-04-22 | AE144: 2022-01-15 | AF144: 264 | AG144: 1 | AH144: 24 | AM144: Terminado | AN144: 1
A145: 151-2021 | B145: 2021 | C145: FDLBUCD-169-2021 | D145: https://community.secop.gov.co/Public/Tendering/ContractNoticePhases/View?PPI=CO1.PPI.12885876&isFromPublicArea=True&isModal=False | E145: Contratos de prestación de servicios profesionales y de apoyo a la gestión | F145: Contratación directa | G145: Prestación de servicios profesionales y de apoyo a la gestión, o para la ejecución de trabajos artísticos que sólo puedan encomendarse a determinadas personas naturales | H145: PRESTAR SERVICIOS DE APOYO A LA GESTIÓN DEL DESARROLLO EN LAS LABORES DE PLANEACIÓN REFERENTES A LA REACTIVACIÓN DE LA ECONOMÍA LOCA L. SEGUN CONTRATO DE PRESTACION DE SERVICIO DE APOYO A LA GESTION 151 DE 2021 REEMPLAZA CDP 354 Y CRP 466 POR CONSTITUIRSE OBLIGACIO NES POR PAGAR. | I145: Inversión | J145: Un nuevo contrato social y ambiental para la Bogotá del Siglo XXI | K145: 6 | L145: =IF(ISERROR(VLOOKUP(K145,[1]Proposito_programa!$C$2:$E$59,2,FALSE))," ",VLOOKUP(K145,[1]Proposito_programa!$C$2:$E$59,2,FALSE)) -> Sistema Distrital de Cuidado | M145: =IF(ISERROR(VLOOKUP(K145,[1]Proposito_programa!$C$2:$E$59,3,FALSE))," ",VLOOKUP(K145,[1]Proposito_programa!$C$2:$E$59,3,FALSE)) -> Propósito 1: Hacer un nuevo contrato social para incrementar la inclusión social, productiva y política | N145: 2135 | P145: 1018515376 | Q145: JUAN CAMILO RAMOS CALDERON | R145: Persona Natural | V145: 0 | X145: 0 | Z145: 1332467 | AA145: 1332467 | AB145: 1332467 | AC145: 2021-04-16 | AD145: 2021-04-23 | AE145: 2021-11-22 | AF145: 210 | AM145: Terminado | AN145: 1
A146: 152-2021 | B146: 2021 | C146: FDLBUCD-135-2021 | D146: https://community.secop.gov.co/Public/Tendering/ContractNoticePhases/View?PPI=CO1.PPI.12890736&isFromPublicArea=True&isModal=False | E146: Contratos de prestación de servicios profesionales y de apoyo a la gestión | F146: Contratación directa | G146: Prestación de servicios profesionales y de apoyo a la gestión, o para la ejecución de trabajos artísticos que sólo puedan encomendarse a determinadas personas naturales | H146: PRESTAR SERVICIOS DE APOYO A LA GESTIÓN DEL DESARROLLO EN LAS LABORES DE PLANEACIÓN REFERENTES A LA REACTIVACIÓN DE LA ECONOMÍA LOCA L. SEGUN CONTRATO DE PRESTACION DE SERVICIOS DE APOYO A LA GESTION 152 DE 2021. REEMPLAZA CDP 354 Y CRP 465 POR CONSTITUIRSE OBLIGAC IONES POR PAGAR. | I146: Inversión | J146: Un nuevo contrato social y ambiental para la Bogotá del Siglo XXI | K146: 6 | L146: =IF(ISERROR(VLOOKUP(K146,[1]Proposito_programa!$C$2:$E$59,2,FALSE))," ",VLOOKUP(K146,[1]Proposito_programa!$C$2:$E$59,2,FALSE)) -> Sistema Distrital de Cuidado | M146: =IF(ISERROR(VLOOKUP(K146,[1]Proposito_programa!$C$2:$E$59,3,FALSE))," ",VLOOKUP(K146,[1]Proposito_programa!$C$2:$E$59,3,FALSE)) -> Propósito 1: Hacer un nuevo contrato social para incrementar la inclusión social, productiva y política | N146: 2135 | P146: 1030546475 | Q146: JONATHAN ALEJANDRO RODRIGUEZ NIÑO | R146: Persona Natural | V146: 0 | X146: 0 | Z146: 1211333 | AA146: 1211333 | AB146: 1211333 | AC146: 2021-04-17 | AD146: 2021-04-21 | AE146: 2021-11-20 | AF146: 210 | AM146: Terminado | AN146: 1
A147: 153-2021 | B147: 2021 | C147: FDLBUCD-178-2021 | D147: https://community.secop.gov.co/Public/Tendering/ContractNoticePhases/View?PPI=CO1.PPI.12840318&isFromPublicArea=True&isModal=False | E147: Contratos de prestación de servicios profesionales y de apoyo a la gestión | F147: Contratación directa | G147: Prestación de servicios profesionales y de apoyo a la gestión, o para la ejecución de trabajos artísticos que sólo puedan encomendarse a determinadas personas naturales | H147: PRESTAR SERVICIOS DE APOYO A LA GESTIÓN DEL DESARROLLO EN EL ÁREA DE PLANEACIÓN EN LAS ACTIVIDADES ENMARCADAS EN EL CUMPLIMIENTO DE LA META DE ACUERDOS EN COMUNIDAD PARA LA VIGENCIA 2021. SEGUN CONTRATO DE PRESTACION DE SERVICIOS DE APOYO A LA GESTION 153 DE 2021. REEMPLAZA CDP 343 Y CRP 471 POR CONSTITUIRSE OBLIGACIONES POR PAGAR. | I147: Inversión | J147: Un nuevo contrato social y ambiental para la Bogotá del Siglo XXI | K147: 45 | L147: =IF(ISERROR(VLOOKUP(K147,[1]Proposito_programa!$C$2:$E$59,2,FALSE))," ",VLOOKUP(K147,[1]Proposito_programa!$C$2:$E$59,2,FALSE)) -> Espacio público más seguro y construido colectivamente | M147: =IF(ISERROR(VLOOKUP(K147,[1]Proposito_programa!$C$2:$E$59,3,FALSE))," ",VLOOKUP(K147,[1]Proposito_programa!$C$2:$E$59,3,FALSE)) -> Propósito 3: Inspirar confianza y legitimidad para vivir sin miedo y ser epicentro de cultura ciudadana, paz y reconciliación | N147: 2038 | P147: 52019196 | Q147: GLADYS ROCIO GUERRA FORERO | R147: Persona Natural | V147: 0 | X147: 0 | Z147: 1514000 | AA147: 1514000 | AB147: 1514000 | AC147: 2021-04-20 | AD147: 2021-04-21 | AE147: 2021-12-20 | AF147: 240 | AM147: Terminado | AN147: 1
A148: 154-2021 | B148: 2021 | C148: FDLBUCD-116-2021 | D148: https://community.secop.gov.co/Public/Tendering/ContractNoticePhases/View?PPI=CO1.PPI.12654342&isFromPublicArea=True&isModal=False | E148: Contratos de prestación de servicios profesionales y de apoyo a la gestión | F148: Contratación directa | G148: Prestación de servicios profesionales y de apoyo a la gestión, o para la ejecución de trabajos artísticos que sólo puedan encomendarse a determinadas personas naturales | H148: PRESTAR SERVICIOS DE APOYO A LA GESTIÓN DEL DESARROLLO EN LAS LABORES DE PLANEACIÓN EN LAS ACTIVIDADES CONCERNIENTES AL PROYECTO IMP ULSEMOS ECONOMÍA LOCAL. SEGUN CONTRATO DE PRESTACION DE SERVICIOS DE APOYO A LA GESTION 154 DEL 2021. REEMPLAZA CDP 355 Y CRP 470 PO R CONSTITUIRSE OBLIGACIONES POR PAGAR. | I148: Inversión | J148: Un nuevo contrato social y ambiental para la Bogotá del Siglo XXI | K148: 6 | L148: =IF(ISERROR(VLOOKUP(K148,[1]Proposito_programa!$C$2:$E$59,2,FALSE))," ",VLOOKUP(K148,[1]Proposito_programa!$C$2:$E$59,2,FALSE)) -> Sistema Distrital de Cuidado | M148: =IF(ISERROR(VLOOKUP(K148,[1]Proposito_programa!$C$2:$E$59,3,FALSE))," ",VLOOKUP(K148,[1]Proposito_programa!$C$2:$E$59,3,FALSE)) -> Propósito 1: Hacer un nuevo contrato social para incrementar la inclusión social, productiva y política | N148: 2135 | P148: 1133839106 | Q148: VIUNYS PAOLA VERGARA SOTO | R148: Persona Natural | V148: 0 | X148: 0 | Z148: 2119600 | AA148: 2119600 | AB148: 2119600 | AC148: 2021-04-20 | AD148: 2021-04-22 | AE148: 2021-12-28 | AF148: 247 | AG148: 1 | AH148: 7 | AM148: Terminado | AN148: 1
A149: 155-2021 | B149: 2021 | C149: FDLBUCD-175-2021 | D149: https://community.secop.gov.co/Public/Tendering/ContractNoticePhases/View?PPI=CO1.PPI.12880908&isFromPublicArea=True&isModal=False | E149: Contratos de prestación de servicios profesionales y de apoyo a la gestión | F149: Contratación directa | G149: Prestación de servicios profesionales y de apoyo a la gestión, o para la ejecución de trabajos artísticos que sólo puedan encomendarse a determinadas personas naturales | H149: PRESTAR SERVICIOS DE APOYO A LA DE GESTIÓN DEL DESARROLLO EN LAS LABORES DE PLANEACIÓN CON EL FIN DE LOGRAR EL CUMPLIMIENTO DE LAS M ETAS DEL PLAN DE DESARROLLO LOCAL DE LA VIGENCIA RELATIVAS AL PROYECTO IMPULSEMOS ECONOMÍA LOCAL. SEGUN CONTRATO DE PRESTACION DE SE RVICIOS DE APOYO A LA GESTION 155 DE 2021. REEMPLAZA CDP 416 Y CRP 469 POR CONSTITUIRSE OBLIGACIONES POR PAGAR. | I149: Inversión | J149: Un nuevo contrato social y ambiental para la Bogotá del Siglo XXI | K149: 6 | L149: =IF(ISERROR(VLOOKUP(K149,[1]Proposito_programa!$C$2:$E$59,2,FALSE))," ",VLOOKUP(K149,[1]Proposito_programa!$C$2:$E$59,2,FALSE)) -> Sistema Distrital de Cuidado | M149: =IF(ISERROR(VLOOKUP(K149,[1]Proposito_programa!$C$2:$E$59,3,FALSE))," ",VLOOKUP(K149,[1]Proposito_programa!$C$2:$E$59,3,FALSE)) -> Propósito 1: Hacer un nuevo contrato social para incrementar la inclusión social, productiva y política | N149: 2135 | P149: 1030648943 | Q149: KARLA ANDREA TARAZONA RAMIREZ | R149: Persona Natural | V149: 0 | X149: 0 | Z149: 3616667 | AA149: 3616667 | AB149: 3616667 | AC149: 2021-04-19 | AD149: 2021-04-22 | AE149: 2022-01-05 | AF149: 260 | AG149: 1 | AH149: 5 | AM149: Liquidado | AN149: 1
A150: 156-2021 | B150: 2021 | C150: FDLBUCD-172-2021 | D150: https://community.secop.gov.co/Public/Tendering/ContractNoticePhases/View?PPI=CO1.PPI.12870252&isFromPublicArea=True&isModal=False | E150: Contratos de prestación de servicios profesionales y de apoyo a la gestión | F150: Contratación directa | G150: Prestación de servicios profesionales y de apoyo a la gestión, o para la ejecución de trabajos artísticos que sólo puedan encomendarse a determinadas personas naturales | H150: PRESTAR SERVICIOS DE APOYO A LA GESTIÓN DEL DESARROLLO EN LABORES DE PLANEACIÓN EN LAS ACTIVIDADES RELATIVAS A LA MEMORIA, LA PAZ Y LA RECONCILIACIÓN EN EL MARCO DEL PROYECTO DE INVERSIÓN BARRIOS UNIDOS TERRITORIO DE PAZ. SEGUN CONTRATO DE PRESTACION DE SERVICIOS DE APOYO A LA GESTION 156 DE 2021. REEMPLAZA CDP 382 Y CRP 476 POR CONSTITUIRSE OBLIGACIONES POR PAGAR. | I150: Inversión | J150: Un nuevo contrato social y ambiental para la Bogotá del Siglo XXI | K150: 39 | L150: =IF(ISERROR(VLOOKUP(K150,[1]Proposito_programa!$C$2:$E$59,2,FALSE))," ",VLOOKUP(K150,[1]Proposito_programa!$C$2:$E$59,2,FALSE)) -> Bogotá territorio de paz y atención integral a las víctimas del conflicto armado | M150: =IF(ISERROR(VLOOKUP(K150,[1]Proposito_programa!$C$2:$E$59,3,FALSE))," ",VLOOKUP(K150,[1]Proposito_programa!$C$2:$E$59,3,FALSE)) -> Propósito 3: Inspirar confianza y legitimidad para vivir sin miedo y ser epicentro de cultura ciudadana, paz y reconciliación | N150: 2030 | P150: 1014234728 | Q150: JINNA PAOLA GERENA ROJAS | R150: Persona Natural | V150: 0 | X150: 0 | Z150: 2543800 | AA150: 2543800 | AB150: 2543800 | AC150: 2021-04-21 | AD150: 2021-04-28 | AE150: 2022-01-15 | AF150: 258 | AG150: 1 | AH150: 18 | AM150: Terminado | AN150: 1
A151: OC 66323 | B151: 2021 | C151: 66323 | D151: https://www.colombiacompra.gov.co/tienda-virtual-del-estado-colombiano/ordenes-compra/66323 | E151: Otros | F151: Selección abreviada | G151: Acuerdo marco de precios | H151: Prestar el servicio integral de aseo y cafetería incluida la maquinaria, los equipos necesarios para el desarrollo del mismo y el su ministro de insumos para las dependencias de la Alcaldía Local de Barrios Unidos. Segun orden de compra 66323. REEMPLAZA CDP 381 Y C RP 412 POR CONSTITUIRSE OBLIGACIONES POR PAGAR. | I151: Funcionamiento | J151: Un nuevo contrato social y ambiental para la Bogotá del Siglo XXI | K151: No aplica | L151: =IF(ISERROR(VLOOKUP(K151,[1]Proposito_programa!$C$2:$E$59,2,FALSE))," ",VLOOKUP(K151,[1]Proposito_programa!$C$2:$E$59,2,FALSE)) ->  | M151: =IF(ISERROR(VLOOKUP(K151,[1]Proposito_programa!$C$2:$E$59,3,FALSE))," ",VLOOKUP(K151,[1]Proposito_programa!$C$2:$E$59,3,FALSE)) ->  | N151: 0 | O151: 3 | P151: 901351386 | Q151: UNION TEMPORAL EMINSER-SOLOASEO 2020 | R151: Union Temporal | S151: 830035037 | T151: EMINSER SAS | U151: 0.7 | V151: 0 | X151: 0 | Z151: 34884369 | AA151: =+W151+X151+Z151 -> 34884369 | AB151: 32737045 | AC151: 2021-03-26 | AD151: 2021-04-05 | AE151: 2022-02-04 | AF151: 300 | AM151: Terminado | AN151: =IF(ISERROR(AB151/AA151),"-",(AB151/AA151)) -> 0.9384445222
A152: OC 66323 | B152: 2021 | C152: 66323 | D152: https://www.colombiacompra.gov.co/tienda-virtual-del-estado-colombiano/ordenes-compra/66323 | E152: Otros | F152: Selección abreviada | G152: Acuerdo marco de precios | H152: Prestar el servicio integral de aseo y cafetería incluida la maquinaria, los equipos necesarios para el desarrollo del mismo y el su ministro de insumos para las dependencias de la Alcaldía Local de Barrios Unidos. Segun orden de compra 66323. REEMPLAZA CDP 381 Y C RP 412 POR CONSTITUIRSE OBLIGACIONES POR PAGAR. | L152: =IF(ISERROR(VLOOKUP(K152,[1]Proposito_programa!$C$2:$E$59,2,FALSE))," ",VLOOKUP(K152,[1]Proposito_programa!$C$2:$E$59,2,FALSE)) ->  | M152: =IF(ISERROR(VLOOKUP(K152,[1]Proposito_programa!$C$2:$E$59,3,FALSE))," ",VLOOKUP(K152,[1]Proposito_programa!$C$2:$E$59,3,FALSE)) ->  | S152: 90059134 | T152: SOLOASEO DISTRIBUCIONES SAS | U152: 0.25 | V152: 0 | X152: 0 | AA152: 0 | AB152: 0
A153: OC 66323 | B153: 2021 | C153: 66323 | D153: https://www.colombiacompra.gov.co/tienda-virtual-del-estado-colombiano/ordenes-compra/66323 | E153: Otros | F153: Selección abreviada | G153: Acuerdo marco de precios | H153: Prestar el servicio integral de aseo y cafetería incluida la maquinaria, los equipos necesarios para el desarrollo del mismo y el su ministro de insumos para las dependencias de la Alcaldía Local de Barrios Unidos. Segun orden de compra 66323. REEMPLAZA CDP 381 Y C RP 412 POR CONSTITUIRSE OBLIGACIONES POR PAGAR. | L153: =IF(ISERROR(VLOOKUP(K153,[1]Proposito_programa!$C$2:$E$59,2,FALSE))," ",VLOOKUP(K153,[1]Proposito_programa!$C$2:$E$59,2,FALSE)) ->  | M153: =IF(ISERROR(VLOOKUP(K153,[1]Proposito_programa!$C$2:$E$59,3,FALSE))," ",VLOOKUP(K153,[1]Proposito_programa!$C$2:$E$59,3,FALSE)) ->  | S153: 19254921 | T153: NELSON ORLANDO ESPITIA CAMARGO | U153: 0.05 | V153: 0 | X153: 0 | AA153: 0 | AB153: 0
A154: 157-2021 | B154: 2021 | C154: FDLBUCD-177-2021 | D154: https://community.secop.gov.co/Public/Tendering/ContractNoticePhases/View?PPI=CO1.PPI.12842500&isFromPublicArea=True&isModal=False | E154: Contratos de prestación de servicios profesionales y de apoyo a la gestión | F154: Contratación directa | G154: Prestación de servicios profesionales y de apoyo a la gestión, o para la ejecución de trabajos artísticos que sólo puedan encomendarse a determinadas personas naturales | H154: PRESTAR SERVICIOS PROFESIONALES PARA APOYAR AL ÁREA GESTIÓN DEL DESARROLLO ADMINISTRATIVO Y FINANCIERO EN LOS ASUNTOS RELATIVOS A LA PLANEACIÓN LOCAL: GARANTIZAR LA IMPLEMENTACIÓN Y SEGUIMIENTO DE LOS PROCESOS, PROYECTOS Y PROCEDIMIENTOS DE CONTRATOS SUSCRITOS POR LA ALCALDÍA LOCAL DE BARRIOS UNIDOS DIRIGIDOS AL CUMPLIMIENTO DE LAS META DE PEDAGOGÍA DEL CÓDIGO NACIONAL DE SEGURIDAD Y CONVIVENC IA. SEGUN CONTRATO DE PRESTACION DE SERVICIOS PROFESIONALES 157 DE 2021. REEMPLAZA CDP 412 Y CRP 475 POR CONSTITUIRSE OBLIGACIONES P OR PAGAR. | I154: Inversión | J154: Un nuevo contrato social y ambiental para la Bogotá del Siglo XXI | K154: 48 | L154: =IF(ISERROR(VLOOKUP(K154,[1]Proposito_programa!$C$2:$E$59,2,FALSE))," ",VLOOKUP(K154,[1]Proposito_programa!$C$2:$E$59,2,FALSE)) -> Plataforma institucional para la seguridad y justicia | M154: =IF(ISERROR(VLOOKUP(K154,[1]Proposito_programa!$C$2:$E$59,3,FALSE))," ",VLOOKUP(K154,[1]Proposito_programa!$C$2:$E$59,3,FALSE)) -> Propósito 3: Inspirar confianza y legitimidad para vivir sin miedo y ser epicentro de cultura ciudadana, paz y reconciliación | N154: 2153 | P154: 1032456062 | Q154: LAURA KATHERIN LAMPREA MARTINEZ | R154: Persona Natural | V154: 0 | X154: 0 | Z154: 5389667 | AA154: 5389667 | AB154: 5389667 | AC154: 2021-04-21 | AD154: 2021-04-23 | AE154: 2022-01-07 | AF154: 262 | AG154: 1 | AH154: 7 | AM154: Terminado | AN154: 1
A155: 158-2021 | B155: 2021 | C155: FDLBUCD-166-2021 | D155: https://community.secop.gov.co/Public/Tendering/ContractNoticePhases/View?PPI=CO1.PPI.12910108&isFromPublicArea=True&isModal=False | E155: Contratos de prestación de servicios profesionales y de apoyo a la gestión | F155: Contratación directa | G155: Prestación de servicios profesionales y de apoyo a la gestión, o para la ejecución de trabajos artísticos que sólo puedan encomendarse a determinadas personas naturales | H155: PRESTAR SERVICIOS DE APOYO A LA GESTIÓN DEL DESARROLLO EN LABORES DE PLANEACIÓN EN LAS ACTIVIDADES RELATIVAS A DEPORTE, RECREACIÓN Y CULTURA. SEGUN CONTRATO DE PRESTACION DE SERVICIOS DE APOYO A LA GESTION 158 DE 2021. REEMPLAZA CDP 398 Y CRP 477 POR CONSTITUIRSE OBLIGACIONES POR PAGAR. | I155: Inversión | J155: Un nuevo contrato social y ambiental para la Bogotá del Siglo XXI | K155: 21 | L155: =IF(ISERROR(VLOOKUP(K155,[1]Proposito_programa!$C$2:$E$59,2,FALSE))," ",VLOOKUP(K155,[1]Proposito_programa!$C$2:$E$59,2,FALSE)) -> Creación y vida cotidiana: Apropiación ciudadana del arte, la cultura y el patrimonio, para la democracia cultural | M155: =IF(ISERROR(VLOOKUP(K155,[1]Proposito_programa!$C$2:$E$59,3,FALSE))," ",VLOOKUP(K155,[1]Proposito_programa!$C$2:$E$59,3,FALSE)) -> Propósito 1: Hacer un nuevo contrato social para incrementar la inclusión social, productiva y política | N155: 2012 | P155: 80110196 | Q155: EDGAR MAURICIO VARGAS LESMES | R155: Persona Natural | V155: 0 | X155: 0 | Z155: 3406500 | AA155: 3406500 | AB155: 3406500 | AC155: 2021-04-22 | AD155: 2021-04-26 | AE155: 2022-01-15 | AF155: 260 | AG155: 1 | AH155: 20 | AM155: Terminado | AN155: 1
A156: 159-2021 | B156: 2021 | C156: FDLBUCD-156-2021 | D156: https://community.secop.gov.co/Public/Tendering/ContractNoticePhases/View?PPI=CO1.PPI.12794825&isFromPublicArea=True&isModal=False | E156: Contratos de prestación de servicios profesionales y de apoyo a la gestión | F156: Contratación directa | G156: Prestación de servicios profesionales y de apoyo a la gestión, o para la ejecución de trabajos artísticos que sólo puedan encomendarse a determinadas personas naturales | H156: PRESTAR SERVICIOS PROFESIONALES PARA APOYAR AL ÁREA GESTIÓN DEL DESARROLLO ADMINISTRATIVO Y FINANCIERO EN LOS ASUNTOS RELATIVOS A LA PLANEACIÓN LOCAL: COORDINAR Y GARANTIZAR LA IMPLEMENTACIÓN Y SEGUIMIENTO DE LOS PROCESOS, PROYECTOS Y PROCEDIMIENTOS DE CONTRATOS S USCRITOS POR LA ALCALDÍA LOCAL DE BARRIOS UNIDOS DIRIGIDOS AL CUMPLIMIENTO DE LAS METAS DE LA LÍNEA DE INVERSIONES AMBIENTALES SOSTE NIBLES. SEGUN CONTRATO DE PRESTACION DE SERVICIOS PROFESIONALES 159 DE 2021. REEMPLAZA CDP 401 Y CRP 478 POR CONSTITUIRSE OBLIGACION ES POR PAGAR. | I156: Inversión | J156: Un nuevo contrato social y ambiental para la Bogotá del Siglo XXI | K156: 27 | L156: =IF(ISERROR(VLOOKUP(K156,[1]Proposito_programa!$C$2:$E$59,2,FALSE))," ",VLOOKUP(K156,[1]Proposito_programa!$C$2:$E$59,2,FALSE)) -> Cambio cultural para la gestión de la crisis climática | M156: =IF(ISERROR(VLOOKUP(K156,[1]Proposito_programa!$C$2:$E$59,3,FALSE))," ",VLOOKUP(K156,[1]Proposito_programa!$C$2:$E$59,3,FALSE)) -> Propósito 2 : Cambiar Nuestros Hábitos de Vida para Reverdecer a Bogotá y Adaptarnos y Mitigar la Crisis Climática | N156: 2011 | P156: 1014260138 | Q156: DIANA PAOLA LOPEZ DUARTE | R156: Persona Natural | V156: 0 | X156: 0 | Z156: 8233333 | AA156: 8233333 | AB156: 8233333 | AC156: 2021-04-22 | AD156: 2021-04-23 | AE156: 2022-01-22 | AF156: 292 | AG156: 1 | AH156: 22 | AM156: Terminado | AN156: 1
A157: 160-2021 | B157: 2021 | C157: FDLBUCD-183-2021 | D157: https://community.secop.gov.co/Public/Tendering/ContractNoticePhases/View?PPI=CO1.PPI.12922331&isFromPublicArea=True&isModal=False | E157: Contratos de prestación de servicios profesionales y de apoyo a la gestión | F157: Contratación directa | G157: Prestación de servicios profesionales y de apoyo a la gestión, o para la ejecución de trabajos artísticos que sólo puedan encomendarse a determinadas personas naturales | H157: PRESTAR SERVICIOS PROFESIONALES PARA APOYAR AL ÁREA GESTIÓN DEL DESARROLLO ADMINISTRATIVO Y FINANCIERO EN LOS ASUNTOS RELATIVOS A LA PLANEACIÓN LOCAL: GARANTIZAR LA IMPLEMENTACIÓN Y SEGUIMIENTO DE LOS PROCESOS, PROYECTOS Y PROCEDIMIENTOS DE CONTRATOS SUSCRITOS POR LA ALCALDÍA LOCAL DE BARRIOS UNIDOS DIRIGIDOS AL CUMPLIMIENTO DE LAS METAS DE LA LÍNEA DE INVERSIONES AMBIENTALES SOSTENIBLES. SEGU N CONTRATO DE PRESTACION DE SERVICIOS PROFESIONALES 160 DE 2021. REEMPLAZA CDP 388 Y CRP 481 POR CONSTITUIRSE OBLIGACIONES POR PAGAR . | I157: Inversión | J157: Un nuevo contrato social y ambiental para la Bogotá del Siglo XXI | K157: 24 | L157: =IF(ISERROR(VLOOKUP(K157,[1]Proposito_programa!$C$2:$E$59,2,FALSE))," ",VLOOKUP(K157,[1]Proposito_programa!$C$2:$E$59,2,FALSE)) -> Bogotá región emprendedora e innovadora | M157: =IF(ISERROR(VLOOKUP(K157,[1]Proposito_programa!$C$2:$E$59,3,FALSE))," ",VLOOKUP(K157,[1]Proposito_programa!$C$2:$E$59,3,FALSE)) -> Propósito 1: Hacer un nuevo contrato social para incrementar la inclusión social, productiva y política | N157: 2073 | P157: 53130506 | Q157: ANGELICA MARIA ESPINO | R157: Persona Natural | V157: 0 | X157: 0 | Z157: 7574667 | AA157: 7574667 | AB157: 7574667 | AC157: 2021-04-23 | AD157: 2021-04-26 | AE157: 2022-01-22 | AF157: 307 | AG157: 1 | AH157: 22 | AM157: Liquidado | AN157: 1
A158: 161-2021 | B158: 2021 | C158: FDLBUCD-187-2021 | D158: https://community.secop.gov.co/Public/Tendering/ContractNoticePhases/View?PPI=CO1.PPI.12985948&isFromPublicArea=True&isModal=False | E158: Contratos de prestación de servicios profesionales y de apoyo a la gestión | F158: Contratación directa | G158: Prestación de servicios profesionales y de apoyo a la gestión, o para la ejecución de trabajos artísticos que sólo puedan encomendarse a determinadas personas naturales | H158: ADICIÓN Y PRÓRROGA 01 AL CTO 161-2021 CON OBJETO PRESTAR SERVICIOS DE APOYO ADMINISTRATIVA Y ASISTENCIALMENTE A LAS INSPECCIONES DE POLICIA DE LA LOCALIDAD. REEMPLAZA CDP 553 Y CRP 669 POR CONSTITUIRSE OBLIGACIONES POR PAGAR. | I158: Inversión | J158: Un nuevo contrato social y ambiental para la Bogotá del Siglo XXI | K158: 57 | L158: =IF(ISERROR(VLOOKUP(K158,[1]Proposito_programa!$C$2:$E$59,2,FALSE))," ",VLOOKUP(K158,[1]Proposito_programa!$C$2:$E$59,2,FALSE)) -> Gestión pública local | M158: =IF(ISERROR(VLOOKUP(K158,[1]Proposito_programa!$C$2:$E$59,3,FALSE))," ",VLOOKUP(K158,[1]Proposito_programa!$C$2:$E$59,3,FALSE)) -> Propósito 5: Construir Bogotá - Región con gobierno abierto, transparente y ciudadanía consciente | N158: 2143 | P158: 79796296 | Q158: EDGAR ANDRES CORTES TORRES | R158: Persona Natural | V158: 0 | X158: 0 | Z158: 2271000 | AA158: 2271000 | AB158: 2271000 | AC158: 2021-04-26 | AD158: 2021-04-28 | AE158: 2021-12-30 | AF158: 243 | AG158: 1 | AH158: 33 | AM158: Terminado | AN158: 1
A159: 162-2021 | B159: 2021 | C159: FDLBUCD-185-2021 | D159: https://community.secop.gov.co/Public/Tendering/ContractNoticePhases/View?PPI=CO1.PPI.12949315&isFromPublicArea=True&isModal=False | E159: Contratos de prestación de servicios profesionales y de apoyo a la gestión | F159: Contratación directa | G159: Prestación de servicios profesionales y de apoyo a la gestión, o para la ejecución de trabajos artísticos que sólo puedan encomendarse a determinadas personas naturales | H159: PRESTAR LOS SERVICIOS PROFESIONALES PARA APOYAR AL ÁREA DE GESTIÓN POLICIVA Y DESPACHO DE LA ALCALDÍA LOCAL, CON EL FIN DE QUE CON S UJECIÓN AL ORDEN DE LLEGADA SE ADELANTEN LOS PROCESOS O PROCEDIMIENTOS CORRESPONDIENTES PARA EL TRÁMITE, AUXILIO Y DEVOLUCIÓN DE LAS COMISIONES QUE EN VIRTUD DEL ARTÍCULO Y SIGUIENTES DEL CÓDIGO GENERAL DE PROCESOS, SEAN DESIGNADAS POR LOS JUECES DE LA REPÚBLICA Y QUE CORRESPONDAN AL ÁMBITO TERRITORIAL DE ESTA ALCALDÍA. SEGUN CONTRATO DE PRESTACION DE SERVICIOS PROFESIONALES 162 DE 2021. REEMP LAZA CDP 419 Y CRP 483 POR CONSTITUIRSE OBLIGACIONES POR PAGAR. | I159: Inversión | J159: Un nuevo contrato social y ambiental para la Bogotá del Siglo XXI | K159: 57 | L159: =IF(ISERROR(VLOOKUP(K159,[1]Proposito_programa!$C$2:$E$59,2,FALSE))," ",VLOOKUP(K159,[1]Proposito_programa!$C$2:$E$59,2,FALSE)) -> Gestión pública local | M159: =IF(ISERROR(VLOOKUP(K159,[1]Proposito_programa!$C$2:$E$59,3,FALSE))," ",VLOOKUP(K159,[1]Proposito_programa!$C$2:$E$59,3,FALSE)) -> Propósito 5: Construir Bogotá - Región con gobierno abierto, transparente y ciudadanía consciente | N159: 2143 | P159: 1015396314 | Q159: FERNANDO AUGUSTO GARCIA BEJARANO | R159: Persona Natural | V159: 0 | X159: 0 | Z159: 8700000 | AA159: 8700000 | AB159: 8700000 | AC159: 2021-04-27 | AD159: 2021-04-28 | AE159: 2022-01-15 | AF159: 258 | AG159: 1 | AH159: 18 | AM159: Terminado | AN159: 1
A160: 163-2021 | B160: 2021 | C160: FDLBUCD-180-2021 | D160: https://community.secop.gov.co/Public/Tendering/ContractNoticePhases/View?PPI=CO1.PPI.12948292&isFromPublicArea=True&isModal=False | E160: Contratos de prestación de servicios profesionales y de apoyo a la gestión | F160: Contratación directa | G160: Prestación de servicios profesionales y de apoyo a la gestión, o para la ejecución de trabajos artísticos que sólo puedan encomendarse a determinadas personas naturales | H160: PRESTAR SERVICIOS DE APOYO A LA GESTIÓN DEL DESARROLLO EN LAS ACTIVIDADES DE PEDAGOGÍA DEL CÓDIGO NACIONAL DE SEGURIDAD Y CONVIVENCI A. SEGUN CONTRATO DE PRESTACION DE SERVICIOS DE APOYO A LA GESTION 163 DE 2021. REEMPLAZA CDP 410 Y CRP 487 POR CONSTITUIRSE OBLIGAC IONES POR PAGAR. | I160: Inversión | J160: Un nuevo contrato social y ambiental para la Bogotá del Siglo XXI | K160: 57 | L160: =IF(ISERROR(VLOOKUP(K160,[1]Proposito_programa!$C$2:$E$59,2,FALSE))," ",VLOOKUP(K160,[1]Proposito_programa!$C$2:$E$59,2,FALSE)) -> Gestión pública local | M160: =IF(ISERROR(VLOOKUP(K160,[1]Proposito_programa!$C$2:$E$59,3,FALSE))," ",VLOOKUP(K160,[1]Proposito_programa!$C$2:$E$59,3,FALSE)) -> Propósito 5: Construir Bogotá - Región con gobierno abierto, transparente y ciudadanía consciente | N160: 2143 | P160: 79470484 | Q160: WALTER YAIR GUARIN GONZALEZ | R160: Persona Natural | V160: 0 | X160: 0 | Z160: 2059267 | AA160: 2059267 | AB160: 2059267 | AC160: 2021-04-30 | AD160: 2021-05-05 | AE160: 2022-01-04 | AF160: 244 | AG160: 1 | AH160: 4 | AM160: Terminado | AN160: 1
A161: 164-2021 | B161: 2021 | C161: FDLBUCD-186-2021 | D161: https://community.secop.gov.co/Public/Tendering/ContractNoticePhases/View?PPI=CO1.PPI.12955244&isFromPublicArea=True&isModal=False | E161: Contratos de prestación de servicios profesionales y de apoyo a la gestión | F161: Contratación directa | G161: Prestación de servicios profesionales y de apoyo a la gestión, o para la ejecución de trabajos artísticos que sólo puedan encomendarse a determinadas personas naturales | H161: PRESTAR SERVICIOS PROFESIONALES PARA GESTIÓN DE LOS TRÁMITES DEL PROCESO DE COBRO PERSUASIVO DE ACREENCIAS A FAVOR DE LA ADMINISTRAC IÓN DISTRITAL PARA LOGRAR EL PAGO VOLUNTARIO DE LAS MISMAS, Y SEGUIMIENTO AL COBRO COACTIVO. SEGUN CESION 03 AL CONTRATO DE PRESTACI ON DE SERVICIOS PROFESIONALES 164 DE 2021. REEMPLAZA CDP 418 Y CRP 652 POR CONSTITUIRSE OBLIGACIONES POR PAGAR. | I161: Inversión | J161: Un nuevo contrato social y ambiental para la Bogotá del Siglo XXI | K161: 57 | L161: =IF(ISERROR(VLOOKUP(K161,[1]Proposito_programa!$C$2:$E$59,2,FALSE))," ",VLOOKUP(K161,[1]Proposito_programa!$C$2:$E$59,2,FALSE)) -> Gestión pública local | M161: =IF(ISERROR(VLOOKUP(K161,[1]Proposito_programa!$C$2:$E$59,3,FALSE))," ",VLOOKUP(K161,[1]Proposito_programa!$C$2:$E$59,3,FALSE)) -> Propósito 5: Construir Bogotá - Región con gobierno abierto, transparente y ciudadanía consciente | N161: 2143 | P161: 1016016305 | Q161: JHONATAN DUCUARA CAITA | R161: Persona Natural | V161: 0 | X161: 0 | Z161: 7283333 | AA161: 7283333 | AB161: 7283333 | AC161: 2021-04-29 | AD161: 2021-05-03 | AE161: 2022-01-16 | AF161: 242 | AG161: 1 | AH161: 2 | AI161: 1000269976 | AJ161: KAREN LORENA MARIN CALDERON | AK161: 2021-10-14 | AM161: Terminado | AN161: 1
A162: 166-2021 | B162: 2021 | C162: FDLBUCD-128-2021 | D162: https://community.secop.gov.co/Public/Tendering/ContractNoticePhases/View?PPI=CO1.PPI.12606749&isFromPublicArea=True&isModal=False | E162: Contratos de prestación de servicios profesionales y de apoyo a la gestión | F162: Contratación directa | G162: Prestación de servicios profesionales y de apoyo a la gestión, o para la ejecución de trabajos artísticos que sólo puedan encomendarse a determinadas personas naturales | H162: PRESTAR SERVICIOS DE APOYO A LA GESTIÓN DEL DESARROLLO EN LAS LABORES DE PLANEACIÓN EN LAS ACTIVIDADES RELATIVAS A LA PREVENCIÓN DEL EMBARAZO ADOLESCENTE NO DESEADO. SEGUN CONTRATO DE PRESTACION DE SERVICIOS DE APOYO A LA GESTION 166 DE 2021. REEMPLAZA CDP 366 Y C RP 486 POR CONSTITUIRSE OBLIGACIONES POR PAGAR. | I162: Inversión | J162: Un nuevo contrato social y ambiental para la Bogotá del Siglo XXI | K162: 8 | L162: =IF(ISERROR(VLOOKUP(K162,[1]Proposito_programa!$C$2:$E$59,2,FALSE))," ",VLOOKUP(K162,[1]Proposito_programa!$C$2:$E$59,2,FALSE)) -> Prevención y atención de maternidad temprana | M162: =IF(ISERROR(VLOOKUP(K162,[1]Proposito_programa!$C$2:$E$59,3,FALSE))," ",VLOOKUP(K162,[1]Proposito_programa!$C$2:$E$59,3,FALSE)) -> Propósito 1: Hacer un nuevo contrato social para incrementar la inclusión social, productiva y política | N162: 2151 | P162: 79453631 | Q162: CESAR AUGUSTO BARRERA CUBILLOS | R162: Persona Natural | V162: 0 | X162: 0 | Z162: 1817000 | AA162: 1817000 | AB162: 1817000 | AC162: 2021-04-30 | AD162: 2021-05-06 | AE162: 2021-12-30 | AF162: 235 | AG162: 1 | AH162: 25 | AM162: Terminado | AN162: =IF(ISERROR(AB162/AA162),"-",(AB162/AA162)) -> 1
A163: 167-2021 | B163: 2021 | C163: FDLBUCD-188-2021 | D163: https://community.secop.gov.co/Public/Tendering/ContractNoticePhases/View?PPI=CO1.PPI.13053257&isFromPublicArea=True&isModal=False | E163: Contratos de prestación de servicios profesionales y de apoyo a la gestión | F163: Contratación directa | G163: Prestación de servicios profesionales y de apoyo a la gestión, o para la ejecución de trabajos artísticos que sólo puedan encomendarse a determinadas personas naturales | H163: PRESTAR SERVICIOS PROFESIONALES PARA APOYAR LA GESTIÓN DEL RIESGO QUE PROMUEVA LAS ACCIONES REQUERIDAS PARA LA PREVENCIÓN Y ATENCIÓN DE EMERGENCIAS O EVENTOS GENERADOS POR LA MATERIALIZACIÓN DE LOS RIESGOS Y RESPONDA DE MANERA OPERATIVA E INMEDIATA ANTE LA OCURREN CIA DE SITUACIONES ADVERSAS EN TEMAS DE EMERGENCIAS EN LA LOCALIDAD PARA EL LOGRO DE LAS METAS DE PLAN DE DESARROLLO LOCAL VIGENTE. SEGUN CONTRATO DE PRESTACION DE SERVICIOS PROFESIONALES 167 DE 2021. REEMPLAZA CDP 424 Y CRP 489 POR CONSTITUIRSE OBLIGACIONES POR P AGAR. | I163: Inversión | J163: Un nuevo contrato social y ambiental para la Bogotá del Siglo XXI | K163: 30 | L163: =IF(ISERROR(VLOOKUP(K163,[1]Proposito_programa!$C$2:$E$59,2,FALSE))," ",VLOOKUP(K163,[1]Proposito_programa!$C$2:$E$59,2,FALSE)) -> Eficiencia en la atención de emergencias | M163: =IF(ISERROR(VLOOKUP(K163,[1]Proposito_programa!$C$2:$E$59,3,FALSE))," ",VLOOKUP(K163,[1]Proposito_programa!$C$2:$E$59,3,FALSE)) -> Propósito 2 : Cambiar Nuestros Hábitos de Vida para Reverdecer a Bogotá y Adaptarnos y Mitigar la Crisis Climática | N163: 2103 | P163: 1010239208 | Q163: DIANA SOFIA CATALINA MORENO ESPITIA | R163: Persona Natural | V163: 0 | X163: 0 | Z163: 6263667 | AA163: =+W163+X163+Z163 -> 6263667 | AB163: 6263667 | AC163: 2021-05-06 | AD163: 2021-05-14 | AE163: 2022-01-13 | AF163: 253 | AG163: 1 | AH163: 13 | AM163: Terminado | AN163: 1
A164: 168-2021 | B164: 2021 | C164: FDLBUCD-190-2021 | D164: https://community.secop.gov.co/Public/Tendering/ContractNoticePhases/View?PPI=CO1.PPI.13141221&isFromPublicArea=True&isModal=False | E164: Contratos de prestación de servicios profesionales y de apoyo a la gestión | F164: Contratación directa | G164: Prestación de servicios profesionales y de apoyo a la gestión, o para la ejecución de trabajos artísticos que sólo puedan encomendarse a determinadas personas naturales | H164: PRESTAR SERVICIOS DE APOYO A LA GESTIÓN DEL DESARROLLO EN LABORES DE PLANEACIÓN EN LAS ACTIVIDADES RELATIVAS A LOS PROYECTOS AMBIENT ALES DE LA VIGENCIA 2021 DE LA LÍNEA DE INVERSIONES AMBIENTALES SOSTENIBLES. SEGUN CONTRATO DE PRESTACION DE SERVICIOS DE APOYO A LA GESTION 168 DE 2021. REEMPLAZA CDP 370 Y CRP 492 POR CONSTITUIRSE OBLIGACIONES POR PAGAR. | I164: Inversión | J164: Un nuevo contrato social y ambiental para la Bogotá del Siglo XXI | K164: 38 | L164: =IF(ISERROR(VLOOKUP(K164,[1]Proposito_programa!$C$2:$E$59,2,FALSE))," ",VLOOKUP(K164,[1]Proposito_programa!$C$2:$E$59,2,FALSE)) -> Ecoeficiencia, reciclaje, manejo de residuos e inclusión de la población recicladora | M164: =IF(ISERROR(VLOOKUP(K164,[1]Proposito_programa!$C$2:$E$59,3,FALSE))," ",VLOOKUP(K164,[1]Proposito_programa!$C$2:$E$59,3,FALSE)) -> Propósito 2 : Cambiar Nuestros Hábitos de Vida para Reverdecer a Bogotá y Adaptarnos y Mitigar la Crisis Climática | N164: 2082 | P164: 79501810 | Q164: CARLOS EDUARDO LOPEZ BRICEÑO | R164: Persona Natural | V164: 0 | X164: 0 | Z164: 2422667 | AA164: 2422667 | AB164: 2422667 | AC164: 2021-05-07 | AD164: 2021-05-11 | AE164: 2022-01-10 | AF164: 250 | AG164: 1 | AH164: 10 | AM164: Terminado | AN164: 1
A165: 169-2021 | B165: 2021 | C165: FDLBUCD-191-2021 | D165: https://community.secop.gov.co/Public/Tendering/ContractNoticePhases/View?PPI=CO1.PPI.13156644&isFromPublicArea=True&isModal=False | E165: Contratos de prestación de servicios profesionales y de apoyo a la gestión | F165: Contratación directa | G165: Prestación de servicios profesionales y de apoyo a la gestión, o para la ejecución de trabajos artísticos que sólo puedan encomendarse a determinadas personas naturales | H165: PRESTAR SERVICIOS DE APOYO A LA GESTIÓN DEL DESARROLLO EN LAS LABORES DE PLANEACIÓN PARA LAS ACTIVIDADES DEL PROCESO DE PARTICIPACIÓ N. SEGUN CONTRATO DE PRESTACION DE SERVICIOS DE APOYO A LA GESTION 169 DE 2021. REEMPLAZA CDP 376 Y CRP 493 POR CONSTITUIRSE OBLIGAC IONES POR PAGAR. | I165: Inversión | J165: Un nuevo contrato social y ambiental para la Bogotá del Siglo XXI | K165: 55 | L165: =IF(ISERROR(VLOOKUP(K165,[1]Proposito_programa!$C$2:$E$59,2,FALSE))," ",VLOOKUP(K165,[1]Proposito_programa!$C$2:$E$59,2,FALSE)) -> Fortalecimiento de cultura ciudadana y su institucionalidad | M165: =IF(ISERROR(VLOOKUP(K165,[1]Proposito_programa!$C$2:$E$59,3,FALSE))," ",VLOOKUP(K165,[1]Proposito_programa!$C$2:$E$59,3,FALSE)) -> Propósito 5: Construir Bogotá - Región con gobierno abierto, transparente y ciudadanía consciente | N165: 2141 | P165: 52451825 | Q165: ANGELA INES BUENAVENTURA BURBANO | R165: Persona Natural | V165: 0 | X165: 0 | Z165: 1817000 | AA165: 1817000 | AB165: 1817000 | AC165: 2021-05-07 | AD165: 2021-05-18 | AE165: 2021-12-31 | AF165: 240 | AM165: Terminado | AN165: 1
A166: 170-2021 | B166: 2021 | C166: FDLBUCD-109-2021 | D166: https://community.secop.gov.co/Public/Tendering/ContractNoticePhases/View?PPI=CO1.PPI.13031818&isFromPublicArea=True&isModal=False | E166: Contratos de prestación de servicios profesionales y de apoyo a la gestión | F166: Contratación directa | G166: Prestación de servicios profesionales y de apoyo a la gestión, o para la ejecución de trabajos artísticos que sólo puedan encomendarse a determinadas personas naturales | H166: ADICIÓN Y PRÓRROGA 01 AL CONTRATO 170-2021 CON OBJETO PRESTAR SERVICIOS DE APOYO A LA GESTIÓN DEL RIESGO QUE PROMUEVA LAS ACCIONES R EQUERIDAS PARA LA PREVENCIÓN Y ATENCIÓN DE EMERGENCIAS O EVENTOS GENERADOS POR LA MATERIALIZACIÓN DE LOS RIESGOS RESPONDA DE MANERA OPERATIVA E INMEDIATA ANTE LA OCURRENCIA DE SITUACIONES ADVERSAR EN TEMAS DE EMERGENCIAS EN LA LOCALIDAD. REEMPLAZA CDP 511 Y CRP 61 8 POR CONSTITUIRSE OBLIGACIONES POR PAGAR. | I166: Inversión | J166: Un nuevo contrato social y ambiental para la Bogotá del Siglo XXI | K166: 30 | L166: =IF(ISERROR(VLOOKUP(K166,[1]Proposito_programa!$C$2:$E$59,2,FALSE))," ",VLOOKUP(K166,[1]Proposito_programa!$C$2:$E$59,2,FALSE)) -> Eficiencia en la atención de emergencias | M166: =IF(ISERROR(VLOOKUP(K166,[1]Proposito_programa!$C$2:$E$59,3,FALSE))," ",VLOOKUP(K166,[1]Proposito_programa!$C$2:$E$59,3,FALSE)) -> Propósito 2 : Cambiar Nuestros Hábitos de Vida para Reverdecer a Bogotá y Adaptarnos y Mitigar la Crisis Climática | N166: 2103 | P166: 1014240273 | Q166: CARLOS MAURICIO MONTOYA TORO | R166: Persona Natural | V166: 0 | X166: 0 | Z166: 1817000 | AA166: 1817000 | AB166: 1817000 | AC166: 2021-05-11 | AD166: 2021-05-13 | AE166: 2021-12-30 | AF166: 228 | AG166: 1 | AH166: 48 | AM166: Terminado | AN166: 1
A167: 171-2021 | B167: 2021 | C167: FDLBUCD-192-2021 | D167: https://community.secop.gov.co/Public/Tendering/ContractNoticePhases/View?PPI=CO1.PPI.13311224&isFromPublicArea=True&isModal=False | E167: Contratos de prestación de servicios profesionales y de apoyo a la gestión | F167: Contratación directa | G167: Prestación de servicios profesionales y de apoyo a la gestión, o para la ejecución de trabajos artísticos que sólo puedan encomendarse a determinadas personas naturales | H167: PRESTAR SERVICIOS PROFESIONALES PARA APOYAR AL ÁREA GESTIÓN DEL DESARROLLO ADMINISTRATIVO Y FINANCIERO EN LOS ASUNTOS RELATIVOS A LA PLANEACIÓN LOCAL: COORDINAR Y GARANTIZAR LA IMPLEMENTACIÓN Y SEGUIMIENTO DE LOS PROCESOS, PROYECTOS Y PROCEDIMIENTOS DE CONTRATOS S USCRITOS POR LA ALCALDÍA LOCAL DE BARRIOS UNIDOS DIRIGIDOS AL CUMPLIMIENTO DE LAS METAS DE LA LÍNEA DE ENVERSIONES AMBIENTALES SOSTE NIBLES. SEGUN CONTRATO DE PRESTACION DE SERVICIOS PROFESIONALES 171 DE 2021. REEMPLAZA CDP 400 Y CRP 496 POR CONSTITUIRSE OBLIGACION ES POR PAGAR. | I167: Inversión | J167: Un nuevo contrato social y ambiental para la Bogotá del Siglo XXI | K167: 28 | L167: =IF(ISERROR(VLOOKUP(K167,[1]Proposito_programa!$C$2:$E$59,2,FALSE))," ",VLOOKUP(K167,[1]Proposito_programa!$C$2:$E$59,2,FALSE)) -> Bogotá protectora de sus recursos naturales | M167: =IF(ISERROR(VLOOKUP(K167,[1]Proposito_programa!$C$2:$E$59,3,FALSE))," ",VLOOKUP(K167,[1]Proposito_programa!$C$2:$E$59,3,FALSE)) -> Propósito 2 : Cambiar Nuestros Hábitos de Vida para Reverdecer a Bogotá y Adaptarnos y Mitigar la Crisis Climática | N167: 2009 | P167: 80109199 | Q167: JONATTAN ANDRES VILLAFRADEZ LOPEZ | R167: Persona Natural | V167: 0 | X167: 0 | Z167: 9500000 | AA167: 9500000 | AB167: 9500000 | AC167: 2021-05-18 | AD167: 2021-05-24 | AE167: 2021-12-31 | AF167: 270 | AM167: Liquidado | AN167: 1
A168: 172-2021 | B168: 2021 | C168: FDLBUCD-157-2021 | D168: https://community.secop.gov.co/Public/Tendering/ContractNoticePhases/View?PPI=CO1.PPI.13410113&isFromPublicArea=True&isModal=False | E168: Contratos de prestación de servicios profesionales y de apoyo a la gestión | F168: Contratación directa | G168: Prestación de servicios profesionales y de apoyo a la gestión, o para la ejecución de trabajos artísticos que sólo puedan encomendarse a determinadas personas naturales | H168: PRESTAR SERVICIOS DE APOYO A LA DE GESTIÓN DEL DESARROLLO EN LABORES DE PLANEACIÓN, CON EL FIN DE LOGRAR EL CUMPLIMIENTO DE LAS META S DEL PLAN DE DESARROLLO LOCAL DE LA VIGENCIA RELATIVAS A LA LÍNEA DE INVERSIONES AMBIENTALES SOSTENIBLES. SEGUN CONTRATO DE PRESTAC ION DE SERVICIOS DE APOYO A LA GESTION 172 DE 2021. REEMPLAZA CDP 428 Y CRP 501 POR CONSTITUIRSE OBLIGACIONES POR PAGAR. | I168: Inversión | J168: Un nuevo contrato social y ambiental para la Bogotá del Siglo XXI | K168: 27 | L168: =IF(ISERROR(VLOOKUP(K168,[1]Proposito_programa!$C$2:$E$59,2,FALSE))," ",VLOOKUP(K168,[1]Proposito_programa!$C$2:$E$59,2,FALSE)) -> Cambio cultural para la gestión de la crisis climática | M168: =IF(ISERROR(VLOOKUP(K168,[1]Proposito_programa!$C$2:$E$59,3,FALSE))," ",VLOOKUP(K168,[1]Proposito_programa!$C$2:$E$59,3,FALSE)) -> Propósito 2 : Cambiar Nuestros Hábitos de Vida para Reverdecer a Bogotá y Adaptarnos y Mitigar la Crisis Climática | N168: 2011 | P168: 80224646 | Q168: PEDRO MIGUEL LOPEZ VELA | R168: Persona Natural | V168: 0 | X168: 0 | Z168: 8853333 | AA168: 8853333 | AB168: 8853333 | AC168: 2021-05-27 | AD168: 2021-06-03 | AE168: 2022-01-23 | AF168: 263 | AG168: 1 | AH168: 23 | AM168: Liquidado | AN168: 1
A169: 173-2021 | B169: 2021 | C169: FDLBUSASI-182-2021 | D169: https://community.secop.gov.co/Public/Tendering/ContractNoticePhases/View?PPI=CO1.PPI.12838922&isFromPublicArea=True&isModal=False | E169: Contratos de prestación de servicios | F169: Selección abreviada | G169: Subasta inversa | H169: CONTRATAR LA PRESTACION DEL SERVICIO DE VIGILANCIA Y SEGURIDAD PRIVADA CON ARMAS Y MEDIOS TECNOLOGICOS PARA LAS INSTALACIONES DEL FO NDO DE DESARROLLO LOCAL DE BARRIOS UNIDOS. SEGUN CONTRATO DE PRESTACION DE SERVICIOS 173 DE 2021. REEMPLAZA CDP 411 Y CRP 508 POR CO NSTITUIRSE OBLIGACIONES POR PAGAR. | I169: Funcionamiento | J169: Un nuevo contrato social y ambiental para la Bogotá del Siglo XXI | K169: No aplica | L169: =IF(ISERROR(VLOOKUP(K169,[1]Proposito_programa!$C$2:$E$59,2,FALSE))," ",VLOOKUP(K169,[1]Proposito_programa!$C$2:$E$59,2,FALSE)) ->  | M169: =IF(ISERROR(VLOOKUP(K169,[1]Proposito_programa!$C$2:$E$59,3,FALSE))," ",VLOOKUP(K169,[1]Proposito_programa!$C$2:$E$59,3,FALSE)) ->  | N169: 0 | O169: 4 | P169: 800248541 | Q169: SEGURIDAD DIGITAL LTDA | R169: Persona Jurídica | V169: 0 | X169: 0 | Z169: 173864808 | AA169: 173864808 | AB169: 111763891 | AC169: 2021-06-01 | AD169: 2021-06-12 | AE169: 2022-04-21 | AF169: 311 | AG169: 2 | AH169: 108 | AM169: Liquidado | AN169: 0.6428206621
A170: 174-2021 | B170: 2021 | C170: FDLBUCD-195-2021 | D170: https://community.secop.gov.co/Public/Tendering/ContractNoticePhases/View?PPI=CO1.PPI.13481059&isFromPublicArea=True&isModal=False | E170: Contratos de prestación de servicios profesionales y de apoyo a la gestión | F170: Contratación directa | G170: Prestación de servicios profesionales y de apoyo a la gestión, o para la ejecución de trabajos artísticos que sólo puedan encomendarse a determinadas personas naturales | H170: PRESTAR SERVICIOS DE APOYO A LA GESTIÓN DEL DESARROLLO EN LAS ACTIVIDADES DE PEDAGOGÍA DEL CÓDIGO NACIONAL DE SEGURIDAD Y CONVIVENCI A. SEGUN CONTRATO DE PRESTACION DE SERVICIOS DE APOYO A LA GESTION 174 DE 2021. REEMPLAZA CDP 410 Y CRP 503 POR CONSTITUIRSE OBLIGAC IONES POR PAGAR. | I170: Inversión | J170: Un nuevo contrato social y ambiental para la Bogotá del Siglo XXI | K170: 48 | L170: =IF(ISERROR(VLOOKUP(K170,[1]Proposito_programa!$C$2:$E$59,2,FALSE))," ",VLOOKUP(K170,[1]Proposito_programa!$C$2:$E$59,2,FALSE)) -> Plataforma institucional para la seguridad y justicia | M170: =IF(ISERROR(VLOOKUP(K170,[1]Proposito_programa!$C$2:$E$59,3,FALSE))," ",VLOOKUP(K170,[1]Proposito_programa!$C$2:$E$59,3,FALSE)) -> Propósito 3: Inspirar confianza y legitimidad para vivir sin miedo y ser epicentro de cultura ciudadana, paz y reconciliación | N170: 2153 | P170: 79593197 | Q170: CESAR AUGUSTO BERNAL GAMEZ | R170: Persona Natural | V170: 0 | X170: 0 | Z170: 2725500 | AA170: 2725500 | AB170: 2725500 | AC170: 2021-05-28 | AD170: 2021-06-03 | AE170: 2022-01-15 | AF170: 255 | AG170: 1 | AH170: 15 | AM170: Liquidado | AN170: 1
A171: 175-2021 | B171: 2021 | C171: FDLBUCD-062-2021 | D171: https://community.secop.gov.co/Public/Tendering/ContractNoticePhases/View?PPI=CO1.PPI.13554977&isFromPublicArea=True&isModal=False | E171: Contratos de prestación de servicios profesionales y de apoyo a la gestión | F171: Contratación directa | G171: Prestación de servicios profesionales y de apoyo a la gestión, o para la ejecución de trabajos artísticos que sólo puedan encomendarse a determinadas personas naturales | H171: PRESTAR LOS SERVICIOS TÉCNICOS PARA LA OPERACIÓN, SEGUIMIENTO Y CUMPLIMIENTO DE LOS PROCESOS Y PROCEDIMIENTOS DEL SERVICIO, APOYOS P ARA LA SEGURIDAD ECONÓMICA TIPO C, REQUERIDOS PARA EL OPORTUNO Y ADECUADO REGISTRO, CRUCE Y REPORTE DE LOS DATOS EN EL SISTEMA MISIO NAL SIRBE, QUE CONTRIBUYAN A LA GARANTÍA DE LOS DERECHOS DE LA POBLACIÓN MAYOR EN EL MARCO DE LA POLÍTICA PÚBLICA SOCIAL PARA EL ENV EJECIMIENTO Y LA VEJEZ EN EL DISTRITO CAPITAL A CARGO DE LA ALCALDÍA LOCAL Y EL LOGRO DE LAS METAS DEL PLAN DE DESARROLLO LOCAL. SEG UN CONTRATO DE PRESTACION DE SERVICIOS DE APOYO A LA GESTION 175 DE 2021. REEMPLAZA CDP 429 Y CRP 512 POR CONSTITUIRSE OBLIGACIONES POR PAGAR. | I171: Inversión | J171: Un nuevo contrato social y ambiental para la Bogotá del Siglo XXI | K171: 1 | L171: =IF(ISERROR(VLOOKUP(K171,[1]Proposito_programa!$C$2:$E$59,2,FALSE))," ",VLOOKUP(K171,[1]Proposito_programa!$C$2:$E$59,2,FALSE)) -> Subsidios y transferencias para la equidad | M171: =IF(ISERROR(VLOOKUP(K171,[1]Proposito_programa!$C$2:$E$59,3,FALSE))," ",VLOOKUP(K171,[1]Proposito_programa!$C$2:$E$59,3,FALSE)) -> Propósito 1: Hacer un nuevo contrato social para incrementar la inclusión social, productiva y política | N171: 2144 | P171: 79502886 | Q171: CESAR ALBERTO LEON MARTIN | R171: Persona Natural | V171: 0 | X171: 0 | Z171: 4632000 | AA171: 4632000 | AB171: 4632000 | AC171: 2021-06-11 | AD171: 2021-06-16 | AE171: 2022-01-15 | AF171: 225 | AG171: 1 | AH171: 15 | AM171: Terminado | AN171: 1
A172: 176-2021 | B172: 2021 | C172: FDLBUCD-167-2021 | D172: https://community.secop.gov.co/Public/Tendering/ContractNoticePhases/View?PPI=CO1.PPI.13553306&isFromPublicArea=True&isModal=False | E172: Contratos de prestación de servicios profesionales y de apoyo a la gestión | F172: Contratación directa | G172: Prestación de servicios profesionales y de apoyo a la gestión, o para la ejecución de trabajos artísticos que sólo puedan encomendarse a determinadas personas naturales | H172: PRESTAR SERVICIOS DE APOYO A LA GESTIÓN DEL DESARROLLO EN LABORES DE PLANEACIÓN EN LAS ACTIVIDADES RELATIVAS A LOS PROYECTOS AMBIENT ALES DE LA VIGENCIA 2021 DE LA LÍNEA DE INVERSIONES AMBIENTALES SOSTENIBLES. SEGUN CONTRATO DE PRESTACION DE SERVICIOS DE APOYO A LA GESTION 176 DE 2021 REEMPLAZA CDP 430 Y CRP 515 POR CONSTITUIRSE OBLIGACIONES POR PAGAR. | I172: Inversión | J172: Un nuevo contrato social y ambiental para la Bogotá del Siglo XXI | K172: 33 | L172: =IF(ISERROR(VLOOKUP(K172,[1]Proposito_programa!$C$2:$E$59,2,FALSE))," ",VLOOKUP(K172,[1]Proposito_programa!$C$2:$E$59,2,FALSE)) -> Más árboles y más y mejor espacio público | M172: =IF(ISERROR(VLOOKUP(K172,[1]Proposito_programa!$C$2:$E$59,3,FALSE))," ",VLOOKUP(K172,[1]Proposito_programa!$C$2:$E$59,3,FALSE)) -> Propósito 2 : Cambiar Nuestros Hábitos de Vida para Reverdecer a Bogotá y Adaptarnos y Mitigar la Crisis Climática | N172: 2146 | P172: 79881803 | Q172: HERNAN DARIO BENAVIDES DEVIA | R172: Persona Natural | V172: 0 | X172: 0 | Z172: 2725500 | AA172: 2725500 | AB172: 2725500 | AC172: 2021-06-21 | AD172: 2021-07-01 | AE172: 2022-01-20 | AF172: 215 | AG172: 1 | AH172: 20 | AM172: Terminado | AN172: 1
A173: 177-2021 | B173: 2021 | C173: FDLBUMC-194-2021 | D173: https://community.secop.gov.co/Public/Tendering/ContractNoticePhases/View?PPI=CO1.PPI.13556199&isFromPublicArea=True&isModal=False | E173: Suministro | F173: Selección abreviada | G173: Selección abreviada por menor cuantía | H173: SUMINISTRAR A MONTO AGOTABLE LOS ELEMENTOS DE FERRETERÍA NECESARIOS PARA EL MANTENIMIENTO DE LA PLANTA FISICA Y DEMAS BIENES INMUEBL ES DE RESPONSABILIDAD DEL FONDO DE DESARROLLO LOCAL DE BARRIOS UNIDOS. SEGUN ACEPTACION DE OFERTA 177 DE 2021. REEMPLAZA CDP 426 Y C RP 522 POR CONSTITUIRSE OBLIGACIONES POR PAGAR. | I173: Funcionamiento | J173: Un nuevo contrato social y ambiental para la Bogotá del Siglo XXI | K173: No aplica | L173: =IF(ISERROR(VLOOKUP(K173,[1]Proposito_programa!$C$2:$E$59,2,FALSE))," ",VLOOKUP(K173,[1]Proposito_programa!$C$2:$E$59,2,FALSE)) ->  | M173: =IF(ISERROR(VLOOKUP(K173,[1]Proposito_programa!$C$2:$E$59,3,FALSE))," ",VLOOKUP(K173,[1]Proposito_programa!$C$2:$E$59,3,FALSE)) ->  | N173: 0 | O173: 8 | P173: 900960810 | Q173: DIEGO CASTRO INDUSTRIA Y CONSTRUCCION S A S | R173: Persona Jurídica | V173: 0 | X173: 0 | Z173: 10878395 | AA173: 10878395 | AB173: 8719695 | AC173: 2021-07-01 | AD173: 2021-07-07 | AE173: 2022-07-06 | AF173: 360 | AM173: Terminado | AN173: 0.8015608001
A174: 181-2021 | B174: 2021 | C174: FDLBURE-200-2021 | D174: https://community.secop.gov.co/Public/Tendering/ContractNoticePhases/View?PPI=CO1.PPI.14135820&isFromPublicArea=True&isModal=False | E174: Convenios de cooperacion | F174: Régimen especial | G174: Decreto 92 de 2017 | H174: Aunar esfuerzos para la cooperación administrativa, técnica y económica, entre el Programa para las Naciones Unidas para el Desarrol lo (PNUD) y El Fondo de Desarrollo Local de Barrios Unidos, con el fin de implementar estrategias que promuevan el fortalecimiento a los emprendimientos de la economía popular de la localidad de Barrios Unidos y las unidades productivas familiares y/o poblaciones dedicadas a actividades tradicionales que permiten generar ingresos (autoempleo), y el Fortalecimiento de MiPymes locales, a través de un proceso de acompañamiento especializado que permita el mejoramiento de las competencias de los empresarios y las condiciones d e sus negocios y de esta forma aportar de forma significativa al cumplimiento de la agenda de reactivación económica en la Localidad , para el desarrollo de la ruta de Emprendimiento Local. Segun Acuerdo 181 de 2021 REEMPLAZA CDP 436 Y CRP 524 POR CONSTITUIRSE OBLI GACIONES POR PAGAR. | I174: Inversión | J174: Un nuevo contrato social y ambiental para la Bogotá del Siglo XXI | K174: 6 | L174: =IF(ISERROR(VLOOKUP(K174,[1]Proposito_programa!$C$2:$E$59,2,FALSE))," ",VLOOKUP(K174,[1]Proposito_programa!$C$2:$E$59,2,FALSE)) -> Sistema Distrital de Cuidado | M174: =IF(ISERROR(VLOOKUP(K174,[1]Proposito_programa!$C$2:$E$59,3,FALSE))," ",VLOOKUP(K174,[1]Proposito_programa!$C$2:$E$59,3,FALSE)) -> Propósito 1: Hacer un nuevo contrato social para incrementar la inclusión social, productiva y política | N174: 2135 | P174: 800091076 | Q174: PROGRAMA DE LAS NACIONES UNIDAS PARA EL DESARROLLO | R174: Persona Jurídica | V174: 0 | X174: 0 | Z174: 222801886 | AA174: 222801886 | AB174: 222801886 | AC174: 2021-07-08 | AD174: 2021-07-08 | AE174: 2022-08-30 | AF174: 420 | AG174: 1 | AH174: 60 | AM174: Terminado | AN174: 1
A175: 182-2021 | B175: 2021 | C175: FDLBUCD-201-2021 | D175: https://community.secop.gov.co/Public/Tendering/ContractNoticePhases/View?PPI=CO1.PPI.14256737&isFromPublicArea=True&isModal=False | E175: Contratos de prestación de servicios profesionales y de apoyo a la gestión | F175: Contratación directa | G175: Prestación de servicios profesionales y de apoyo a la gestión, o para la ejecución de trabajos artísticos que sólo puedan encomendarse a determinadas personas naturales | H175: Prestar los servicios profesionales para desarrollar la iniciativa de presupuestos participativos "escribiendo nuestras huellas" a t ítulo de promotor de esta en la localidad de Barrios Unidos. Según contrato de prestación de servicios profesionales 182 de 2021. RE EMPLAZA CDP 441 Y CRP 534 POR CONSTITUIRSE OBLIGACIONES POR PAGAR. | I175: Inversión | J175: Un nuevo contrato social y ambiental para la Bogotá del Siglo XXI | K175: 39 | L175: =IF(ISERROR(VLOOKUP(K175,[1]Proposito_programa!$C$2:$E$59,2,FALSE))," ",VLOOKUP(K175,[1]Proposito_programa!$C$2:$E$59,2,FALSE)) -> Bogotá territorio de paz y atención integral a las víctimas del conflicto armado | M175: =IF(ISERROR(VLOOKUP(K175,[1]Proposito_programa!$C$2:$E$59,3,FALSE))," ",VLOOKUP(K175,[1]Proposito_programa!$C$2:$E$59,3,FALSE)) -> Propósito 3: Inspirar confianza y legitimidad para vivir sin miedo y ser epicentro de cultura ciudadana, paz y reconciliación | N175: 2030 | P175: 1093772772 | Q175: MANUEL CAMILO QUINTERO DELGADO | R175: Persona Natural | V175: 0 | X175: 0 | Z175: 4370000 | AA175: 4370000 | AB175: 4370000 | AC175: 2021-07-29 | AD175: 2021-08-05 | AE175: 2021-12-31 | AF175: 150 | AM175: Liquidado | AN175: 1
A176: 183-2021 | B176: 2021 | C176: FDLBUCD-202-2021 | D176: https://community.secop.gov.co/Public/Tendering/ContractNoticePhases/View?PPI=CO1.PPI.14315845&isFromPublicArea=True&isModal=False | E176: Contratos de prestación de servicios profesionales y de apoyo a la gestión | F176: Contratación directa | G176: Prestación de servicios profesionales y de apoyo a la gestión, o para la ejecución de trabajos artísticos que sólo puedan encomendarse a determinadas personas naturales | H176: PRESTAR SERVICIOS PROFESIONALES PARA APOYAR AL ÁREA GESTIÓN DEL DESARROLLO ADMINISTRATIVO Y FINANCIERO EN LOS ASUNTOS RELATIVOS A LA PLANEACIÓN LOCAL: GARANTIZAR LA IMPLEMENTACIÓN Y SEGUIMIENTO DE LOS PROCESOS, PROYECTOS Y PROCEDIMIENTOS DE CONTRATOS SUSCRITOS POR LA ALCALDÍA LOCAL DE BARRIOS UNIDOS DIRIGIDOS AL CUMPLIMIENTO DE LA META DE CICLOINFRAESTRUCTURA Y EL PROCESOS EN CURSO RELATIVO A PRIMEROS AUXILIOS DE LA SEDE. SEGUN CONTRATO DE PRESTACION DE SERVICIOS PROFESIONALES 183 DE 2021 REEMPLAZA CDP 442 Y CRP 535 POR CO NSTITUIRSE OBLIGACIONES POR PAGAR. | I176: Inversión | J176: Un nuevo contrato social y ambiental para la Bogotá del Siglo XXI | K176: 49 | L176: =IF(ISERROR(VLOOKUP(K176,[1]Proposito_programa!$C$2:$E$59,2,FALSE))," ",VLOOKUP(K176,[1]Proposito_programa!$C$2:$E$59,2,FALSE)) -> Movilidad segura, sostenible y accesible | M176: =IF(ISERROR(VLOOKUP(K176,[1]Proposito_programa!$C$2:$E$59,3,FALSE))," ",VLOOKUP(K176,[1]Proposito_programa!$C$2:$E$59,3,FALSE)) -> Propósito 4: Hacer de Bogotá Región un modelo de movilidad multimodal, incluyente y sostenible | N176: 2022 | P176: 51647398 | Q176: SONIA MURCIA NOSSA | R176: Persona Natural | V176: 0 | X176: 0 | Z176: 4661333 | AA176: 4661333 | AB176: 4661333 | AC176: 2021-07-30 | AD176: 2021-08-03 | AE176: 2022-01-02 | AF176: 152 | AG176: 1 | AH176: 2 | AM176: Terminado | AN176: 1
A177: 184-2021 | B177: 2021 | C177: FDLBUMC-198-2021 | D177: https://community.secop.gov.co/Public/Tendering/OpportunityDetail/Index?noticeUID=CO1.NTC.2113019&isFromPublicArea=True&isModal=False | E177: Contratos de prestación de servicios profesionales y de apoyo a la gestión | F177: Contratación mínima cuantia | G177: Prestación de servicios profesionales y de apoyo a la gestión, o para la ejecución de trabajos artísticos que sólo puedan encomendarse a determinadas personas naturales | H177: CONTRATAR A MONTO AGOTABLE EL SERVICIO DE IMPRESOS, PUBLICACIONES, MATERIAL LITOGRÁFICO Y ELEMENTOS DE PUBLICIDAD Y SEÑALIZACIÓN INS TITUCIONAL DE LA ALCALDÍA LOCAL DE BARRIOS UNIDOS. REEMPLAZA CDP 439 Y CRP 539 POR CONSTITUIRSE OBLIGACIONES POR PAGAR. | I177: Funcionamiento | J177: Un nuevo contrato social y ambiental para la Bogotá del Siglo XXI | K177: No aplica | L177: =IF(ISERROR(VLOOKUP(K177,[1]Proposito_programa!$C$2:$E$59,2,FALSE))," ",VLOOKUP(K177,[1]Proposito_programa!$C$2:$E$59,2,FALSE)) ->  | M177: =IF(ISERROR(VLOOKUP(K177,[1]Proposito_programa!$C$2:$E$59,3,FALSE))," ",VLOOKUP(K177,[1]Proposito_programa!$C$2:$E$59,3,FALSE)) ->  | N177: 0 | O177: 14 | P177: 900684554 | Q177: GRUPO ARKS PREMIER SAS | R177: Persona Jurídica | V177: 0 | X177: 0 | Z177: 5874419 | AA177: 5874419 | AB177: 4954434 | AC177: 2021-08-06 | AD177: 2021-08-25 | AE177: 2022-08-24 | AF177: 360 | AM177: Terminado | AN177: 0.8433913209
A178: 186-2021 | B178: 2021 | C178: FDLBUCD-205-2021 | D178: https://community.secop.gov.co/Public/Tendering/ContractNoticePhases/View?PPI=CO1.PPI.14537919&isFromPublicArea=True&isModal=False | E178: Contratos de prestación de servicios profesionales y de apoyo a la gestión | F178: Contratación directa | G178: Prestación de servicios profesionales y de apoyo a la gestión, o para la ejecución de trabajos artísticos que sólo puedan encomendarse a determinadas personas naturales | H178: PRESTAR SERVICIOS DE APOYO AL ÁREA GESTIÓN DEL DESARROLLO EN LOS ASUNTOS RELATIVOS A LA PLANEACIÓN LOCAL: APOYAR EL SEGUIMIENTO AL A CCESO Y PERMANENCIA EN EDUCACIÓN SUPERIOR EN EL MARCO DE LAS OBLIGACIONES DEL FDLBU OBTENIDAS EN CONVENIO SUSCRITO, ASÍ COMO EL SEGU IMIENTO A LA DOTACIÓN A LA CASA DE LA JUVENTUD NASQUA. REEMPLAZA CDP 448 Y CRP 540 POR CONSTITUIRSE OBLIGACIONES POR PAGAR. | I178: Inversión | J178: Un nuevo contrato social y ambiental para la Bogotá del Siglo XXI | K178: 17 | L178: =IF(ISERROR(VLOOKUP(K178,[1]Proposito_programa!$C$2:$E$59,2,FALSE))," ",VLOOKUP(K178,[1]Proposito_programa!$C$2:$E$59,2,FALSE)) -> Jóvenes con capacidades: Proyecto de vida para la ciudadanía, la innovación y el trabajo del siglo XXI | M178: =IF(ISERROR(VLOOKUP(K178,[1]Proposito_programa!$C$2:$E$59,3,FALSE))," ",VLOOKUP(K178,[1]Proposito_programa!$C$2:$E$59,3,FALSE)) -> Propósito 1: Hacer un nuevo contrato social para incrementar la inclusión social, productiva y política | N178: 2027 | P178: 1018486866 | Q178: KEVIN GIOVANI OSPINA MARTINEZ | R178: Persona Natural | V178: 0 | X178: 0 | Z178: 2967767 | AA178: 2967767 | AB178: 2967767 | AC178: 2021-08-11 | AD178: 2021-08-20 | AE178: 2022-01-19 | AF178: 169 | AG178: 1 | AH178: 19 | AM178: Terminado | AN178: 1
A179: 187-2021 | B179: 2021 | C179: FDLBUCD-207-2021 | D179: https://community.secop.gov.co/Public/Tendering/ContractNoticePhases/View?PPI=CO1.PPI.14688672&isFromPublicArea=True&isModal=False | E179: Contratos de prestación de servicios profesionales y de apoyo a la gestión | F179: Contratación directa | G179: Prestación de servicios profesionales y de apoyo a la gestión, o para la ejecución de trabajos artísticos que sólo puedan encomendarse a determinadas personas naturales | H179: PRESTAR SERVICIOS ASISTENCIALES PARA APOYAR AL ÁREA GESTIÓN DEL DESARROLLO LOCAL EN LOS ASUNTOS RELACIONADOS CON EL DESARROLLO DE LA GESTIÓN CONTRACTUAL DE LOS PROYECTOS DE INVERSIÓN DE LA VIGENCIA 2021. REEMPLAZA CDP 452 Y CRP 544 POR CONSTITUIRSE OBLIGACIONES PO R PAGAR. | I179: Inversión | J179: Un nuevo contrato social y ambiental para la Bogotá del Siglo XXI | K179: 57 | L179: =IF(ISERROR(VLOOKUP(K179,[1]Proposito_programa!$C$2:$E$59,2,FALSE))," ",VLOOKUP(K179,[1]Proposito_programa!$C$2:$E$59,2,FALSE)) -> Gestión pública local | M179: =IF(ISERROR(VLOOKUP(K179,[1]Proposito_programa!$C$2:$E$59,3,FALSE))," ",VLOOKUP(K179,[1]Proposito_programa!$C$2:$E$59,3,FALSE)) -> Propósito 5: Construir Bogotá - Región con gobierno abierto, transparente y ciudadanía consciente | N179: 2143 | P179: 52181144 | Q179: CLAUDIA PATRICIA MORALES | R179: Persona Natural | V179: 0 | X179: 0 | Z179: 3173333 | AA179: 3173333 | AB179: 0 | AC179: 2021-08-24 | AD179: 2021-08-26 | AE179: 2021-12-25 | AF179: 120 | AM179: Terminado | AN179: 0
A180: 188-2021 | B180: 2021 | C180: FDLBUCD-208-2021 | D180: https://community.secop.gov.co/Public/Tendering/ContractNoticePhases/View?PPI=CO1.PPI.14684318&isFromPublicArea=True&isModal=False | E180: Contratos de prestación de servicios profesionales y de apoyo a la gestión | F180: Contratación directa | G180: Prestación de servicios profesionales y de apoyo a la gestión, o para la ejecución de trabajos artísticos que sólo puedan encomendarse a determinadas personas naturales | H180: PRESTAR LOS SERVICIOS PROFESIONALES PARA APOYAR AL ÁREA DE GESTIÓN DEL DESARROLLO EN LOS ASUNTOS RELACIONADOS CON LA FORMULACIÓN, SE GUIMINETO Y EVALUACIÓN DE POLÍTICAS, PLANES, PROGRAMAS Y PROYECTOS DE DESARROLLO LOCAL, PARA EL CUMPLIMIENTO DE LAS METAS DEL PLAN D E DESARROLLO LOCAL DE BARRIOS UNIDOS. REEMPLAZA CDP 453 Y CRP 542 POR CONSTITUIRSE OBLIGACIONES POR PAGAR. | I180: Inversión | J180: Un nuevo contrato social y ambiental para la Bogotá del Siglo XXI | K180: 57 | L180: =IF(ISERROR(VLOOKUP(K180,[1]Proposito_programa!$C$2:$E$59,2,FALSE))," ",VLOOKUP(K180,[1]Proposito_programa!$C$2:$E$59,2,FALSE)) -> Gestión pública local | M180: =IF(ISERROR(VLOOKUP(K180,[1]Proposito_programa!$C$2:$E$59,3,FALSE))," ",VLOOKUP(K180,[1]Proposito_programa!$C$2:$E$59,3,FALSE)) -> Propósito 5: Construir Bogotá - Región con gobierno abierto, transparente y ciudadanía consciente | N180: 2143 | P180: 52718955 | Q180: ANGELA MARIA PEREZ MAHECHA | R180: Persona Natural | V180: 0 | X180: 0 | Z180: 3787333 | AA180: 3787333 | AB180: 3787333 | AC180: 2021-08-23 | AD180: 2021-08-27 | AE180: 2021-11-26 | AF180: 90 | AM180: Terminado | AN180: 1
A181: 189-2021 | B181: 2021 | C181: FDLBUCD-209-2021 | D181: https://community.secop.gov.co/Public/Tendering/ContractNoticePhases/View?PPI=CO1.PPI.14690234&isFromPublicArea=True&isModal=False | E181: Contratos de prestación de servicios profesionales y de apoyo a la gestión | F181: Contratación directa | G181: Prestación de servicios profesionales y de apoyo a la gestión, o para la ejecución de trabajos artísticos que sólo puedan encomendarse a determinadas personas naturales | H181: PRESTAR SERVICIOS DE APOYO EN LAS ACTIVIDADES DE SEGURIDAD, PROMOCIÓN DE LA CONVIVENCIA Y DE ATENCIÓN DE MOVILIZACIONES Y AGLOMERACI ONES EN EL TERRITORIO. REEMPLAZA CDP 450 Y CRP 545 POR CONSTITUIRSE OBLIGACIONES POR PAGAR. | I181: Inversión | J181: Un nuevo contrato social y ambiental para la Bogotá del Siglo XXI | K181: 43 | L181: =IF(ISERROR(VLOOKUP(K181,[1]Proposito_programa!$C$2:$E$59,2,FALSE))," ",VLOOKUP(K181,[1]Proposito_programa!$C$2:$E$59,2,FALSE)) -> Cultura ciudadana para la confianza, la convivencia y la participación desde la vida cotidiana | M181: =IF(ISERROR(VLOOKUP(K181,[1]Proposito_programa!$C$2:$E$59,3,FALSE))," ",VLOOKUP(K181,[1]Proposito_programa!$C$2:$E$59,3,FALSE)) -> Propósito 3: Inspirar confianza y legitimidad para vivir sin miedo y ser epicentro de cultura ciudadana, paz y reconciliación | N181: 2149 | P181: 79577831 | Q181: JOSE ENRIQUE MENDOZA GALINDO | R181: Persona Natural | V181: 0 | X181: 0 | Z181: 2195300 | AA181: 2195300 | AB181: 2195300 | AC181: 2021-08-23 | AD181: 2021-08-31 | AE181: 2021-12-30 | AF181: 120 | AM181: Terminado | AN181: 1
A182: 190-2021 | B182: 2021 | C182: FDLBUCD-204-2021 | D182: https://community.secop.gov.co/Public/Tendering/ContractNoticePhases/View?PPI=CO1.PPI.14731016&isFromPublicArea=True&isModal=False | E182: Contratos de prestación de servicios profesionales y de apoyo a la gestión | F182: Contratación directa | G182: Prestación de servicios profesionales y de apoyo a la gestión, o para la ejecución de trabajos artísticos que sólo puedan encomendarse a determinadas personas naturales | H182: PRESTAR SERVICIOS DE APOYO EN LAS ACTIVIDADES DE SEGURIDAD, PROMOCIÓN DE LA CONVIVENCIA Y DE ATENCIÓN DE MOVILIZACIONES Y AGLOMERACI ONES EN EL TERRITORIO. SEGUN CONTRATO DE PRESTACION DE SERVICIOS DE APOYO A LA GESTION 190 DE 2021. REEMPLAZA CDP 450 Y CRP 549 POR CONSTITUIRSE OBLIGACIONES POR PAGAR. | I182: Inversión | J182: Un nuevo contrato social y ambiental para la Bogotá del Siglo XXI | K182: 43 | L182: =IF(ISERROR(VLOOKUP(K182,[1]Proposito_programa!$C$2:$E$59,2,FALSE))," ",VLOOKUP(K182,[1]Proposito_programa!$C$2:$E$59,2,FALSE)) -> Cultura ciudadana para la confianza, la convivencia y la participación desde la vida cotidiana | M182: =IF(ISERROR(VLOOKUP(K182,[1]Proposito_programa!$C$2:$E$59,3,FALSE))," ",VLOOKUP(K182,[1]Proposito_programa!$C$2:$E$59,3,FALSE)) -> Propósito 3: Inspirar confianza y legitimidad para vivir sin miedo y ser epicentro de cultura ciudadana, paz y reconciliación | N182: 2149 | P182: 79523967 | Q182: JORGE OSWALDO SOLER RINCON | R182: Persona Natural | V182: 0 | X182: 0 | Z182: 2271000 | AA182: 2271000 | AB182: 2271000 | AC182: 2021-08-27 | AD182: 2021-09-01 | AE182: 2021-12-31 | AF182: 120 | AM182: Terminado | AN182: 1
A183: 191-2021 | B183: 2021 | C183: FDLBUCD-210-2021 | D183: https://community.secop.gov.co/Public/Tendering/ContractNoticePhases/View?PPI=CO1.PPI.14731228&isFromPublicArea=True&isModal=False | E183: Contratos de prestación de servicios profesionales y de apoyo a la gestión | F183: Contratación directa | G183: Prestación de servicios profesionales y de apoyo a la gestión, o para la ejecución de trabajos artísticos que sólo puedan encomendarse a determinadas personas naturales | H183: PRESTAR SERVICIOS DE APOYO EN LAS ACTIVIDADES DE SEGURIDAD, PROMOCIÓN DE LA CONVIVENCIA Y DE ATENCIÓN DE MOVILIZACIONES Y AGLOMERACI ONES DEL TERRITORIO. REEMPLAZA CDP 451 Y CRP 546 POR CONSTITUIRSE OBLIGACIONES POR PAGAR. | I183: Inversión | J183: Un nuevo contrato social y ambiental para la Bogotá del Siglo XXI | K183: 48 | L183: =IF(ISERROR(VLOOKUP(K183,[1]Proposito_programa!$C$2:$E$59,2,FALSE))," ",VLOOKUP(K183,[1]Proposito_programa!$C$2:$E$59,2,FALSE)) -> Plataforma institucional para la seguridad y justicia | M183: =IF(ISERROR(VLOOKUP(K183,[1]Proposito_programa!$C$2:$E$59,3,FALSE))," ",VLOOKUP(K183,[1]Proposito_programa!$C$2:$E$59,3,FALSE)) -> Propósito 3: Inspirar confianza y legitimidad para vivir sin miedo y ser epicentro de cultura ciudadana, paz y reconciliación | N183: 2153 | P183: 1023865895 | Q183: KAREN DAYANA RAMIREZ ORTEGON | R183: Persona Natural | V183: 0 | X183: 0 | Z183: 2195300 | AA183: 2195300 | AB183: 2195300 | AC183: 2021-08-27 | AD183: 2021-08-31 | AE183: 2021-12-30 | AF183: 120 | AM183: Terminado | AN183: 1
A184: 192-2021 | B184: 2021 | C184: FDLBUCD-211-2021 | D184: https://community.secop.gov.co/Public/Tendering/ContractNoticePhases/View?PPI=CO1.PPI.14843790&isFromPublicArea=True&isModal=False | E184: Convenios/Contratos interadministrativos | F184: Contratación directa | G184: Contratos interadministrativos | H184: PRESTAR LOS SERVICIOS DE INTERNET PARA LA SEDE PRINCIPAL DE LA ALCALDIA LOCAL DE BARRIOS UNIDOS. SEGUN CONTRATO INTERADMINISTRATIVO 192 DE 2021. REEMPLAZA CDP 440 Y CRP 555 POR CONSTITUIRSE OBLIGACIONES POR PAGAR. | I184: Funcionamiento | J184: Un nuevo contrato social y ambiental para la Bogotá del Siglo XXI | K184: No aplica | L184: =IF(ISERROR(VLOOKUP(K184,[1]Proposito_programa!$C$2:$E$59,2,FALSE))," ",VLOOKUP(K184,[1]Proposito_programa!$C$2:$E$59,2,FALSE)) ->  | M184: =IF(ISERROR(VLOOKUP(K184,[1]Proposito_programa!$C$2:$E$59,3,FALSE))," ",VLOOKUP(K184,[1]Proposito_programa!$C$2:$E$59,3,FALSE)) ->  | N184: 0 | P184: 899999115 | Q184: EMPRESA DE TELECOMUNICACIONES DE BOGOTÁ S.A. E.S.P. - ETB S.A. ESP | R184: Persona Jurídica | V184: 0 | X184: 0 | Z184: 24502304 | AA184: 24502304 | AB184: 17654450 | AC184: 2021-08-26 | AD184: 2021-09-08 | AE184: 2023-03-07 | AF184: 540 | AG184: 1 | AH184: 180 | AM184: En ejecución | AN184: 0.7205220374
A185: 193-2021 | B185: 2021 | C185: FDLBUMC-206-2021 | D185: https://community.secop.gov.co/Public/Tendering/ContractNoticePhases/View?PPI=CO1.PPI.14511419&isFromPublicArea=True&isModal=False | E185: Suministro | F185: Contratación mínima cuantia | G185: No aplica | H185: CONTRATAR EL SUMINISTRO DE CAJAS PARA ARCHIVO, CARPETAS DE CONTRATOS Y GESTIÓN, ELEMENTOS DE PAPELERÍA Y ÚTILES DE OFICINA, PARA LAS DIFERENTES DEPENDENCIAS DE LA ALCALDÍA LOCAL DE BARRIOS UNIDOS MEDIANTE EL SISTEMA DE PRECIOS UNITARIOS FIJOS. SEGUN ACEPTACION DE OFERTA 193 DE 2021. REEMPLAZA CDP 447 Y CRP 557 POR CONSTITUIRSE OBLIGACIONES POR PAGAR. | I185: Funcionamiento | J185: Un nuevo contrato social y ambiental para la Bogotá del Siglo XXI | K185: No aplica | L185: =IF(ISERROR(VLOOKUP(K185,[1]Proposito_programa!$C$2:$E$59,2,FALSE))," ",VLOOKUP(K185,[1]Proposito_programa!$C$2:$E$59,2,FALSE)) ->  | M185: =IF(ISERROR(VLOOKUP(K185,[1]Proposito_programa!$C$2:$E$59,3,FALSE))," ",VLOOKUP(K185,[1]Proposito_programa!$C$2:$E$59,3,FALSE)) ->  | N185: 0 | O185: 10 | P185: 830113914 | Q185: INSTITUCIONAL STAR SERVICES LTDA | R185: Persona Jurídica | V185: 0 | X185: 0 | Z185: 20259265 | AA185: 20259265 | AB185: 20259265 | AC185: 2021-08-31 | AD185: 2021-09-08 | AE185: 2022-09-07 | AF185: 360 | AM185: Terminado | AN185: 1
A186: 194-2021 | B186: 2021 | C186: FDLBUSAMC-203-2021 | D186: https://community.secop.gov.co/Public/Tendering/ContractNoticePhases/View?PPI=CO1.PPI.14437322&isFromPublicArea=True&isModal=False | E186: Seguro | F186: Selección abreviada | G186: Selección abreviada por menor cuantía | H186: CONTRATAR LOS SEGUROS QUE AMPAREN LOS INTERESES PATRIMONIALES ACTUALES Y FUTUROS, ASÍ COMO LOS BIENES DE PROPIEDAD DEL FONDO DE DESA RROLLO LOCAL DE BARRIOS UNIDOS, QUE ESTÉN BAJO SU RESPONSABILIDAD Y CUSTODIA Y AQUELLOS QUE SEAN ADQUIRIDOS PARA DESARROLLAR LAS FUN CIONES INHERENTES A SU ACTIVIDAD, ASÍ COMO LA VIDA Y ACCIDENTES PERSONALES DE LOS EDILES Y LA EXPEDICIÓN DE CUALQUIER OTRA PÓLIZA DE SEGUROS QUE REQUIERA LA ENTIDAD EN EL DESARROLLO DE SU ACTIVIDAD. SEGUN CONTRATO DE SEGUROS 194 DE 2021. REEMPLAZA CDP 449 Y CRP 55 4 POR CONSTITUIRSE OBLIGACIONES POR PAGAR. | I186: Funcionamiento | J186: Un nuevo contrato social y ambiental para la Bogotá del Siglo XXI | K186: No aplica | L186: =IF(ISERROR(VLOOKUP(K186,[1]Proposito_programa!$C$2:$E$59,2,FALSE))," ",VLOOKUP(K186,[1]Proposito_programa!$C$2:$E$59,2,FALSE)) ->  | M186: =IF(ISERROR(VLOOKUP(K186,[1]Proposito_programa!$C$2:$E$59,3,FALSE))," ",VLOOKUP(K186,[1]Proposito_programa!$C$2:$E$59,3,FALSE)) ->  | N186: 0 | O186: 3 | P186: 860002400 | Q186: LA PREVISORA S A COMPANIA DE SEGUROS | R186: Persona Jurídica | V186: 0 | X186: 0 | Z186: 39285787 | AA186: 39285787 | AB186: 24113837 | AC186: 2021-09-03 | AD186: 2021-09-09 | AE186: 2023-03-02 | AF186: 540 | AG186: 2 | AH186: 143 | AM186: En ejecución | AN186: 0.6138056239
A187: 2590-2021 | B187: 2021 | C187: FDLBUCD-213-2021 | D187: https://www.contratos.gov.co/consultas/detalleProceso.do?numConstancia=21-22-28671&g-recaptcha-response=03AGdBq26nscdmApbKIuBvMsgHmsU3TwrEOIAEC3Yh7Xqan4tNJlGuzMMMQAC0COpyeJKO8cz-C3TIMHQFnLVBx5Bg-k9gvYaYha5U2PykVe3zToGeXixFVR8JXbGPZvo2BCscesSU37nvYAYcWx1lOnNctzxuKSs1s5BgF6YcxjXycYJ6hg4w7lZzLxZgX8Pdbsx-c8kItRDRvyZ8-5xTA8Mk_8G8Xozh-rmkq9nNdETrpSotjiKCOLvbzBOigIIKGu09qUI1oK4VO5vK9YYPCmmybHERVVGEiTtB_gUksQbs9HLH3219yGqOTGQcSofLkFNublWq4Y6SrpxPhT-RCA2TxkkkSVhU4jTcEQB438jXHSX1VUeTv4Q8pf7zo01hKCbTUYyydhilnAEHc3KaB_7TbvksvPPxAFb4whJ5Ho40uDQikPtL8Eg_lp8Wu3wKkhBjggYVmx3nH0Z8diuWSEC51aAJCIha1A | E187: Convenios/Contratos interadministrativos | F187: Contratación directa | G187: Contratos interadministrativos | H187: AUNAR ESFUERZOS TÉCNICOS, ADMINISTRATIVOS Y FINANCIEROS ENTRE EL IDRD Y LOS FONDOS DE DESARROLLO LOCAL PARA LA EJECUCIÓN DE LAS LINE AS DE INVERSIÓN; FORMACIÓN Y EVENTOS RECREODEPORTIVOS. SEGUN CONVENIO INTERADMINISTRATIVO 2590 DE 2021. REEMPLAZA CDP 457 Y CRP 550 POR CONSTITUIRSE OBLIGACIONES POR PAGAR. | I187: Inversión | J187: Un nuevo contrato social y ambiental para la Bogotá del Siglo XXI | K187: 20 | L187: =IF(ISERROR(VLOOKUP(K187,[1]Proposito_programa!$C$2:$E$59,2,FALSE))," ",VLOOKUP(K187,[1]Proposito_programa!$C$2:$E$59,2,FALSE)) -> Bogotá, referente en cultura, deporte, recreación y actividad física, con parques para el desarrollo y la salud | M187: =IF(ISERROR(VLOOKUP(K187,[1]Proposito_programa!$C$2:$E$59,3,FALSE))," ",VLOOKUP(K187,[1]Proposito_programa!$C$2:$E$59,3,FALSE)) -> Propósito 1: Hacer un nuevo contrato social para incrementar la inclusión social, productiva y política | N187: 2044 | P187: 860061099 | Q187: INSTITUTO DISTRITAL DE RECREACION Y DEPO RTE | R187: Persona Jurídica | V187: 0 | X187: 0 | Z187: 44152104 | AA187: =+W187+X187+Z187 -> 44152104 | AB187: 0 | AC187: 2021-08-31 | AD187: 2021-09-21 | AE187: 2022-08-31 | AF187: 329 | AG187: 1 | AH187: 240 | AM187: Terminado | AN187: =IF(ISERROR(AB187/AA187),"-",(AB187/AA187)) -> 0
A188: 195-2021 | B188: 2021 | C188: FDLBURE-214-2021 | D188: https://community.secop.gov.co/Public/Tendering/ContractNoticePhases/View?PPI=CO1.PPI.14951982&isFromPublicArea=True&isModal=False | E188: Convenios de cooperacion | F188: Régimen especial | G188: Decreto 92 de 2017 | H188: AUNAR ESFUERZOS TÉCNICOS, JURÍDICOS, ADMINISTRATIVOS Y FINANCIEROS ENTRE LA ORGANIZACIÓN DE ESTADOS IBEROAMERICANOS Y EL FONDO DE DE SARROLLO LOCAL DE BARRIOS UNIDOS PARA FORTALECER LA CONSTRUCCIÓN DE LA CIUDADANÍA Y DESARROLLO DE CAPACIDADES PARA EL EJERCICIO DE L OS DERECHOS DE LAS MUJERES; ASI COMO, ACTIVIDADES ENCAMINADAS A LA PREVENCIÓN DEL FEMINICIDIO Y LAS VIOLENCIAS CONTRA LAS MUJERES EN LA LOCALIDAD DE BARRIOS UNIDOS EN EL MARCO DEL PROYECTO 2057 "YULIANA SAMBONI". SEGUN CONTRATO DE COOPERACION INTERNACIONAL 195 DE 2021. REEMPLAZA CDP 456 Y CRP 559 POR CONSTITUIRSE OBLIGACIONES POR PAGAR. | I188: Inversión | J188: Un nuevo contrato social y ambiental para la Bogotá del Siglo XXI | K188: 40 | L188: =IF(ISERROR(VLOOKUP(K188,[1]Proposito_programa!$C$2:$E$59,2,FALSE))," ",VLOOKUP(K188,[1]Proposito_programa!$C$2:$E$59,2,FALSE)) -> Más mujeres viven una vida libre de violencias, se sienten seguras y acceden con confianza al sistema de justicia | M188: =IF(ISERROR(VLOOKUP(K188,[1]Proposito_programa!$C$2:$E$59,3,FALSE))," ",VLOOKUP(K188,[1]Proposito_programa!$C$2:$E$59,3,FALSE)) -> Propósito 3: Inspirar confianza y legitimidad para vivir sin miedo y ser epicentro de cultura ciudadana, paz y reconciliación | N188: 2057 | P188: 860403137 | Q188: ORGANIZACION DE ESTADOS IBEROAMERICANOS O.E.I. | R188: Persona Jurídica | V188: 0 | X188: 0 | Z188: 179534600 | AA188: 179534600 | AB188: 179534600 | AC188: 2021-09-10 | AD188: 2021-09-10 | AE188: 2022-04-30 | AF188: 231 | AG188: 1 | AH188: 51 | AM188: Terminado | AN188: 1
A189: 196-2021 | B189: 2021 | C189: FDLBURE-218-2021 | D189: https://community.secop.gov.co/Public/Tendering/ContractNoticePhases/View?PPI=CO1.PPI.14984577&isFromPublicArea=True&isModal=False | E189: Convenios de cooperacion | F189: Régimen especial | G189: Decreto 92 de 2017 | H189: Aunar esfuerzos técnicos, jurídicos, administrativos y financieros para fortalecer la participación ciudadana mediante el apoyo a in iciativas de instancias de participación, organizaciones comunitarias, comunales y expresiones sociales en la localidad de Barrios U nidos en el marco del proyecto Diálogos para crecer y participar. Según convenio de cooperación internacional 196 de 2021. REEMPLAZA CDP 460 Y CRP 560 POR CONSTITUIRSE OBLIGACIONES POR PAGAR. | I189: Inversión | J189: Un nuevo contrato social y ambiental para la Bogotá del Siglo XXI | K189: 55 | L189: =IF(ISERROR(VLOOKUP(K189,[1]Proposito_programa!$C$2:$E$59,2,FALSE))," ",VLOOKUP(K189,[1]Proposito_programa!$C$2:$E$59,2,FALSE)) -> Fortalecimiento de cultura ciudadana y su institucionalidad | M189: =IF(ISERROR(VLOOKUP(K189,[1]Proposito_programa!$C$2:$E$59,3,FALSE))," ",VLOOKUP(K189,[1]Proposito_programa!$C$2:$E$59,3,FALSE)) -> Propósito 5: Construir Bogotá - Región con gobierno abierto, transparente y ciudadanía consciente | N189: 2141 | P189: 860403137 | Q189: ORGANIZACION DE ESTADOS IBEROAMERICANOS O.E.I. | R189: Persona Jurídica | V189: 0 | X189: 0 | Z189: 217200000 | AA189: 217200000 | AB189: 200786000 | AC189: 2021-09-10 | AD189: 2021-09-22 | AE189: 2022-08-21 | AF189: 330 | AG189: 2 | AH189: 150 | AM189: Terminado | AN189: 0.9244290976
A190: 197-2021 | B190: 2021 | C190: FDLBUCD-219-2021 | D190: https://community.secop.gov.co/Public/Tendering/ContractNoticePhases/View?PPI=CO1.PPI.15071729&isFromPublicArea=True&isModal=False | E190: Contratos de prestación de servicios profesionales y de apoyo a la gestión | F190: Contratación directa | G190: Prestación de servicios profesionales y de apoyo a la gestión, o para la ejecución de trabajos artísticos que sólo puedan encomendarse a determinadas personas naturales | H190: PRESTAR LOS SERVICIOS PROFESIONALES PARA APOYAR AL ÁREA DE GESTIÓN DEL DESARROLLO EN LOS ASUNTOS RELACIONADOS CON LA FORMULACIÓN, SE GUIMIENTO Y EVALUACIÓN DE POLÍTICAS, PLANES, PROGRAMAS Y PROYECTOS DE DESARROLLO LOCAL, PARA EL CUMPLIMIENTO DE LA META DE PREVENCIÓ N DEL EMBARAZO ADOLESCENTE NO DESEADO, EN BARRIOS UNIDOS. SEGUN CONTRATO DE PRESTACION DE SERVICIOS PROFESIONALES 197 DE 2021. REEMP LAZA CDP 466 Y CRP 561 POR CONSTITUIRSE OBLIGACIONES POR PAGAR. | I190: Inversión | J190: Un nuevo contrato social y ambiental para la Bogotá del Siglo XXI | K190: 8 | L190: =IF(ISERROR(VLOOKUP(K190,[1]Proposito_programa!$C$2:$E$59,2,FALSE))," ",VLOOKUP(K190,[1]Proposito_programa!$C$2:$E$59,2,FALSE)) -> Prevención y atención de maternidad temprana | M190: =IF(ISERROR(VLOOKUP(K190,[1]Proposito_programa!$C$2:$E$59,3,FALSE))," ",VLOOKUP(K190,[1]Proposito_programa!$C$2:$E$59,3,FALSE)) -> Propósito 1: Hacer un nuevo contrato social para incrementar la inclusión social, productiva y política | N190: 2151 | P190: 52788470 | Q190: GINA PAOLA BARRERA CONDA | R190: Persona Natural | V190: 0 | X190: 0 | Z190: 2913333 | AA190: 2913333 | AB190: 2913333 | AC190: 2021-09-16 | AD190: 2021-09-21 | AE190: 2021-12-20 | AF190: 90 | AM190: Terminado | AN190: 1
A191: 198-2021 | B191: 2021 | C191: FDLBU-CD-220-2021 | D191: https://community.secop.gov.co/Public/Tendering/ContractNoticePhases/View?PPI=CO1.PPI.15111237&isFromPublicArea=True&isModal=False | E191: Contratos de prestación de servicios profesionales y de apoyo a la gestión | F191: Contratación directa | G191: Prestación de servicios profesionales y de apoyo a la gestión, o para la ejecución de trabajos artísticos que sólo puedan encomendarse a determinadas personas naturales | H191: PRESTAR SERVICIOS ASISTENCIALES AL ÁREA GESTIÓN DEL DESARROLLO EN LOS ASUNTOS RELATIVOS A LA PLANEACIÓN LOCAL: APOYAR LA CONSECIÓN D E LA META DEL PROYECTO 2008 EN LOS COMPONENTES DE ADOPCIÓN Y EDUCACIÓN. SEGUN CONTRATO DE PRESTACION DE SERVICIOS DE APOYO A LA GEST ION 198 DE 2021. REEMPLAZA CDP 465 Y CRP 567 POR CONSTITUIRSE OBLIGACIONES POR PAGAR. | I191: Inversión | J191: Un nuevo contrato social y ambiental para la Bogotá del Siglo XXI | K191: 34 | L191: =IF(ISERROR(VLOOKUP(K191,[1]Proposito_programa!$C$2:$E$59,2,FALSE))," ",VLOOKUP(K191,[1]Proposito_programa!$C$2:$E$59,2,FALSE)) -> Bogotá protectora de los animales | M191: =IF(ISERROR(VLOOKUP(K191,[1]Proposito_programa!$C$2:$E$59,3,FALSE))," ",VLOOKUP(K191,[1]Proposito_programa!$C$2:$E$59,3,FALSE)) -> Propósito 2 : Cambiar Nuestros Hábitos de Vida para Reverdecer a Bogotá y Adaptarnos y Mitigar la Crisis Climática | N191: 2008 | P191: 1091664708 | Q191: ANDREA PAOLA VILA CLARO | R191: Persona Natural | V191: 0 | X191: 0 | Z191: 2413334 | AA191: 2413334 | AB191: 2413334 | AC191: 2021-09-21 | AD191: 2021-09-27 | AE191: 2022-01-10 | AF191: 104 | AG191: 1 | AH191: 14 | AM191: Terminado | AN191: 1
A192: 199-2021 | B192: 2021 | C192: FDLBU-CD-221-2021 | D192: https://community.secop.gov.co/Public/Tendering/ContractNoticePhases/View?PPI=CO1.PPI.15111661&isFromPublicArea=True&isModal=False | E192: Contratos de prestación de servicios profesionales y de apoyo a la gestión | F192: Contratación directa | G192: Prestación de servicios profesionales y de apoyo a la gestión, o para la ejecución de trabajos artísticos que sólo puedan encomendarse a determinadas personas naturales | H192: PRESTAR SERVICIOS ASISTENCIALES AL ÁREA GESTIÓN DEL DESARROLLO EN LOS ASUNTOS RELATIVOS A LA PLANEACIÓN LOCAL: APOYAR LA CONSECIÓN D E LA META DEL PROYECTO 2008 EN LOS COMPONENTES DE ADOPCIÓN Y EDUCACIÓN. SEGUN CONTRATO DE PRESTACION DE SERVICIOS DE APOYO A LA GEST ION 199 DE 2021. REEMPLAZA CDP 465 Y CRP 576 POR CONSTITUIRSE OBLIGACIONES POR PAGAR. | I192: Inversión | J192: Un nuevo contrato social y ambiental para la Bogotá del Siglo XXI | K192: 34 | L192: =IF(ISERROR(VLOOKUP(K192,[1]Proposito_programa!$C$2:$E$59,2,FALSE))," ",VLOOKUP(K192,[1]Proposito_programa!$C$2:$E$59,2,FALSE)) -> Bogotá protectora de los animales | M192: =IF(ISERROR(VLOOKUP(K192,[1]Proposito_programa!$C$2:$E$59,3,FALSE))," ",VLOOKUP(K192,[1]Proposito_programa!$C$2:$E$59,3,FALSE)) -> Propósito 2 : Cambiar Nuestros Hábitos de Vida para Reverdecer a Bogotá y Adaptarnos y Mitigar la Crisis Climática | N192: 2008 | P192: 80204260 | Q192: CAMILO ANDRES CHAIN REY | R192: Persona Natural | V192: 0 | X192: 0 | Z192: 2413334 | AA192: 2413334 | AB192: 2413334 | AC192: 2021-09-21 | AD192: 2021-09-27 | AE192: 2022-01-10 | AF192: 104 | AG192: 1 | AH192: 14 | AM192: Terminado | AN192: 1
A193: 200-2021 | B193: 2021 | C193: FDLBU-CD-222-2021 | D193: https://community.secop.gov.co/Public/Tendering/ContractNoticePhases/View?PPI=CO1.PPI.15112810&isFromPublicArea=True&isModal=False | E193: Contratos de prestación de servicios profesionales y de apoyo a la gestión | F193: Contratación directa | G193: Prestación de servicios profesionales y de apoyo a la gestión, o para la ejecución de trabajos artísticos que sólo puedan encomendarse a determinadas personas naturales | H193: PRESTAR SERVICIOS ASISTENCIALES AL ÁREA GESTIÓN DEL DESARROLLO EN LOS ASUNTOS RELATIVOS A LA PLANEACIÓN LOCAL: APOYAR LA CONSECIÓN D E LA META DEL PROYECTO 2008 EN LOS COMPONENTES DE ADOPCIÓN Y EDUCACIÓN. SEGUN CONTRATO DE PRESTACION DE SERVICIOS DE APOYO A LA GEST ION 200 DE 2021. REEMPLAZA CDP 465 Y CRP 577 POR CONSTITUIRSE OBLIGACIONES POR PAGAR. | I193: Inversión | J193: Un nuevo contrato social y ambiental para la Bogotá del Siglo XXI | K193: 34 | L193: =IF(ISERROR(VLOOKUP(K193,[1]Proposito_programa!$C$2:$E$59,2,FALSE))," ",VLOOKUP(K193,[1]Proposito_programa!$C$2:$E$59,2,FALSE)) -> Bogotá protectora de los animales | M193: =IF(ISERROR(VLOOKUP(K193,[1]Proposito_programa!$C$2:$E$59,3,FALSE))," ",VLOOKUP(K193,[1]Proposito_programa!$C$2:$E$59,3,FALSE)) -> Propósito 2 : Cambiar Nuestros Hábitos de Vida para Reverdecer a Bogotá y Adaptarnos y Mitigar la Crisis Climática | N193: 2008 | P193: 1015428289 | Q193: ELIANA ORTIZ GARCIA | R193: Persona Natural | V193: 0 | X193: 0 | Z193: 2413334 | AA193: 2413334 | AB193: 2413334 | AC193: 2021-09-20 | AD193: 2021-09-24 | AE193: 2022-01-10 | AF193: 107 | AG193: 1 | AH193: 17 | AM193: Terminado | AN193: 1
